{"text_format":"1","workbook":"xlsx","n_sheets":3,"sheets":["Tool","Berechnung","Daten"],"not_rendered":{"charts":3,"images":1,"macros":1,"external_links":0,"defined_names":0,"comments":0,"pivot_tables":3},"unopened":[],"bounds":{"document_bytes":16777216,"sheet_cells":100000,"rows_first":2000,"rows_last":500,"rows_between":2000,"halvings":0,"cell_chars":16384,"cell_head_chars":4096},"cells_cut":0,"cells_raw":0,"read":"whole","date_system":"1900"}

{"sheet":"Tool","index":0,"n_rows":39,"n_cols":17,"rows_kept":39,"cut":false,"hidden":false,"merged":[[4,2,4,8],[2,2,2,8],[8,2,8,6]]}
[null,null,null,null,null,null,null,null,null,null,null,null,null,null,{"$f":"Tabelle10[[#Totals],[GJ/Jahr]]","v":0},{"$f":"Tabelle105[[#Totals],[t /Jahr]]","v":0},{"$f":"Tabelle1056[[#Totals],[t CO2-Aq /Jahr]]","v":0}]
[]
[]
[]
[]
[]
[null,null,"Sie betrachten die Berechnungen derzeit auf der Basis von Jahresdaten."]
[]
[null,null,"Bitte geben Sie alle in der Herstellungsphase benötigten Materialien sowie Energieträger ein. "]
[]
[null,null,"Materialien (Bestandteile des Produkts)"]
[]
[null,null,"Materialien","Menge","Einheit"]
[null,null,null,null,{"$f":"IF(Tabelle1[[#This Row],[Materialien]]=\"\",\"\",\"kg/Jahr\")","v":""}]
[null,null,null,null,{"$f":"IF(Tabelle1[[#This Row],[Materialien]]=\"\",\"\",\"kg/Jahr\")","v":""}]
[null,null,null,null,{"$f":"IF(Tabelle1[[#This Row],[Materialien]]=\"\",\"\",\"kg/Jahr\")","v":""}]
[null,null,null,null,{"$f":"IF(Tabelle1[[#This Row],[Materialien]]=\"\",\"\",\"kg/Jahr\")","v":""}]
[null,null,null,null,{"$f":"IF(Tabelle1[[#This Row],[Materialien]]=\"\",\"\",\"kg/Jahr\")","v":""}]
[]
[]
[null,null,"Materialien (nicht Bestandteil des Produkts)"]
[]
[null,null,"Materialien","Menge","Einheit"]
[null,null,null,null,{"$f":"IF(Tabelle13[[#This Row],[Materialien]]=\"\",\"\",\"kg/Jahr\")","v":""}]
[null,null,null,null,{"$f":"IF(Tabelle13[[#This Row],[Materialien]]=\"\",\"\",\"kg/Jahr\")","v":""},null,null,null,null," KEA","GJ / Jahr",null," KRA","t / Jahr",null,"GWP","t CO2-Äq / Jahr"]
[null,null,null,null,{"$f":"IF(Tabelle13[[#This Row],[Materialien]]=\"\",\"\",\"kg/Jahr\")","v":""},null,null,null,null,null,null,null,"Gesamtergebnis",null,null,"Gesamtergebnis"]
[null,null,null,null,{"$f":"IF(Tabelle13[[#This Row],[Materialien]]=\"\",\"\",\"kg/Jahr\")","v":""}]
[null,null,null,null,{"$f":"IF(Tabelle13[[#This Row],[Materialien]]=\"\",\"\",\"kg/Jahr\")","v":""}]
[]
[]
[null,null,"Energieträger"]
[]
[null,null,"Energieträger","Menge","Einheit"]
[null,null,null,null,{"$f":"IF(Tabelle3[[#This Row],[Energieträger]]=\"\",\"\",\"kg oder KWh/Jahr\")","v":""}]
[null,null,null,null,{"$f":"IF(Tabelle3[[#This Row],[Energieträger]]=\"\",\"\",\"kg oder KWh/Jahr\")","v":""}]
[null,null,null,null,{"$f":"IF(Tabelle3[[#This Row],[Energieträger]]=\"\",\"\",\"kg oder KWh/Jahr\")","v":""}]
[null,null,null,null,{"$f":"IF(Tabelle3[[#This Row],[Energieträger]]=\"\",\"\",\"kg oder KWh/Jahr\")","v":""}]
[null,null,null,null,{"$f":"IF(Tabelle3[[#This Row],[Energieträger]]=\"\",\"\",\"kg oder KWh/Jahr\")","v":""}]
[null,null,null,null,{"$f":"IF(Tabelle3[[#This Row],[Energieträger]]=\"\",\"\",\"kg oder KWh/Jahr\")","v":""}]

{"sheet":"Berechnung","index":1,"n_rows":496,"n_cols":30,"rows_kept":496,"cut":false,"hidden":true,"merged":[]}
[]
[null,"Berechnung"]
[]
[null,"KEA Gesamtergebnis"]
[]
[null,"Materialien (Bestandteile des Produkts)",null,null,null,null,null,null,"Materialien (nicht Bestandteil des Produkts)",null,null,null,null,null,null,"Energieträger"]
[]
[null,"Materialien","Menge","KEA","KRA","GWP","Einheit",null,"Materialien","Menge","KEA","KRA","GWP","Einheit",null,"Energieträger","Menge","KEA","KRA","GWP","Einheit",null,"KEA Gesamtergebnis","GJ/Jahr",null,"KRA Gesamtergebnis","t /Jahr",null,"GWP Gesamtergebnis","t CO2-Aq /Jahr"]
[null,"Ackerbohne",{"$f":"IFERROR(INDEX(Tabelle1[[Materialien]:[Menge]],(MATCH(TabelleMB[[#This Row],[Materialien]],Tabelle1[Materialien],0)),2),\"\")","v":""},{"$f":"IFERROR(TabelleMB[[#This Row],[Menge]]*Daten!C5,\"\")","v":""},{"$f":"IFERROR(TabelleMB[[#This Row],[Menge]]*Daten!D5,\"\")","v":""},{"$f":"IFERROR(TabelleMB[[#This Row],[Menge]]*Daten!E5,\"\")","v":""},{"$f":"IF(TabelleMB[[#This Row],[Materialien]]=\"\",\"\",\"GJ/Jahr\")","v":"GJ/Jahr"},null,"Ackerbohne",{"$f":"IFERROR(INDEX(Tabelle13[[Materialien]:[Menge]],(MATCH(TabelleNMB[[#This Row],[Materialien]],Tabelle13[Materialien],0)),2),\"\")","v":""},{"$f":"IFERROR(TabelleNMB[[#This Row],[Menge]]*Daten!H5,\"\")","v":""},{"$f":"IFERROR(TabelleNMB[[#This Row],[Menge]]*Daten!I5,\"\")","v":""},{"$f":"IFERROR(TabelleNMB[[#This Row],[Menge]]*Daten!J5,\"\")","v":""},{"$f":"IF(TabelleNMB[[#This Row],[Materialien]]=\"\",\"\",\"kg/Jahr\")","v":"kg/Jahr"},null,"Braunkohle",{"$f":"IFERROR(INDEX(Tabelle3[[Energieträger]:[Menge]],(MATCH(TabelleE[Energieträger],Tabelle3[Energieträger],0)),2),\"\")","v":""},{"$f":"IFERROR(TabelleE[[#This Row],[Menge]]*Daten!M5,\"\")","v":""},{"$f":"IFERROR(TabelleE[[#This Row],[Menge]]*Daten!N5,\"\")","v":""},{"$f":"IFERROR(TabelleE[[#This Row],[Menge]]*Daten!O5,\"\")","v":""},{"$f":"IF(TabelleE[[#This Row],[Energieträger]]=\"\",\"\",\"kg oder KWh/Jahr\")","v":"kg oder KWh/Jahr"},null,"Materialien (Bestandteile des Produkts)",{"$f":"TabelleMB[[#Totals],[KEA]]","v":0},null,"Materialien (Bestandteile des Produkts)",{"$f":"TabelleMB[[#Totals],[KRA]]","v":0},null,"Materialien (Bestandteile des Produkts)",{"$f":"TabelleMB[[#Totals],[GWP]]","v":0}]
[null,"Altpapierstoff",{"$f":"IFERROR(INDEX(Tabelle1[[Materialien]:[Menge]],(MATCH(TabelleMB[[#This Row],[Materialien]],Tabelle1[Materialien],0)),2),\"\")","v":""},{"$f":"IFERROR(TabelleMB[[#This Row],[Menge]]*Daten!C6,\"\")","v":""},{"$f":"IFERROR(TabelleMB[[#This Row],[Menge]]*Daten!D6,\"\")","v":""},{"$f":"IFERROR(TabelleMB[[#This Row],[Menge]]*Daten!E6,\"\")","v":""},{"$f":"IF(TabelleMB[[#This Row],[Materialien]]=\"\",\"\",\"GJ/Jahr\")","v":"GJ/Jahr"},null,"Altpapierstoff",{"$f":"IFERROR(INDEX(Tabelle13[[Materialien]:[Menge]],(MATCH(TabelleNMB[[#This Row],[Materialien]],Tabelle13[Materialien],0)),2),\"\")","v":""},{"$f":"IFERROR(TabelleNMB[[#This Row],[Menge]]*Daten!H6,\"\")","v":""},{"$f":"IFERROR(TabelleNMB[[#This Row],[Menge]]*Daten!I6,\"\")","v":""},{"$f":"IFERROR(TabelleNMB[[#This Row],[Menge]]*Daten!J6,\"\")","v":""},{"$f":"IF(TabelleNMB[[#This Row],[Materialien]]=\"\",\"\",\"kg/Jahr\")","v":"kg/Jahr"},null,"Erdgas (Bezug: 1kg)",{"$f":"IFERROR(INDEX(Tabelle3[[Energieträger]:[Menge]],(MATCH(TabelleE[Energieträger],Tabelle3[Energieträger],0)),2),\"\")","v":""},{"$f":"IFERROR(TabelleE[[#This Row],[Menge]]*Daten!M6,\"\")","v":""},{"$f":"IFERROR(TabelleE[[#This Row],[Menge]]*Daten!N6,\"\")","v":""},{"$f":"IFERROR(TabelleE[[#This Row],[Menge]]*Daten!O6,\"\")","v":""},{"$f":"IF(TabelleE[[#This Row],[Energieträger]]=\"\",\"\",\"kg oder KWh/Jahr\")","v":"kg oder KWh/Jahr"},null,"Materialien (nicht Bestandteil des Produkts)",{"$f":"TabelleNMB[[#Totals],[KEA]]","v":0},null,"Materialien (nicht Bestandteil des Produkts)",{"$f":"TabelleNMB[[#Totals],[KRA]]","v":0},null,"Materialien (nicht Bestandteil des Produkts)",{"$f":"TabelleNMB[[#Totals],[GWP]]","v":0}]
[null,"Aluminium, Gusslegierung",{"$f":"IFERROR(INDEX(Tabelle1[[Materialien]:[Menge]],(MATCH(TabelleMB[[#This Row],[Materialien]],Tabelle1[Materialien],0)),2),\"\")","v":""},{"$f":"IFERROR(TabelleMB[[#This Row],[Menge]]*Daten!C7,\"\")","v":""},{"$f":"IFERROR(TabelleMB[[#This Row],[Menge]]*Daten!D7,\"\")","v":""},{"$f":"IFERROR(TabelleMB[[#This Row],[Menge]]*Daten!E7,\"\")","v":""},{"$f":"IF(TabelleMB[[#This Row],[Materialien]]=\"\",\"\",\"GJ/Jahr\")","v":"GJ/Jahr"},null,"Aluminium, Gusslegierung",{"$f":"IFERROR(INDEX(Tabelle13[[Materialien]:[Menge]],(MATCH(TabelleNMB[[#This Row],[Materialien]],Tabelle13[Materialien],0)),2),\"\")","v":""},{"$f":"IFERROR(TabelleNMB[[#This Row],[Menge]]*Daten!H7,\"\")","v":""},{"$f":"IFERROR(TabelleNMB[[#This Row],[Menge]]*Daten!I7,\"\")","v":""},{"$f":"IFERROR(TabelleNMB[[#This Row],[Menge]]*Daten!J7,\"\")","v":""},{"$f":"IF(TabelleNMB[[#This Row],[Materialien]]=\"\",\"\",\"kg/Jahr\")","v":"kg/Jahr"},null,"Erdöl (Bezug: 1kg)",{"$f":"IFERROR(INDEX(Tabelle3[[Energieträger]:[Menge]],(MATCH(TabelleE[Energieträger],Tabelle3[Energieträger],0)),2),\"\")","v":""},{"$f":"IFERROR(TabelleE[[#This Row],[Menge]]*Daten!M7,\"\")","v":""},{"$f":"IFERROR(TabelleE[[#This Row],[Menge]]*Daten!N7,\"\")","v":""},{"$f":"IFERROR(TabelleE[[#This Row],[Menge]]*Daten!O7,\"\")","v":""},{"$f":"IF(TabelleE[[#This Row],[Energieträger]]=\"\",\"\",\"kg oder KWh/Jahr\")","v":"kg oder KWh/Jahr"},null,"Energieträger",{"$f":"TabelleE[[#Totals],[KEA]]","v":0},null,"Energieträger",{"$f":"TabelleE[[#Totals],[KRA]]","v":0},null,"Energieträger",{"$f":"TabelleE[[#Totals],[GWP]]","v":0}]
[null,"Aluminium, Knetlegierung",{"$f":"IFERROR(INDEX(Tabelle1[[Materialien]:[Menge]],(MATCH(TabelleMB[[#This Row],[Materialien]],Tabelle1[Materialien],0)),2),\"\")","v":""},{"$f":"IFERROR(TabelleMB[[#This Row],[Menge]]*Daten!C8,\"\")","v":""},{"$f":"IFERROR(TabelleMB[[#This Row],[Menge]]*Daten!D8,\"\")","v":""},{"$f":"IFERROR(TabelleMB[[#This Row],[Menge]]*Daten!E8,\"\")","v":""},{"$f":"IF(TabelleMB[[#This Row],[Materialien]]=\"\",\"\",\"GJ/Jahr\")","v":"GJ/Jahr"},null,"Aluminium, Knetlegierung",{"$f":"IFERROR(INDEX(Tabelle13[[Materialien]:[Menge]],(MATCH(TabelleNMB[[#This Row],[Materialien]],Tabelle13[Materialien],0)),2),\"\")","v":""},{"$f":"IFERROR(TabelleNMB[[#This Row],[Menge]]*Daten!H8,\"\")","v":""},{"$f":"IFERROR(TabelleNMB[[#This Row],[Menge]]*Daten!I8,\"\")","v":""},{"$f":"IFERROR(TabelleNMB[[#This Row],[Menge]]*Daten!J8,\"\")","v":""},{"$f":"IF(TabelleNMB[[#This Row],[Materialien]]=\"\",\"\",\"kg/Jahr\")","v":"kg/Jahr"},null,"Steinkohle (Bezug: 1kg)",{"$f":"IFERROR(INDEX(Tabelle3[[Energieträger]:[Menge]],(MATCH(TabelleE[Energieträger],Tabelle3[Energieträger],0)),2),\"\")","v":""},{"$f":"IFERROR(TabelleE[[#This Row],[Menge]]*Daten!M8,\"\")","v":""},{"$f":"IFERROR(TabelleE[[#This Row],[Menge]]*Daten!N8,\"\")","v":""},{"$f":"IFERROR(TabelleE[[#This Row],[Menge]]*Daten!O8,\"\")","v":""},{"$f":"IF(TabelleE[[#This Row],[Energieträger]]=\"\",\"\",\"kg oder KWh/Jahr\")","v":"kg oder KWh/Jahr"},null,"Ergebnis",{"$f":"SUBTOTAL(109,Tabelle10[GJ/Jahr])","v":0},null,"Ergebnis",{"$f":"SUBTOTAL(109,Tabelle105[t /Jahr])","v":0},null,"Ergebnis",{"$f":"SUBTOTAL(109,Tabelle1056[t CO2-Aq /Jahr])","v":0}]
[null,"Aluminium, primär",{"$f":"IFERROR(INDEX(Tabelle1[[Materialien]:[Menge]],(MATCH(TabelleMB[[#This Row],[Materialien]],Tabelle1[Materialien],0)),2),\"\")","v":""},{"$f":"IFERROR(TabelleMB[[#This Row],[Menge]]*Daten!C9,\"\")","v":""},{"$f":"IFERROR(TabelleMB[[#This Row],[Menge]]*Daten!D9,\"\")","v":""},{"$f":"IFERROR(TabelleMB[[#This Row],[Menge]]*Daten!E9,\"\")","v":""},{"$f":"IF(TabelleMB[[#This Row],[Materialien]]=\"\",\"\",\"GJ/Jahr\")","v":"GJ/Jahr"},null,"Aluminium, primär",{"$f":"IFERROR(INDEX(Tabelle13[[Materialien]:[Menge]],(MATCH(TabelleNMB[[#This Row],[Materialien]],Tabelle13[Materialien],0)),2),\"\")","v":""},{"$f":"IFERROR(TabelleNMB[[#This Row],[Menge]]*Daten!H9,\"\")","v":""},{"$f":"IFERROR(TabelleNMB[[#This Row],[Menge]]*Daten!I9,\"\")","v":""},{"$f":"IFERROR(TabelleNMB[[#This Row],[Menge]]*Daten!J9,\"\")","v":""},{"$f":"IF(TabelleNMB[[#This Row],[Materialien]]=\"\",\"\",\"kg/Jahr\")","v":"kg/Jahr"},null,"Steinkohlenkoks (Bezug: 1kg)",{"$f":"IFERROR(INDEX(Tabelle3[[Energieträger]:[Menge]],(MATCH(TabelleE[Energieträger],Tabelle3[Energieträger],0)),2),\"\")","v":""},{"$f":"IFERROR(TabelleE[[#This Row],[Menge]]*Daten!M9,\"\")","v":""},{"$f":"IFERROR(TabelleE[[#This Row],[Menge]]*Daten!N9,\"\")","v":""},{"$f":"IFERROR(TabelleE[[#This Row],[Menge]]*Daten!O9,\"\")","v":""},{"$f":"IF(TabelleE[[#This Row],[Energieträger]]=\"\",\"\",\"kg oder KWh/Jahr\")","v":"kg oder KWh/Jahr"}]
[null,"Aluminium, sekundär",{"$f":"IFERROR(INDEX(Tabelle1[[Materialien]:[Menge]],(MATCH(TabelleMB[[#This Row],[Materialien]],Tabelle1[Materialien],0)),2),\"\")","v":""},{"$f":"IFERROR(TabelleMB[[#This Row],[Menge]]*Daten!C10,\"\")","v":""},{"$f":"IFERROR(TabelleMB[[#This Row],[Menge]]*Daten!D10,\"\")","v":""},{"$f":"IFERROR(TabelleMB[[#This Row],[Menge]]*Daten!E10,\"\")","v":""},{"$f":"IF(TabelleMB[[#This Row],[Materialien]]=\"\",\"\",\"GJ/Jahr\")","v":"GJ/Jahr"},null,"Aluminium, sekundär",{"$f":"IFERROR(INDEX(Tabelle13[[Materialien]:[Menge]],(MATCH(TabelleNMB[[#This Row],[Materialien]],Tabelle13[Materialien],0)),2),\"\")","v":""},{"$f":"IFERROR(TabelleNMB[[#This Row],[Menge]]*Daten!H10,\"\")","v":""},{"$f":"IFERROR(TabelleNMB[[#This Row],[Menge]]*Daten!I10,\"\")","v":""},{"$f":"IFERROR(TabelleNMB[[#This Row],[Menge]]*Daten!J10,\"\")","v":""},{"$f":"IF(TabelleNMB[[#This Row],[Materialien]]=\"\",\"\",\"kg/Jahr\")","v":"kg/Jahr"},null,"Stromelektr. (Bezug: 1kWh)",{"$f":"IFERROR(INDEX(Tabelle3[[Energieträger]:[Menge]],(MATCH(TabelleE[Energieträger],Tabelle3[Energieträger],0)),2),\"\")","v":""},{"$f":"IFERROR(TabelleE[[#This Row],[Menge]]*Daten!M10,\"\")","v":""},{"$f":"IFERROR(TabelleE[[#This Row],[Menge]]*Daten!N10,\"\")","v":""},{"$f":"IFERROR(TabelleE[[#This Row],[Menge]]*Daten!O10,\"\")","v":""},{"$f":"IF(TabelleE[[#This Row],[Energieträger]]=\"\",\"\",\"kg oder KWh/Jahr\")","v":"kg oder KWh/Jahr"}]
[null,"Aluminiumblech (ohne Prozessschritte für Aluminium primär/sekundär)",{"$f":"IFERROR(INDEX(Tabelle1[[Materialien]:[Menge]],(MATCH(TabelleMB[[#This Row],[Materialien]],Tabelle1[Materialien],0)),2),\"\")","v":""},{"$f":"IFERROR(TabelleMB[[#This Row],[Menge]]*Daten!C11,\"\")","v":""},{"$f":"IFERROR(TabelleMB[[#This Row],[Menge]]*Daten!D11,\"\")","v":""},{"$f":"IFERROR(TabelleMB[[#This Row],[Menge]]*Daten!E11,\"\")","v":""},{"$f":"IF(TabelleMB[[#This Row],[Materialien]]=\"\",\"\",\"GJ/Jahr\")","v":"GJ/Jahr"},null,"Aluminiumblech (ohne Prozessschritte für Aluminium primär/sekundär)",{"$f":"IFERROR(INDEX(Tabelle13[[Materialien]:[Menge]],(MATCH(TabelleNMB[[#This Row],[Materialien]],Tabelle13[Materialien],0)),2),\"\")","v":""},{"$f":"IFERROR(TabelleNMB[[#This Row],[Menge]]*Daten!H11,\"\")","v":""},{"$f":"IFERROR(TabelleNMB[[#This Row],[Menge]]*Daten!I11,\"\")","v":""},{"$f":"IFERROR(TabelleNMB[[#This Row],[Menge]]*Daten!J11,\"\")","v":""},{"$f":"IF(TabelleNMB[[#This Row],[Materialien]]=\"\",\"\",\"kg/Jahr\")","v":"kg/Jahr"},null,"Ergebnis",{"$f":"SUBTOTAL(109,TabelleE[Menge])","v":0},{"$f":"SUBTOTAL(109,TabelleE[KEA])","v":0},{"$f":"SUBTOTAL(109,TabelleE[KRA])","v":0},{"$f":"SUBTOTAL(109,TabelleE[GWP])","v":0}]
[null,"Amin (Trimethylamin)",{"$f":"IFERROR(INDEX(Tabelle1[[Materialien]:[Menge]],(MATCH(TabelleMB[[#This Row],[Materialien]],Tabelle1[Materialien],0)),2),\"\")","v":""},{"$f":"IFERROR(TabelleMB[[#This Row],[Menge]]*Daten!C12,\"\")","v":""},{"$f":"IFERROR(TabelleMB[[#This Row],[Menge]]*Daten!D12,\"\")","v":""},{"$f":"IFERROR(TabelleMB[[#This Row],[Menge]]*Daten!E12,\"\")","v":""},{"$f":"IF(TabelleMB[[#This Row],[Materialien]]=\"\",\"\",\"GJ/Jahr\")","v":"GJ/Jahr"},null,"Amin (Trimethylamin)",{"$f":"IFERROR(INDEX(Tabelle13[[Materialien]:[Menge]],(MATCH(TabelleNMB[[#This Row],[Materialien]],Tabelle13[Materialien],0)),2),\"\")","v":""},{"$f":"IFERROR(TabelleNMB[[#This Row],[Menge]]*Daten!H12,\"\")","v":""},{"$f":"IFERROR(TabelleNMB[[#This Row],[Menge]]*Daten!I12,\"\")","v":""},{"$f":"IFERROR(TabelleNMB[[#This Row],[Menge]]*Daten!J12,\"\")","v":""},{"$f":"IF(TabelleNMB[[#This Row],[Materialien]]=\"\",\"\",\"kg/Jahr\")","v":"kg/Jahr"}]
[null,"Ammoniak",{"$f":"IFERROR(INDEX(Tabelle1[[Materialien]:[Menge]],(MATCH(TabelleMB[[#This Row],[Materialien]],Tabelle1[Materialien],0)),2),\"\")","v":""},{"$f":"IFERROR(TabelleMB[[#This Row],[Menge]]*Daten!C13,\"\")","v":""},{"$f":"IFERROR(TabelleMB[[#This Row],[Menge]]*Daten!D13,\"\")","v":""},{"$f":"IFERROR(TabelleMB[[#This Row],[Menge]]*Daten!E13,\"\")","v":""},{"$f":"IF(TabelleMB[[#This Row],[Materialien]]=\"\",\"\",\"GJ/Jahr\")","v":"GJ/Jahr"},null,"Ammoniak",{"$f":"IFERROR(INDEX(Tabelle13[[Materialien]:[Menge]],(MATCH(TabelleNMB[[#This Row],[Materialien]],Tabelle13[Materialien],0)),2),\"\")","v":""},{"$f":"IFERROR(TabelleNMB[[#This Row],[Menge]]*Daten!H13,\"\")","v":""},{"$f":"IFERROR(TabelleNMB[[#This Row],[Menge]]*Daten!I13,\"\")","v":""},{"$f":"IFERROR(TabelleNMB[[#This Row],[Menge]]*Daten!J13,\"\")","v":""},{"$f":"IF(TabelleNMB[[#This Row],[Materialien]]=\"\",\"\",\"kg/Jahr\")","v":"kg/Jahr"}]
[null,"Andalusit, Disthen",{"$f":"IFERROR(INDEX(Tabelle1[[Materialien]:[Menge]],(MATCH(TabelleMB[[#This Row],[Materialien]],Tabelle1[Materialien],0)),2),\"\")","v":""},{"$f":"IFERROR(TabelleMB[[#This Row],[Menge]]*Daten!C14,\"\")","v":""},{"$f":"IFERROR(TabelleMB[[#This Row],[Menge]]*Daten!D14,\"\")","v":""},{"$f":"IFERROR(TabelleMB[[#This Row],[Menge]]*Daten!E14,\"\")","v":""},{"$f":"IF(TabelleMB[[#This Row],[Materialien]]=\"\",\"\",\"GJ/Jahr\")","v":"GJ/Jahr"},null,"Andalusit, Disthen",{"$f":"IFERROR(INDEX(Tabelle13[[Materialien]:[Menge]],(MATCH(TabelleNMB[[#This Row],[Materialien]],Tabelle13[Materialien],0)),2),\"\")","v":""},{"$f":"IFERROR(TabelleNMB[[#This Row],[Menge]]*Daten!H14,\"\")","v":""},{"$f":"IFERROR(TabelleNMB[[#This Row],[Menge]]*Daten!I14,\"\")","v":""},{"$f":"IFERROR(TabelleNMB[[#This Row],[Menge]]*Daten!J14,\"\")","v":""},{"$f":"IF(TabelleNMB[[#This Row],[Materialien]]=\"\",\"\",\"kg/Jahr\")","v":"kg/Jahr"}]
[null,"Arsen",{"$f":"IFERROR(INDEX(Tabelle1[[Materialien]:[Menge]],(MATCH(TabelleMB[[#This Row],[Materialien]],Tabelle1[Materialien],0)),2),\"\")","v":""},{"$f":"IFERROR(TabelleMB[[#This Row],[Menge]]*Daten!C15,\"\")","v":""},{"$f":"IFERROR(TabelleMB[[#This Row],[Menge]]*Daten!D15,\"\")","v":""},{"$f":"IFERROR(TabelleMB[[#This Row],[Menge]]*Daten!E15,\"\")","v":""},{"$f":"IF(TabelleMB[[#This Row],[Materialien]]=\"\",\"\",\"GJ/Jahr\")","v":"GJ/Jahr"},null,"Arsen",{"$f":"IFERROR(INDEX(Tabelle13[[Materialien]:[Menge]],(MATCH(TabelleNMB[[#This Row],[Materialien]],Tabelle13[Materialien],0)),2),\"\")","v":""},{"$f":"IFERROR(TabelleNMB[[#This Row],[Menge]]*Daten!H15,\"\")","v":""},{"$f":"IFERROR(TabelleNMB[[#This Row],[Menge]]*Daten!I15,\"\")","v":""},{"$f":"IFERROR(TabelleNMB[[#This Row],[Menge]]*Daten!J15,\"\")","v":""},{"$f":"IF(TabelleNMB[[#This Row],[Materialien]]=\"\",\"\",\"kg/Jahr\")","v":"kg/Jahr"}]
[null,"Asbet",{"$f":"IFERROR(INDEX(Tabelle1[[Materialien]:[Menge]],(MATCH(TabelleMB[[#This Row],[Materialien]],Tabelle1[Materialien],0)),2),\"\")","v":""},{"$f":"IFERROR(TabelleMB[[#This Row],[Menge]]*Daten!C16,\"\")","v":""},{"$f":"IFERROR(TabelleMB[[#This Row],[Menge]]*Daten!D16,\"\")","v":""},{"$f":"IFERROR(TabelleMB[[#This Row],[Menge]]*Daten!E16,\"\")","v":""},{"$f":"IF(TabelleMB[[#This Row],[Materialien]]=\"\",\"\",\"GJ/Jahr\")","v":"GJ/Jahr"},null,"Asbet",{"$f":"IFERROR(INDEX(Tabelle13[[Materialien]:[Menge]],(MATCH(TabelleNMB[[#This Row],[Materialien]],Tabelle13[Materialien],0)),2),\"\")","v":""},{"$f":"IFERROR(TabelleNMB[[#This Row],[Menge]]*Daten!H16,\"\")","v":""},{"$f":"IFERROR(TabelleNMB[[#This Row],[Menge]]*Daten!I16,\"\")","v":""},{"$f":"IFERROR(TabelleNMB[[#This Row],[Menge]]*Daten!J16,\"\")","v":""},{"$f":"IF(TabelleNMB[[#This Row],[Materialien]]=\"\",\"\",\"kg/Jahr\")","v":"kg/Jahr"},null,"GWP","Bezeichnung","GJ /jahr"]
[null,"Asphalt",{"$f":"IFERROR(INDEX(Tabelle1[[Materialien]:[Menge]],(MATCH(TabelleMB[[#This Row],[Materialien]],Tabelle1[Materialien],0)),2),\"\")","v":""},{"$f":"IFERROR(TabelleMB[[#This Row],[Menge]]*Daten!C17,\"\")","v":""},{"$f":"IFERROR(TabelleMB[[#This Row],[Menge]]*Daten!D17,\"\")","v":""},{"$f":"IFERROR(TabelleMB[[#This Row],[Menge]]*Daten!E17,\"\")","v":""},{"$f":"IF(TabelleMB[[#This Row],[Materialien]]=\"\",\"\",\"GJ/Jahr\")","v":"GJ/Jahr"},null,"Asphalt",{"$f":"IFERROR(INDEX(Tabelle13[[Materialien]:[Menge]],(MATCH(TabelleNMB[[#This Row],[Materialien]],Tabelle13[Materialien],0)),2),\"\")","v":""},{"$f":"IFERROR(TabelleNMB[[#This Row],[Menge]]*Daten!H17,\"\")","v":""},{"$f":"IFERROR(TabelleNMB[[#This Row],[Menge]]*Daten!I17,\"\")","v":""},{"$f":"IFERROR(TabelleNMB[[#This Row],[Menge]]*Daten!J17,\"\")","v":""},{"$f":"IF(TabelleNMB[[#This Row],[Materialien]]=\"\",\"\",\"kg/Jahr\")","v":"kg/Jahr"},null,"Ackerbohne","Materialien (Bestandteile des Produkts)",{"$f":"IFERROR(INDEX(TabelleMB[[Materialien]:[GWP]],(MATCH(TabelleGWP[[#This Row],[GWP]],TabelleGWP[GWP],0)),5),\"\")","v":""}]
[null,"Barit (Schwerspat)",{"$f":"IFERROR(INDEX(Tabelle1[[Materialien]:[Menge]],(MATCH(TabelleMB[[#This Row],[Materialien]],Tabelle1[Materialien],0)),2),\"\")","v":""},{"$f":"IFERROR(TabelleMB[[#This Row],[Menge]]*Daten!C18,\"\")","v":""},{"$f":"IFERROR(TabelleMB[[#This Row],[Menge]]*Daten!D18,\"\")","v":""},{"$f":"IFERROR(TabelleMB[[#This Row],[Menge]]*Daten!E18,\"\")","v":""},{"$f":"IF(TabelleMB[[#This Row],[Materialien]]=\"\",\"\",\"GJ/Jahr\")","v":"GJ/Jahr"},null,"Barit (Schwerspat)",{"$f":"IFERROR(INDEX(Tabelle13[[Materialien]:[Menge]],(MATCH(TabelleNMB[[#This Row],[Materialien]],Tabelle13[Materialien],0)),2),\"\")","v":""},{"$f":"IFERROR(TabelleNMB[[#This Row],[Menge]]*Daten!H18,\"\")","v":""},{"$f":"IFERROR(TabelleNMB[[#This Row],[Menge]]*Daten!I18,\"\")","v":""},{"$f":"IFERROR(TabelleNMB[[#This Row],[Menge]]*Daten!J18,\"\")","v":""},{"$f":"IF(TabelleNMB[[#This Row],[Materialien]]=\"\",\"\",\"kg/Jahr\")","v":"kg/Jahr"},null,"Altpapierstoff","Materialien (Bestandteile des Produkts)",{"$f":"IFERROR(INDEX(TabelleMB[[Materialien]:[GWP]],(MATCH(TabelleGWP[[#This Row],[GWP]],TabelleGWP[GWP],0)),5),\"\")","v":""}]
[null,"Bariumkarbonat",{"$f":"IFERROR(INDEX(Tabelle1[[Materialien]:[Menge]],(MATCH(TabelleMB[[#This Row],[Materialien]],Tabelle1[Materialien],0)),2),\"\")","v":""},{"$f":"IFERROR(TabelleMB[[#This Row],[Menge]]*Daten!C19,\"\")","v":""},{"$f":"IFERROR(TabelleMB[[#This Row],[Menge]]*Daten!D19,\"\")","v":""},{"$f":"IFERROR(TabelleMB[[#This Row],[Menge]]*Daten!E19,\"\")","v":""},{"$f":"IF(TabelleMB[[#This Row],[Materialien]]=\"\",\"\",\"GJ/Jahr\")","v":"GJ/Jahr"},null,"Bariumkarbonat",{"$f":"IFERROR(INDEX(Tabelle13[[Materialien]:[Menge]],(MATCH(TabelleNMB[[#This Row],[Materialien]],Tabelle13[Materialien],0)),2),\"\")","v":""},{"$f":"IFERROR(TabelleNMB[[#This Row],[Menge]]*Daten!H19,\"\")","v":""},{"$f":"IFERROR(TabelleNMB[[#This Row],[Menge]]*Daten!I19,\"\")","v":""},{"$f":"IFERROR(TabelleNMB[[#This Row],[Menge]]*Daten!J19,\"\")","v":""},{"$f":"IF(TabelleNMB[[#This Row],[Materialien]]=\"\",\"\",\"kg/Jahr\")","v":"kg/Jahr"},null,"Aluminium, Gusslegierung","Materialien (Bestandteile des Produkts)",{"$f":"IFERROR(INDEX(TabelleMB[[Materialien]:[GWP]],(MATCH(TabelleGWP[[#This Row],[GWP]],TabelleGWP[GWP],0)),5),\"\")","v":""}]
[null,"Baumwollgewebe",{"$f":"IFERROR(INDEX(Tabelle1[[Materialien]:[Menge]],(MATCH(TabelleMB[[#This Row],[Materialien]],Tabelle1[Materialien],0)),2),\"\")","v":""},{"$f":"IFERROR(TabelleMB[[#This Row],[Menge]]*Daten!C20,\"\")","v":""},{"$f":"IFERROR(TabelleMB[[#This Row],[Menge]]*Daten!D20,\"\")","v":""},{"$f":"IFERROR(TabelleMB[[#This Row],[Menge]]*Daten!E20,\"\")","v":""},{"$f":"IF(TabelleMB[[#This Row],[Materialien]]=\"\",\"\",\"GJ/Jahr\")","v":"GJ/Jahr"},null,"Baumwollgewebe",{"$f":"IFERROR(INDEX(Tabelle13[[Materialien]:[Menge]],(MATCH(TabelleNMB[[#This Row],[Materialien]],Tabelle13[Materialien],0)),2),\"\")","v":""},{"$f":"IFERROR(TabelleNMB[[#This Row],[Menge]]*Daten!H20,\"\")","v":""},{"$f":"IFERROR(TabelleNMB[[#This Row],[Menge]]*Daten!I20,\"\")","v":""},{"$f":"IFERROR(TabelleNMB[[#This Row],[Menge]]*Daten!J20,\"\")","v":""},{"$f":"IF(TabelleNMB[[#This Row],[Materialien]]=\"\",\"\",\"kg/Jahr\")","v":"kg/Jahr"},null,"Aluminium, Knetlegierung","Materialien (Bestandteile des Produkts)",{"$f":"IFERROR(INDEX(TabelleMB[[Materialien]:[GWP]],(MATCH(TabelleGWP[[#This Row],[GWP]],TabelleGWP[GWP],0)),5),\"\")","v":""}]
[null,"Bauxit",{"$f":"IFERROR(INDEX(Tabelle1[[Materialien]:[Menge]],(MATCH(TabelleMB[[#This Row],[Materialien]],Tabelle1[Materialien],0)),2),\"\")","v":""},{"$f":"IFERROR(TabelleMB[[#This Row],[Menge]]*Daten!C21,\"\")","v":""},{"$f":"IFERROR(TabelleMB[[#This Row],[Menge]]*Daten!D21,\"\")","v":""},{"$f":"IFERROR(TabelleMB[[#This Row],[Menge]]*Daten!E21,\"\")","v":""},{"$f":"IF(TabelleMB[[#This Row],[Materialien]]=\"\",\"\",\"GJ/Jahr\")","v":"GJ/Jahr"},null,"Bauxit",{"$f":"IFERROR(INDEX(Tabelle13[[Materialien]:[Menge]],(MATCH(TabelleNMB[[#This Row],[Materialien]],Tabelle13[Materialien],0)),2),\"\")","v":""},{"$f":"IFERROR(TabelleNMB[[#This Row],[Menge]]*Daten!H21,\"\")","v":""},{"$f":"IFERROR(TabelleNMB[[#This Row],[Menge]]*Daten!I21,\"\")","v":""},{"$f":"IFERROR(TabelleNMB[[#This Row],[Menge]]*Daten!J21,\"\")","v":""},{"$f":"IF(TabelleNMB[[#This Row],[Materialien]]=\"\",\"\",\"kg/Jahr\")","v":"kg/Jahr"},null,"Aluminium, primär","Materialien (Bestandteile des Produkts)",{"$f":"IFERROR(INDEX(TabelleMB[[Materialien]:[GWP]],(MATCH(TabelleGWP[[#This Row],[GWP]],TabelleGWP[GWP],0)),5),\"\")","v":""}]
[null,"Bentonit",{"$f":"IFERROR(INDEX(Tabelle1[[Materialien]:[Menge]],(MATCH(TabelleMB[[#This Row],[Materialien]],Tabelle1[Materialien],0)),2),\"\")","v":""},{"$f":"IFERROR(TabelleMB[[#This Row],[Menge]]*Daten!C22,\"\")","v":""},{"$f":"IFERROR(TabelleMB[[#This Row],[Menge]]*Daten!D22,\"\")","v":""},{"$f":"IFERROR(TabelleMB[[#This Row],[Menge]]*Daten!E22,\"\")","v":""},{"$f":"IF(TabelleMB[[#This Row],[Materialien]]=\"\",\"\",\"GJ/Jahr\")","v":"GJ/Jahr"},null,"Bentonit",{"$f":"IFERROR(INDEX(Tabelle13[[Materialien]:[Menge]],(MATCH(TabelleNMB[[#This Row],[Materialien]],Tabelle13[Materialien],0)),2),\"\")","v":""},{"$f":"IFERROR(TabelleNMB[[#This Row],[Menge]]*Daten!H22,\"\")","v":""},{"$f":"IFERROR(TabelleNMB[[#This Row],[Menge]]*Daten!I22,\"\")","v":""},{"$f":"IFERROR(TabelleNMB[[#This Row],[Menge]]*Daten!J22,\"\")","v":""},{"$f":"IF(TabelleNMB[[#This Row],[Materialien]]=\"\",\"\",\"kg/Jahr\")","v":"kg/Jahr"},null,"Aluminium, sekundär","Materialien (Bestandteile des Produkts)",{"$f":"IFERROR(INDEX(TabelleMB[[Materialien]:[GWP]],(MATCH(TabelleGWP[[#This Row],[GWP]],TabelleGWP[GWP],0)),5),\"\")","v":""}]
[null,"Beton",{"$f":"IFERROR(INDEX(Tabelle1[[Materialien]:[Menge]],(MATCH(TabelleMB[[#This Row],[Materialien]],Tabelle1[Materialien],0)),2),\"\")","v":""},{"$f":"IFERROR(TabelleMB[[#This Row],[Menge]]*Daten!C23,\"\")","v":""},{"$f":"IFERROR(TabelleMB[[#This Row],[Menge]]*Daten!D23,\"\")","v":""},{"$f":"IFERROR(TabelleMB[[#This Row],[Menge]]*Daten!E23,\"\")","v":""},{"$f":"IF(TabelleMB[[#This Row],[Materialien]]=\"\",\"\",\"GJ/Jahr\")","v":"GJ/Jahr"},null,"Beton",{"$f":"IFERROR(INDEX(Tabelle13[[Materialien]:[Menge]],(MATCH(TabelleNMB[[#This Row],[Materialien]],Tabelle13[Materialien],0)),2),\"\")","v":""},{"$f":"IFERROR(TabelleNMB[[#This Row],[Menge]]*Daten!H23,\"\")","v":""},{"$f":"IFERROR(TabelleNMB[[#This Row],[Menge]]*Daten!I23,\"\")","v":""},{"$f":"IFERROR(TabelleNMB[[#This Row],[Menge]]*Daten!J23,\"\")","v":""},{"$f":"IF(TabelleNMB[[#This Row],[Materialien]]=\"\",\"\",\"kg/Jahr\")","v":"kg/Jahr"},null,"Aluminiumblech (ohne Prozessschritte für Aluminium primär/sekundär)","Materialien (Bestandteile des Produkts)",{"$f":"IFERROR(INDEX(TabelleMB[[Materialien]:[GWP]],(MATCH(TabelleGWP[[#This Row],[GWP]],TabelleGWP[GWP],0)),5),\"\")","v":""}]
[null,"Bimsstein",{"$f":"IFERROR(INDEX(Tabelle1[[Materialien]:[Menge]],(MATCH(TabelleMB[[#This Row],[Materialien]],Tabelle1[Materialien],0)),2),\"\")","v":""},{"$f":"IFERROR(TabelleMB[[#This Row],[Menge]]*Daten!C24,\"\")","v":""},{"$f":"IFERROR(TabelleMB[[#This Row],[Menge]]*Daten!D24,\"\")","v":""},{"$f":"IFERROR(TabelleMB[[#This Row],[Menge]]*Daten!E24,\"\")","v":""},{"$f":"IF(TabelleMB[[#This Row],[Materialien]]=\"\",\"\",\"GJ/Jahr\")","v":"GJ/Jahr"},null,"Bimsstein",{"$f":"IFERROR(INDEX(Tabelle13[[Materialien]:[Menge]],(MATCH(TabelleNMB[[#This Row],[Materialien]],Tabelle13[Materialien],0)),2),\"\")","v":""},{"$f":"IFERROR(TabelleNMB[[#This Row],[Menge]]*Daten!H24,\"\")","v":""},{"$f":"IFERROR(TabelleNMB[[#This Row],[Menge]]*Daten!I24,\"\")","v":""},{"$f":"IFERROR(TabelleNMB[[#This Row],[Menge]]*Daten!J24,\"\")","v":""},{"$f":"IF(TabelleNMB[[#This Row],[Materialien]]=\"\",\"\",\"kg/Jahr\")","v":"kg/Jahr"},null,"Amin (Trimethylamin)","Materialien (Bestandteile des Produkts)",{"$f":"IFERROR(INDEX(TabelleMB[[Materialien]:[GWP]],(MATCH(TabelleGWP[[#This Row],[GWP]],TabelleGWP[GWP],0)),5),\"\")","v":""}]
[null,"Bitumen",{"$f":"IFERROR(INDEX(Tabelle1[[Materialien]:[Menge]],(MATCH(TabelleMB[[#This Row],[Materialien]],Tabelle1[Materialien],0)),2),\"\")","v":""},{"$f":"IFERROR(TabelleMB[[#This Row],[Menge]]*Daten!C25,\"\")","v":""},{"$f":"IFERROR(TabelleMB[[#This Row],[Menge]]*Daten!D25,\"\")","v":""},{"$f":"IFERROR(TabelleMB[[#This Row],[Menge]]*Daten!E25,\"\")","v":""},{"$f":"IF(TabelleMB[[#This Row],[Materialien]]=\"\",\"\",\"GJ/Jahr\")","v":"GJ/Jahr"},null,"Bitumen",{"$f":"IFERROR(INDEX(Tabelle13[[Materialien]:[Menge]],(MATCH(TabelleNMB[[#This Row],[Materialien]],Tabelle13[Materialien],0)),2),\"\")","v":""},{"$f":"IFERROR(TabelleNMB[[#This Row],[Menge]]*Daten!H25,\"\")","v":""},{"$f":"IFERROR(TabelleNMB[[#This Row],[Menge]]*Daten!I25,\"\")","v":""},{"$f":"IFERROR(TabelleNMB[[#This Row],[Menge]]*Daten!J25,\"\")","v":""},{"$f":"IF(TabelleNMB[[#This Row],[Materialien]]=\"\",\"\",\"kg/Jahr\")","v":"kg/Jahr"},null,"Ammoniak","Materialien (Bestandteile des Produkts)",{"$f":"IFERROR(INDEX(TabelleMB[[Materialien]:[GWP]],(MATCH(TabelleGWP[[#This Row],[GWP]],TabelleGWP[GWP],0)),5),\"\")","v":""}]
[null,"Blei",{"$f":"IFERROR(INDEX(Tabelle1[[Materialien]:[Menge]],(MATCH(TabelleMB[[#This Row],[Materialien]],Tabelle1[Materialien],0)),2),\"\")","v":""},{"$f":"IFERROR(TabelleMB[[#This Row],[Menge]]*Daten!C26,\"\")","v":""},{"$f":"IFERROR(TabelleMB[[#This Row],[Menge]]*Daten!D26,\"\")","v":""},{"$f":"IFERROR(TabelleMB[[#This Row],[Menge]]*Daten!E26,\"\")","v":""},{"$f":"IF(TabelleMB[[#This Row],[Materialien]]=\"\",\"\",\"GJ/Jahr\")","v":"GJ/Jahr"},null,"Blei",{"$f":"IFERROR(INDEX(Tabelle13[[Materialien]:[Menge]],(MATCH(TabelleNMB[[#This Row],[Materialien]],Tabelle13[Materialien],0)),2),\"\")","v":""},{"$f":"IFERROR(TabelleNMB[[#This Row],[Menge]]*Daten!H26,\"\")","v":""},{"$f":"IFERROR(TabelleNMB[[#This Row],[Menge]]*Daten!I26,\"\")","v":""},{"$f":"IFERROR(TabelleNMB[[#This Row],[Menge]]*Daten!J26,\"\")","v":""},{"$f":"IF(TabelleNMB[[#This Row],[Materialien]]=\"\",\"\",\"kg/Jahr\")","v":"kg/Jahr"},null,"Andalusit, Disthen","Materialien (Bestandteile des Produkts)",{"$f":"IFERROR(INDEX(TabelleMB[[Materialien]:[GWP]],(MATCH(TabelleGWP[[#This Row],[GWP]],TabelleGWP[GWP],0)),5),\"\")","v":""}]
[null,"Borate",{"$f":"IFERROR(INDEX(Tabelle1[[Materialien]:[Menge]],(MATCH(TabelleMB[[#This Row],[Materialien]],Tabelle1[Materialien],0)),2),\"\")","v":""},{"$f":"IFERROR(TabelleMB[[#This Row],[Menge]]*Daten!C27,\"\")","v":""},{"$f":"IFERROR(TabelleMB[[#This Row],[Menge]]*Daten!D27,\"\")","v":""},{"$f":"IFERROR(TabelleMB[[#This Row],[Menge]]*Daten!E27,\"\")","v":""},{"$f":"IF(TabelleMB[[#This Row],[Materialien]]=\"\",\"\",\"GJ/Jahr\")","v":"GJ/Jahr"},null,"Borate",{"$f":"IFERROR(INDEX(Tabelle13[[Materialien]:[Menge]],(MATCH(TabelleNMB[[#This Row],[Materialien]],Tabelle13[Materialien],0)),2),\"\")","v":""},{"$f":"IFERROR(TabelleNMB[[#This Row],[Menge]]*Daten!H27,\"\")","v":""},{"$f":"IFERROR(TabelleNMB[[#This Row],[Menge]]*Daten!I27,\"\")","v":""},{"$f":"IFERROR(TabelleNMB[[#This Row],[Menge]]*Daten!J27,\"\")","v":""},{"$f":"IF(TabelleNMB[[#This Row],[Materialien]]=\"\",\"\",\"kg/Jahr\")","v":"kg/Jahr"},null,"Arsen","Materialien (Bestandteile des Produkts)",{"$f":"IFERROR(INDEX(TabelleMB[[Materialien]:[GWP]],(MATCH(TabelleGWP[[#This Row],[GWP]],TabelleGWP[GWP],0)),5),\"\")","v":""}]
[null,"Brennelemente",{"$f":"IFERROR(INDEX(Tabelle1[[Materialien]:[Menge]],(MATCH(TabelleMB[[#This Row],[Materialien]],Tabelle1[Materialien],0)),2),\"\")","v":""},{"$f":"IFERROR(TabelleMB[[#This Row],[Menge]]*Daten!C28,\"\")","v":""},{"$f":"IFERROR(TabelleMB[[#This Row],[Menge]]*Daten!D28,\"\")","v":""},{"$f":"IFERROR(TabelleMB[[#This Row],[Menge]]*Daten!E28,\"\")","v":""},{"$f":"IF(TabelleMB[[#This Row],[Materialien]]=\"\",\"\",\"GJ/Jahr\")","v":"GJ/Jahr"},null,"Brennelemente",{"$f":"IFERROR(INDEX(Tabelle13[[Materialien]:[Menge]],(MATCH(TabelleNMB[[#This Row],[Materialien]],Tabelle13[Materialien],0)),2),\"\")","v":""},{"$f":"IFERROR(TabelleNMB[[#This Row],[Menge]]*Daten!H28,\"\")","v":""},{"$f":"IFERROR(TabelleNMB[[#This Row],[Menge]]*Daten!I28,\"\")","v":""},{"$f":"IFERROR(TabelleNMB[[#This Row],[Menge]]*Daten!J28,\"\")","v":""},{"$f":"IF(TabelleNMB[[#This Row],[Materialien]]=\"\",\"\",\"kg/Jahr\")","v":"kg/Jahr"},null,"Asbet","Materialien (Bestandteile des Produkts)",{"$f":"IFERROR(INDEX(TabelleMB[[Materialien]:[GWP]],(MATCH(TabelleGWP[[#This Row],[GWP]],TabelleGWP[GWP],0)),5),\"\")","v":""}]
[null,"Chlor",{"$f":"IFERROR(INDEX(Tabelle1[[Materialien]:[Menge]],(MATCH(TabelleMB[[#This Row],[Materialien]],Tabelle1[Materialien],0)),2),\"\")","v":""},{"$f":"IFERROR(TabelleMB[[#This Row],[Menge]]*Daten!C29,\"\")","v":""},{"$f":"IFERROR(TabelleMB[[#This Row],[Menge]]*Daten!D29,\"\")","v":""},{"$f":"IFERROR(TabelleMB[[#This Row],[Menge]]*Daten!E29,\"\")","v":""},{"$f":"IF(TabelleMB[[#This Row],[Materialien]]=\"\",\"\",\"GJ/Jahr\")","v":"GJ/Jahr"},null,"Chlor",{"$f":"IFERROR(INDEX(Tabelle13[[Materialien]:[Menge]],(MATCH(TabelleNMB[[#This Row],[Materialien]],Tabelle13[Materialien],0)),2),\"\")","v":""},{"$f":"IFERROR(TabelleNMB[[#This Row],[Menge]]*Daten!H29,\"\")","v":""},{"$f":"IFERROR(TabelleNMB[[#This Row],[Menge]]*Daten!I29,\"\")","v":""},{"$f":"IFERROR(TabelleNMB[[#This Row],[Menge]]*Daten!J29,\"\")","v":""},{"$f":"IF(TabelleNMB[[#This Row],[Materialien]]=\"\",\"\",\"kg/Jahr\")","v":"kg/Jahr"},null,"Asphalt","Materialien (Bestandteile des Produkts)",{"$f":"IFERROR(INDEX(TabelleMB[[Materialien]:[GWP]],(MATCH(TabelleGWP[[#This Row],[GWP]],TabelleGWP[GWP],0)),5),\"\")","v":""}]
[null,"Chrom",{"$f":"IFERROR(INDEX(Tabelle1[[Materialien]:[Menge]],(MATCH(TabelleMB[[#This Row],[Materialien]],Tabelle1[Materialien],0)),2),\"\")","v":""},{"$f":"IFERROR(TabelleMB[[#This Row],[Menge]]*Daten!C30,\"\")","v":""},{"$f":"IFERROR(TabelleMB[[#This Row],[Menge]]*Daten!D30,\"\")","v":""},{"$f":"IFERROR(TabelleMB[[#This Row],[Menge]]*Daten!E30,\"\")","v":""},{"$f":"IF(TabelleMB[[#This Row],[Materialien]]=\"\",\"\",\"GJ/Jahr\")","v":"GJ/Jahr"},null,"Chrom",{"$f":"IFERROR(INDEX(Tabelle13[[Materialien]:[Menge]],(MATCH(TabelleNMB[[#This Row],[Materialien]],Tabelle13[Materialien],0)),2),\"\")","v":""},{"$f":"IFERROR(TabelleNMB[[#This Row],[Menge]]*Daten!H30,\"\")","v":""},{"$f":"IFERROR(TabelleNMB[[#This Row],[Menge]]*Daten!I30,\"\")","v":""},{"$f":"IFERROR(TabelleNMB[[#This Row],[Menge]]*Daten!J30,\"\")","v":""},{"$f":"IF(TabelleNMB[[#This Row],[Materialien]]=\"\",\"\",\"kg/Jahr\")","v":"kg/Jahr"},null,"Barit (Schwerspat)","Materialien (Bestandteile des Produkts)",{"$f":"IFERROR(INDEX(TabelleMB[[Materialien]:[GWP]],(MATCH(TabelleGWP[[#This Row],[GWP]],TabelleGWP[GWP],0)),5),\"\")","v":""}]
[null,"Chromerze",{"$f":"IFERROR(INDEX(Tabelle1[[Materialien]:[Menge]],(MATCH(TabelleMB[[#This Row],[Materialien]],Tabelle1[Materialien],0)),2),\"\")","v":""},{"$f":"IFERROR(TabelleMB[[#This Row],[Menge]]*Daten!C31,\"\")","v":""},{"$f":"IFERROR(TabelleMB[[#This Row],[Menge]]*Daten!D31,\"\")","v":""},{"$f":"IFERROR(TabelleMB[[#This Row],[Menge]]*Daten!E31,\"\")","v":""},{"$f":"IF(TabelleMB[[#This Row],[Materialien]]=\"\",\"\",\"GJ/Jahr\")","v":"GJ/Jahr"},null,"Chromerze",{"$f":"IFERROR(INDEX(Tabelle13[[Materialien]:[Menge]],(MATCH(TabelleNMB[[#This Row],[Materialien]],Tabelle13[Materialien],0)),2),\"\")","v":""},{"$f":"IFERROR(TabelleNMB[[#This Row],[Menge]]*Daten!H31,\"\")","v":""},{"$f":"IFERROR(TabelleNMB[[#This Row],[Menge]]*Daten!I31,\"\")","v":""},{"$f":"IFERROR(TabelleNMB[[#This Row],[Menge]]*Daten!J31,\"\")","v":""},{"$f":"IF(TabelleNMB[[#This Row],[Materialien]]=\"\",\"\",\"kg/Jahr\")","v":"kg/Jahr"},null,"Bariumkarbonat","Materialien (Bestandteile des Produkts)",{"$f":"IFERROR(INDEX(TabelleMB[[Materialien]:[GWP]],(MATCH(TabelleGWP[[#This Row],[GWP]],TabelleGWP[GWP],0)),5),\"\")","v":""}]
[null,"Computer",{"$f":"IFERROR(INDEX(Tabelle1[[Materialien]:[Menge]],(MATCH(TabelleMB[[#This Row],[Materialien]],Tabelle1[Materialien],0)),2),\"\")","v":""},{"$f":"IFERROR(TabelleMB[[#This Row],[Menge]]*Daten!C32,\"\")","v":""},{"$f":"IFERROR(TabelleMB[[#This Row],[Menge]]*Daten!D32,\"\")","v":""},{"$f":"IFERROR(TabelleMB[[#This Row],[Menge]]*Daten!E32,\"\")","v":""},{"$f":"IF(TabelleMB[[#This Row],[Materialien]]=\"\",\"\",\"GJ/Jahr\")","v":"GJ/Jahr"},null,"Computer",{"$f":"IFERROR(INDEX(Tabelle13[[Materialien]:[Menge]],(MATCH(TabelleNMB[[#This Row],[Materialien]],Tabelle13[Materialien],0)),2),\"\")","v":""},{"$f":"IFERROR(TabelleNMB[[#This Row],[Menge]]*Daten!H32,\"\")","v":""},{"$f":"IFERROR(TabelleNMB[[#This Row],[Menge]]*Daten!I32,\"\")","v":""},{"$f":"IFERROR(TabelleNMB[[#This Row],[Menge]]*Daten!J32,\"\")","v":""},{"$f":"IF(TabelleNMB[[#This Row],[Materialien]]=\"\",\"\",\"kg/Jahr\")","v":"kg/Jahr"},null,"Baumwollgewebe","Materialien (Bestandteile des Produkts)",{"$f":"IFERROR(INDEX(TabelleMB[[Materialien]:[GWP]],(MATCH(TabelleGWP[[#This Row],[GWP]],TabelleGWP[GWP],0)),5),\"\")","v":""}]
[null,"Dolomit",{"$f":"IFERROR(INDEX(Tabelle1[[Materialien]:[Menge]],(MATCH(TabelleMB[[#This Row],[Materialien]],Tabelle1[Materialien],0)),2),\"\")","v":""},{"$f":"IFERROR(TabelleMB[[#This Row],[Menge]]*Daten!C33,\"\")","v":""},{"$f":"IFERROR(TabelleMB[[#This Row],[Menge]]*Daten!D33,\"\")","v":""},{"$f":"IFERROR(TabelleMB[[#This Row],[Menge]]*Daten!E33,\"\")","v":""},{"$f":"IF(TabelleMB[[#This Row],[Materialien]]=\"\",\"\",\"GJ/Jahr\")","v":"GJ/Jahr"},null,"Dolomit",{"$f":"IFERROR(INDEX(Tabelle13[[Materialien]:[Menge]],(MATCH(TabelleNMB[[#This Row],[Materialien]],Tabelle13[Materialien],0)),2),\"\")","v":""},{"$f":"IFERROR(TabelleNMB[[#This Row],[Menge]]*Daten!H33,\"\")","v":""},{"$f":"IFERROR(TabelleNMB[[#This Row],[Menge]]*Daten!I33,\"\")","v":""},{"$f":"IFERROR(TabelleNMB[[#This Row],[Menge]]*Daten!J33,\"\")","v":""},{"$f":"IF(TabelleNMB[[#This Row],[Materialien]]=\"\",\"\",\"kg/Jahr\")","v":"kg/Jahr"},null,"Bauxit","Materialien (Bestandteile des Produkts)",{"$f":"IFERROR(INDEX(TabelleMB[[Materialien]:[GWP]],(MATCH(TabelleGWP[[#This Row],[GWP]],TabelleGWP[GWP],0)),5),\"\")","v":""}]
[null,"Druckluft (Bezug: 1000 m3)",{"$f":"IFERROR(INDEX(Tabelle1[[Materialien]:[Menge]],(MATCH(TabelleMB[[#This Row],[Materialien]],Tabelle1[Materialien],0)),2),\"\")","v":""},{"$f":"IFERROR(TabelleMB[[#This Row],[Menge]]*Daten!C34,\"\")","v":""},{"$f":"IFERROR(TabelleMB[[#This Row],[Menge]]*Daten!D34,\"\")","v":""},{"$f":"IFERROR(TabelleMB[[#This Row],[Menge]]*Daten!E34,\"\")","v":""},{"$f":"IF(TabelleMB[[#This Row],[Materialien]]=\"\",\"\",\"GJ/Jahr\")","v":"GJ/Jahr"},null,"Druckluft (Bezug: 1000 m3)",{"$f":"IFERROR(INDEX(Tabelle13[[Materialien]:[Menge]],(MATCH(TabelleNMB[[#This Row],[Materialien]],Tabelle13[Materialien],0)),2),\"\")","v":""},{"$f":"IFERROR(TabelleNMB[[#This Row],[Menge]]*Daten!H34,\"\")","v":""},{"$f":"IFERROR(TabelleNMB[[#This Row],[Menge]]*Daten!I34,\"\")","v":""},{"$f":"IFERROR(TabelleNMB[[#This Row],[Menge]]*Daten!J34,\"\")","v":""},{"$f":"IF(TabelleNMB[[#This Row],[Materialien]]=\"\",\"\",\"kg/Jahr\")","v":"kg/Jahr"},null,"Bentonit","Materialien (Bestandteile des Produkts)",{"$f":"IFERROR(INDEX(TabelleMB[[Materialien]:[GWP]],(MATCH(TabelleGWP[[#This Row],[GWP]],TabelleGWP[GWP],0)),5),\"\")","v":""}]
[null,"Edelstahlblech (inkl. Herstellung von Chromstahl)",{"$f":"IFERROR(INDEX(Tabelle1[[Materialien]:[Menge]],(MATCH(TabelleMB[[#This Row],[Materialien]],Tabelle1[Materialien],0)),2),\"\")","v":""},{"$f":"IFERROR(TabelleMB[[#This Row],[Menge]]*Daten!C35,\"\")","v":""},{"$f":"IFERROR(TabelleMB[[#This Row],[Menge]]*Daten!D35,\"\")","v":""},{"$f":"IFERROR(TabelleMB[[#This Row],[Menge]]*Daten!E35,\"\")","v":""},{"$f":"IF(TabelleMB[[#This Row],[Materialien]]=\"\",\"\",\"GJ/Jahr\")","v":"GJ/Jahr"},null,"Edelstahlblech (inkl. Herstellung von Chromstahl)",{"$f":"IFERROR(INDEX(Tabelle13[[Materialien]:[Menge]],(MATCH(TabelleNMB[[#This Row],[Materialien]],Tabelle13[Materialien],0)),2),\"\")","v":""},{"$f":"IFERROR(TabelleNMB[[#This Row],[Menge]]*Daten!H35,\"\")","v":""},{"$f":"IFERROR(TabelleNMB[[#This Row],[Menge]]*Daten!I35,\"\")","v":""},{"$f":"IFERROR(TabelleNMB[[#This Row],[Menge]]*Daten!J35,\"\")","v":""},{"$f":"IF(TabelleNMB[[#This Row],[Materialien]]=\"\",\"\",\"kg/Jahr\")","v":"kg/Jahr"},null,"Beton","Materialien (Bestandteile des Produkts)",{"$f":"IFERROR(INDEX(TabelleMB[[Materialien]:[GWP]],(MATCH(TabelleGWP[[#This Row],[GWP]],TabelleGWP[GWP],0)),5),\"\")","v":""}]
[null,"Eisen",{"$f":"IFERROR(INDEX(Tabelle1[[Materialien]:[Menge]],(MATCH(TabelleMB[[#This Row],[Materialien]],Tabelle1[Materialien],0)),2),\"\")","v":""},{"$f":"IFERROR(TabelleMB[[#This Row],[Menge]]*Daten!C36,\"\")","v":""},{"$f":"IFERROR(TabelleMB[[#This Row],[Menge]]*Daten!D36,\"\")","v":""},{"$f":"IFERROR(TabelleMB[[#This Row],[Menge]]*Daten!E36,\"\")","v":""},{"$f":"IF(TabelleMB[[#This Row],[Materialien]]=\"\",\"\",\"GJ/Jahr\")","v":"GJ/Jahr"},null,"Eisen",{"$f":"IFERROR(INDEX(Tabelle13[[Materialien]:[Menge]],(MATCH(TabelleNMB[[#This Row],[Materialien]],Tabelle13[Materialien],0)),2),\"\")","v":""},{"$f":"IFERROR(TabelleNMB[[#This Row],[Menge]]*Daten!H36,\"\")","v":""},{"$f":"IFERROR(TabelleNMB[[#This Row],[Menge]]*Daten!I36,\"\")","v":""},{"$f":"IFERROR(TabelleNMB[[#This Row],[Menge]]*Daten!J36,\"\")","v":""},{"$f":"IF(TabelleNMB[[#This Row],[Materialien]]=\"\",\"\",\"kg/Jahr\")","v":"kg/Jahr"},null,"Bimsstein","Materialien (Bestandteile des Produkts)",{"$f":"IFERROR(INDEX(TabelleMB[[Materialien]:[GWP]],(MATCH(TabelleGWP[[#This Row],[GWP]],TabelleGWP[GWP],0)),5),\"\")","v":""}]
[null,"Eisenerz 46%",{"$f":"IFERROR(INDEX(Tabelle1[[Materialien]:[Menge]],(MATCH(TabelleMB[[#This Row],[Materialien]],Tabelle1[Materialien],0)),2),\"\")","v":""},{"$f":"IFERROR(TabelleMB[[#This Row],[Menge]]*Daten!C37,\"\")","v":""},{"$f":"IFERROR(TabelleMB[[#This Row],[Menge]]*Daten!D37,\"\")","v":""},{"$f":"IFERROR(TabelleMB[[#This Row],[Menge]]*Daten!E37,\"\")","v":""},{"$f":"IF(TabelleMB[[#This Row],[Materialien]]=\"\",\"\",\"GJ/Jahr\")","v":"GJ/Jahr"},null,"Eisenerz 46%",{"$f":"IFERROR(INDEX(Tabelle13[[Materialien]:[Menge]],(MATCH(TabelleNMB[[#This Row],[Materialien]],Tabelle13[Materialien],0)),2),\"\")","v":""},{"$f":"IFERROR(TabelleNMB[[#This Row],[Menge]]*Daten!H37,\"\")","v":""},{"$f":"IFERROR(TabelleNMB[[#This Row],[Menge]]*Daten!I37,\"\")","v":""},{"$f":"IFERROR(TabelleNMB[[#This Row],[Menge]]*Daten!J37,\"\")","v":""},{"$f":"IF(TabelleNMB[[#This Row],[Materialien]]=\"\",\"\",\"kg/Jahr\")","v":"kg/Jahr"},null,"Bitumen","Materialien (Bestandteile des Produkts)",{"$f":"IFERROR(INDEX(TabelleMB[[Materialien]:[GWP]],(MATCH(TabelleGWP[[#This Row],[GWP]],TabelleGWP[GWP],0)),5),\"\")","v":""}]
[null,"Eisenerzkonzentrat",{"$f":"IFERROR(INDEX(Tabelle1[[Materialien]:[Menge]],(MATCH(TabelleMB[[#This Row],[Materialien]],Tabelle1[Materialien],0)),2),\"\")","v":""},{"$f":"IFERROR(TabelleMB[[#This Row],[Menge]]*Daten!C38,\"\")","v":""},{"$f":"IFERROR(TabelleMB[[#This Row],[Menge]]*Daten!D38,\"\")","v":""},{"$f":"IFERROR(TabelleMB[[#This Row],[Menge]]*Daten!E38,\"\")","v":""},{"$f":"IF(TabelleMB[[#This Row],[Materialien]]=\"\",\"\",\"GJ/Jahr\")","v":"GJ/Jahr"},null,"Eisenerzkonzentrat",{"$f":"IFERROR(INDEX(Tabelle13[[Materialien]:[Menge]],(MATCH(TabelleNMB[[#This Row],[Materialien]],Tabelle13[Materialien],0)),2),\"\")","v":""},{"$f":"IFERROR(TabelleNMB[[#This Row],[Menge]]*Daten!H38,\"\")","v":""},{"$f":"IFERROR(TabelleNMB[[#This Row],[Menge]]*Daten!I38,\"\")","v":""},{"$f":"IFERROR(TabelleNMB[[#This Row],[Menge]]*Daten!J38,\"\")","v":""},{"$f":"IF(TabelleNMB[[#This Row],[Materialien]]=\"\",\"\",\"kg/Jahr\")","v":"kg/Jahr"},null,"Blei","Materialien (Bestandteile des Produkts)",{"$f":"IFERROR(INDEX(TabelleMB[[Materialien]:[GWP]],(MATCH(TabelleGWP[[#This Row],[GWP]],TabelleGWP[GWP],0)),5),\"\")","v":""}]
[null,"Epoxidharz",{"$f":"IFERROR(INDEX(Tabelle1[[Materialien]:[Menge]],(MATCH(TabelleMB[[#This Row],[Materialien]],Tabelle1[Materialien],0)),2),\"\")","v":""},{"$f":"IFERROR(TabelleMB[[#This Row],[Menge]]*Daten!C39,\"\")","v":""},{"$f":"IFERROR(TabelleMB[[#This Row],[Menge]]*Daten!D39,\"\")","v":""},{"$f":"IFERROR(TabelleMB[[#This Row],[Menge]]*Daten!E39,\"\")","v":""},{"$f":"IF(TabelleMB[[#This Row],[Materialien]]=\"\",\"\",\"GJ/Jahr\")","v":"GJ/Jahr"},null,"Epoxidharz",{"$f":"IFERROR(INDEX(Tabelle13[[Materialien]:[Menge]],(MATCH(TabelleNMB[[#This Row],[Materialien]],Tabelle13[Materialien],0)),2),\"\")","v":""},{"$f":"IFERROR(TabelleNMB[[#This Row],[Menge]]*Daten!H39,\"\")","v":""},{"$f":"IFERROR(TabelleNMB[[#This Row],[Menge]]*Daten!I39,\"\")","v":""},{"$f":"IFERROR(TabelleNMB[[#This Row],[Menge]]*Daten!J39,\"\")","v":""},{"$f":"IF(TabelleNMB[[#This Row],[Materialien]]=\"\",\"\",\"kg/Jahr\")","v":"kg/Jahr"},null,"Borate","Materialien (Bestandteile des Produkts)",{"$f":"IFERROR(INDEX(TabelleMB[[Materialien]:[GWP]],(MATCH(TabelleGWP[[#This Row],[GWP]],TabelleGWP[GWP],0)),5),\"\")","v":""}]
[null,"Ethylen",{"$f":"IFERROR(INDEX(Tabelle1[[Materialien]:[Menge]],(MATCH(TabelleMB[[#This Row],[Materialien]],Tabelle1[Materialien],0)),2),\"\")","v":""},{"$f":"IFERROR(TabelleMB[[#This Row],[Menge]]*Daten!C40,\"\")","v":""},{"$f":"IFERROR(TabelleMB[[#This Row],[Menge]]*Daten!D40,\"\")","v":""},{"$f":"IFERROR(TabelleMB[[#This Row],[Menge]]*Daten!E40,\"\")","v":""},{"$f":"IF(TabelleMB[[#This Row],[Materialien]]=\"\",\"\",\"GJ/Jahr\")","v":"GJ/Jahr"},null,"Ethylen",{"$f":"IFERROR(INDEX(Tabelle13[[Materialien]:[Menge]],(MATCH(TabelleNMB[[#This Row],[Materialien]],Tabelle13[Materialien],0)),2),\"\")","v":""},{"$f":"IFERROR(TabelleNMB[[#This Row],[Menge]]*Daten!H40,\"\")","v":""},{"$f":"IFERROR(TabelleNMB[[#This Row],[Menge]]*Daten!I40,\"\")","v":""},{"$f":"IFERROR(TabelleNMB[[#This Row],[Menge]]*Daten!J40,\"\")","v":""},{"$f":"IF(TabelleNMB[[#This Row],[Materialien]]=\"\",\"\",\"kg/Jahr\")","v":"kg/Jahr"},null,"Brennelemente","Materialien (Bestandteile des Produkts)",{"$f":"IFERROR(INDEX(TabelleMB[[Materialien]:[GWP]],(MATCH(TabelleGWP[[#This Row],[GWP]],TabelleGWP[GWP],0)),5),\"\")","v":""}]
[null,"Flussspat",{"$f":"IFERROR(INDEX(Tabelle1[[Materialien]:[Menge]],(MATCH(TabelleMB[[#This Row],[Materialien]],Tabelle1[Materialien],0)),2),\"\")","v":""},{"$f":"IFERROR(TabelleMB[[#This Row],[Menge]]*Daten!C41,\"\")","v":""},{"$f":"IFERROR(TabelleMB[[#This Row],[Menge]]*Daten!D41,\"\")","v":""},{"$f":"IFERROR(TabelleMB[[#This Row],[Menge]]*Daten!E41,\"\")","v":""},{"$f":"IF(TabelleMB[[#This Row],[Materialien]]=\"\",\"\",\"GJ/Jahr\")","v":"GJ/Jahr"},null,"Flussspat",{"$f":"IFERROR(INDEX(Tabelle13[[Materialien]:[Menge]],(MATCH(TabelleNMB[[#This Row],[Materialien]],Tabelle13[Materialien],0)),2),\"\")","v":""},{"$f":"IFERROR(TabelleNMB[[#This Row],[Menge]]*Daten!H41,\"\")","v":""},{"$f":"IFERROR(TabelleNMB[[#This Row],[Menge]]*Daten!I41,\"\")","v":""},{"$f":"IFERROR(TabelleNMB[[#This Row],[Menge]]*Daten!J41,\"\")","v":""},{"$f":"IF(TabelleNMB[[#This Row],[Materialien]]=\"\",\"\",\"kg/Jahr\")","v":"kg/Jahr"},null,"Chlor","Materialien (Bestandteile des Produkts)",{"$f":"IFERROR(INDEX(TabelleMB[[Materialien]:[GWP]],(MATCH(TabelleGWP[[#This Row],[GWP]],TabelleGWP[GWP],0)),5),\"\")","v":""}]
[null,"Futterpflanze (Silomais)",{"$f":"IFERROR(INDEX(Tabelle1[[Materialien]:[Menge]],(MATCH(TabelleMB[[#This Row],[Materialien]],Tabelle1[Materialien],0)),2),\"\")","v":""},{"$f":"IFERROR(TabelleMB[[#This Row],[Menge]]*Daten!C42,\"\")","v":""},{"$f":"IFERROR(TabelleMB[[#This Row],[Menge]]*Daten!D42,\"\")","v":""},{"$f":"IFERROR(TabelleMB[[#This Row],[Menge]]*Daten!E42,\"\")","v":""},{"$f":"IF(TabelleMB[[#This Row],[Materialien]]=\"\",\"\",\"GJ/Jahr\")","v":"GJ/Jahr"},null,"Futterpflanze (Silomais)",{"$f":"IFERROR(INDEX(Tabelle13[[Materialien]:[Menge]],(MATCH(TabelleNMB[[#This Row],[Materialien]],Tabelle13[Materialien],0)),2),\"\")","v":""},{"$f":"IFERROR(TabelleNMB[[#This Row],[Menge]]*Daten!H42,\"\")","v":""},{"$f":"IFERROR(TabelleNMB[[#This Row],[Menge]]*Daten!I42,\"\")","v":""},{"$f":"IFERROR(TabelleNMB[[#This Row],[Menge]]*Daten!J42,\"\")","v":""},{"$f":"IF(TabelleNMB[[#This Row],[Materialien]]=\"\",\"\",\"kg/Jahr\")","v":"kg/Jahr"},null,"Chrom","Materialien (Bestandteile des Produkts)",{"$f":"IFERROR(INDEX(TabelleMB[[Materialien]:[GWP]],(MATCH(TabelleGWP[[#This Row],[GWP]],TabelleGWP[GWP],0)),5),\"\")","v":""}]
[null,"Gallium",{"$f":"IFERROR(INDEX(Tabelle1[[Materialien]:[Menge]],(MATCH(TabelleMB[[#This Row],[Materialien]],Tabelle1[Materialien],0)),2),\"\")","v":""},{"$f":"IFERROR(TabelleMB[[#This Row],[Menge]]*Daten!C43,\"\")","v":""},{"$f":"IFERROR(TabelleMB[[#This Row],[Menge]]*Daten!D43,\"\")","v":""},{"$f":"IFERROR(TabelleMB[[#This Row],[Menge]]*Daten!E43,\"\")","v":""},{"$f":"IF(TabelleMB[[#This Row],[Materialien]]=\"\",\"\",\"GJ/Jahr\")","v":"GJ/Jahr"},null,"Gallium",{"$f":"IFERROR(INDEX(Tabelle13[[Materialien]:[Menge]],(MATCH(TabelleNMB[[#This Row],[Materialien]],Tabelle13[Materialien],0)),2),\"\")","v":""},{"$f":"IFERROR(TabelleNMB[[#This Row],[Menge]]*Daten!H43,\"\")","v":""},{"$f":"IFERROR(TabelleNMB[[#This Row],[Menge]]*Daten!I43,\"\")","v":""},{"$f":"IFERROR(TabelleNMB[[#This Row],[Menge]]*Daten!J43,\"\")","v":""},{"$f":"IF(TabelleNMB[[#This Row],[Materialien]]=\"\",\"\",\"kg/Jahr\")","v":"kg/Jahr"},null,"Chromerze","Materialien (Bestandteile des Produkts)",{"$f":"IFERROR(INDEX(TabelleMB[[Materialien]:[GWP]],(MATCH(TabelleGWP[[#This Row],[GWP]],TabelleGWP[GWP],0)),5),\"\")","v":""}]
[null,"Gemüse (Weißkohl)",{"$f":"IFERROR(INDEX(Tabelle1[[Materialien]:[Menge]],(MATCH(TabelleMB[[#This Row],[Materialien]],Tabelle1[Materialien],0)),2),\"\")","v":""},{"$f":"IFERROR(TabelleMB[[#This Row],[Menge]]*Daten!C44,\"\")","v":""},{"$f":"IFERROR(TabelleMB[[#This Row],[Menge]]*Daten!D44,\"\")","v":""},{"$f":"IFERROR(TabelleMB[[#This Row],[Menge]]*Daten!E44,\"\")","v":""},{"$f":"IF(TabelleMB[[#This Row],[Materialien]]=\"\",\"\",\"GJ/Jahr\")","v":"GJ/Jahr"},null,"Gemüse (Weißkohl)",{"$f":"IFERROR(INDEX(Tabelle13[[Materialien]:[Menge]],(MATCH(TabelleNMB[[#This Row],[Materialien]],Tabelle13[Materialien],0)),2),\"\")","v":""},{"$f":"IFERROR(TabelleNMB[[#This Row],[Menge]]*Daten!H44,\"\")","v":""},{"$f":"IFERROR(TabelleNMB[[#This Row],[Menge]]*Daten!I44,\"\")","v":""},{"$f":"IFERROR(TabelleNMB[[#This Row],[Menge]]*Daten!J44,\"\")","v":""},{"$f":"IF(TabelleNMB[[#This Row],[Materialien]]=\"\",\"\",\"kg/Jahr\")","v":"kg/Jahr"},null,"Computer","Materialien (Bestandteile des Produkts)",{"$f":"IFERROR(INDEX(TabelleMB[[Materialien]:[GWP]],(MATCH(TabelleGWP[[#This Row],[GWP]],TabelleGWP[GWP],0)),5),\"\")","v":""}]
[null,"Gesteinsmehl",{"$f":"IFERROR(INDEX(Tabelle1[[Materialien]:[Menge]],(MATCH(TabelleMB[[#This Row],[Materialien]],Tabelle1[Materialien],0)),2),\"\")","v":""},{"$f":"IFERROR(TabelleMB[[#This Row],[Menge]]*Daten!C45,\"\")","v":""},{"$f":"IFERROR(TabelleMB[[#This Row],[Menge]]*Daten!D45,\"\")","v":""},{"$f":"IFERROR(TabelleMB[[#This Row],[Menge]]*Daten!E45,\"\")","v":""},{"$f":"IF(TabelleMB[[#This Row],[Materialien]]=\"\",\"\",\"GJ/Jahr\")","v":"GJ/Jahr"},null,"Gesteinsmehl",{"$f":"IFERROR(INDEX(Tabelle13[[Materialien]:[Menge]],(MATCH(TabelleNMB[[#This Row],[Materialien]],Tabelle13[Materialien],0)),2),\"\")","v":""},{"$f":"IFERROR(TabelleNMB[[#This Row],[Menge]]*Daten!H45,\"\")","v":""},{"$f":"IFERROR(TabelleNMB[[#This Row],[Menge]]*Daten!I45,\"\")","v":""},{"$f":"IFERROR(TabelleNMB[[#This Row],[Menge]]*Daten!J45,\"\")","v":""},{"$f":"IF(TabelleNMB[[#This Row],[Materialien]]=\"\",\"\",\"kg/Jahr\")","v":"kg/Jahr"},null,"Dolomit","Materialien (Bestandteile des Produkts)",{"$f":"IFERROR(INDEX(TabelleMB[[Materialien]:[GWP]],(MATCH(TabelleGWP[[#This Row],[GWP]],TabelleGWP[GWP],0)),5),\"\")","v":""}]
[null,"Getreide (Winterweizen)",{"$f":"IFERROR(INDEX(Tabelle1[[Materialien]:[Menge]],(MATCH(TabelleMB[[#This Row],[Materialien]],Tabelle1[Materialien],0)),2),\"\")","v":""},{"$f":"IFERROR(TabelleMB[[#This Row],[Menge]]*Daten!C46,\"\")","v":""},{"$f":"IFERROR(TabelleMB[[#This Row],[Menge]]*Daten!D46,\"\")","v":""},{"$f":"IFERROR(TabelleMB[[#This Row],[Menge]]*Daten!E46,\"\")","v":""},{"$f":"IF(TabelleMB[[#This Row],[Materialien]]=\"\",\"\",\"GJ/Jahr\")","v":"GJ/Jahr"},null,"Getreide (Winterweizen)",{"$f":"IFERROR(INDEX(Tabelle13[[Materialien]:[Menge]],(MATCH(TabelleNMB[[#This Row],[Materialien]],Tabelle13[Materialien],0)),2),\"\")","v":""},{"$f":"IFERROR(TabelleNMB[[#This Row],[Menge]]*Daten!H46,\"\")","v":""},{"$f":"IFERROR(TabelleNMB[[#This Row],[Menge]]*Daten!I46,\"\")","v":""},{"$f":"IFERROR(TabelleNMB[[#This Row],[Menge]]*Daten!J46,\"\")","v":""},{"$f":"IF(TabelleNMB[[#This Row],[Materialien]]=\"\",\"\",\"kg/Jahr\")","v":"kg/Jahr"},null,"Druckluft (Bezug: 1000 m3)","Materialien (Bestandteile des Produkts)",{"$f":"IFERROR(INDEX(TabelleMB[[Materialien]:[GWP]],(MATCH(TabelleGWP[[#This Row],[GWP]],TabelleGWP[GWP],0)),5),\"\")","v":""}]
[null,"GFK (Glasfaserverstärkte Kunststoffe)",{"$f":"IFERROR(INDEX(Tabelle1[[Materialien]:[Menge]],(MATCH(TabelleMB[[#This Row],[Materialien]],Tabelle1[Materialien],0)),2),\"\")","v":""},{"$f":"IFERROR(TabelleMB[[#This Row],[Menge]]*Daten!C47,\"\")","v":""},{"$f":"IFERROR(TabelleMB[[#This Row],[Menge]]*Daten!D47,\"\")","v":""},{"$f":"IFERROR(TabelleMB[[#This Row],[Menge]]*Daten!E47,\"\")","v":""},{"$f":"IF(TabelleMB[[#This Row],[Materialien]]=\"\",\"\",\"GJ/Jahr\")","v":"GJ/Jahr"},null,"GFK (Glasfaserverstärkte Kunststoffe)",{"$f":"IFERROR(INDEX(Tabelle13[[Materialien]:[Menge]],(MATCH(TabelleNMB[[#This Row],[Materialien]],Tabelle13[Materialien],0)),2),\"\")","v":""},{"$f":"IFERROR(TabelleNMB[[#This Row],[Menge]]*Daten!H47,\"\")","v":""},{"$f":"IFERROR(TabelleNMB[[#This Row],[Menge]]*Daten!I47,\"\")","v":""},{"$f":"IFERROR(TabelleNMB[[#This Row],[Menge]]*Daten!J47,\"\")","v":""},{"$f":"IF(TabelleNMB[[#This Row],[Materialien]]=\"\",\"\",\"kg/Jahr\")","v":"kg/Jahr"},null,"Edelstahlblech (inkl. Herstellung von Chromstahl)","Materialien (Bestandteile des Produkts)",{"$f":"IFERROR(INDEX(TabelleMB[[Materialien]:[GWP]],(MATCH(TabelleGWP[[#This Row],[GWP]],TabelleGWP[GWP],0)),5),\"\")","v":""}]
[null,"Gips",{"$f":"IFERROR(INDEX(Tabelle1[[Materialien]:[Menge]],(MATCH(TabelleMB[[#This Row],[Materialien]],Tabelle1[Materialien],0)),2),\"\")","v":""},{"$f":"IFERROR(TabelleMB[[#This Row],[Menge]]*Daten!C48,\"\")","v":""},{"$f":"IFERROR(TabelleMB[[#This Row],[Menge]]*Daten!D48,\"\")","v":""},{"$f":"IFERROR(TabelleMB[[#This Row],[Menge]]*Daten!E48,\"\")","v":""},{"$f":"IF(TabelleMB[[#This Row],[Materialien]]=\"\",\"\",\"GJ/Jahr\")","v":"GJ/Jahr"},null,"Gips",{"$f":"IFERROR(INDEX(Tabelle13[[Materialien]:[Menge]],(MATCH(TabelleNMB[[#This Row],[Materialien]],Tabelle13[Materialien],0)),2),\"\")","v":""},{"$f":"IFERROR(TabelleNMB[[#This Row],[Menge]]*Daten!H48,\"\")","v":""},{"$f":"IFERROR(TabelleNMB[[#This Row],[Menge]]*Daten!I48,\"\")","v":""},{"$f":"IFERROR(TabelleNMB[[#This Row],[Menge]]*Daten!J48,\"\")","v":""},{"$f":"IF(TabelleNMB[[#This Row],[Materialien]]=\"\",\"\",\"kg/Jahr\")","v":"kg/Jahr"},null,"Eisen","Materialien (Bestandteile des Produkts)",{"$f":"IFERROR(INDEX(TabelleMB[[Materialien]:[GWP]],(MATCH(TabelleGWP[[#This Row],[GWP]],TabelleGWP[GWP],0)),5),\"\")","v":""}]
[null,"Glas (Behälterglas)",{"$f":"IFERROR(INDEX(Tabelle1[[Materialien]:[Menge]],(MATCH(TabelleMB[[#This Row],[Materialien]],Tabelle1[Materialien],0)),2),\"\")","v":""},{"$f":"IFERROR(TabelleMB[[#This Row],[Menge]]*Daten!C49,\"\")","v":""},{"$f":"IFERROR(TabelleMB[[#This Row],[Menge]]*Daten!D49,\"\")","v":""},{"$f":"IFERROR(TabelleMB[[#This Row],[Menge]]*Daten!E49,\"\")","v":""},{"$f":"IF(TabelleMB[[#This Row],[Materialien]]=\"\",\"\",\"GJ/Jahr\")","v":"GJ/Jahr"},null,"Glas (Behälterglas)",{"$f":"IFERROR(INDEX(Tabelle13[[Materialien]:[Menge]],(MATCH(TabelleNMB[[#This Row],[Materialien]],Tabelle13[Materialien],0)),2),\"\")","v":""},{"$f":"IFERROR(TabelleNMB[[#This Row],[Menge]]*Daten!H49,\"\")","v":""},{"$f":"IFERROR(TabelleNMB[[#This Row],[Menge]]*Daten!I49,\"\")","v":""},{"$f":"IFERROR(TabelleNMB[[#This Row],[Menge]]*Daten!J49,\"\")","v":""},{"$f":"IF(TabelleNMB[[#This Row],[Materialien]]=\"\",\"\",\"kg/Jahr\")","v":"kg/Jahr"},null,"Eisenerz 46%","Materialien (Bestandteile des Produkts)",{"$f":"IFERROR(INDEX(TabelleMB[[Materialien]:[GWP]],(MATCH(TabelleGWP[[#This Row],[GWP]],TabelleGWP[GWP],0)),5),\"\")","v":""}]
[null,"Glas (Flachglas)",{"$f":"IFERROR(INDEX(Tabelle1[[Materialien]:[Menge]],(MATCH(TabelleMB[[#This Row],[Materialien]],Tabelle1[Materialien],0)),2),\"\")","v":""},{"$f":"IFERROR(TabelleMB[[#This Row],[Menge]]*Daten!C50,\"\")","v":""},{"$f":"IFERROR(TabelleMB[[#This Row],[Menge]]*Daten!D50,\"\")","v":""},{"$f":"IFERROR(TabelleMB[[#This Row],[Menge]]*Daten!E50,\"\")","v":""},{"$f":"IF(TabelleMB[[#This Row],[Materialien]]=\"\",\"\",\"GJ/Jahr\")","v":"GJ/Jahr"},null,"Glas (Flachglas)",{"$f":"IFERROR(INDEX(Tabelle13[[Materialien]:[Menge]],(MATCH(TabelleNMB[[#This Row],[Materialien]],Tabelle13[Materialien],0)),2),\"\")","v":""},{"$f":"IFERROR(TabelleNMB[[#This Row],[Menge]]*Daten!H50,\"\")","v":""},{"$f":"IFERROR(TabelleNMB[[#This Row],[Menge]]*Daten!I50,\"\")","v":""},{"$f":"IFERROR(TabelleNMB[[#This Row],[Menge]]*Daten!J50,\"\")","v":""},{"$f":"IF(TabelleNMB[[#This Row],[Materialien]]=\"\",\"\",\"kg/Jahr\")","v":"kg/Jahr"},null,"Eisenerzkonzentrat","Materialien (Bestandteile des Produkts)",{"$f":"IFERROR(INDEX(TabelleMB[[Materialien]:[GWP]],(MATCH(TabelleGWP[[#This Row],[GWP]],TabelleGWP[GWP],0)),5),\"\")","v":""}]
[null,"Glasfasern",{"$f":"IFERROR(INDEX(Tabelle1[[Materialien]:[Menge]],(MATCH(TabelleMB[[#This Row],[Materialien]],Tabelle1[Materialien],0)),2),\"\")","v":""},{"$f":"IFERROR(TabelleMB[[#This Row],[Menge]]*Daten!C51,\"\")","v":""},{"$f":"IFERROR(TabelleMB[[#This Row],[Menge]]*Daten!D51,\"\")","v":""},{"$f":"IFERROR(TabelleMB[[#This Row],[Menge]]*Daten!E51,\"\")","v":""},{"$f":"IF(TabelleMB[[#This Row],[Materialien]]=\"\",\"\",\"GJ/Jahr\")","v":"GJ/Jahr"},null,"Glasfasern",{"$f":"IFERROR(INDEX(Tabelle13[[Materialien]:[Menge]],(MATCH(TabelleNMB[[#This Row],[Materialien]],Tabelle13[Materialien],0)),2),\"\")","v":""},{"$f":"IFERROR(TabelleNMB[[#This Row],[Menge]]*Daten!H51,\"\")","v":""},{"$f":"IFERROR(TabelleNMB[[#This Row],[Menge]]*Daten!I51,\"\")","v":""},{"$f":"IFERROR(TabelleNMB[[#This Row],[Menge]]*Daten!J51,\"\")","v":""},{"$f":"IF(TabelleNMB[[#This Row],[Materialien]]=\"\",\"\",\"kg/Jahr\")","v":"kg/Jahr"},null,"Epoxidharz","Materialien (Bestandteile des Produkts)",{"$f":"IFERROR(INDEX(TabelleMB[[Materialien]:[GWP]],(MATCH(TabelleGWP[[#This Row],[GWP]],TabelleGWP[GWP],0)),5),\"\")","v":""}]
[null,"Glaswolle",{"$f":"IFERROR(INDEX(Tabelle1[[Materialien]:[Menge]],(MATCH(TabelleMB[[#This Row],[Materialien]],Tabelle1[Materialien],0)),2),\"\")","v":""},{"$f":"IFERROR(TabelleMB[[#This Row],[Menge]]*Daten!C52,\"\")","v":""},{"$f":"IFERROR(TabelleMB[[#This Row],[Menge]]*Daten!D52,\"\")","v":""},{"$f":"IFERROR(TabelleMB[[#This Row],[Menge]]*Daten!E52,\"\")","v":""},{"$f":"IF(TabelleMB[[#This Row],[Materialien]]=\"\",\"\",\"GJ/Jahr\")","v":"GJ/Jahr"},null,"Glaswolle",{"$f":"IFERROR(INDEX(Tabelle13[[Materialien]:[Menge]],(MATCH(TabelleNMB[[#This Row],[Materialien]],Tabelle13[Materialien],0)),2),\"\")","v":""},{"$f":"IFERROR(TabelleNMB[[#This Row],[Menge]]*Daten!H52,\"\")","v":""},{"$f":"IFERROR(TabelleNMB[[#This Row],[Menge]]*Daten!I52,\"\")","v":""},{"$f":"IFERROR(TabelleNMB[[#This Row],[Menge]]*Daten!J52,\"\")","v":""},{"$f":"IF(TabelleNMB[[#This Row],[Materialien]]=\"\",\"\",\"kg/Jahr\")","v":"kg/Jahr"},null,"Ethylen","Materialien (Bestandteile des Produkts)",{"$f":"IFERROR(INDEX(TabelleMB[[Materialien]:[GWP]],(MATCH(TabelleGWP[[#This Row],[GWP]],TabelleGWP[GWP],0)),5),\"\")","v":""}]
[null,"Glimmer",{"$f":"IFERROR(INDEX(Tabelle1[[Materialien]:[Menge]],(MATCH(TabelleMB[[#This Row],[Materialien]],Tabelle1[Materialien],0)),2),\"\")","v":""},{"$f":"IFERROR(TabelleMB[[#This Row],[Menge]]*Daten!C53,\"\")","v":""},{"$f":"IFERROR(TabelleMB[[#This Row],[Menge]]*Daten!D53,\"\")","v":""},{"$f":"IFERROR(TabelleMB[[#This Row],[Menge]]*Daten!E53,\"\")","v":""},{"$f":"IF(TabelleMB[[#This Row],[Materialien]]=\"\",\"\",\"GJ/Jahr\")","v":"GJ/Jahr"},null,"Glimmer",{"$f":"IFERROR(INDEX(Tabelle13[[Materialien]:[Menge]],(MATCH(TabelleNMB[[#This Row],[Materialien]],Tabelle13[Materialien],0)),2),\"\")","v":""},{"$f":"IFERROR(TabelleNMB[[#This Row],[Menge]]*Daten!H53,\"\")","v":""},{"$f":"IFERROR(TabelleNMB[[#This Row],[Menge]]*Daten!I53,\"\")","v":""},{"$f":"IFERROR(TabelleNMB[[#This Row],[Menge]]*Daten!J53,\"\")","v":""},{"$f":"IF(TabelleNMB[[#This Row],[Materialien]]=\"\",\"\",\"kg/Jahr\")","v":"kg/Jahr"},null,"Flussspat","Materialien (Bestandteile des Produkts)",{"$f":"IFERROR(INDEX(TabelleMB[[Materialien]:[GWP]],(MATCH(TabelleGWP[[#This Row],[GWP]],TabelleGWP[GWP],0)),5),\"\")","v":""}]
[null,"Gold ",{"$f":"IFERROR(INDEX(Tabelle1[[Materialien]:[Menge]],(MATCH(TabelleMB[[#This Row],[Materialien]],Tabelle1[Materialien],0)),2),\"\")","v":""},{"$f":"IFERROR(TabelleMB[[#This Row],[Menge]]*Daten!C54,\"\")","v":""},{"$f":"IFERROR(TabelleMB[[#This Row],[Menge]]*Daten!D54,\"\")","v":""},{"$f":"IFERROR(TabelleMB[[#This Row],[Menge]]*Daten!E54,\"\")","v":""},{"$f":"IF(TabelleMB[[#This Row],[Materialien]]=\"\",\"\",\"GJ/Jahr\")","v":"GJ/Jahr"},null,"Gold ",{"$f":"IFERROR(INDEX(Tabelle13[[Materialien]:[Menge]],(MATCH(TabelleNMB[[#This Row],[Materialien]],Tabelle13[Materialien],0)),2),\"\")","v":""},{"$f":"IFERROR(TabelleNMB[[#This Row],[Menge]]*Daten!H54,\"\")","v":""},{"$f":"IFERROR(TabelleNMB[[#This Row],[Menge]]*Daten!I54,\"\")","v":""},{"$f":"IFERROR(TabelleNMB[[#This Row],[Menge]]*Daten!J54,\"\")","v":""},{"$f":"IF(TabelleNMB[[#This Row],[Materialien]]=\"\",\"\",\"kg/Jahr\")","v":"kg/Jahr"},null,"Futterpflanze (Silomais)","Materialien (Bestandteile des Produkts)",{"$f":"IFERROR(INDEX(TabelleMB[[Materialien]:[GWP]],(MATCH(TabelleGWP[[#This Row],[GWP]],TabelleGWP[GWP],0)),5),\"\")","v":""}]
[null,"Graphit",{"$f":"IFERROR(INDEX(Tabelle1[[Materialien]:[Menge]],(MATCH(TabelleMB[[#This Row],[Materialien]],Tabelle1[Materialien],0)),2),\"\")","v":""},{"$f":"IFERROR(TabelleMB[[#This Row],[Menge]]*Daten!C55,\"\")","v":""},{"$f":"IFERROR(TabelleMB[[#This Row],[Menge]]*Daten!D55,\"\")","v":""},{"$f":"IFERROR(TabelleMB[[#This Row],[Menge]]*Daten!E55,\"\")","v":""},{"$f":"IF(TabelleMB[[#This Row],[Materialien]]=\"\",\"\",\"GJ/Jahr\")","v":"GJ/Jahr"},null,"Graphit",{"$f":"IFERROR(INDEX(Tabelle13[[Materialien]:[Menge]],(MATCH(TabelleNMB[[#This Row],[Materialien]],Tabelle13[Materialien],0)),2),\"\")","v":""},{"$f":"IFERROR(TabelleNMB[[#This Row],[Menge]]*Daten!H55,\"\")","v":""},{"$f":"IFERROR(TabelleNMB[[#This Row],[Menge]]*Daten!I55,\"\")","v":""},{"$f":"IFERROR(TabelleNMB[[#This Row],[Menge]]*Daten!J55,\"\")","v":""},{"$f":"IF(TabelleNMB[[#This Row],[Materialien]]=\"\",\"\",\"kg/Jahr\")","v":"kg/Jahr"},null,"Gallium","Materialien (Bestandteile des Produkts)",{"$f":"IFERROR(INDEX(TabelleMB[[Materialien]:[GWP]],(MATCH(TabelleGWP[[#This Row],[GWP]],TabelleGWP[GWP],0)),5),\"\")","v":""}]
[null,"Grünland (Grünschnitt)",{"$f":"IFERROR(INDEX(Tabelle1[[Materialien]:[Menge]],(MATCH(TabelleMB[[#This Row],[Materialien]],Tabelle1[Materialien],0)),2),\"\")","v":""},{"$f":"IFERROR(TabelleMB[[#This Row],[Menge]]*Daten!C56,\"\")","v":""},{"$f":"IFERROR(TabelleMB[[#This Row],[Menge]]*Daten!D56,\"\")","v":""},{"$f":"IFERROR(TabelleMB[[#This Row],[Menge]]*Daten!E56,\"\")","v":""},{"$f":"IF(TabelleMB[[#This Row],[Materialien]]=\"\",\"\",\"GJ/Jahr\")","v":"GJ/Jahr"},null,"Grünland (Grünschnitt)",{"$f":"IFERROR(INDEX(Tabelle13[[Materialien]:[Menge]],(MATCH(TabelleNMB[[#This Row],[Materialien]],Tabelle13[Materialien],0)),2),\"\")","v":""},{"$f":"IFERROR(TabelleNMB[[#This Row],[Menge]]*Daten!H56,\"\")","v":""},{"$f":"IFERROR(TabelleNMB[[#This Row],[Menge]]*Daten!I56,\"\")","v":""},{"$f":"IFERROR(TabelleNMB[[#This Row],[Menge]]*Daten!J56,\"\")","v":""},{"$f":"IF(TabelleNMB[[#This Row],[Materialien]]=\"\",\"\",\"kg/Jahr\")","v":"kg/Jahr"},null,"Gemüse (Weißkohl)","Materialien (Bestandteile des Produkts)",{"$f":"IFERROR(INDEX(TabelleMB[[Materialien]:[GWP]],(MATCH(TabelleGWP[[#This Row],[GWP]],TabelleGWP[GWP],0)),5),\"\")","v":""}]
[null,"Hackfrüchte (Kartoffel)",{"$f":"IFERROR(INDEX(Tabelle1[[Materialien]:[Menge]],(MATCH(TabelleMB[[#This Row],[Materialien]],Tabelle1[Materialien],0)),2),\"\")","v":""},{"$f":"IFERROR(TabelleMB[[#This Row],[Menge]]*Daten!C57,\"\")","v":""},{"$f":"IFERROR(TabelleMB[[#This Row],[Menge]]*Daten!D57,\"\")","v":""},{"$f":"IFERROR(TabelleMB[[#This Row],[Menge]]*Daten!E57,\"\")","v":""},{"$f":"IF(TabelleMB[[#This Row],[Materialien]]=\"\",\"\",\"GJ/Jahr\")","v":"GJ/Jahr"},null,"Hackfrüchte (Kartoffel)",{"$f":"IFERROR(INDEX(Tabelle13[[Materialien]:[Menge]],(MATCH(TabelleNMB[[#This Row],[Materialien]],Tabelle13[Materialien],0)),2),\"\")","v":""},{"$f":"IFERROR(TabelleNMB[[#This Row],[Menge]]*Daten!H57,\"\")","v":""},{"$f":"IFERROR(TabelleNMB[[#This Row],[Menge]]*Daten!I57,\"\")","v":""},{"$f":"IFERROR(TabelleNMB[[#This Row],[Menge]]*Daten!J57,\"\")","v":""},{"$f":"IF(TabelleNMB[[#This Row],[Materialien]]=\"\",\"\",\"kg/Jahr\")","v":"kg/Jahr"},null,"Gesteinsmehl","Materialien (Bestandteile des Produkts)",{"$f":"IFERROR(INDEX(TabelleMB[[Materialien]:[GWP]],(MATCH(TabelleGWP[[#This Row],[GWP]],TabelleGWP[GWP],0)),5),\"\")","v":""}]
[null,"Handelsgewächse (Raps)",{"$f":"IFERROR(INDEX(Tabelle1[[Materialien]:[Menge]],(MATCH(TabelleMB[[#This Row],[Materialien]],Tabelle1[Materialien],0)),2),\"\")","v":""},{"$f":"IFERROR(TabelleMB[[#This Row],[Menge]]*Daten!C58,\"\")","v":""},{"$f":"IFERROR(TabelleMB[[#This Row],[Menge]]*Daten!D58,\"\")","v":""},{"$f":"IFERROR(TabelleMB[[#This Row],[Menge]]*Daten!E58,\"\")","v":""},{"$f":"IF(TabelleMB[[#This Row],[Materialien]]=\"\",\"\",\"GJ/Jahr\")","v":"GJ/Jahr"},null,"Handelsgewächse (Raps)",{"$f":"IFERROR(INDEX(Tabelle13[[Materialien]:[Menge]],(MATCH(TabelleNMB[[#This Row],[Materialien]],Tabelle13[Materialien],0)),2),\"\")","v":""},{"$f":"IFERROR(TabelleNMB[[#This Row],[Menge]]*Daten!H58,\"\")","v":""},{"$f":"IFERROR(TabelleNMB[[#This Row],[Menge]]*Daten!I58,\"\")","v":""},{"$f":"IFERROR(TabelleNMB[[#This Row],[Menge]]*Daten!J58,\"\")","v":""},{"$f":"IF(TabelleNMB[[#This Row],[Materialien]]=\"\",\"\",\"kg/Jahr\")","v":"kg/Jahr"},null,"Getreide (Winterweizen)","Materialien (Bestandteile des Produkts)",{"$f":"IFERROR(INDEX(TabelleMB[[Materialien]:[GWP]],(MATCH(TabelleGWP[[#This Row],[GWP]],TabelleGWP[GWP],0)),5),\"\")","v":""}]
[null,"Holzstoff",{"$f":"IFERROR(INDEX(Tabelle1[[Materialien]:[Menge]],(MATCH(TabelleMB[[#This Row],[Materialien]],Tabelle1[Materialien],0)),2),\"\")","v":""},{"$f":"IFERROR(TabelleMB[[#This Row],[Menge]]*Daten!C59,\"\")","v":""},{"$f":"IFERROR(TabelleMB[[#This Row],[Menge]]*Daten!D59,\"\")","v":""},{"$f":"IFERROR(TabelleMB[[#This Row],[Menge]]*Daten!E59,\"\")","v":""},{"$f":"IF(TabelleMB[[#This Row],[Materialien]]=\"\",\"\",\"GJ/Jahr\")","v":"GJ/Jahr"},null,"Holzstoff",{"$f":"IFERROR(INDEX(Tabelle13[[Materialien]:[Menge]],(MATCH(TabelleNMB[[#This Row],[Materialien]],Tabelle13[Materialien],0)),2),\"\")","v":""},{"$f":"IFERROR(TabelleNMB[[#This Row],[Menge]]*Daten!H59,\"\")","v":""},{"$f":"IFERROR(TabelleNMB[[#This Row],[Menge]]*Daten!I59,\"\")","v":""},{"$f":"IFERROR(TabelleNMB[[#This Row],[Menge]]*Daten!J59,\"\")","v":""},{"$f":"IF(TabelleNMB[[#This Row],[Materialien]]=\"\",\"\",\"kg/Jahr\")","v":"kg/Jahr"},null,"GFK (Glasfaserverstärkte Kunststoffe)","Materialien (Bestandteile des Produkts)",{"$f":"IFERROR(INDEX(TabelleMB[[Materialien]:[GWP]],(MATCH(TabelleGWP[[#This Row],[GWP]],TabelleGWP[GWP],0)),5),\"\")","v":""}]
[null,"Ilmenitkonzentrate",{"$f":"IFERROR(INDEX(Tabelle1[[Materialien]:[Menge]],(MATCH(TabelleMB[[#This Row],[Materialien]],Tabelle1[Materialien],0)),2),\"\")","v":""},{"$f":"IFERROR(TabelleMB[[#This Row],[Menge]]*Daten!C60,\"\")","v":""},{"$f":"IFERROR(TabelleMB[[#This Row],[Menge]]*Daten!D60,\"\")","v":""},{"$f":"IFERROR(TabelleMB[[#This Row],[Menge]]*Daten!E60,\"\")","v":""},{"$f":"IF(TabelleMB[[#This Row],[Materialien]]=\"\",\"\",\"GJ/Jahr\")","v":"GJ/Jahr"},null,"Ilmenitkonzentrate",{"$f":"IFERROR(INDEX(Tabelle13[[Materialien]:[Menge]],(MATCH(TabelleNMB[[#This Row],[Materialien]],Tabelle13[Materialien],0)),2),\"\")","v":""},{"$f":"IFERROR(TabelleNMB[[#This Row],[Menge]]*Daten!H60,\"\")","v":""},{"$f":"IFERROR(TabelleNMB[[#This Row],[Menge]]*Daten!I60,\"\")","v":""},{"$f":"IFERROR(TabelleNMB[[#This Row],[Menge]]*Daten!J60,\"\")","v":""},{"$f":"IF(TabelleNMB[[#This Row],[Materialien]]=\"\",\"\",\"kg/Jahr\")","v":"kg/Jahr"},null,"Gips","Materialien (Bestandteile des Produkts)",{"$f":"IFERROR(INDEX(TabelleMB[[Materialien]:[GWP]],(MATCH(TabelleGWP[[#This Row],[GWP]],TabelleGWP[GWP],0)),5),\"\")","v":""}]
[null,"Indium",{"$f":"IFERROR(INDEX(Tabelle1[[Materialien]:[Menge]],(MATCH(TabelleMB[[#This Row],[Materialien]],Tabelle1[Materialien],0)),2),\"\")","v":""},{"$f":"IFERROR(TabelleMB[[#This Row],[Menge]]*Daten!C61,\"\")","v":""},{"$f":"IFERROR(TabelleMB[[#This Row],[Menge]]*Daten!D61,\"\")","v":""},{"$f":"IFERROR(TabelleMB[[#This Row],[Menge]]*Daten!E61,\"\")","v":""},{"$f":"IF(TabelleMB[[#This Row],[Materialien]]=\"\",\"\",\"GJ/Jahr\")","v":"GJ/Jahr"},null,"Indium",{"$f":"IFERROR(INDEX(Tabelle13[[Materialien]:[Menge]],(MATCH(TabelleNMB[[#This Row],[Materialien]],Tabelle13[Materialien],0)),2),\"\")","v":""},{"$f":"IFERROR(TabelleNMB[[#This Row],[Menge]]*Daten!H61,\"\")","v":""},{"$f":"IFERROR(TabelleNMB[[#This Row],[Menge]]*Daten!I61,\"\")","v":""},{"$f":"IFERROR(TabelleNMB[[#This Row],[Menge]]*Daten!J61,\"\")","v":""},{"$f":"IF(TabelleNMB[[#This Row],[Materialien]]=\"\",\"\",\"kg/Jahr\")","v":"kg/Jahr"},null,"Glas (Behälterglas)","Materialien (Bestandteile des Produkts)",{"$f":"IFERROR(INDEX(TabelleMB[[Materialien]:[GWP]],(MATCH(TabelleGWP[[#This Row],[GWP]],TabelleGWP[GWP],0)),5),\"\")","v":""}]
[null,"Industriediamanten",{"$f":"IFERROR(INDEX(Tabelle1[[Materialien]:[Menge]],(MATCH(TabelleMB[[#This Row],[Materialien]],Tabelle1[Materialien],0)),2),\"\")","v":""},{"$f":"IFERROR(TabelleMB[[#This Row],[Menge]]*Daten!C62,\"\")","v":""},{"$f":"IFERROR(TabelleMB[[#This Row],[Menge]]*Daten!D62,\"\")","v":""},{"$f":"IFERROR(TabelleMB[[#This Row],[Menge]]*Daten!E62,\"\")","v":""},{"$f":"IF(TabelleMB[[#This Row],[Materialien]]=\"\",\"\",\"GJ/Jahr\")","v":"GJ/Jahr"},null,"Industriediamanten",{"$f":"IFERROR(INDEX(Tabelle13[[Materialien]:[Menge]],(MATCH(TabelleNMB[[#This Row],[Materialien]],Tabelle13[Materialien],0)),2),\"\")","v":""},{"$f":"IFERROR(TabelleNMB[[#This Row],[Menge]]*Daten!H62,\"\")","v":""},{"$f":"IFERROR(TabelleNMB[[#This Row],[Menge]]*Daten!I62,\"\")","v":""},{"$f":"IFERROR(TabelleNMB[[#This Row],[Menge]]*Daten!J62,\"\")","v":""},{"$f":"IF(TabelleNMB[[#This Row],[Materialien]]=\"\",\"\",\"kg/Jahr\")","v":"kg/Jahr"},null,"Glas (Flachglas)","Materialien (Bestandteile des Produkts)",{"$f":"IFERROR(INDEX(TabelleMB[[Materialien]:[GWP]],(MATCH(TabelleGWP[[#This Row],[GWP]],TabelleGWP[GWP],0)),5),\"\")","v":""}]
[null,"Iridium",{"$f":"IFERROR(INDEX(Tabelle1[[Materialien]:[Menge]],(MATCH(TabelleMB[[#This Row],[Materialien]],Tabelle1[Materialien],0)),2),\"\")","v":""},{"$f":"IFERROR(TabelleMB[[#This Row],[Menge]]*Daten!C63,\"\")","v":""},{"$f":"IFERROR(TabelleMB[[#This Row],[Menge]]*Daten!D63,\"\")","v":""},{"$f":"IFERROR(TabelleMB[[#This Row],[Menge]]*Daten!E63,\"\")","v":""},{"$f":"IF(TabelleMB[[#This Row],[Materialien]]=\"\",\"\",\"GJ/Jahr\")","v":"GJ/Jahr"},null,"Iridium",{"$f":"IFERROR(INDEX(Tabelle13[[Materialien]:[Menge]],(MATCH(TabelleNMB[[#This Row],[Materialien]],Tabelle13[Materialien],0)),2),\"\")","v":""},{"$f":"IFERROR(TabelleNMB[[#This Row],[Menge]]*Daten!H63,\"\")","v":""},{"$f":"IFERROR(TabelleNMB[[#This Row],[Menge]]*Daten!I63,\"\")","v":""},{"$f":"IFERROR(TabelleNMB[[#This Row],[Menge]]*Daten!J63,\"\")","v":""},{"$f":"IF(TabelleNMB[[#This Row],[Materialien]]=\"\",\"\",\"kg/Jahr\")","v":"kg/Jahr"},null,"Glasfasern","Materialien (Bestandteile des Produkts)",{"$f":"IFERROR(INDEX(TabelleMB[[Materialien]:[GWP]],(MATCH(TabelleGWP[[#This Row],[GWP]],TabelleGWP[GWP],0)),5),\"\")","v":""}]
[null,"Kalisalz",{"$f":"IFERROR(INDEX(Tabelle1[[Materialien]:[Menge]],(MATCH(TabelleMB[[#This Row],[Materialien]],Tabelle1[Materialien],0)),2),\"\")","v":""},{"$f":"IFERROR(TabelleMB[[#This Row],[Menge]]*Daten!C64,\"\")","v":""},{"$f":"IFERROR(TabelleMB[[#This Row],[Menge]]*Daten!D64,\"\")","v":""},{"$f":"IFERROR(TabelleMB[[#This Row],[Menge]]*Daten!E64,\"\")","v":""},{"$f":"IF(TabelleMB[[#This Row],[Materialien]]=\"\",\"\",\"GJ/Jahr\")","v":"GJ/Jahr"},null,"Kalisalz",{"$f":"IFERROR(INDEX(Tabelle13[[Materialien]:[Menge]],(MATCH(TabelleNMB[[#This Row],[Materialien]],Tabelle13[Materialien],0)),2),\"\")","v":""},{"$f":"IFERROR(TabelleNMB[[#This Row],[Menge]]*Daten!H64,\"\")","v":""},{"$f":"IFERROR(TabelleNMB[[#This Row],[Menge]]*Daten!I64,\"\")","v":""},{"$f":"IFERROR(TabelleNMB[[#This Row],[Menge]]*Daten!J64,\"\")","v":""},{"$f":"IF(TabelleNMB[[#This Row],[Materialien]]=\"\",\"\",\"kg/Jahr\")","v":"kg/Jahr"},null,"Glaswolle","Materialien (Bestandteile des Produkts)",{"$f":"IFERROR(INDEX(TabelleMB[[Materialien]:[GWP]],(MATCH(TabelleGWP[[#This Row],[GWP]],TabelleGWP[GWP],0)),5),\"\")","v":""}]
[null,"Kalk",{"$f":"IFERROR(INDEX(Tabelle1[[Materialien]:[Menge]],(MATCH(TabelleMB[[#This Row],[Materialien]],Tabelle1[Materialien],0)),2),\"\")","v":""},{"$f":"IFERROR(TabelleMB[[#This Row],[Menge]]*Daten!C65,\"\")","v":""},{"$f":"IFERROR(TabelleMB[[#This Row],[Menge]]*Daten!D65,\"\")","v":""},{"$f":"IFERROR(TabelleMB[[#This Row],[Menge]]*Daten!E65,\"\")","v":""},{"$f":"IF(TabelleMB[[#This Row],[Materialien]]=\"\",\"\",\"GJ/Jahr\")","v":"GJ/Jahr"},null,"Kalk",{"$f":"IFERROR(INDEX(Tabelle13[[Materialien]:[Menge]],(MATCH(TabelleNMB[[#This Row],[Materialien]],Tabelle13[Materialien],0)),2),\"\")","v":""},{"$f":"IFERROR(TabelleNMB[[#This Row],[Menge]]*Daten!H65,\"\")","v":""},{"$f":"IFERROR(TabelleNMB[[#This Row],[Menge]]*Daten!I65,\"\")","v":""},{"$f":"IFERROR(TabelleNMB[[#This Row],[Menge]]*Daten!J65,\"\")","v":""},{"$f":"IF(TabelleNMB[[#This Row],[Materialien]]=\"\",\"\",\"kg/Jahr\")","v":"kg/Jahr"},null,"Glimmer","Materialien (Bestandteile des Produkts)",{"$f":"IFERROR(INDEX(TabelleMB[[Materialien]:[GWP]],(MATCH(TabelleGWP[[#This Row],[GWP]],TabelleGWP[GWP],0)),5),\"\")","v":""}]
[null,"Kalkmergel",{"$f":"IFERROR(INDEX(Tabelle1[[Materialien]:[Menge]],(MATCH(TabelleMB[[#This Row],[Materialien]],Tabelle1[Materialien],0)),2),\"\")","v":""},{"$f":"IFERROR(TabelleMB[[#This Row],[Menge]]*Daten!C66,\"\")","v":""},{"$f":"IFERROR(TabelleMB[[#This Row],[Menge]]*Daten!D66,\"\")","v":""},{"$f":"IFERROR(TabelleMB[[#This Row],[Menge]]*Daten!E66,\"\")","v":""},{"$f":"IF(TabelleMB[[#This Row],[Materialien]]=\"\",\"\",\"GJ/Jahr\")","v":"GJ/Jahr"},null,"Kalkmergel",{"$f":"IFERROR(INDEX(Tabelle13[[Materialien]:[Menge]],(MATCH(TabelleNMB[[#This Row],[Materialien]],Tabelle13[Materialien],0)),2),\"\")","v":""},{"$f":"IFERROR(TabelleNMB[[#This Row],[Menge]]*Daten!H66,\"\")","v":""},{"$f":"IFERROR(TabelleNMB[[#This Row],[Menge]]*Daten!I66,\"\")","v":""},{"$f":"IFERROR(TabelleNMB[[#This Row],[Menge]]*Daten!J66,\"\")","v":""},{"$f":"IF(TabelleNMB[[#This Row],[Materialien]]=\"\",\"\",\"kg/Jahr\")","v":"kg/Jahr"},null,"Gold ","Materialien (Bestandteile des Produkts)",{"$f":"IFERROR(INDEX(TabelleMB[[Materialien]:[GWP]],(MATCH(TabelleGWP[[#This Row],[GWP]],TabelleGWP[GWP],0)),5),\"\")","v":""}]
[null,"Kalkstein",{"$f":"IFERROR(INDEX(Tabelle1[[Materialien]:[Menge]],(MATCH(TabelleMB[[#This Row],[Materialien]],Tabelle1[Materialien],0)),2),\"\")","v":""},{"$f":"IFERROR(TabelleMB[[#This Row],[Menge]]*Daten!C67,\"\")","v":""},{"$f":"IFERROR(TabelleMB[[#This Row],[Menge]]*Daten!D67,\"\")","v":""},{"$f":"IFERROR(TabelleMB[[#This Row],[Menge]]*Daten!E67,\"\")","v":""},{"$f":"IF(TabelleMB[[#This Row],[Materialien]]=\"\",\"\",\"GJ/Jahr\")","v":"GJ/Jahr"},null,"Kalkstein",{"$f":"IFERROR(INDEX(Tabelle13[[Materialien]:[Menge]],(MATCH(TabelleNMB[[#This Row],[Materialien]],Tabelle13[Materialien],0)),2),\"\")","v":""},{"$f":"IFERROR(TabelleNMB[[#This Row],[Menge]]*Daten!H67,\"\")","v":""},{"$f":"IFERROR(TabelleNMB[[#This Row],[Menge]]*Daten!I67,\"\")","v":""},{"$f":"IFERROR(TabelleNMB[[#This Row],[Menge]]*Daten!J67,\"\")","v":""},{"$f":"IF(TabelleNMB[[#This Row],[Materialien]]=\"\",\"\",\"kg/Jahr\")","v":"kg/Jahr"},null,"Graphit","Materialien (Bestandteile des Produkts)",{"$f":"IFERROR(INDEX(TabelleMB[[Materialien]:[GWP]],(MATCH(TabelleGWP[[#This Row],[GWP]],TabelleGWP[GWP],0)),5),\"\")","v":""}]
[null,"Kaolin",{"$f":"IFERROR(INDEX(Tabelle1[[Materialien]:[Menge]],(MATCH(TabelleMB[[#This Row],[Materialien]],Tabelle1[Materialien],0)),2),\"\")","v":""},{"$f":"IFERROR(TabelleMB[[#This Row],[Menge]]*Daten!C68,\"\")","v":""},{"$f":"IFERROR(TabelleMB[[#This Row],[Menge]]*Daten!D68,\"\")","v":""},{"$f":"IFERROR(TabelleMB[[#This Row],[Menge]]*Daten!E68,\"\")","v":""},{"$f":"IF(TabelleMB[[#This Row],[Materialien]]=\"\",\"\",\"GJ/Jahr\")","v":"GJ/Jahr"},null,"Kaolin",{"$f":"IFERROR(INDEX(Tabelle13[[Materialien]:[Menge]],(MATCH(TabelleNMB[[#This Row],[Materialien]],Tabelle13[Materialien],0)),2),\"\")","v":""},{"$f":"IFERROR(TabelleNMB[[#This Row],[Menge]]*Daten!H68,\"\")","v":""},{"$f":"IFERROR(TabelleNMB[[#This Row],[Menge]]*Daten!I68,\"\")","v":""},{"$f":"IFERROR(TabelleNMB[[#This Row],[Menge]]*Daten!J68,\"\")","v":""},{"$f":"IF(TabelleNMB[[#This Row],[Materialien]]=\"\",\"\",\"kg/Jahr\")","v":"kg/Jahr"},null,"Grünland (Grünschnitt)","Materialien (Bestandteile des Produkts)",{"$f":"IFERROR(INDEX(TabelleMB[[Materialien]:[GWP]],(MATCH(TabelleGWP[[#This Row],[GWP]],TabelleGWP[GWP],0)),5),\"\")","v":""}]
[null,"Kies (Baukies)",{"$f":"IFERROR(INDEX(Tabelle1[[Materialien]:[Menge]],(MATCH(TabelleMB[[#This Row],[Materialien]],Tabelle1[Materialien],0)),2),\"\")","v":""},{"$f":"IFERROR(TabelleMB[[#This Row],[Menge]]*Daten!C69,\"\")","v":""},{"$f":"IFERROR(TabelleMB[[#This Row],[Menge]]*Daten!D69,\"\")","v":""},{"$f":"IFERROR(TabelleMB[[#This Row],[Menge]]*Daten!E69,\"\")","v":""},{"$f":"IF(TabelleMB[[#This Row],[Materialien]]=\"\",\"\",\"GJ/Jahr\")","v":"GJ/Jahr"},null,"Kies (Baukies)",{"$f":"IFERROR(INDEX(Tabelle13[[Materialien]:[Menge]],(MATCH(TabelleNMB[[#This Row],[Materialien]],Tabelle13[Materialien],0)),2),\"\")","v":""},{"$f":"IFERROR(TabelleNMB[[#This Row],[Menge]]*Daten!H69,\"\")","v":""},{"$f":"IFERROR(TabelleNMB[[#This Row],[Menge]]*Daten!I69,\"\")","v":""},{"$f":"IFERROR(TabelleNMB[[#This Row],[Menge]]*Daten!J69,\"\")","v":""},{"$f":"IF(TabelleNMB[[#This Row],[Materialien]]=\"\",\"\",\"kg/Jahr\")","v":"kg/Jahr"},null,"Hackfrüchte (Kartoffel)","Materialien (Bestandteile des Produkts)",{"$f":"IFERROR(INDEX(TabelleMB[[Materialien]:[GWP]],(MATCH(TabelleGWP[[#This Row],[GWP]],TabelleGWP[GWP],0)),5),\"\")","v":""}]
[null,"Kiselgur",{"$f":"IFERROR(INDEX(Tabelle1[[Materialien]:[Menge]],(MATCH(TabelleMB[[#This Row],[Materialien]],Tabelle1[Materialien],0)),2),\"\")","v":""},{"$f":"IFERROR(TabelleMB[[#This Row],[Menge]]*Daten!C70,\"\")","v":""},{"$f":"IFERROR(TabelleMB[[#This Row],[Menge]]*Daten!D70,\"\")","v":""},{"$f":"IFERROR(TabelleMB[[#This Row],[Menge]]*Daten!E70,\"\")","v":""},{"$f":"IF(TabelleMB[[#This Row],[Materialien]]=\"\",\"\",\"GJ/Jahr\")","v":"GJ/Jahr"},null,"Kiselgur",{"$f":"IFERROR(INDEX(Tabelle13[[Materialien]:[Menge]],(MATCH(TabelleNMB[[#This Row],[Materialien]],Tabelle13[Materialien],0)),2),\"\")","v":""},{"$f":"IFERROR(TabelleNMB[[#This Row],[Menge]]*Daten!H70,\"\")","v":""},{"$f":"IFERROR(TabelleNMB[[#This Row],[Menge]]*Daten!I70,\"\")","v":""},{"$f":"IFERROR(TabelleNMB[[#This Row],[Menge]]*Daten!J70,\"\")","v":""},{"$f":"IF(TabelleNMB[[#This Row],[Materialien]]=\"\",\"\",\"kg/Jahr\")","v":"kg/Jahr"},null,"Handelsgewächse (Raps)","Materialien (Bestandteile des Produkts)",{"$f":"IFERROR(INDEX(TabelleMB[[Materialien]:[GWP]],(MATCH(TabelleGWP[[#This Row],[GWP]],TabelleGWP[GWP],0)),5),\"\")","v":""}]
[null,"Kobalt",{"$f":"IFERROR(INDEX(Tabelle1[[Materialien]:[Menge]],(MATCH(TabelleMB[[#This Row],[Materialien]],Tabelle1[Materialien],0)),2),\"\")","v":""},{"$f":"IFERROR(TabelleMB[[#This Row],[Menge]]*Daten!C71,\"\")","v":""},{"$f":"IFERROR(TabelleMB[[#This Row],[Menge]]*Daten!D71,\"\")","v":""},{"$f":"IFERROR(TabelleMB[[#This Row],[Menge]]*Daten!E71,\"\")","v":""},{"$f":"IF(TabelleMB[[#This Row],[Materialien]]=\"\",\"\",\"GJ/Jahr\")","v":"GJ/Jahr"},null,"Kobalt",{"$f":"IFERROR(INDEX(Tabelle13[[Materialien]:[Menge]],(MATCH(TabelleNMB[[#This Row],[Materialien]],Tabelle13[Materialien],0)),2),\"\")","v":""},{"$f":"IFERROR(TabelleNMB[[#This Row],[Menge]]*Daten!H71,\"\")","v":""},{"$f":"IFERROR(TabelleNMB[[#This Row],[Menge]]*Daten!I71,\"\")","v":""},{"$f":"IFERROR(TabelleNMB[[#This Row],[Menge]]*Daten!J71,\"\")","v":""},{"$f":"IF(TabelleNMB[[#This Row],[Materialien]]=\"\",\"\",\"kg/Jahr\")","v":"kg/Jahr"},null,"Holzstoff","Materialien (Bestandteile des Produkts)",{"$f":"IFERROR(INDEX(TabelleMB[[Materialien]:[GWP]],(MATCH(TabelleGWP[[#This Row],[GWP]],TabelleGWP[GWP],0)),5),\"\")","v":""}]
[null,"Kobalterze",{"$f":"IFERROR(INDEX(Tabelle1[[Materialien]:[Menge]],(MATCH(TabelleMB[[#This Row],[Materialien]],Tabelle1[Materialien],0)),2),\"\")","v":""},{"$f":"IFERROR(TabelleMB[[#This Row],[Menge]]*Daten!C72,\"\")","v":""},{"$f":"IFERROR(TabelleMB[[#This Row],[Menge]]*Daten!D72,\"\")","v":""},{"$f":"IFERROR(TabelleMB[[#This Row],[Menge]]*Daten!E72,\"\")","v":""},{"$f":"IF(TabelleMB[[#This Row],[Materialien]]=\"\",\"\",\"GJ/Jahr\")","v":"GJ/Jahr"},null,"Kobalterze",{"$f":"IFERROR(INDEX(Tabelle13[[Materialien]:[Menge]],(MATCH(TabelleNMB[[#This Row],[Materialien]],Tabelle13[Materialien],0)),2),\"\")","v":""},{"$f":"IFERROR(TabelleNMB[[#This Row],[Menge]]*Daten!H72,\"\")","v":""},{"$f":"IFERROR(TabelleNMB[[#This Row],[Menge]]*Daten!I72,\"\")","v":""},{"$f":"IFERROR(TabelleNMB[[#This Row],[Menge]]*Daten!J72,\"\")","v":""},{"$f":"IF(TabelleNMB[[#This Row],[Materialien]]=\"\",\"\",\"kg/Jahr\")","v":"kg/Jahr"},null,"Ilmenitkonzentrate","Materialien (Bestandteile des Produkts)",{"$f":"IFERROR(INDEX(TabelleMB[[Materialien]:[GWP]],(MATCH(TabelleGWP[[#This Row],[GWP]],TabelleGWP[GWP],0)),5),\"\")","v":""}]
[null,"Kreide",{"$f":"IFERROR(INDEX(Tabelle1[[Materialien]:[Menge]],(MATCH(TabelleMB[[#This Row],[Materialien]],Tabelle1[Materialien],0)),2),\"\")","v":""},{"$f":"IFERROR(TabelleMB[[#This Row],[Menge]]*Daten!C73,\"\")","v":""},{"$f":"IFERROR(TabelleMB[[#This Row],[Menge]]*Daten!D73,\"\")","v":""},{"$f":"IFERROR(TabelleMB[[#This Row],[Menge]]*Daten!E73,\"\")","v":""},{"$f":"IF(TabelleMB[[#This Row],[Materialien]]=\"\",\"\",\"GJ/Jahr\")","v":"GJ/Jahr"},null,"Kreide",{"$f":"IFERROR(INDEX(Tabelle13[[Materialien]:[Menge]],(MATCH(TabelleNMB[[#This Row],[Materialien]],Tabelle13[Materialien],0)),2),\"\")","v":""},{"$f":"IFERROR(TabelleNMB[[#This Row],[Menge]]*Daten!H73,\"\")","v":""},{"$f":"IFERROR(TabelleNMB[[#This Row],[Menge]]*Daten!I73,\"\")","v":""},{"$f":"IFERROR(TabelleNMB[[#This Row],[Menge]]*Daten!J73,\"\")","v":""},{"$f":"IF(TabelleNMB[[#This Row],[Materialien]]=\"\",\"\",\"kg/Jahr\")","v":"kg/Jahr"},null,"Indium","Materialien (Bestandteile des Produkts)",{"$f":"IFERROR(INDEX(TabelleMB[[Materialien]:[GWP]],(MATCH(TabelleGWP[[#This Row],[GWP]],TabelleGWP[GWP],0)),5),\"\")","v":""}]
[null,"Kryolith",{"$f":"IFERROR(INDEX(Tabelle1[[Materialien]:[Menge]],(MATCH(TabelleMB[[#This Row],[Materialien]],Tabelle1[Materialien],0)),2),\"\")","v":""},{"$f":"IFERROR(TabelleMB[[#This Row],[Menge]]*Daten!C74,\"\")","v":""},{"$f":"IFERROR(TabelleMB[[#This Row],[Menge]]*Daten!D74,\"\")","v":""},{"$f":"IFERROR(TabelleMB[[#This Row],[Menge]]*Daten!E74,\"\")","v":""},{"$f":"IF(TabelleMB[[#This Row],[Materialien]]=\"\",\"\",\"GJ/Jahr\")","v":"GJ/Jahr"},null,"Kryolith",{"$f":"IFERROR(INDEX(Tabelle13[[Materialien]:[Menge]],(MATCH(TabelleNMB[[#This Row],[Materialien]],Tabelle13[Materialien],0)),2),\"\")","v":""},{"$f":"IFERROR(TabelleNMB[[#This Row],[Menge]]*Daten!H74,\"\")","v":""},{"$f":"IFERROR(TabelleNMB[[#This Row],[Menge]]*Daten!I74,\"\")","v":""},{"$f":"IFERROR(TabelleNMB[[#This Row],[Menge]]*Daten!J74,\"\")","v":""},{"$f":"IF(TabelleNMB[[#This Row],[Materialien]]=\"\",\"\",\"kg/Jahr\")","v":"kg/Jahr"},null,"Industriediamanten","Materialien (Bestandteile des Produkts)",{"$f":"IFERROR(INDEX(TabelleMB[[Materialien]:[GWP]],(MATCH(TabelleGWP[[#This Row],[GWP]],TabelleGWP[GWP],0)),5),\"\")","v":""}]
[null,"Kupfer, primär",{"$f":"IFERROR(INDEX(Tabelle1[[Materialien]:[Menge]],(MATCH(TabelleMB[[#This Row],[Materialien]],Tabelle1[Materialien],0)),2),\"\")","v":""},{"$f":"IFERROR(TabelleMB[[#This Row],[Menge]]*Daten!C75,\"\")","v":""},{"$f":"IFERROR(TabelleMB[[#This Row],[Menge]]*Daten!D75,\"\")","v":""},{"$f":"IFERROR(TabelleMB[[#This Row],[Menge]]*Daten!E75,\"\")","v":""},{"$f":"IF(TabelleMB[[#This Row],[Materialien]]=\"\",\"\",\"GJ/Jahr\")","v":"GJ/Jahr"},null,"Kupfer, primär",{"$f":"IFERROR(INDEX(Tabelle13[[Materialien]:[Menge]],(MATCH(TabelleNMB[[#This Row],[Materialien]],Tabelle13[Materialien],0)),2),\"\")","v":""},{"$f":"IFERROR(TabelleNMB[[#This Row],[Menge]]*Daten!H75,\"\")","v":""},{"$f":"IFERROR(TabelleNMB[[#This Row],[Menge]]*Daten!I75,\"\")","v":""},{"$f":"IFERROR(TabelleNMB[[#This Row],[Menge]]*Daten!J75,\"\")","v":""},{"$f":"IF(TabelleNMB[[#This Row],[Materialien]]=\"\",\"\",\"kg/Jahr\")","v":"kg/Jahr"},null,"Iridium","Materialien (Bestandteile des Produkts)",{"$f":"IFERROR(INDEX(TabelleMB[[Materialien]:[GWP]],(MATCH(TabelleGWP[[#This Row],[GWP]],TabelleGWP[GWP],0)),5),\"\")","v":""}]
[null,"Kupfer, sekundär",{"$f":"IFERROR(INDEX(Tabelle1[[Materialien]:[Menge]],(MATCH(TabelleMB[[#This Row],[Materialien]],Tabelle1[Materialien],0)),2),\"\")","v":""},{"$f":"IFERROR(TabelleMB[[#This Row],[Menge]]*Daten!C76,\"\")","v":""},{"$f":"IFERROR(TabelleMB[[#This Row],[Menge]]*Daten!D76,\"\")","v":""},{"$f":"IFERROR(TabelleMB[[#This Row],[Menge]]*Daten!E76,\"\")","v":""},{"$f":"IF(TabelleMB[[#This Row],[Materialien]]=\"\",\"\",\"GJ/Jahr\")","v":"GJ/Jahr"},null,"Kupfer, sekundär",{"$f":"IFERROR(INDEX(Tabelle13[[Materialien]:[Menge]],(MATCH(TabelleNMB[[#This Row],[Materialien]],Tabelle13[Materialien],0)),2),\"\")","v":""},{"$f":"IFERROR(TabelleNMB[[#This Row],[Menge]]*Daten!H76,\"\")","v":""},{"$f":"IFERROR(TabelleNMB[[#This Row],[Menge]]*Daten!I76,\"\")","v":""},{"$f":"IFERROR(TabelleNMB[[#This Row],[Menge]]*Daten!J76,\"\")","v":""},{"$f":"IF(TabelleNMB[[#This Row],[Materialien]]=\"\",\"\",\"kg/Jahr\")","v":"kg/Jahr"},null,"Kalisalz","Materialien (Bestandteile des Produkts)",{"$f":"IFERROR(INDEX(TabelleMB[[Materialien]:[GWP]],(MATCH(TabelleGWP[[#This Row],[GWP]],TabelleGWP[GWP],0)),5),\"\")","v":""}]
[null,"Kupferblech (ohne Prozessschritte für Kupfer primär/sekundär)",{"$f":"IFERROR(INDEX(Tabelle1[[Materialien]:[Menge]],(MATCH(TabelleMB[[#This Row],[Materialien]],Tabelle1[Materialien],0)),2),\"\")","v":""},{"$f":"IFERROR(TabelleMB[[#This Row],[Menge]]*Daten!C77,\"\")","v":""},{"$f":"IFERROR(TabelleMB[[#This Row],[Menge]]*Daten!D77,\"\")","v":""},{"$f":"IFERROR(TabelleMB[[#This Row],[Menge]]*Daten!E77,\"\")","v":""},{"$f":"IF(TabelleMB[[#This Row],[Materialien]]=\"\",\"\",\"GJ/Jahr\")","v":"GJ/Jahr"},null,"Kupferblech (ohne Prozessschritte für Kupfer primär/sekundär)",{"$f":"IFERROR(INDEX(Tabelle13[[Materialien]:[Menge]],(MATCH(TabelleNMB[[#This Row],[Materialien]],Tabelle13[Materialien],0)),2),\"\")","v":""},{"$f":"IFERROR(TabelleNMB[[#This Row],[Menge]]*Daten!H77,\"\")","v":""},{"$f":"IFERROR(TabelleNMB[[#This Row],[Menge]]*Daten!I77,\"\")","v":""},{"$f":"IFERROR(TabelleNMB[[#This Row],[Menge]]*Daten!J77,\"\")","v":""},{"$f":"IF(TabelleNMB[[#This Row],[Materialien]]=\"\",\"\",\"kg/Jahr\")","v":"kg/Jahr"},null,"Kalk","Materialien (Bestandteile des Produkts)",{"$f":"IFERROR(INDEX(TabelleMB[[Materialien]:[GWP]],(MATCH(TabelleGWP[[#This Row],[GWP]],TabelleGWP[GWP],0)),5),\"\")","v":""}]
[null,"Kupferkonzentrate, global",{"$f":"IFERROR(INDEX(Tabelle1[[Materialien]:[Menge]],(MATCH(TabelleMB[[#This Row],[Materialien]],Tabelle1[Materialien],0)),2),\"\")","v":""},{"$f":"IFERROR(TabelleMB[[#This Row],[Menge]]*Daten!C78,\"\")","v":""},{"$f":"IFERROR(TabelleMB[[#This Row],[Menge]]*Daten!D78,\"\")","v":""},{"$f":"IFERROR(TabelleMB[[#This Row],[Menge]]*Daten!E78,\"\")","v":""},{"$f":"IF(TabelleMB[[#This Row],[Materialien]]=\"\",\"\",\"GJ/Jahr\")","v":"GJ/Jahr"},null,"Kupferkonzentrate, global",{"$f":"IFERROR(INDEX(Tabelle13[[Materialien]:[Menge]],(MATCH(TabelleNMB[[#This Row],[Materialien]],Tabelle13[Materialien],0)),2),\"\")","v":""},{"$f":"IFERROR(TabelleNMB[[#This Row],[Menge]]*Daten!H78,\"\")","v":""},{"$f":"IFERROR(TabelleNMB[[#This Row],[Menge]]*Daten!I78,\"\")","v":""},{"$f":"IFERROR(TabelleNMB[[#This Row],[Menge]]*Daten!J78,\"\")","v":""},{"$f":"IF(TabelleNMB[[#This Row],[Materialien]]=\"\",\"\",\"kg/Jahr\")","v":"kg/Jahr"},null,"Kalkmergel","Materialien (Bestandteile des Produkts)",{"$f":"IFERROR(INDEX(TabelleMB[[Materialien]:[GWP]],(MATCH(TabelleGWP[[#This Row],[GWP]],TabelleGWP[GWP],0)),5),\"\")","v":""}]
[null,"Laptop",{"$f":"IFERROR(INDEX(Tabelle1[[Materialien]:[Menge]],(MATCH(TabelleMB[[#This Row],[Materialien]],Tabelle1[Materialien],0)),2),\"\")","v":""},{"$f":"IFERROR(TabelleMB[[#This Row],[Menge]]*Daten!C79,\"\")","v":""},{"$f":"IFERROR(TabelleMB[[#This Row],[Menge]]*Daten!D79,\"\")","v":""},{"$f":"IFERROR(TabelleMB[[#This Row],[Menge]]*Daten!E79,\"\")","v":""},{"$f":"IF(TabelleMB[[#This Row],[Materialien]]=\"\",\"\",\"GJ/Jahr\")","v":"GJ/Jahr"},null,"Laptop",{"$f":"IFERROR(INDEX(Tabelle13[[Materialien]:[Menge]],(MATCH(TabelleNMB[[#This Row],[Materialien]],Tabelle13[Materialien],0)),2),\"\")","v":""},{"$f":"IFERROR(TabelleNMB[[#This Row],[Menge]]*Daten!H79,\"\")","v":""},{"$f":"IFERROR(TabelleNMB[[#This Row],[Menge]]*Daten!I79,\"\")","v":""},{"$f":"IFERROR(TabelleNMB[[#This Row],[Menge]]*Daten!J79,\"\")","v":""},{"$f":"IF(TabelleNMB[[#This Row],[Materialien]]=\"\",\"\",\"kg/Jahr\")","v":"kg/Jahr"},null,"Kalkstein","Materialien (Bestandteile des Produkts)",{"$f":"IFERROR(INDEX(TabelleMB[[Materialien]:[GWP]],(MATCH(TabelleGWP[[#This Row],[GWP]],TabelleGWP[GWP],0)),5),\"\")","v":""}]
[null,"Laubholz",{"$f":"IFERROR(INDEX(Tabelle1[[Materialien]:[Menge]],(MATCH(TabelleMB[[#This Row],[Materialien]],Tabelle1[Materialien],0)),2),\"\")","v":""},{"$f":"IFERROR(TabelleMB[[#This Row],[Menge]]*Daten!C80,\"\")","v":""},{"$f":"IFERROR(TabelleMB[[#This Row],[Menge]]*Daten!D80,\"\")","v":""},{"$f":"IFERROR(TabelleMB[[#This Row],[Menge]]*Daten!E80,\"\")","v":""},{"$f":"IF(TabelleMB[[#This Row],[Materialien]]=\"\",\"\",\"GJ/Jahr\")","v":"GJ/Jahr"},null,"Laubholz",{"$f":"IFERROR(INDEX(Tabelle13[[Materialien]:[Menge]],(MATCH(TabelleNMB[[#This Row],[Materialien]],Tabelle13[Materialien],0)),2),\"\")","v":""},{"$f":"IFERROR(TabelleNMB[[#This Row],[Menge]]*Daten!H80,\"\")","v":""},{"$f":"IFERROR(TabelleNMB[[#This Row],[Menge]]*Daten!I80,\"\")","v":""},{"$f":"IFERROR(TabelleNMB[[#This Row],[Menge]]*Daten!J80,\"\")","v":""},{"$f":"IF(TabelleNMB[[#This Row],[Materialien]]=\"\",\"\",\"kg/Jahr\")","v":"kg/Jahr"},null,"Kaolin","Materialien (Bestandteile des Produkts)",{"$f":"IFERROR(INDEX(TabelleMB[[Materialien]:[GWP]],(MATCH(TabelleGWP[[#This Row],[GWP]],TabelleGWP[GWP],0)),5),\"\")","v":""}]
[null,"LDPE",{"$f":"IFERROR(INDEX(Tabelle1[[Materialien]:[Menge]],(MATCH(TabelleMB[[#This Row],[Materialien]],Tabelle1[Materialien],0)),2),\"\")","v":""},{"$f":"IFERROR(TabelleMB[[#This Row],[Menge]]*Daten!C81,\"\")","v":""},{"$f":"IFERROR(TabelleMB[[#This Row],[Menge]]*Daten!D81,\"\")","v":""},{"$f":"IFERROR(TabelleMB[[#This Row],[Menge]]*Daten!E81,\"\")","v":""},{"$f":"IF(TabelleMB[[#This Row],[Materialien]]=\"\",\"\",\"GJ/Jahr\")","v":"GJ/Jahr"},null,"LDPE",{"$f":"IFERROR(INDEX(Tabelle13[[Materialien]:[Menge]],(MATCH(TabelleNMB[[#This Row],[Materialien]],Tabelle13[Materialien],0)),2),\"\")","v":""},{"$f":"IFERROR(TabelleNMB[[#This Row],[Menge]]*Daten!H81,\"\")","v":""},{"$f":"IFERROR(TabelleNMB[[#This Row],[Menge]]*Daten!I81,\"\")","v":""},{"$f":"IFERROR(TabelleNMB[[#This Row],[Menge]]*Daten!J81,\"\")","v":""},{"$f":"IF(TabelleNMB[[#This Row],[Materialien]]=\"\",\"\",\"kg/Jahr\")","v":"kg/Jahr"},null,"Kies (Baukies)","Materialien (Bestandteile des Produkts)",{"$f":"IFERROR(INDEX(TabelleMB[[Materialien]:[GWP]],(MATCH(TabelleGWP[[#This Row],[GWP]],TabelleGWP[GWP],0)),5),\"\")","v":""}]
[null,"Lehm",{"$f":"IFERROR(INDEX(Tabelle1[[Materialien]:[Menge]],(MATCH(TabelleMB[[#This Row],[Materialien]],Tabelle1[Materialien],0)),2),\"\")","v":""},{"$f":"IFERROR(TabelleMB[[#This Row],[Menge]]*Daten!C82,\"\")","v":""},{"$f":"IFERROR(TabelleMB[[#This Row],[Menge]]*Daten!D82,\"\")","v":""},{"$f":"IFERROR(TabelleMB[[#This Row],[Menge]]*Daten!E82,\"\")","v":""},{"$f":"IF(TabelleMB[[#This Row],[Materialien]]=\"\",\"\",\"GJ/Jahr\")","v":"GJ/Jahr"},null,"Lehm",{"$f":"IFERROR(INDEX(Tabelle13[[Materialien]:[Menge]],(MATCH(TabelleNMB[[#This Row],[Materialien]],Tabelle13[Materialien],0)),2),\"\")","v":""},{"$f":"IFERROR(TabelleNMB[[#This Row],[Menge]]*Daten!H82,\"\")","v":""},{"$f":"IFERROR(TabelleNMB[[#This Row],[Menge]]*Daten!I82,\"\")","v":""},{"$f":"IFERROR(TabelleNMB[[#This Row],[Menge]]*Daten!J82,\"\")","v":""},{"$f":"IF(TabelleNMB[[#This Row],[Materialien]]=\"\",\"\",\"kg/Jahr\")","v":"kg/Jahr"},null,"Kiselgur","Materialien (Bestandteile des Produkts)",{"$f":"IFERROR(INDEX(TabelleMB[[Materialien]:[GWP]],(MATCH(TabelleGWP[[#This Row],[GWP]],TabelleGWP[GWP],0)),5),\"\")","v":""}]
[null,"Lithium",{"$f":"IFERROR(INDEX(Tabelle1[[Materialien]:[Menge]],(MATCH(TabelleMB[[#This Row],[Materialien]],Tabelle1[Materialien],0)),2),\"\")","v":""},{"$f":"IFERROR(TabelleMB[[#This Row],[Menge]]*Daten!C83,\"\")","v":""},{"$f":"IFERROR(TabelleMB[[#This Row],[Menge]]*Daten!D83,\"\")","v":""},{"$f":"IFERROR(TabelleMB[[#This Row],[Menge]]*Daten!E83,\"\")","v":""},{"$f":"IF(TabelleMB[[#This Row],[Materialien]]=\"\",\"\",\"GJ/Jahr\")","v":"GJ/Jahr"},null,"Lithium",{"$f":"IFERROR(INDEX(Tabelle13[[Materialien]:[Menge]],(MATCH(TabelleNMB[[#This Row],[Materialien]],Tabelle13[Materialien],0)),2),\"\")","v":""},{"$f":"IFERROR(TabelleNMB[[#This Row],[Menge]]*Daten!H83,\"\")","v":""},{"$f":"IFERROR(TabelleNMB[[#This Row],[Menge]]*Daten!I83,\"\")","v":""},{"$f":"IFERROR(TabelleNMB[[#This Row],[Menge]]*Daten!J83,\"\")","v":""},{"$f":"IF(TabelleNMB[[#This Row],[Materialien]]=\"\",\"\",\"kg/Jahr\")","v":"kg/Jahr"},null,"Kobalt","Materialien (Bestandteile des Produkts)",{"$f":"IFERROR(INDEX(TabelleMB[[Materialien]:[GWP]],(MATCH(TabelleGWP[[#This Row],[GWP]],TabelleGWP[GWP],0)),5),\"\")","v":""}]
[null,"Magnesium",{"$f":"IFERROR(INDEX(Tabelle1[[Materialien]:[Menge]],(MATCH(TabelleMB[[#This Row],[Materialien]],Tabelle1[Materialien],0)),2),\"\")","v":""},{"$f":"IFERROR(TabelleMB[[#This Row],[Menge]]*Daten!C84,\"\")","v":""},{"$f":"IFERROR(TabelleMB[[#This Row],[Menge]]*Daten!D84,\"\")","v":""},{"$f":"IFERROR(TabelleMB[[#This Row],[Menge]]*Daten!E84,\"\")","v":""},{"$f":"IF(TabelleMB[[#This Row],[Materialien]]=\"\",\"\",\"GJ/Jahr\")","v":"GJ/Jahr"},null,"Magnesium",{"$f":"IFERROR(INDEX(Tabelle13[[Materialien]:[Menge]],(MATCH(TabelleNMB[[#This Row],[Materialien]],Tabelle13[Materialien],0)),2),\"\")","v":""},{"$f":"IFERROR(TabelleNMB[[#This Row],[Menge]]*Daten!H84,\"\")","v":""},{"$f":"IFERROR(TabelleNMB[[#This Row],[Menge]]*Daten!I84,\"\")","v":""},{"$f":"IFERROR(TabelleNMB[[#This Row],[Menge]]*Daten!J84,\"\")","v":""},{"$f":"IF(TabelleNMB[[#This Row],[Materialien]]=\"\",\"\",\"kg/Jahr\")","v":"kg/Jahr"},null,"Kobalterze","Materialien (Bestandteile des Produkts)",{"$f":"IFERROR(INDEX(TabelleMB[[Materialien]:[GWP]],(MATCH(TabelleGWP[[#This Row],[GWP]],TabelleGWP[GWP],0)),5),\"\")","v":""}]
[null,"Magnesiumkarbonat",{"$f":"IFERROR(INDEX(Tabelle1[[Materialien]:[Menge]],(MATCH(TabelleMB[[#This Row],[Materialien]],Tabelle1[Materialien],0)),2),\"\")","v":""},{"$f":"IFERROR(TabelleMB[[#This Row],[Menge]]*Daten!C85,\"\")","v":""},{"$f":"IFERROR(TabelleMB[[#This Row],[Menge]]*Daten!D85,\"\")","v":""},{"$f":"IFERROR(TabelleMB[[#This Row],[Menge]]*Daten!E85,\"\")","v":""},{"$f":"IF(TabelleMB[[#This Row],[Materialien]]=\"\",\"\",\"GJ/Jahr\")","v":"GJ/Jahr"},null,"Magnesiumkarbonat",{"$f":"IFERROR(INDEX(Tabelle13[[Materialien]:[Menge]],(MATCH(TabelleNMB[[#This Row],[Materialien]],Tabelle13[Materialien],0)),2),\"\")","v":""},{"$f":"IFERROR(TabelleNMB[[#This Row],[Menge]]*Daten!H85,\"\")","v":""},{"$f":"IFERROR(TabelleNMB[[#This Row],[Menge]]*Daten!I85,\"\")","v":""},{"$f":"IFERROR(TabelleNMB[[#This Row],[Menge]]*Daten!J85,\"\")","v":""},{"$f":"IF(TabelleNMB[[#This Row],[Materialien]]=\"\",\"\",\"kg/Jahr\")","v":"kg/Jahr"},null,"Kreide","Materialien (Bestandteile des Produkts)",{"$f":"IFERROR(INDEX(TabelleMB[[Materialien]:[GWP]],(MATCH(TabelleGWP[[#This Row],[GWP]],TabelleGWP[GWP],0)),5),\"\")","v":""}]
[null,"Magnesiumsulfat",{"$f":"IFERROR(INDEX(Tabelle1[[Materialien]:[Menge]],(MATCH(TabelleMB[[#This Row],[Materialien]],Tabelle1[Materialien],0)),2),\"\")","v":""},{"$f":"IFERROR(TabelleMB[[#This Row],[Menge]]*Daten!C86,\"\")","v":""},{"$f":"IFERROR(TabelleMB[[#This Row],[Menge]]*Daten!D86,\"\")","v":""},{"$f":"IFERROR(TabelleMB[[#This Row],[Menge]]*Daten!E86,\"\")","v":""},{"$f":"IF(TabelleMB[[#This Row],[Materialien]]=\"\",\"\",\"GJ/Jahr\")","v":"GJ/Jahr"},null,"Magnesiumsulfat",{"$f":"IFERROR(INDEX(Tabelle13[[Materialien]:[Menge]],(MATCH(TabelleNMB[[#This Row],[Materialien]],Tabelle13[Materialien],0)),2),\"\")","v":""},{"$f":"IFERROR(TabelleNMB[[#This Row],[Menge]]*Daten!H86,\"\")","v":""},{"$f":"IFERROR(TabelleNMB[[#This Row],[Menge]]*Daten!I86,\"\")","v":""},{"$f":"IFERROR(TabelleNMB[[#This Row],[Menge]]*Daten!J86,\"\")","v":""},{"$f":"IF(TabelleNMB[[#This Row],[Materialien]]=\"\",\"\",\"kg/Jahr\")","v":"kg/Jahr"},null,"Kryolith","Materialien (Bestandteile des Produkts)",{"$f":"IFERROR(INDEX(TabelleMB[[Materialien]:[GWP]],(MATCH(TabelleGWP[[#This Row],[GWP]],TabelleGWP[GWP],0)),5),\"\")","v":""}]
[null,"Mangan",{"$f":"IFERROR(INDEX(Tabelle1[[Materialien]:[Menge]],(MATCH(TabelleMB[[#This Row],[Materialien]],Tabelle1[Materialien],0)),2),\"\")","v":""},{"$f":"IFERROR(TabelleMB[[#This Row],[Menge]]*Daten!C87,\"\")","v":""},{"$f":"IFERROR(TabelleMB[[#This Row],[Menge]]*Daten!D87,\"\")","v":""},{"$f":"IFERROR(TabelleMB[[#This Row],[Menge]]*Daten!E87,\"\")","v":""},{"$f":"IF(TabelleMB[[#This Row],[Materialien]]=\"\",\"\",\"GJ/Jahr\")","v":"GJ/Jahr"},null,"Mangan",{"$f":"IFERROR(INDEX(Tabelle13[[Materialien]:[Menge]],(MATCH(TabelleNMB[[#This Row],[Materialien]],Tabelle13[Materialien],0)),2),\"\")","v":""},{"$f":"IFERROR(TabelleNMB[[#This Row],[Menge]]*Daten!H87,\"\")","v":""},{"$f":"IFERROR(TabelleNMB[[#This Row],[Menge]]*Daten!I87,\"\")","v":""},{"$f":"IFERROR(TabelleNMB[[#This Row],[Menge]]*Daten!J87,\"\")","v":""},{"$f":"IF(TabelleNMB[[#This Row],[Materialien]]=\"\",\"\",\"kg/Jahr\")","v":"kg/Jahr"},null,"Kupfer, primär","Materialien (Bestandteile des Produkts)",{"$f":"IFERROR(INDEX(TabelleMB[[Materialien]:[GWP]],(MATCH(TabelleGWP[[#This Row],[GWP]],TabelleGWP[GWP],0)),5),\"\")","v":""}]
[null,"Manganerz",{"$f":"IFERROR(INDEX(Tabelle1[[Materialien]:[Menge]],(MATCH(TabelleMB[[#This Row],[Materialien]],Tabelle1[Materialien],0)),2),\"\")","v":""},{"$f":"IFERROR(TabelleMB[[#This Row],[Menge]]*Daten!C88,\"\")","v":""},{"$f":"IFERROR(TabelleMB[[#This Row],[Menge]]*Daten!D88,\"\")","v":""},{"$f":"IFERROR(TabelleMB[[#This Row],[Menge]]*Daten!E88,\"\")","v":""},{"$f":"IF(TabelleMB[[#This Row],[Materialien]]=\"\",\"\",\"GJ/Jahr\")","v":"GJ/Jahr"},null,"Manganerz",{"$f":"IFERROR(INDEX(Tabelle13[[Materialien]:[Menge]],(MATCH(TabelleNMB[[#This Row],[Materialien]],Tabelle13[Materialien],0)),2),\"\")","v":""},{"$f":"IFERROR(TabelleNMB[[#This Row],[Menge]]*Daten!H88,\"\")","v":""},{"$f":"IFERROR(TabelleNMB[[#This Row],[Menge]]*Daten!I88,\"\")","v":""},{"$f":"IFERROR(TabelleNMB[[#This Row],[Menge]]*Daten!J88,\"\")","v":""},{"$f":"IF(TabelleNMB[[#This Row],[Materialien]]=\"\",\"\",\"kg/Jahr\")","v":"kg/Jahr"},null,"Kupfer, sekundär","Materialien (Bestandteile des Produkts)",{"$f":"IFERROR(INDEX(TabelleMB[[Materialien]:[GWP]],(MATCH(TabelleGWP[[#This Row],[GWP]],TabelleGWP[GWP],0)),5),\"\")","v":""}]
[null,"Messing",{"$f":"IFERROR(INDEX(Tabelle1[[Materialien]:[Menge]],(MATCH(TabelleMB[[#This Row],[Materialien]],Tabelle1[Materialien],0)),2),\"\")","v":""},{"$f":"IFERROR(TabelleMB[[#This Row],[Menge]]*Daten!C89,\"\")","v":""},{"$f":"IFERROR(TabelleMB[[#This Row],[Menge]]*Daten!D89,\"\")","v":""},{"$f":"IFERROR(TabelleMB[[#This Row],[Menge]]*Daten!E89,\"\")","v":""},{"$f":"IF(TabelleMB[[#This Row],[Materialien]]=\"\",\"\",\"GJ/Jahr\")","v":"GJ/Jahr"},null,"Messing",{"$f":"IFERROR(INDEX(Tabelle13[[Materialien]:[Menge]],(MATCH(TabelleNMB[[#This Row],[Materialien]],Tabelle13[Materialien],0)),2),\"\")","v":""},{"$f":"IFERROR(TabelleNMB[[#This Row],[Menge]]*Daten!H89,\"\")","v":""},{"$f":"IFERROR(TabelleNMB[[#This Row],[Menge]]*Daten!I89,\"\")","v":""},{"$f":"IFERROR(TabelleNMB[[#This Row],[Menge]]*Daten!J89,\"\")","v":""},{"$f":"IF(TabelleNMB[[#This Row],[Materialien]]=\"\",\"\",\"kg/Jahr\")","v":"kg/Jahr"},null,"Kupferblech (ohne Prozessschritte für Kupfer primär/sekundär)","Materialien (Bestandteile des Produkts)",{"$f":"IFERROR(INDEX(TabelleMB[[Materialien]:[GWP]],(MATCH(TabelleGWP[[#This Row],[GWP]],TabelleGWP[GWP],0)),5),\"\")","v":""}]
[null,"Molybdän",{"$f":"IFERROR(INDEX(Tabelle1[[Materialien]:[Menge]],(MATCH(TabelleMB[[#This Row],[Materialien]],Tabelle1[Materialien],0)),2),\"\")","v":""},{"$f":"IFERROR(TabelleMB[[#This Row],[Menge]]*Daten!C90,\"\")","v":""},{"$f":"IFERROR(TabelleMB[[#This Row],[Menge]]*Daten!D90,\"\")","v":""},{"$f":"IFERROR(TabelleMB[[#This Row],[Menge]]*Daten!E90,\"\")","v":""},{"$f":"IF(TabelleMB[[#This Row],[Materialien]]=\"\",\"\",\"GJ/Jahr\")","v":"GJ/Jahr"},null,"Molybdän",{"$f":"IFERROR(INDEX(Tabelle13[[Materialien]:[Menge]],(MATCH(TabelleNMB[[#This Row],[Materialien]],Tabelle13[Materialien],0)),2),\"\")","v":""},{"$f":"IFERROR(TabelleNMB[[#This Row],[Menge]]*Daten!H90,\"\")","v":""},{"$f":"IFERROR(TabelleNMB[[#This Row],[Menge]]*Daten!I90,\"\")","v":""},{"$f":"IFERROR(TabelleNMB[[#This Row],[Menge]]*Daten!J90,\"\")","v":""},{"$f":"IF(TabelleNMB[[#This Row],[Materialien]]=\"\",\"\",\"kg/Jahr\")","v":"kg/Jahr"},null,"Kupferkonzentrate, global","Materialien (Bestandteile des Produkts)",{"$f":"IFERROR(INDEX(TabelleMB[[Materialien]:[GWP]],(MATCH(TabelleGWP[[#This Row],[GWP]],TabelleGWP[GWP],0)),5),\"\")","v":""}]
[null,"Molybdänerz",{"$f":"IFERROR(INDEX(Tabelle1[[Materialien]:[Menge]],(MATCH(TabelleMB[[#This Row],[Materialien]],Tabelle1[Materialien],0)),2),\"\")","v":""},{"$f":"IFERROR(TabelleMB[[#This Row],[Menge]]*Daten!C91,\"\")","v":""},{"$f":"IFERROR(TabelleMB[[#This Row],[Menge]]*Daten!D91,\"\")","v":""},{"$f":"IFERROR(TabelleMB[[#This Row],[Menge]]*Daten!E91,\"\")","v":""},{"$f":"IF(TabelleMB[[#This Row],[Materialien]]=\"\",\"\",\"GJ/Jahr\")","v":"GJ/Jahr"},null,"Molybdänerz",{"$f":"IFERROR(INDEX(Tabelle13[[Materialien]:[Menge]],(MATCH(TabelleNMB[[#This Row],[Materialien]],Tabelle13[Materialien],0)),2),\"\")","v":""},{"$f":"IFERROR(TabelleNMB[[#This Row],[Menge]]*Daten!H91,\"\")","v":""},{"$f":"IFERROR(TabelleNMB[[#This Row],[Menge]]*Daten!I91,\"\")","v":""},{"$f":"IFERROR(TabelleNMB[[#This Row],[Menge]]*Daten!J91,\"\")","v":""},{"$f":"IF(TabelleNMB[[#This Row],[Materialien]]=\"\",\"\",\"kg/Jahr\")","v":"kg/Jahr"},null,"Laptop","Materialien (Bestandteile des Produkts)",{"$f":"IFERROR(INDEX(TabelleMB[[Materialien]:[GWP]],(MATCH(TabelleGWP[[#This Row],[GWP]],TabelleGWP[GWP],0)),5),\"\")","v":""}]
[null,"Nadelholz",{"$f":"IFERROR(INDEX(Tabelle1[[Materialien]:[Menge]],(MATCH(TabelleMB[[#This Row],[Materialien]],Tabelle1[Materialien],0)),2),\"\")","v":""},{"$f":"IFERROR(TabelleMB[[#This Row],[Menge]]*Daten!C92,\"\")","v":""},{"$f":"IFERROR(TabelleMB[[#This Row],[Menge]]*Daten!D92,\"\")","v":""},{"$f":"IFERROR(TabelleMB[[#This Row],[Menge]]*Daten!E92,\"\")","v":""},{"$f":"IF(TabelleMB[[#This Row],[Materialien]]=\"\",\"\",\"GJ/Jahr\")","v":"GJ/Jahr"},null,"Nadelholz",{"$f":"IFERROR(INDEX(Tabelle13[[Materialien]:[Menge]],(MATCH(TabelleNMB[[#This Row],[Materialien]],Tabelle13[Materialien],0)),2),\"\")","v":""},{"$f":"IFERROR(TabelleNMB[[#This Row],[Menge]]*Daten!H92,\"\")","v":""},{"$f":"IFERROR(TabelleNMB[[#This Row],[Menge]]*Daten!I92,\"\")","v":""},{"$f":"IFERROR(TabelleNMB[[#This Row],[Menge]]*Daten!J92,\"\")","v":""},{"$f":"IF(TabelleNMB[[#This Row],[Materialien]]=\"\",\"\",\"kg/Jahr\")","v":"kg/Jahr"},null,"Laubholz","Materialien (Bestandteile des Produkts)",{"$f":"IFERROR(INDEX(TabelleMB[[Materialien]:[GWP]],(MATCH(TabelleGWP[[#This Row],[GWP]],TabelleGWP[GWP],0)),5),\"\")","v":""}]
[null,"Naphtha",{"$f":"IFERROR(INDEX(Tabelle1[[Materialien]:[Menge]],(MATCH(TabelleMB[[#This Row],[Materialien]],Tabelle1[Materialien],0)),2),\"\")","v":""},{"$f":"IFERROR(TabelleMB[[#This Row],[Menge]]*Daten!C93,\"\")","v":""},{"$f":"IFERROR(TabelleMB[[#This Row],[Menge]]*Daten!D93,\"\")","v":""},{"$f":"IFERROR(TabelleMB[[#This Row],[Menge]]*Daten!E93,\"\")","v":""},{"$f":"IF(TabelleMB[[#This Row],[Materialien]]=\"\",\"\",\"GJ/Jahr\")","v":"GJ/Jahr"},null,"Naphtha",{"$f":"IFERROR(INDEX(Tabelle13[[Materialien]:[Menge]],(MATCH(TabelleNMB[[#This Row],[Materialien]],Tabelle13[Materialien],0)),2),\"\")","v":""},{"$f":"IFERROR(TabelleNMB[[#This Row],[Menge]]*Daten!H93,\"\")","v":""},{"$f":"IFERROR(TabelleNMB[[#This Row],[Menge]]*Daten!I93,\"\")","v":""},{"$f":"IFERROR(TabelleNMB[[#This Row],[Menge]]*Daten!J93,\"\")","v":""},{"$f":"IF(TabelleNMB[[#This Row],[Materialien]]=\"\",\"\",\"kg/Jahr\")","v":"kg/Jahr"},null,"LDPE","Materialien (Bestandteile des Produkts)",{"$f":"IFERROR(INDEX(TabelleMB[[Materialien]:[GWP]],(MATCH(TabelleGWP[[#This Row],[GWP]],TabelleGWP[GWP],0)),5),\"\")","v":""}]
[null,"Natronlauge",{"$f":"IFERROR(INDEX(Tabelle1[[Materialien]:[Menge]],(MATCH(TabelleMB[[#This Row],[Materialien]],Tabelle1[Materialien],0)),2),\"\")","v":""},{"$f":"IFERROR(TabelleMB[[#This Row],[Menge]]*Daten!C94,\"\")","v":""},{"$f":"IFERROR(TabelleMB[[#This Row],[Menge]]*Daten!D94,\"\")","v":""},{"$f":"IFERROR(TabelleMB[[#This Row],[Menge]]*Daten!E94,\"\")","v":""},{"$f":"IF(TabelleMB[[#This Row],[Materialien]]=\"\",\"\",\"GJ/Jahr\")","v":"GJ/Jahr"},null,"Natronlauge",{"$f":"IFERROR(INDEX(Tabelle13[[Materialien]:[Menge]],(MATCH(TabelleNMB[[#This Row],[Materialien]],Tabelle13[Materialien],0)),2),\"\")","v":""},{"$f":"IFERROR(TabelleNMB[[#This Row],[Menge]]*Daten!H94,\"\")","v":""},{"$f":"IFERROR(TabelleNMB[[#This Row],[Menge]]*Daten!I94,\"\")","v":""},{"$f":"IFERROR(TabelleNMB[[#This Row],[Menge]]*Daten!J94,\"\")","v":""},{"$f":"IF(TabelleNMB[[#This Row],[Materialien]]=\"\",\"\",\"kg/Jahr\")","v":"kg/Jahr"},null,"Lehm","Materialien (Bestandteile des Produkts)",{"$f":"IFERROR(INDEX(TabelleMB[[Materialien]:[GWP]],(MATCH(TabelleGWP[[#This Row],[GWP]],TabelleGWP[GWP],0)),5),\"\")","v":""}]
[null,"Naturstein, ungebrochen",{"$f":"IFERROR(INDEX(Tabelle1[[Materialien]:[Menge]],(MATCH(TabelleMB[[#This Row],[Materialien]],Tabelle1[Materialien],0)),2),\"\")","v":""},{"$f":"IFERROR(TabelleMB[[#This Row],[Menge]]*Daten!C95,\"\")","v":""},{"$f":"IFERROR(TabelleMB[[#This Row],[Menge]]*Daten!D95,\"\")","v":""},{"$f":"IFERROR(TabelleMB[[#This Row],[Menge]]*Daten!E95,\"\")","v":""},{"$f":"IF(TabelleMB[[#This Row],[Materialien]]=\"\",\"\",\"GJ/Jahr\")","v":"GJ/Jahr"},null,"Naturstein, ungebrochen",{"$f":"IFERROR(INDEX(Tabelle13[[Materialien]:[Menge]],(MATCH(TabelleNMB[[#This Row],[Materialien]],Tabelle13[Materialien],0)),2),\"\")","v":""},{"$f":"IFERROR(TabelleNMB[[#This Row],[Menge]]*Daten!H95,\"\")","v":""},{"$f":"IFERROR(TabelleNMB[[#This Row],[Menge]]*Daten!I95,\"\")","v":""},{"$f":"IFERROR(TabelleNMB[[#This Row],[Menge]]*Daten!J95,\"\")","v":""},{"$f":"IF(TabelleNMB[[#This Row],[Materialien]]=\"\",\"\",\"kg/Jahr\")","v":"kg/Jahr"},null,"Lithium","Materialien (Bestandteile des Produkts)",{"$f":"IFERROR(INDEX(TabelleMB[[Materialien]:[GWP]],(MATCH(TabelleGWP[[#This Row],[GWP]],TabelleGWP[GWP],0)),5),\"\")","v":""}]
[null,"Nickel",{"$f":"IFERROR(INDEX(Tabelle1[[Materialien]:[Menge]],(MATCH(TabelleMB[[#This Row],[Materialien]],Tabelle1[Materialien],0)),2),\"\")","v":""},{"$f":"IFERROR(TabelleMB[[#This Row],[Menge]]*Daten!C96,\"\")","v":""},{"$f":"IFERROR(TabelleMB[[#This Row],[Menge]]*Daten!D96,\"\")","v":""},{"$f":"IFERROR(TabelleMB[[#This Row],[Menge]]*Daten!E96,\"\")","v":""},{"$f":"IF(TabelleMB[[#This Row],[Materialien]]=\"\",\"\",\"GJ/Jahr\")","v":"GJ/Jahr"},null,"Nickel",{"$f":"IFERROR(INDEX(Tabelle13[[Materialien]:[Menge]],(MATCH(TabelleNMB[[#This Row],[Materialien]],Tabelle13[Materialien],0)),2),\"\")","v":""},{"$f":"IFERROR(TabelleNMB[[#This Row],[Menge]]*Daten!H96,\"\")","v":""},{"$f":"IFERROR(TabelleNMB[[#This Row],[Menge]]*Daten!I96,\"\")","v":""},{"$f":"IFERROR(TabelleNMB[[#This Row],[Menge]]*Daten!J96,\"\")","v":""},{"$f":"IF(TabelleNMB[[#This Row],[Materialien]]=\"\",\"\",\"kg/Jahr\")","v":"kg/Jahr"},null,"Magnesium","Materialien (Bestandteile des Produkts)",{"$f":"IFERROR(INDEX(TabelleMB[[Materialien]:[GWP]],(MATCH(TabelleGWP[[#This Row],[GWP]],TabelleGWP[GWP],0)),5),\"\")","v":""}]
[null,"Niob- und Tantalkonzentrate",{"$f":"IFERROR(INDEX(Tabelle1[[Materialien]:[Menge]],(MATCH(TabelleMB[[#This Row],[Materialien]],Tabelle1[Materialien],0)),2),\"\")","v":""},{"$f":"IFERROR(TabelleMB[[#This Row],[Menge]]*Daten!C97,\"\")","v":""},{"$f":"IFERROR(TabelleMB[[#This Row],[Menge]]*Daten!D97,\"\")","v":""},{"$f":"IFERROR(TabelleMB[[#This Row],[Menge]]*Daten!E97,\"\")","v":""},{"$f":"IF(TabelleMB[[#This Row],[Materialien]]=\"\",\"\",\"GJ/Jahr\")","v":"GJ/Jahr"},null,"Niob- und Tantalkonzentrate",{"$f":"IFERROR(INDEX(Tabelle13[[Materialien]:[Menge]],(MATCH(TabelleNMB[[#This Row],[Materialien]],Tabelle13[Materialien],0)),2),\"\")","v":""},{"$f":"IFERROR(TabelleNMB[[#This Row],[Menge]]*Daten!H97,\"\")","v":""},{"$f":"IFERROR(TabelleNMB[[#This Row],[Menge]]*Daten!I97,\"\")","v":""},{"$f":"IFERROR(TabelleNMB[[#This Row],[Menge]]*Daten!J97,\"\")","v":""},{"$f":"IF(TabelleNMB[[#This Row],[Materialien]]=\"\",\"\",\"kg/Jahr\")","v":"kg/Jahr"},null,"Magnesiumkarbonat","Materialien (Bestandteile des Produkts)",{"$f":"IFERROR(INDEX(TabelleMB[[Materialien]:[GWP]],(MATCH(TabelleGWP[[#This Row],[GWP]],TabelleGWP[GWP],0)),5),\"\")","v":""}]
[null,"Obst (Apfel)",{"$f":"IFERROR(INDEX(Tabelle1[[Materialien]:[Menge]],(MATCH(TabelleMB[[#This Row],[Materialien]],Tabelle1[Materialien],0)),2),\"\")","v":""},{"$f":"IFERROR(TabelleMB[[#This Row],[Menge]]*Daten!C98,\"\")","v":""},{"$f":"IFERROR(TabelleMB[[#This Row],[Menge]]*Daten!D98,\"\")","v":""},{"$f":"IFERROR(TabelleMB[[#This Row],[Menge]]*Daten!E98,\"\")","v":""},{"$f":"IF(TabelleMB[[#This Row],[Materialien]]=\"\",\"\",\"GJ/Jahr\")","v":"GJ/Jahr"},null,"Obst (Apfel)",{"$f":"IFERROR(INDEX(Tabelle13[[Materialien]:[Menge]],(MATCH(TabelleNMB[[#This Row],[Materialien]],Tabelle13[Materialien],0)),2),\"\")","v":""},{"$f":"IFERROR(TabelleNMB[[#This Row],[Menge]]*Daten!H98,\"\")","v":""},{"$f":"IFERROR(TabelleNMB[[#This Row],[Menge]]*Daten!I98,\"\")","v":""},{"$f":"IFERROR(TabelleNMB[[#This Row],[Menge]]*Daten!J98,\"\")","v":""},{"$f":"IF(TabelleNMB[[#This Row],[Materialien]]=\"\",\"\",\"kg/Jahr\")","v":"kg/Jahr"},null,"Magnesiumsulfat","Materialien (Bestandteile des Produkts)",{"$f":"IFERROR(INDEX(TabelleMB[[Materialien]:[GWP]],(MATCH(TabelleGWP[[#This Row],[GWP]],TabelleGWP[GWP],0)),5),\"\")","v":""}]
[null,"Osmium",{"$f":"IFERROR(INDEX(Tabelle1[[Materialien]:[Menge]],(MATCH(TabelleMB[[#This Row],[Materialien]],Tabelle1[Materialien],0)),2),\"\")","v":""},{"$f":"IFERROR(TabelleMB[[#This Row],[Menge]]*Daten!C99,\"\")","v":""},{"$f":"IFERROR(TabelleMB[[#This Row],[Menge]]*Daten!D99,\"\")","v":""},{"$f":"IFERROR(TabelleMB[[#This Row],[Menge]]*Daten!E99,\"\")","v":""},{"$f":"IF(TabelleMB[[#This Row],[Materialien]]=\"\",\"\",\"GJ/Jahr\")","v":"GJ/Jahr"},null,"Osmium",{"$f":"IFERROR(INDEX(Tabelle13[[Materialien]:[Menge]],(MATCH(TabelleNMB[[#This Row],[Materialien]],Tabelle13[Materialien],0)),2),\"\")","v":""},{"$f":"IFERROR(TabelleNMB[[#This Row],[Menge]]*Daten!H99,\"\")","v":""},{"$f":"IFERROR(TabelleNMB[[#This Row],[Menge]]*Daten!I99,\"\")","v":""},{"$f":"IFERROR(TabelleNMB[[#This Row],[Menge]]*Daten!J99,\"\")","v":""},{"$f":"IF(TabelleNMB[[#This Row],[Materialien]]=\"\",\"\",\"kg/Jahr\")","v":"kg/Jahr"},null,"Mangan","Materialien (Bestandteile des Produkts)",{"$f":"IFERROR(INDEX(TabelleMB[[Materialien]:[GWP]],(MATCH(TabelleGWP[[#This Row],[GWP]],TabelleGWP[GWP],0)),5),\"\")","v":""}]
[null,"Palladium, Russland",{"$f":"IFERROR(INDEX(Tabelle1[[Materialien]:[Menge]],(MATCH(TabelleMB[[#This Row],[Materialien]],Tabelle1[Materialien],0)),2),\"\")","v":""},{"$f":"IFERROR(TabelleMB[[#This Row],[Menge]]*Daten!C100,\"\")","v":""},{"$f":"IFERROR(TabelleMB[[#This Row],[Menge]]*Daten!D100,\"\")","v":""},{"$f":"IFERROR(TabelleMB[[#This Row],[Menge]]*Daten!E100,\"\")","v":""},{"$f":"IF(TabelleMB[[#This Row],[Materialien]]=\"\",\"\",\"GJ/Jahr\")","v":"GJ/Jahr"},null,"Palladium, Russland",{"$f":"IFERROR(INDEX(Tabelle13[[Materialien]:[Menge]],(MATCH(TabelleNMB[[#This Row],[Materialien]],Tabelle13[Materialien],0)),2),\"\")","v":""},{"$f":"IFERROR(TabelleNMB[[#This Row],[Menge]]*Daten!H100,\"\")","v":""},{"$f":"IFERROR(TabelleNMB[[#This Row],[Menge]]*Daten!I100,\"\")","v":""},{"$f":"IFERROR(TabelleNMB[[#This Row],[Menge]]*Daten!J100,\"\")","v":""},{"$f":"IF(TabelleNMB[[#This Row],[Materialien]]=\"\",\"\",\"kg/Jahr\")","v":"kg/Jahr"},null,"Manganerz","Materialien (Bestandteile des Produkts)",{"$f":"IFERROR(INDEX(TabelleMB[[Materialien]:[GWP]],(MATCH(TabelleGWP[[#This Row],[GWP]],TabelleGWP[GWP],0)),5),\"\")","v":""}]
[null,"Palladium, Südafrika",{"$f":"IFERROR(INDEX(Tabelle1[[Materialien]:[Menge]],(MATCH(TabelleMB[[#This Row],[Materialien]],Tabelle1[Materialien],0)),2),\"\")","v":""},{"$f":"IFERROR(TabelleMB[[#This Row],[Menge]]*Daten!C101,\"\")","v":""},{"$f":"IFERROR(TabelleMB[[#This Row],[Menge]]*Daten!D101,\"\")","v":""},{"$f":"IFERROR(TabelleMB[[#This Row],[Menge]]*Daten!E101,\"\")","v":""},{"$f":"IF(TabelleMB[[#This Row],[Materialien]]=\"\",\"\",\"GJ/Jahr\")","v":"GJ/Jahr"},null,"Palladium, Südafrika",{"$f":"IFERROR(INDEX(Tabelle13[[Materialien]:[Menge]],(MATCH(TabelleNMB[[#This Row],[Materialien]],Tabelle13[Materialien],0)),2),\"\")","v":""},{"$f":"IFERROR(TabelleNMB[[#This Row],[Menge]]*Daten!H101,\"\")","v":""},{"$f":"IFERROR(TabelleNMB[[#This Row],[Menge]]*Daten!I101,\"\")","v":""},{"$f":"IFERROR(TabelleNMB[[#This Row],[Menge]]*Daten!J101,\"\")","v":""},{"$f":"IF(TabelleNMB[[#This Row],[Materialien]]=\"\",\"\",\"kg/Jahr\")","v":"kg/Jahr"},null,"Messing","Materialien (Bestandteile des Produkts)",{"$f":"IFERROR(INDEX(TabelleMB[[Materialien]:[GWP]],(MATCH(TabelleGWP[[#This Row],[GWP]],TabelleGWP[GWP],0)),5),\"\")","v":""}]
[null,"Pegmatitsand",{"$f":"IFERROR(INDEX(Tabelle1[[Materialien]:[Menge]],(MATCH(TabelleMB[[#This Row],[Materialien]],Tabelle1[Materialien],0)),2),\"\")","v":""},{"$f":"IFERROR(TabelleMB[[#This Row],[Menge]]*Daten!C102,\"\")","v":""},{"$f":"IFERROR(TabelleMB[[#This Row],[Menge]]*Daten!D102,\"\")","v":""},{"$f":"IFERROR(TabelleMB[[#This Row],[Menge]]*Daten!E102,\"\")","v":""},{"$f":"IF(TabelleMB[[#This Row],[Materialien]]=\"\",\"\",\"GJ/Jahr\")","v":"GJ/Jahr"},null,"Pegmatitsand",{"$f":"IFERROR(INDEX(Tabelle13[[Materialien]:[Menge]],(MATCH(TabelleNMB[[#This Row],[Materialien]],Tabelle13[Materialien],0)),2),\"\")","v":""},{"$f":"IFERROR(TabelleNMB[[#This Row],[Menge]]*Daten!H102,\"\")","v":""},{"$f":"IFERROR(TabelleNMB[[#This Row],[Menge]]*Daten!I102,\"\")","v":""},{"$f":"IFERROR(TabelleNMB[[#This Row],[Menge]]*Daten!J102,\"\")","v":""},{"$f":"IF(TabelleNMB[[#This Row],[Materialien]]=\"\",\"\",\"kg/Jahr\")","v":"kg/Jahr"},null,"Molybdän","Materialien (Bestandteile des Produkts)",{"$f":"IFERROR(INDEX(TabelleMB[[Materialien]:[GWP]],(MATCH(TabelleGWP[[#This Row],[GWP]],TabelleGWP[GWP],0)),5),\"\")","v":""}]
[null,"Perlit",{"$f":"IFERROR(INDEX(Tabelle1[[Materialien]:[Menge]],(MATCH(TabelleMB[[#This Row],[Materialien]],Tabelle1[Materialien],0)),2),\"\")","v":""},{"$f":"IFERROR(TabelleMB[[#This Row],[Menge]]*Daten!C103,\"\")","v":""},{"$f":"IFERROR(TabelleMB[[#This Row],[Menge]]*Daten!D103,\"\")","v":""},{"$f":"IFERROR(TabelleMB[[#This Row],[Menge]]*Daten!E103,\"\")","v":""},{"$f":"IF(TabelleMB[[#This Row],[Materialien]]=\"\",\"\",\"GJ/Jahr\")","v":"GJ/Jahr"},null,"Perlit",{"$f":"IFERROR(INDEX(Tabelle13[[Materialien]:[Menge]],(MATCH(TabelleNMB[[#This Row],[Materialien]],Tabelle13[Materialien],0)),2),\"\")","v":""},{"$f":"IFERROR(TabelleNMB[[#This Row],[Menge]]*Daten!H103,\"\")","v":""},{"$f":"IFERROR(TabelleNMB[[#This Row],[Menge]]*Daten!I103,\"\")","v":""},{"$f":"IFERROR(TabelleNMB[[#This Row],[Menge]]*Daten!J103,\"\")","v":""},{"$f":"IF(TabelleNMB[[#This Row],[Materialien]]=\"\",\"\",\"kg/Jahr\")","v":"kg/Jahr"},null,"Molybdänerz","Materialien (Bestandteile des Produkts)",{"$f":"IFERROR(INDEX(TabelleMB[[Materialien]:[GWP]],(MATCH(TabelleGWP[[#This Row],[GWP]],TabelleGWP[GWP],0)),5),\"\")","v":""}]
[null,"PET",{"$f":"IFERROR(INDEX(Tabelle1[[Materialien]:[Menge]],(MATCH(TabelleMB[[#This Row],[Materialien]],Tabelle1[Materialien],0)),2),\"\")","v":""},{"$f":"IFERROR(TabelleMB[[#This Row],[Menge]]*Daten!C104,\"\")","v":""},{"$f":"IFERROR(TabelleMB[[#This Row],[Menge]]*Daten!D104,\"\")","v":""},{"$f":"IFERROR(TabelleMB[[#This Row],[Menge]]*Daten!E104,\"\")","v":""},{"$f":"IF(TabelleMB[[#This Row],[Materialien]]=\"\",\"\",\"GJ/Jahr\")","v":"GJ/Jahr"},null,"PET",{"$f":"IFERROR(INDEX(Tabelle13[[Materialien]:[Menge]],(MATCH(TabelleNMB[[#This Row],[Materialien]],Tabelle13[Materialien],0)),2),\"\")","v":""},{"$f":"IFERROR(TabelleNMB[[#This Row],[Menge]]*Daten!H104,\"\")","v":""},{"$f":"IFERROR(TabelleNMB[[#This Row],[Menge]]*Daten!I104,\"\")","v":""},{"$f":"IFERROR(TabelleNMB[[#This Row],[Menge]]*Daten!J104,\"\")","v":""},{"$f":"IF(TabelleNMB[[#This Row],[Materialien]]=\"\",\"\",\"kg/Jahr\")","v":"kg/Jahr"},null,"Nadelholz","Materialien (Bestandteile des Produkts)",{"$f":"IFERROR(INDEX(TabelleMB[[Materialien]:[GWP]],(MATCH(TabelleGWP[[#This Row],[GWP]],TabelleGWP[GWP],0)),5),\"\")","v":""}]
[null,"Phosphat, Marokko",{"$f":"IFERROR(INDEX(Tabelle1[[Materialien]:[Menge]],(MATCH(TabelleMB[[#This Row],[Materialien]],Tabelle1[Materialien],0)),2),\"\")","v":""},{"$f":"IFERROR(TabelleMB[[#This Row],[Menge]]*Daten!C105,\"\")","v":""},{"$f":"IFERROR(TabelleMB[[#This Row],[Menge]]*Daten!D105,\"\")","v":""},{"$f":"IFERROR(TabelleMB[[#This Row],[Menge]]*Daten!E105,\"\")","v":""},{"$f":"IF(TabelleMB[[#This Row],[Materialien]]=\"\",\"\",\"GJ/Jahr\")","v":"GJ/Jahr"},null,"Phosphat, Marokko",{"$f":"IFERROR(INDEX(Tabelle13[[Materialien]:[Menge]],(MATCH(TabelleNMB[[#This Row],[Materialien]],Tabelle13[Materialien],0)),2),\"\")","v":""},{"$f":"IFERROR(TabelleNMB[[#This Row],[Menge]]*Daten!H105,\"\")","v":""},{"$f":"IFERROR(TabelleNMB[[#This Row],[Menge]]*Daten!I105,\"\")","v":""},{"$f":"IFERROR(TabelleNMB[[#This Row],[Menge]]*Daten!J105,\"\")","v":""},{"$f":"IF(TabelleNMB[[#This Row],[Materialien]]=\"\",\"\",\"kg/Jahr\")","v":"kg/Jahr"},null,"Naphtha","Materialien (Bestandteile des Produkts)",{"$f":"IFERROR(INDEX(TabelleMB[[Materialien]:[GWP]],(MATCH(TabelleGWP[[#This Row],[GWP]],TabelleGWP[GWP],0)),5),\"\")","v":""}]
[null,"Phosphat, USA",{"$f":"IFERROR(INDEX(Tabelle1[[Materialien]:[Menge]],(MATCH(TabelleMB[[#This Row],[Materialien]],Tabelle1[Materialien],0)),2),\"\")","v":""},{"$f":"IFERROR(TabelleMB[[#This Row],[Menge]]*Daten!C106,\"\")","v":""},{"$f":"IFERROR(TabelleMB[[#This Row],[Menge]]*Daten!D106,\"\")","v":""},{"$f":"IFERROR(TabelleMB[[#This Row],[Menge]]*Daten!E106,\"\")","v":""},{"$f":"IF(TabelleMB[[#This Row],[Materialien]]=\"\",\"\",\"GJ/Jahr\")","v":"GJ/Jahr"},null,"Phosphat, USA",{"$f":"IFERROR(INDEX(Tabelle13[[Materialien]:[Menge]],(MATCH(TabelleNMB[[#This Row],[Materialien]],Tabelle13[Materialien],0)),2),\"\")","v":""},{"$f":"IFERROR(TabelleNMB[[#This Row],[Menge]]*Daten!H106,\"\")","v":""},{"$f":"IFERROR(TabelleNMB[[#This Row],[Menge]]*Daten!I106,\"\")","v":""},{"$f":"IFERROR(TabelleNMB[[#This Row],[Menge]]*Daten!J106,\"\")","v":""},{"$f":"IF(TabelleNMB[[#This Row],[Materialien]]=\"\",\"\",\"kg/Jahr\")","v":"kg/Jahr"},null,"Natronlauge","Materialien (Bestandteile des Produkts)",{"$f":"IFERROR(INDEX(TabelleMB[[Materialien]:[GWP]],(MATCH(TabelleGWP[[#This Row],[GWP]],TabelleGWP[GWP],0)),5),\"\")","v":""}]
[null,"Phosphor, weiß",{"$f":"IFERROR(INDEX(Tabelle1[[Materialien]:[Menge]],(MATCH(TabelleMB[[#This Row],[Materialien]],Tabelle1[Materialien],0)),2),\"\")","v":""},{"$f":"IFERROR(TabelleMB[[#This Row],[Menge]]*Daten!C107,\"\")","v":""},{"$f":"IFERROR(TabelleMB[[#This Row],[Menge]]*Daten!D107,\"\")","v":""},{"$f":"IFERROR(TabelleMB[[#This Row],[Menge]]*Daten!E107,\"\")","v":""},{"$f":"IF(TabelleMB[[#This Row],[Materialien]]=\"\",\"\",\"GJ/Jahr\")","v":"GJ/Jahr"},null,"Phosphor, weiß",{"$f":"IFERROR(INDEX(Tabelle13[[Materialien]:[Menge]],(MATCH(TabelleNMB[[#This Row],[Materialien]],Tabelle13[Materialien],0)),2),\"\")","v":""},{"$f":"IFERROR(TabelleNMB[[#This Row],[Menge]]*Daten!H107,\"\")","v":""},{"$f":"IFERROR(TabelleNMB[[#This Row],[Menge]]*Daten!I107,\"\")","v":""},{"$f":"IFERROR(TabelleNMB[[#This Row],[Menge]]*Daten!J107,\"\")","v":""},{"$f":"IF(TabelleNMB[[#This Row],[Materialien]]=\"\",\"\",\"kg/Jahr\")","v":"kg/Jahr"},null,"Naturstein, ungebrochen","Materialien (Bestandteile des Produkts)",{"$f":"IFERROR(INDEX(TabelleMB[[Materialien]:[GWP]],(MATCH(TabelleGWP[[#This Row],[GWP]],TabelleGWP[GWP],0)),5),\"\")","v":""}]
[null,"PKW",{"$f":"IFERROR(INDEX(Tabelle1[[Materialien]:[Menge]],(MATCH(TabelleMB[[#This Row],[Materialien]],Tabelle1[Materialien],0)),2),\"\")","v":""},{"$f":"IFERROR(TabelleMB[[#This Row],[Menge]]*Daten!C108,\"\")","v":""},{"$f":"IFERROR(TabelleMB[[#This Row],[Menge]]*Daten!D108,\"\")","v":""},{"$f":"IFERROR(TabelleMB[[#This Row],[Menge]]*Daten!E108,\"\")","v":""},{"$f":"IF(TabelleMB[[#This Row],[Materialien]]=\"\",\"\",\"GJ/Jahr\")","v":"GJ/Jahr"},null,"PKW",{"$f":"IFERROR(INDEX(Tabelle13[[Materialien]:[Menge]],(MATCH(TabelleNMB[[#This Row],[Materialien]],Tabelle13[Materialien],0)),2),\"\")","v":""},{"$f":"IFERROR(TabelleNMB[[#This Row],[Menge]]*Daten!H108,\"\")","v":""},{"$f":"IFERROR(TabelleNMB[[#This Row],[Menge]]*Daten!I108,\"\")","v":""},{"$f":"IFERROR(TabelleNMB[[#This Row],[Menge]]*Daten!J108,\"\")","v":""},{"$f":"IF(TabelleNMB[[#This Row],[Materialien]]=\"\",\"\",\"kg/Jahr\")","v":"kg/Jahr"},null,"Nickel","Materialien (Bestandteile des Produkts)",{"$f":"IFERROR(INDEX(TabelleMB[[Materialien]:[GWP]],(MATCH(TabelleGWP[[#This Row],[GWP]],TabelleGWP[GWP],0)),5),\"\")","v":""}]
[null,"Platin, Russland",{"$f":"IFERROR(INDEX(Tabelle1[[Materialien]:[Menge]],(MATCH(TabelleMB[[#This Row],[Materialien]],Tabelle1[Materialien],0)),2),\"\")","v":""},{"$f":"IFERROR(TabelleMB[[#This Row],[Menge]]*Daten!C109,\"\")","v":""},{"$f":"IFERROR(TabelleMB[[#This Row],[Menge]]*Daten!D109,\"\")","v":""},{"$f":"IFERROR(TabelleMB[[#This Row],[Menge]]*Daten!E109,\"\")","v":""},{"$f":"IF(TabelleMB[[#This Row],[Materialien]]=\"\",\"\",\"GJ/Jahr\")","v":"GJ/Jahr"},null,"Platin, Russland",{"$f":"IFERROR(INDEX(Tabelle13[[Materialien]:[Menge]],(MATCH(TabelleNMB[[#This Row],[Materialien]],Tabelle13[Materialien],0)),2),\"\")","v":""},{"$f":"IFERROR(TabelleNMB[[#This Row],[Menge]]*Daten!H109,\"\")","v":""},{"$f":"IFERROR(TabelleNMB[[#This Row],[Menge]]*Daten!I109,\"\")","v":""},{"$f":"IFERROR(TabelleNMB[[#This Row],[Menge]]*Daten!J109,\"\")","v":""},{"$f":"IF(TabelleNMB[[#This Row],[Materialien]]=\"\",\"\",\"kg/Jahr\")","v":"kg/Jahr"},null,"Niob- und Tantalkonzentrate","Materialien (Bestandteile des Produkts)",{"$f":"IFERROR(INDEX(TabelleMB[[Materialien]:[GWP]],(MATCH(TabelleGWP[[#This Row],[GWP]],TabelleGWP[GWP],0)),5),\"\")","v":""}]
[null,"Platin, Südafrika",{"$f":"IFERROR(INDEX(Tabelle1[[Materialien]:[Menge]],(MATCH(TabelleMB[[#This Row],[Materialien]],Tabelle1[Materialien],0)),2),\"\")","v":""},{"$f":"IFERROR(TabelleMB[[#This Row],[Menge]]*Daten!C110,\"\")","v":""},{"$f":"IFERROR(TabelleMB[[#This Row],[Menge]]*Daten!D110,\"\")","v":""},{"$f":"IFERROR(TabelleMB[[#This Row],[Menge]]*Daten!E110,\"\")","v":""},{"$f":"IF(TabelleMB[[#This Row],[Materialien]]=\"\",\"\",\"GJ/Jahr\")","v":"GJ/Jahr"},null,"Platin, Südafrika",{"$f":"IFERROR(INDEX(Tabelle13[[Materialien]:[Menge]],(MATCH(TabelleNMB[[#This Row],[Materialien]],Tabelle13[Materialien],0)),2),\"\")","v":""},{"$f":"IFERROR(TabelleNMB[[#This Row],[Menge]]*Daten!H110,\"\")","v":""},{"$f":"IFERROR(TabelleNMB[[#This Row],[Menge]]*Daten!I110,\"\")","v":""},{"$f":"IFERROR(TabelleNMB[[#This Row],[Menge]]*Daten!J110,\"\")","v":""},{"$f":"IF(TabelleNMB[[#This Row],[Materialien]]=\"\",\"\",\"kg/Jahr\")","v":"kg/Jahr"},null,"Obst (Apfel)","Materialien (Bestandteile des Produkts)",{"$f":"IFERROR(INDEX(TabelleMB[[Materialien]:[GWP]],(MATCH(TabelleGWP[[#This Row],[GWP]],TabelleGWP[GWP],0)),5),\"\")","v":""}]
[null,"PVC",{"$f":"IFERROR(INDEX(Tabelle1[[Materialien]:[Menge]],(MATCH(TabelleMB[[#This Row],[Materialien]],Tabelle1[Materialien],0)),2),\"\")","v":""},{"$f":"IFERROR(TabelleMB[[#This Row],[Menge]]*Daten!C111,\"\")","v":""},{"$f":"IFERROR(TabelleMB[[#This Row],[Menge]]*Daten!D111,\"\")","v":""},{"$f":"IFERROR(TabelleMB[[#This Row],[Menge]]*Daten!E111,\"\")","v":""},{"$f":"IF(TabelleMB[[#This Row],[Materialien]]=\"\",\"\",\"GJ/Jahr\")","v":"GJ/Jahr"},null,"PVC",{"$f":"IFERROR(INDEX(Tabelle13[[Materialien]:[Menge]],(MATCH(TabelleNMB[[#This Row],[Materialien]],Tabelle13[Materialien],0)),2),\"\")","v":""},{"$f":"IFERROR(TabelleNMB[[#This Row],[Menge]]*Daten!H111,\"\")","v":""},{"$f":"IFERROR(TabelleNMB[[#This Row],[Menge]]*Daten!I111,\"\")","v":""},{"$f":"IFERROR(TabelleNMB[[#This Row],[Menge]]*Daten!J111,\"\")","v":""},{"$f":"IF(TabelleNMB[[#This Row],[Materialien]]=\"\",\"\",\"kg/Jahr\")","v":"kg/Jahr"},null,"Osmium","Materialien (Bestandteile des Produkts)",{"$f":"IFERROR(INDEX(TabelleMB[[Materialien]:[GWP]],(MATCH(TabelleGWP[[#This Row],[GWP]],TabelleGWP[GWP],0)),5),\"\")","v":""}]
[null,"Quarz, Quarzite",{"$f":"IFERROR(INDEX(Tabelle1[[Materialien]:[Menge]],(MATCH(TabelleMB[[#This Row],[Materialien]],Tabelle1[Materialien],0)),2),\"\")","v":""},{"$f":"IFERROR(TabelleMB[[#This Row],[Menge]]*Daten!C112,\"\")","v":""},{"$f":"IFERROR(TabelleMB[[#This Row],[Menge]]*Daten!D112,\"\")","v":""},{"$f":"IFERROR(TabelleMB[[#This Row],[Menge]]*Daten!E112,\"\")","v":""},{"$f":"IF(TabelleMB[[#This Row],[Materialien]]=\"\",\"\",\"GJ/Jahr\")","v":"GJ/Jahr"},null,"Quarz, Quarzite",{"$f":"IFERROR(INDEX(Tabelle13[[Materialien]:[Menge]],(MATCH(TabelleNMB[[#This Row],[Materialien]],Tabelle13[Materialien],0)),2),\"\")","v":""},{"$f":"IFERROR(TabelleNMB[[#This Row],[Menge]]*Daten!H112,\"\")","v":""},{"$f":"IFERROR(TabelleNMB[[#This Row],[Menge]]*Daten!I112,\"\")","v":""},{"$f":"IFERROR(TabelleNMB[[#This Row],[Menge]]*Daten!J112,\"\")","v":""},{"$f":"IF(TabelleNMB[[#This Row],[Materialien]]=\"\",\"\",\"kg/Jahr\")","v":"kg/Jahr"},null,"Palladium, Russland","Materialien (Bestandteile des Produkts)",{"$f":"IFERROR(INDEX(TabelleMB[[Materialien]:[GWP]],(MATCH(TabelleGWP[[#This Row],[GWP]],TabelleGWP[GWP],0)),5),\"\")","v":""}]
[null,"Quarzsand",{"$f":"IFERROR(INDEX(Tabelle1[[Materialien]:[Menge]],(MATCH(TabelleMB[[#This Row],[Materialien]],Tabelle1[Materialien],0)),2),\"\")","v":""},{"$f":"IFERROR(TabelleMB[[#This Row],[Menge]]*Daten!C113,\"\")","v":""},{"$f":"IFERROR(TabelleMB[[#This Row],[Menge]]*Daten!D113,\"\")","v":""},{"$f":"IFERROR(TabelleMB[[#This Row],[Menge]]*Daten!E113,\"\")","v":""},{"$f":"IF(TabelleMB[[#This Row],[Materialien]]=\"\",\"\",\"GJ/Jahr\")","v":"GJ/Jahr"},null,"Quarzsand",{"$f":"IFERROR(INDEX(Tabelle13[[Materialien]:[Menge]],(MATCH(TabelleNMB[[#This Row],[Materialien]],Tabelle13[Materialien],0)),2),\"\")","v":""},{"$f":"IFERROR(TabelleNMB[[#This Row],[Menge]]*Daten!H113,\"\")","v":""},{"$f":"IFERROR(TabelleNMB[[#This Row],[Menge]]*Daten!I113,\"\")","v":""},{"$f":"IFERROR(TabelleNMB[[#This Row],[Menge]]*Daten!J113,\"\")","v":""},{"$f":"IF(TabelleNMB[[#This Row],[Materialien]]=\"\",\"\",\"kg/Jahr\")","v":"kg/Jahr"},null,"Palladium, Südafrika","Materialien (Bestandteile des Produkts)",{"$f":"IFERROR(INDEX(TabelleMB[[Materialien]:[GWP]],(MATCH(TabelleGWP[[#This Row],[GWP]],TabelleGWP[GWP],0)),5),\"\")","v":""}]
[null,"Quecksilber",{"$f":"IFERROR(INDEX(Tabelle1[[Materialien]:[Menge]],(MATCH(TabelleMB[[#This Row],[Materialien]],Tabelle1[Materialien],0)),2),\"\")","v":""},{"$f":"IFERROR(TabelleMB[[#This Row],[Menge]]*Daten!C114,\"\")","v":""},{"$f":"IFERROR(TabelleMB[[#This Row],[Menge]]*Daten!D114,\"\")","v":""},{"$f":"IFERROR(TabelleMB[[#This Row],[Menge]]*Daten!E114,\"\")","v":""},{"$f":"IF(TabelleMB[[#This Row],[Materialien]]=\"\",\"\",\"GJ/Jahr\")","v":"GJ/Jahr"},null,"Quecksilber",{"$f":"IFERROR(INDEX(Tabelle13[[Materialien]:[Menge]],(MATCH(TabelleNMB[[#This Row],[Materialien]],Tabelle13[Materialien],0)),2),\"\")","v":""},{"$f":"IFERROR(TabelleNMB[[#This Row],[Menge]]*Daten!H114,\"\")","v":""},{"$f":"IFERROR(TabelleNMB[[#This Row],[Menge]]*Daten!I114,\"\")","v":""},{"$f":"IFERROR(TabelleNMB[[#This Row],[Menge]]*Daten!J114,\"\")","v":""},{"$f":"IF(TabelleNMB[[#This Row],[Materialien]]=\"\",\"\",\"kg/Jahr\")","v":"kg/Jahr"},null,"Pegmatitsand","Materialien (Bestandteile des Produkts)",{"$f":"IFERROR(INDEX(TabelleMB[[Materialien]:[GWP]],(MATCH(TabelleGWP[[#This Row],[GWP]],TabelleGWP[GWP],0)),5),\"\")","v":""}]
[null,"Rhodium, Russland",{"$f":"IFERROR(INDEX(Tabelle1[[Materialien]:[Menge]],(MATCH(TabelleMB[[#This Row],[Materialien]],Tabelle1[Materialien],0)),2),\"\")","v":""},{"$f":"IFERROR(TabelleMB[[#This Row],[Menge]]*Daten!C115,\"\")","v":""},{"$f":"IFERROR(TabelleMB[[#This Row],[Menge]]*Daten!D115,\"\")","v":""},{"$f":"IFERROR(TabelleMB[[#This Row],[Menge]]*Daten!E115,\"\")","v":""},{"$f":"IF(TabelleMB[[#This Row],[Materialien]]=\"\",\"\",\"GJ/Jahr\")","v":"GJ/Jahr"},null,"Rhodium, Russland",{"$f":"IFERROR(INDEX(Tabelle13[[Materialien]:[Menge]],(MATCH(TabelleNMB[[#This Row],[Materialien]],Tabelle13[Materialien],0)),2),\"\")","v":""},{"$f":"IFERROR(TabelleNMB[[#This Row],[Menge]]*Daten!H115,\"\")","v":""},{"$f":"IFERROR(TabelleNMB[[#This Row],[Menge]]*Daten!I115,\"\")","v":""},{"$f":"IFERROR(TabelleNMB[[#This Row],[Menge]]*Daten!J115,\"\")","v":""},{"$f":"IF(TabelleNMB[[#This Row],[Materialien]]=\"\",\"\",\"kg/Jahr\")","v":"kg/Jahr"},null,"Perlit","Materialien (Bestandteile des Produkts)",{"$f":"IFERROR(INDEX(TabelleMB[[Materialien]:[GWP]],(MATCH(TabelleGWP[[#This Row],[GWP]],TabelleGWP[GWP],0)),5),\"\")","v":""}]
[null,"Rhodium, Südafrika",{"$f":"IFERROR(INDEX(Tabelle1[[Materialien]:[Menge]],(MATCH(TabelleMB[[#This Row],[Materialien]],Tabelle1[Materialien],0)),2),\"\")","v":""},{"$f":"IFERROR(TabelleMB[[#This Row],[Menge]]*Daten!C116,\"\")","v":""},{"$f":"IFERROR(TabelleMB[[#This Row],[Menge]]*Daten!D116,\"\")","v":""},{"$f":"IFERROR(TabelleMB[[#This Row],[Menge]]*Daten!E116,\"\")","v":""},{"$f":"IF(TabelleMB[[#This Row],[Materialien]]=\"\",\"\",\"GJ/Jahr\")","v":"GJ/Jahr"},null,"Rhodium, Südafrika",{"$f":"IFERROR(INDEX(Tabelle13[[Materialien]:[Menge]],(MATCH(TabelleNMB[[#This Row],[Materialien]],Tabelle13[Materialien],0)),2),\"\")","v":""},{"$f":"IFERROR(TabelleNMB[[#This Row],[Menge]]*Daten!H116,\"\")","v":""},{"$f":"IFERROR(TabelleNMB[[#This Row],[Menge]]*Daten!I116,\"\")","v":""},{"$f":"IFERROR(TabelleNMB[[#This Row],[Menge]]*Daten!J116,\"\")","v":""},{"$f":"IF(TabelleNMB[[#This Row],[Materialien]]=\"\",\"\",\"kg/Jahr\")","v":"kg/Jahr"},null,"PET","Materialien (Bestandteile des Produkts)",{"$f":"IFERROR(INDEX(TabelleMB[[Materialien]:[GWP]],(MATCH(TabelleGWP[[#This Row],[GWP]],TabelleGWP[GWP],0)),5),\"\")","v":""}]
[null,"Ruthenium",{"$f":"IFERROR(INDEX(Tabelle1[[Materialien]:[Menge]],(MATCH(TabelleMB[[#This Row],[Materialien]],Tabelle1[Materialien],0)),2),\"\")","v":""},{"$f":"IFERROR(TabelleMB[[#This Row],[Menge]]*Daten!C117,\"\")","v":""},{"$f":"IFERROR(TabelleMB[[#This Row],[Menge]]*Daten!D117,\"\")","v":""},{"$f":"IFERROR(TabelleMB[[#This Row],[Menge]]*Daten!E117,\"\")","v":""},{"$f":"IF(TabelleMB[[#This Row],[Materialien]]=\"\",\"\",\"GJ/Jahr\")","v":"GJ/Jahr"},null,"Ruthenium",{"$f":"IFERROR(INDEX(Tabelle13[[Materialien]:[Menge]],(MATCH(TabelleNMB[[#This Row],[Materialien]],Tabelle13[Materialien],0)),2),\"\")","v":""},{"$f":"IFERROR(TabelleNMB[[#This Row],[Menge]]*Daten!H117,\"\")","v":""},{"$f":"IFERROR(TabelleNMB[[#This Row],[Menge]]*Daten!I117,\"\")","v":""},{"$f":"IFERROR(TabelleNMB[[#This Row],[Menge]]*Daten!J117,\"\")","v":""},{"$f":"IF(TabelleNMB[[#This Row],[Materialien]]=\"\",\"\",\"kg/Jahr\")","v":"kg/Jahr"},null,"Phosphat, Marokko","Materialien (Bestandteile des Produkts)",{"$f":"IFERROR(INDEX(TabelleMB[[Materialien]:[GWP]],(MATCH(TabelleGWP[[#This Row],[GWP]],TabelleGWP[GWP],0)),5),\"\")","v":""}]
[null,"Ruß",{"$f":"IFERROR(INDEX(Tabelle1[[Materialien]:[Menge]],(MATCH(TabelleMB[[#This Row],[Materialien]],Tabelle1[Materialien],0)),2),\"\")","v":""},{"$f":"IFERROR(TabelleMB[[#This Row],[Menge]]*Daten!C118,\"\")","v":""},{"$f":"IFERROR(TabelleMB[[#This Row],[Menge]]*Daten!D118,\"\")","v":""},{"$f":"IFERROR(TabelleMB[[#This Row],[Menge]]*Daten!E118,\"\")","v":""},{"$f":"IF(TabelleMB[[#This Row],[Materialien]]=\"\",\"\",\"GJ/Jahr\")","v":"GJ/Jahr"},null,"Ruß",{"$f":"IFERROR(INDEX(Tabelle13[[Materialien]:[Menge]],(MATCH(TabelleNMB[[#This Row],[Materialien]],Tabelle13[Materialien],0)),2),\"\")","v":""},{"$f":"IFERROR(TabelleNMB[[#This Row],[Menge]]*Daten!H118,\"\")","v":""},{"$f":"IFERROR(TabelleNMB[[#This Row],[Menge]]*Daten!I118,\"\")","v":""},{"$f":"IFERROR(TabelleNMB[[#This Row],[Menge]]*Daten!J118,\"\")","v":""},{"$f":"IF(TabelleNMB[[#This Row],[Materialien]]=\"\",\"\",\"kg/Jahr\")","v":"kg/Jahr"},null,"Phosphat, USA","Materialien (Bestandteile des Produkts)",{"$f":"IFERROR(INDEX(TabelleMB[[Materialien]:[GWP]],(MATCH(TabelleGWP[[#This Row],[GWP]],TabelleGWP[GWP],0)),5),\"\")","v":""}]
[null,"Rübenblatt",{"$f":"IFERROR(INDEX(Tabelle1[[Materialien]:[Menge]],(MATCH(TabelleMB[[#This Row],[Materialien]],Tabelle1[Materialien],0)),2),\"\")","v":""},{"$f":"IFERROR(TabelleMB[[#This Row],[Menge]]*Daten!C119,\"\")","v":""},{"$f":"IFERROR(TabelleMB[[#This Row],[Menge]]*Daten!D119,\"\")","v":""},{"$f":"IFERROR(TabelleMB[[#This Row],[Menge]]*Daten!E119,\"\")","v":""},{"$f":"IF(TabelleMB[[#This Row],[Materialien]]=\"\",\"\",\"GJ/Jahr\")","v":"GJ/Jahr"},null,"Rübenblatt",{"$f":"IFERROR(INDEX(Tabelle13[[Materialien]:[Menge]],(MATCH(TabelleNMB[[#This Row],[Materialien]],Tabelle13[Materialien],0)),2),\"\")","v":""},{"$f":"IFERROR(TabelleNMB[[#This Row],[Menge]]*Daten!H119,\"\")","v":""},{"$f":"IFERROR(TabelleNMB[[#This Row],[Menge]]*Daten!I119,\"\")","v":""},{"$f":"IFERROR(TabelleNMB[[#This Row],[Menge]]*Daten!J119,\"\")","v":""},{"$f":"IF(TabelleNMB[[#This Row],[Materialien]]=\"\",\"\",\"kg/Jahr\")","v":"kg/Jahr"},null,"Phosphor, weiß","Materialien (Bestandteile des Produkts)",{"$f":"IFERROR(INDEX(TabelleMB[[Materialien]:[GWP]],(MATCH(TabelleGWP[[#This Row],[GWP]],TabelleGWP[GWP],0)),5),\"\")","v":""}]
[null,"Sand (Bausand)",{"$f":"IFERROR(INDEX(Tabelle1[[Materialien]:[Menge]],(MATCH(TabelleMB[[#This Row],[Materialien]],Tabelle1[Materialien],0)),2),\"\")","v":""},{"$f":"IFERROR(TabelleMB[[#This Row],[Menge]]*Daten!C120,\"\")","v":""},{"$f":"IFERROR(TabelleMB[[#This Row],[Menge]]*Daten!D120,\"\")","v":""},{"$f":"IFERROR(TabelleMB[[#This Row],[Menge]]*Daten!E120,\"\")","v":""},{"$f":"IF(TabelleMB[[#This Row],[Materialien]]=\"\",\"\",\"GJ/Jahr\")","v":"GJ/Jahr"},null,"Sand (Bausand)",{"$f":"IFERROR(INDEX(Tabelle13[[Materialien]:[Menge]],(MATCH(TabelleNMB[[#This Row],[Materialien]],Tabelle13[Materialien],0)),2),\"\")","v":""},{"$f":"IFERROR(TabelleNMB[[#This Row],[Menge]]*Daten!H120,\"\")","v":""},{"$f":"IFERROR(TabelleNMB[[#This Row],[Menge]]*Daten!I120,\"\")","v":""},{"$f":"IFERROR(TabelleNMB[[#This Row],[Menge]]*Daten!J120,\"\")","v":""},{"$f":"IF(TabelleNMB[[#This Row],[Materialien]]=\"\",\"\",\"kg/Jahr\")","v":"kg/Jahr"},null,"PKW","Materialien (Bestandteile des Produkts)",{"$f":"IFERROR(INDEX(TabelleMB[[Materialien]:[GWP]],(MATCH(TabelleGWP[[#This Row],[GWP]],TabelleGWP[GWP],0)),5),\"\")","v":""}]
[null,"Sauerstoff, flüssig",{"$f":"IFERROR(INDEX(Tabelle1[[Materialien]:[Menge]],(MATCH(TabelleMB[[#This Row],[Materialien]],Tabelle1[Materialien],0)),2),\"\")","v":""},{"$f":"IFERROR(TabelleMB[[#This Row],[Menge]]*Daten!C121,\"\")","v":""},{"$f":"IFERROR(TabelleMB[[#This Row],[Menge]]*Daten!D121,\"\")","v":""},{"$f":"IFERROR(TabelleMB[[#This Row],[Menge]]*Daten!E121,\"\")","v":""},{"$f":"IF(TabelleMB[[#This Row],[Materialien]]=\"\",\"\",\"GJ/Jahr\")","v":"GJ/Jahr"},null,"Sauerstoff, flüssig",{"$f":"IFERROR(INDEX(Tabelle13[[Materialien]:[Menge]],(MATCH(TabelleNMB[[#This Row],[Materialien]],Tabelle13[Materialien],0)),2),\"\")","v":""},{"$f":"IFERROR(TabelleNMB[[#This Row],[Menge]]*Daten!H121,\"\")","v":""},{"$f":"IFERROR(TabelleNMB[[#This Row],[Menge]]*Daten!I121,\"\")","v":""},{"$f":"IFERROR(TabelleNMB[[#This Row],[Menge]]*Daten!J121,\"\")","v":""},{"$f":"IF(TabelleNMB[[#This Row],[Materialien]]=\"\",\"\",\"kg/Jahr\")","v":"kg/Jahr"},null,"Platin, Russland","Materialien (Bestandteile des Produkts)",{"$f":"IFERROR(INDEX(TabelleMB[[Materialien]:[GWP]],(MATCH(TabelleGWP[[#This Row],[GWP]],TabelleGWP[GWP],0)),5),\"\")","v":""}]
[null,"Schamottstein",{"$f":"IFERROR(INDEX(Tabelle1[[Materialien]:[Menge]],(MATCH(TabelleMB[[#This Row],[Materialien]],Tabelle1[Materialien],0)),2),\"\")","v":""},{"$f":"IFERROR(TabelleMB[[#This Row],[Menge]]*Daten!C122,\"\")","v":""},{"$f":"IFERROR(TabelleMB[[#This Row],[Menge]]*Daten!D122,\"\")","v":""},{"$f":"IFERROR(TabelleMB[[#This Row],[Menge]]*Daten!E122,\"\")","v":""},{"$f":"IF(TabelleMB[[#This Row],[Materialien]]=\"\",\"\",\"GJ/Jahr\")","v":"GJ/Jahr"},null,"Schamottstein",{"$f":"IFERROR(INDEX(Tabelle13[[Materialien]:[Menge]],(MATCH(TabelleNMB[[#This Row],[Materialien]],Tabelle13[Materialien],0)),2),\"\")","v":""},{"$f":"IFERROR(TabelleNMB[[#This Row],[Menge]]*Daten!H122,\"\")","v":""},{"$f":"IFERROR(TabelleNMB[[#This Row],[Menge]]*Daten!I122,\"\")","v":""},{"$f":"IFERROR(TabelleNMB[[#This Row],[Menge]]*Daten!J122,\"\")","v":""},{"$f":"IF(TabelleNMB[[#This Row],[Materialien]]=\"\",\"\",\"kg/Jahr\")","v":"kg/Jahr"},null,"Platin, Südafrika","Materialien (Bestandteile des Produkts)",{"$f":"IFERROR(INDEX(TabelleMB[[Materialien]:[GWP]],(MATCH(TabelleGWP[[#This Row],[GWP]],TabelleGWP[GWP],0)),5),\"\")","v":""}]
[null,"Schiefer",{"$f":"IFERROR(INDEX(Tabelle1[[Materialien]:[Menge]],(MATCH(TabelleMB[[#This Row],[Materialien]],Tabelle1[Materialien],0)),2),\"\")","v":""},{"$f":"IFERROR(TabelleMB[[#This Row],[Menge]]*Daten!C123,\"\")","v":""},{"$f":"IFERROR(TabelleMB[[#This Row],[Menge]]*Daten!D123,\"\")","v":""},{"$f":"IFERROR(TabelleMB[[#This Row],[Menge]]*Daten!E123,\"\")","v":""},{"$f":"IF(TabelleMB[[#This Row],[Materialien]]=\"\",\"\",\"GJ/Jahr\")","v":"GJ/Jahr"},null,"Schiefer",{"$f":"IFERROR(INDEX(Tabelle13[[Materialien]:[Menge]],(MATCH(TabelleNMB[[#This Row],[Materialien]],Tabelle13[Materialien],0)),2),\"\")","v":""},{"$f":"IFERROR(TabelleNMB[[#This Row],[Menge]]*Daten!H123,\"\")","v":""},{"$f":"IFERROR(TabelleNMB[[#This Row],[Menge]]*Daten!I123,\"\")","v":""},{"$f":"IFERROR(TabelleNMB[[#This Row],[Menge]]*Daten!J123,\"\")","v":""},{"$f":"IF(TabelleNMB[[#This Row],[Materialien]]=\"\",\"\",\"kg/Jahr\")","v":"kg/Jahr"},null,"PVC","Materialien (Bestandteile des Produkts)",{"$f":"IFERROR(INDEX(TabelleMB[[Materialien]:[GWP]],(MATCH(TabelleGWP[[#This Row],[GWP]],TabelleGWP[GWP],0)),5),\"\")","v":""}]
[null,"Schmieröl",{"$f":"IFERROR(INDEX(Tabelle1[[Materialien]:[Menge]],(MATCH(TabelleMB[[#This Row],[Materialien]],Tabelle1[Materialien],0)),2),\"\")","v":""},{"$f":"IFERROR(TabelleMB[[#This Row],[Menge]]*Daten!C124,\"\")","v":""},{"$f":"IFERROR(TabelleMB[[#This Row],[Menge]]*Daten!D124,\"\")","v":""},{"$f":"IFERROR(TabelleMB[[#This Row],[Menge]]*Daten!E124,\"\")","v":""},{"$f":"IF(TabelleMB[[#This Row],[Materialien]]=\"\",\"\",\"GJ/Jahr\")","v":"GJ/Jahr"},null,"Schmieröl",{"$f":"IFERROR(INDEX(Tabelle13[[Materialien]:[Menge]],(MATCH(TabelleNMB[[#This Row],[Materialien]],Tabelle13[Materialien],0)),2),\"\")","v":""},{"$f":"IFERROR(TabelleNMB[[#This Row],[Menge]]*Daten!H124,\"\")","v":""},{"$f":"IFERROR(TabelleNMB[[#This Row],[Menge]]*Daten!I124,\"\")","v":""},{"$f":"IFERROR(TabelleNMB[[#This Row],[Menge]]*Daten!J124,\"\")","v":""},{"$f":"IF(TabelleNMB[[#This Row],[Materialien]]=\"\",\"\",\"kg/Jahr\")","v":"kg/Jahr"},null,"Quarz, Quarzite","Materialien (Bestandteile des Produkts)",{"$f":"IFERROR(INDEX(TabelleMB[[Materialien]:[GWP]],(MATCH(TabelleGWP[[#This Row],[GWP]],TabelleGWP[GWP],0)),5),\"\")","v":""}]
[null,"Schmirgel, Korund, Granat (Schleifmittel)",{"$f":"IFERROR(INDEX(Tabelle1[[Materialien]:[Menge]],(MATCH(TabelleMB[[#This Row],[Materialien]],Tabelle1[Materialien],0)),2),\"\")","v":""},{"$f":"IFERROR(TabelleMB[[#This Row],[Menge]]*Daten!C125,\"\")","v":""},{"$f":"IFERROR(TabelleMB[[#This Row],[Menge]]*Daten!D125,\"\")","v":""},{"$f":"IFERROR(TabelleMB[[#This Row],[Menge]]*Daten!E125,\"\")","v":""},{"$f":"IF(TabelleMB[[#This Row],[Materialien]]=\"\",\"\",\"GJ/Jahr\")","v":"GJ/Jahr"},null,"Schmirgel, Korund, Granat (Schleifmittel)",{"$f":"IFERROR(INDEX(Tabelle13[[Materialien]:[Menge]],(MATCH(TabelleNMB[[#This Row],[Materialien]],Tabelle13[Materialien],0)),2),\"\")","v":""},{"$f":"IFERROR(TabelleNMB[[#This Row],[Menge]]*Daten!H125,\"\")","v":""},{"$f":"IFERROR(TabelleNMB[[#This Row],[Menge]]*Daten!I125,\"\")","v":""},{"$f":"IFERROR(TabelleNMB[[#This Row],[Menge]]*Daten!J125,\"\")","v":""},{"$f":"IF(TabelleNMB[[#This Row],[Materialien]]=\"\",\"\",\"kg/Jahr\")","v":"kg/Jahr"},null,"Quarzsand","Materialien (Bestandteile des Produkts)",{"$f":"IFERROR(INDEX(TabelleMB[[Materialien]:[GWP]],(MATCH(TabelleGWP[[#This Row],[GWP]],TabelleGWP[GWP],0)),5),\"\")","v":""}]
[null,"Schwefel",{"$f":"IFERROR(INDEX(Tabelle1[[Materialien]:[Menge]],(MATCH(TabelleMB[[#This Row],[Materialien]],Tabelle1[Materialien],0)),2),\"\")","v":""},{"$f":"IFERROR(TabelleMB[[#This Row],[Menge]]*Daten!C126,\"\")","v":""},{"$f":"IFERROR(TabelleMB[[#This Row],[Menge]]*Daten!D126,\"\")","v":""},{"$f":"IFERROR(TabelleMB[[#This Row],[Menge]]*Daten!E126,\"\")","v":""},{"$f":"IF(TabelleMB[[#This Row],[Materialien]]=\"\",\"\",\"GJ/Jahr\")","v":"GJ/Jahr"},null,"Schwefel",{"$f":"IFERROR(INDEX(Tabelle13[[Materialien]:[Menge]],(MATCH(TabelleNMB[[#This Row],[Materialien]],Tabelle13[Materialien],0)),2),\"\")","v":""},{"$f":"IFERROR(TabelleNMB[[#This Row],[Menge]]*Daten!H126,\"\")","v":""},{"$f":"IFERROR(TabelleNMB[[#This Row],[Menge]]*Daten!I126,\"\")","v":""},{"$f":"IFERROR(TabelleNMB[[#This Row],[Menge]]*Daten!J126,\"\")","v":""},{"$f":"IF(TabelleNMB[[#This Row],[Materialien]]=\"\",\"\",\"kg/Jahr\")","v":"kg/Jahr"},null,"Quecksilber","Materialien (Bestandteile des Produkts)",{"$f":"IFERROR(INDEX(TabelleMB[[Materialien]:[GWP]],(MATCH(TabelleGWP[[#This Row],[GWP]],TabelleGWP[GWP],0)),5),\"\")","v":""}]
[null,"Selen",{"$f":"IFERROR(INDEX(Tabelle1[[Materialien]:[Menge]],(MATCH(TabelleMB[[#This Row],[Materialien]],Tabelle1[Materialien],0)),2),\"\")","v":""},{"$f":"IFERROR(TabelleMB[[#This Row],[Menge]]*Daten!C127,\"\")","v":""},{"$f":"IFERROR(TabelleMB[[#This Row],[Menge]]*Daten!D127,\"\")","v":""},{"$f":"IFERROR(TabelleMB[[#This Row],[Menge]]*Daten!E127,\"\")","v":""},{"$f":"IF(TabelleMB[[#This Row],[Materialien]]=\"\",\"\",\"GJ/Jahr\")","v":"GJ/Jahr"},null,"Selen",{"$f":"IFERROR(INDEX(Tabelle13[[Materialien]:[Menge]],(MATCH(TabelleNMB[[#This Row],[Materialien]],Tabelle13[Materialien],0)),2),\"\")","v":""},{"$f":"IFERROR(TabelleNMB[[#This Row],[Menge]]*Daten!H127,\"\")","v":""},{"$f":"IFERROR(TabelleNMB[[#This Row],[Menge]]*Daten!I127,\"\")","v":""},{"$f":"IFERROR(TabelleNMB[[#This Row],[Menge]]*Daten!J127,\"\")","v":""},{"$f":"IF(TabelleNMB[[#This Row],[Materialien]]=\"\",\"\",\"kg/Jahr\")","v":"kg/Jahr"},null,"Rhodium, Russland","Materialien (Bestandteile des Produkts)",{"$f":"IFERROR(INDEX(TabelleMB[[Materialien]:[GWP]],(MATCH(TabelleGWP[[#This Row],[GWP]],TabelleGWP[GWP],0)),5),\"\")","v":""}]
[null,"Siedesalz",{"$f":"IFERROR(INDEX(Tabelle1[[Materialien]:[Menge]],(MATCH(TabelleMB[[#This Row],[Materialien]],Tabelle1[Materialien],0)),2),\"\")","v":""},{"$f":"IFERROR(TabelleMB[[#This Row],[Menge]]*Daten!C128,\"\")","v":""},{"$f":"IFERROR(TabelleMB[[#This Row],[Menge]]*Daten!D128,\"\")","v":""},{"$f":"IFERROR(TabelleMB[[#This Row],[Menge]]*Daten!E128,\"\")","v":""},{"$f":"IF(TabelleMB[[#This Row],[Materialien]]=\"\",\"\",\"GJ/Jahr\")","v":"GJ/Jahr"},null,"Siedesalz",{"$f":"IFERROR(INDEX(Tabelle13[[Materialien]:[Menge]],(MATCH(TabelleNMB[[#This Row],[Materialien]],Tabelle13[Materialien],0)),2),\"\")","v":""},{"$f":"IFERROR(TabelleNMB[[#This Row],[Menge]]*Daten!H128,\"\")","v":""},{"$f":"IFERROR(TabelleNMB[[#This Row],[Menge]]*Daten!I128,\"\")","v":""},{"$f":"IFERROR(TabelleNMB[[#This Row],[Menge]]*Daten!J128,\"\")","v":""},{"$f":"IF(TabelleNMB[[#This Row],[Materialien]]=\"\",\"\",\"kg/Jahr\")","v":"kg/Jahr"},null,"Rhodium, Südafrika","Materialien (Bestandteile des Produkts)",{"$f":"IFERROR(INDEX(TabelleMB[[Materialien]:[GWP]],(MATCH(TabelleGWP[[#This Row],[GWP]],TabelleGWP[GWP],0)),5),\"\")","v":""}]
[null,"Silber",{"$f":"IFERROR(INDEX(Tabelle1[[Materialien]:[Menge]],(MATCH(TabelleMB[[#This Row],[Materialien]],Tabelle1[Materialien],0)),2),\"\")","v":""},{"$f":"IFERROR(TabelleMB[[#This Row],[Menge]]*Daten!C129,\"\")","v":""},{"$f":"IFERROR(TabelleMB[[#This Row],[Menge]]*Daten!D129,\"\")","v":""},{"$f":"IFERROR(TabelleMB[[#This Row],[Menge]]*Daten!E129,\"\")","v":""},{"$f":"IF(TabelleMB[[#This Row],[Materialien]]=\"\",\"\",\"GJ/Jahr\")","v":"GJ/Jahr"},null,"Silber",{"$f":"IFERROR(INDEX(Tabelle13[[Materialien]:[Menge]],(MATCH(TabelleNMB[[#This Row],[Materialien]],Tabelle13[Materialien],0)),2),\"\")","v":""},{"$f":"IFERROR(TabelleNMB[[#This Row],[Menge]]*Daten!H129,\"\")","v":""},{"$f":"IFERROR(TabelleNMB[[#This Row],[Menge]]*Daten!I129,\"\")","v":""},{"$f":"IFERROR(TabelleNMB[[#This Row],[Menge]]*Daten!J129,\"\")","v":""},{"$f":"IF(TabelleNMB[[#This Row],[Materialien]]=\"\",\"\",\"kg/Jahr\")","v":"kg/Jahr"},null,"Ruthenium","Materialien (Bestandteile des Produkts)",{"$f":"IFERROR(INDEX(TabelleMB[[Materialien]:[GWP]],(MATCH(TabelleGWP[[#This Row],[GWP]],TabelleGWP[GWP],0)),5),\"\")","v":""}]
[null,"Silizium",{"$f":"IFERROR(INDEX(Tabelle1[[Materialien]:[Menge]],(MATCH(TabelleMB[[#This Row],[Materialien]],Tabelle1[Materialien],0)),2),\"\")","v":""},{"$f":"IFERROR(TabelleMB[[#This Row],[Menge]]*Daten!C130,\"\")","v":""},{"$f":"IFERROR(TabelleMB[[#This Row],[Menge]]*Daten!D130,\"\")","v":""},{"$f":"IFERROR(TabelleMB[[#This Row],[Menge]]*Daten!E130,\"\")","v":""},{"$f":"IF(TabelleMB[[#This Row],[Materialien]]=\"\",\"\",\"GJ/Jahr\")","v":"GJ/Jahr"},null,"Silizium",{"$f":"IFERROR(INDEX(Tabelle13[[Materialien]:[Menge]],(MATCH(TabelleNMB[[#This Row],[Materialien]],Tabelle13[Materialien],0)),2),\"\")","v":""},{"$f":"IFERROR(TabelleNMB[[#This Row],[Menge]]*Daten!H130,\"\")","v":""},{"$f":"IFERROR(TabelleNMB[[#This Row],[Menge]]*Daten!I130,\"\")","v":""},{"$f":"IFERROR(TabelleNMB[[#This Row],[Menge]]*Daten!J130,\"\")","v":""},{"$f":"IF(TabelleNMB[[#This Row],[Materialien]]=\"\",\"\",\"kg/Jahr\")","v":"kg/Jahr"},null,"Ruß","Materialien (Bestandteile des Produkts)",{"$f":"IFERROR(INDEX(TabelleMB[[Materialien]:[GWP]],(MATCH(TabelleGWP[[#This Row],[GWP]],TabelleGWP[GWP],0)),5),\"\")","v":""}]
[null,"Sillimanit",{"$f":"IFERROR(INDEX(Tabelle1[[Materialien]:[Menge]],(MATCH(TabelleMB[[#This Row],[Materialien]],Tabelle1[Materialien],0)),2),\"\")","v":""},{"$f":"IFERROR(TabelleMB[[#This Row],[Menge]]*Daten!C131,\"\")","v":""},{"$f":"IFERROR(TabelleMB[[#This Row],[Menge]]*Daten!D131,\"\")","v":""},{"$f":"IFERROR(TabelleMB[[#This Row],[Menge]]*Daten!E131,\"\")","v":""},{"$f":"IF(TabelleMB[[#This Row],[Materialien]]=\"\",\"\",\"GJ/Jahr\")","v":"GJ/Jahr"},null,"Sillimanit",{"$f":"IFERROR(INDEX(Tabelle13[[Materialien]:[Menge]],(MATCH(TabelleNMB[[#This Row],[Materialien]],Tabelle13[Materialien],0)),2),\"\")","v":""},{"$f":"IFERROR(TabelleNMB[[#This Row],[Menge]]*Daten!H131,\"\")","v":""},{"$f":"IFERROR(TabelleNMB[[#This Row],[Menge]]*Daten!I131,\"\")","v":""},{"$f":"IFERROR(TabelleNMB[[#This Row],[Menge]]*Daten!J131,\"\")","v":""},{"$f":"IF(TabelleNMB[[#This Row],[Materialien]]=\"\",\"\",\"kg/Jahr\")","v":"kg/Jahr"},null,"Rübenblatt","Materialien (Bestandteile des Produkts)",{"$f":"IFERROR(INDEX(TabelleMB[[Materialien]:[GWP]],(MATCH(TabelleGWP[[#This Row],[GWP]],TabelleGWP[GWP],0)),5),\"\")","v":""}]
[null,"Soda",{"$f":"IFERROR(INDEX(Tabelle1[[Materialien]:[Menge]],(MATCH(TabelleMB[[#This Row],[Materialien]],Tabelle1[Materialien],0)),2),\"\")","v":""},{"$f":"IFERROR(TabelleMB[[#This Row],[Menge]]*Daten!C132,\"\")","v":""},{"$f":"IFERROR(TabelleMB[[#This Row],[Menge]]*Daten!D132,\"\")","v":""},{"$f":"IFERROR(TabelleMB[[#This Row],[Menge]]*Daten!E132,\"\")","v":""},{"$f":"IF(TabelleMB[[#This Row],[Materialien]]=\"\",\"\",\"GJ/Jahr\")","v":"GJ/Jahr"},null,"Soda",{"$f":"IFERROR(INDEX(Tabelle13[[Materialien]:[Menge]],(MATCH(TabelleNMB[[#This Row],[Materialien]],Tabelle13[Materialien],0)),2),\"\")","v":""},{"$f":"IFERROR(TabelleNMB[[#This Row],[Menge]]*Daten!H132,\"\")","v":""},{"$f":"IFERROR(TabelleNMB[[#This Row],[Menge]]*Daten!I132,\"\")","v":""},{"$f":"IFERROR(TabelleNMB[[#This Row],[Menge]]*Daten!J132,\"\")","v":""},{"$f":"IF(TabelleNMB[[#This Row],[Materialien]]=\"\",\"\",\"kg/Jahr\")","v":"kg/Jahr"},null,"Sand (Bausand)","Materialien (Bestandteile des Produkts)",{"$f":"IFERROR(INDEX(TabelleMB[[Materialien]:[GWP]],(MATCH(TabelleGWP[[#This Row],[GWP]],TabelleGWP[GWP],0)),5),\"\")","v":""}]
[null,"Spanplatte",{"$f":"IFERROR(INDEX(Tabelle1[[Materialien]:[Menge]],(MATCH(TabelleMB[[#This Row],[Materialien]],Tabelle1[Materialien],0)),2),\"\")","v":""},{"$f":"IFERROR(TabelleMB[[#This Row],[Menge]]*Daten!C133,\"\")","v":""},{"$f":"IFERROR(TabelleMB[[#This Row],[Menge]]*Daten!D133,\"\")","v":""},{"$f":"IFERROR(TabelleMB[[#This Row],[Menge]]*Daten!E133,\"\")","v":""},{"$f":"IF(TabelleMB[[#This Row],[Materialien]]=\"\",\"\",\"GJ/Jahr\")","v":"GJ/Jahr"},null,"Spanplatte",{"$f":"IFERROR(INDEX(Tabelle13[[Materialien]:[Menge]],(MATCH(TabelleNMB[[#This Row],[Materialien]],Tabelle13[Materialien],0)),2),\"\")","v":""},{"$f":"IFERROR(TabelleNMB[[#This Row],[Menge]]*Daten!H133,\"\")","v":""},{"$f":"IFERROR(TabelleNMB[[#This Row],[Menge]]*Daten!I133,\"\")","v":""},{"$f":"IFERROR(TabelleNMB[[#This Row],[Menge]]*Daten!J133,\"\")","v":""},{"$f":"IF(TabelleNMB[[#This Row],[Materialien]]=\"\",\"\",\"kg/Jahr\")","v":"kg/Jahr"},null,"Sauerstoff, flüssig","Materialien (Bestandteile des Produkts)",{"$f":"IFERROR(INDEX(TabelleMB[[Materialien]:[GWP]],(MATCH(TabelleGWP[[#This Row],[GWP]],TabelleGWP[GWP],0)),5),\"\")","v":""}]
[null,"Speckstein",{"$f":"IFERROR(INDEX(Tabelle1[[Materialien]:[Menge]],(MATCH(TabelleMB[[#This Row],[Materialien]],Tabelle1[Materialien],0)),2),\"\")","v":""},{"$f":"IFERROR(TabelleMB[[#This Row],[Menge]]*Daten!C134,\"\")","v":""},{"$f":"IFERROR(TabelleMB[[#This Row],[Menge]]*Daten!D134,\"\")","v":""},{"$f":"IFERROR(TabelleMB[[#This Row],[Menge]]*Daten!E134,\"\")","v":""},{"$f":"IF(TabelleMB[[#This Row],[Materialien]]=\"\",\"\",\"GJ/Jahr\")","v":"GJ/Jahr"},null,"Speckstein",{"$f":"IFERROR(INDEX(Tabelle13[[Materialien]:[Menge]],(MATCH(TabelleNMB[[#This Row],[Materialien]],Tabelle13[Materialien],0)),2),\"\")","v":""},{"$f":"IFERROR(TabelleNMB[[#This Row],[Menge]]*Daten!H134,\"\")","v":""},{"$f":"IFERROR(TabelleNMB[[#This Row],[Menge]]*Daten!I134,\"\")","v":""},{"$f":"IFERROR(TabelleNMB[[#This Row],[Menge]]*Daten!J134,\"\")","v":""},{"$f":"IF(TabelleNMB[[#This Row],[Materialien]]=\"\",\"\",\"kg/Jahr\")","v":"kg/Jahr"},null,"Schamottstein","Materialien (Bestandteile des Produkts)",{"$f":"IFERROR(INDEX(TabelleMB[[Materialien]:[GWP]],(MATCH(TabelleGWP[[#This Row],[GWP]],TabelleGWP[GWP],0)),5),\"\")","v":""}]
[null,"Splitt, Körnungen aus Marmor",{"$f":"IFERROR(INDEX(Tabelle1[[Materialien]:[Menge]],(MATCH(TabelleMB[[#This Row],[Materialien]],Tabelle1[Materialien],0)),2),\"\")","v":""},{"$f":"IFERROR(TabelleMB[[#This Row],[Menge]]*Daten!C135,\"\")","v":""},{"$f":"IFERROR(TabelleMB[[#This Row],[Menge]]*Daten!D135,\"\")","v":""},{"$f":"IFERROR(TabelleMB[[#This Row],[Menge]]*Daten!E135,\"\")","v":""},{"$f":"IF(TabelleMB[[#This Row],[Materialien]]=\"\",\"\",\"GJ/Jahr\")","v":"GJ/Jahr"},null,"Splitt, Körnungen aus Marmor",{"$f":"IFERROR(INDEX(Tabelle13[[Materialien]:[Menge]],(MATCH(TabelleNMB[[#This Row],[Materialien]],Tabelle13[Materialien],0)),2),\"\")","v":""},{"$f":"IFERROR(TabelleNMB[[#This Row],[Menge]]*Daten!H135,\"\")","v":""},{"$f":"IFERROR(TabelleNMB[[#This Row],[Menge]]*Daten!I135,\"\")","v":""},{"$f":"IFERROR(TabelleNMB[[#This Row],[Menge]]*Daten!J135,\"\")","v":""},{"$f":"IF(TabelleNMB[[#This Row],[Materialien]]=\"\",\"\",\"kg/Jahr\")","v":"kg/Jahr"},null,"Schiefer","Materialien (Bestandteile des Produkts)",{"$f":"IFERROR(INDEX(TabelleMB[[Materialien]:[GWP]],(MATCH(TabelleGWP[[#This Row],[GWP]],TabelleGWP[GWP],0)),5),\"\")","v":""}]
[null,"Stahl (Elektrostahl)",{"$f":"IFERROR(INDEX(Tabelle1[[Materialien]:[Menge]],(MATCH(TabelleMB[[#This Row],[Materialien]],Tabelle1[Materialien],0)),2),\"\")","v":""},{"$f":"IFERROR(TabelleMB[[#This Row],[Menge]]*Daten!C136,\"\")","v":""},{"$f":"IFERROR(TabelleMB[[#This Row],[Menge]]*Daten!D136,\"\")","v":""},{"$f":"IFERROR(TabelleMB[[#This Row],[Menge]]*Daten!E136,\"\")","v":""},{"$f":"IF(TabelleMB[[#This Row],[Materialien]]=\"\",\"\",\"GJ/Jahr\")","v":"GJ/Jahr"},null,"Stahl (Elektrostahl)",{"$f":"IFERROR(INDEX(Tabelle13[[Materialien]:[Menge]],(MATCH(TabelleNMB[[#This Row],[Materialien]],Tabelle13[Materialien],0)),2),\"\")","v":""},{"$f":"IFERROR(TabelleNMB[[#This Row],[Menge]]*Daten!H136,\"\")","v":""},{"$f":"IFERROR(TabelleNMB[[#This Row],[Menge]]*Daten!I136,\"\")","v":""},{"$f":"IFERROR(TabelleNMB[[#This Row],[Menge]]*Daten!J136,\"\")","v":""},{"$f":"IF(TabelleNMB[[#This Row],[Materialien]]=\"\",\"\",\"kg/Jahr\")","v":"kg/Jahr"},null,"Schmieröl","Materialien (Bestandteile des Produkts)",{"$f":"IFERROR(INDEX(TabelleMB[[Materialien]:[GWP]],(MATCH(TabelleGWP[[#This Row],[GWP]],TabelleGWP[GWP],0)),5),\"\")","v":""}]
[null,"Stahl (Konvertstahl)",{"$f":"IFERROR(INDEX(Tabelle1[[Materialien]:[Menge]],(MATCH(TabelleMB[[#This Row],[Materialien]],Tabelle1[Materialien],0)),2),\"\")","v":""},{"$f":"IFERROR(TabelleMB[[#This Row],[Menge]]*Daten!C137,\"\")","v":""},{"$f":"IFERROR(TabelleMB[[#This Row],[Menge]]*Daten!D137,\"\")","v":""},{"$f":"IFERROR(TabelleMB[[#This Row],[Menge]]*Daten!E137,\"\")","v":""},{"$f":"IF(TabelleMB[[#This Row],[Materialien]]=\"\",\"\",\"GJ/Jahr\")","v":"GJ/Jahr"},null,"Stahl (Konvertstahl)",{"$f":"IFERROR(INDEX(Tabelle13[[Materialien]:[Menge]],(MATCH(TabelleNMB[[#This Row],[Materialien]],Tabelle13[Materialien],0)),2),\"\")","v":""},{"$f":"IFERROR(TabelleNMB[[#This Row],[Menge]]*Daten!H137,\"\")","v":""},{"$f":"IFERROR(TabelleNMB[[#This Row],[Menge]]*Daten!I137,\"\")","v":""},{"$f":"IFERROR(TabelleNMB[[#This Row],[Menge]]*Daten!J137,\"\")","v":""},{"$f":"IF(TabelleNMB[[#This Row],[Materialien]]=\"\",\"\",\"kg/Jahr\")","v":"kg/Jahr"},null,"Schmirgel, Korund, Granat (Schleifmittel)","Materialien (Bestandteile des Produkts)",{"$f":"IFERROR(INDEX(TabelleMB[[Materialien]:[GWP]],(MATCH(TabelleGWP[[#This Row],[GWP]],TabelleGWP[GWP],0)),5),\"\")","v":""}]
[null,"Stahlblech (ohne Prozessschritte für Stahlherstellung)",{"$f":"IFERROR(INDEX(Tabelle1[[Materialien]:[Menge]],(MATCH(TabelleMB[[#This Row],[Materialien]],Tabelle1[Materialien],0)),2),\"\")","v":""},{"$f":"IFERROR(TabelleMB[[#This Row],[Menge]]*Daten!C138,\"\")","v":""},{"$f":"IFERROR(TabelleMB[[#This Row],[Menge]]*Daten!D138,\"\")","v":""},{"$f":"IFERROR(TabelleMB[[#This Row],[Menge]]*Daten!E138,\"\")","v":""},{"$f":"IF(TabelleMB[[#This Row],[Materialien]]=\"\",\"\",\"GJ/Jahr\")","v":"GJ/Jahr"},null,"Stahlblech (ohne Prozessschritte für Stahlherstellung)",{"$f":"IFERROR(INDEX(Tabelle13[[Materialien]:[Menge]],(MATCH(TabelleNMB[[#This Row],[Materialien]],Tabelle13[Materialien],0)),2),\"\")","v":""},{"$f":"IFERROR(TabelleNMB[[#This Row],[Menge]]*Daten!H138,\"\")","v":""},{"$f":"IFERROR(TabelleNMB[[#This Row],[Menge]]*Daten!I138,\"\")","v":""},{"$f":"IFERROR(TabelleNMB[[#This Row],[Menge]]*Daten!J138,\"\")","v":""},{"$f":"IF(TabelleNMB[[#This Row],[Materialien]]=\"\",\"\",\"kg/Jahr\")","v":"kg/Jahr"},null,"Schwefel","Materialien (Bestandteile des Produkts)",{"$f":"IFERROR(INDEX(TabelleMB[[Materialien]:[GWP]],(MATCH(TabelleGWP[[#This Row],[GWP]],TabelleGWP[GWP],0)),5),\"\")","v":""}]
[null,"Stahlblech verzinkt",{"$f":"IFERROR(INDEX(Tabelle1[[Materialien]:[Menge]],(MATCH(TabelleMB[[#This Row],[Materialien]],Tabelle1[Materialien],0)),2),\"\")","v":""},{"$f":"IFERROR(TabelleMB[[#This Row],[Menge]]*Daten!C139,\"\")","v":""},{"$f":"IFERROR(TabelleMB[[#This Row],[Menge]]*Daten!D139,\"\")","v":""},{"$f":"IFERROR(TabelleMB[[#This Row],[Menge]]*Daten!E139,\"\")","v":""},{"$f":"IF(TabelleMB[[#This Row],[Materialien]]=\"\",\"\",\"GJ/Jahr\")","v":"GJ/Jahr"},null,"Stahlblech verzinkt",{"$f":"IFERROR(INDEX(Tabelle13[[Materialien]:[Menge]],(MATCH(TabelleNMB[[#This Row],[Materialien]],Tabelle13[Materialien],0)),2),\"\")","v":""},{"$f":"IFERROR(TabelleNMB[[#This Row],[Menge]]*Daten!H139,\"\")","v":""},{"$f":"IFERROR(TabelleNMB[[#This Row],[Menge]]*Daten!I139,\"\")","v":""},{"$f":"IFERROR(TabelleNMB[[#This Row],[Menge]]*Daten!J139,\"\")","v":""},{"$f":"IF(TabelleNMB[[#This Row],[Materialien]]=\"\",\"\",\"kg/Jahr\")","v":"kg/Jahr"},null,"Selen","Materialien (Bestandteile des Produkts)",{"$f":"IFERROR(INDEX(TabelleMB[[Materialien]:[GWP]],(MATCH(TabelleGWP[[#This Row],[GWP]],TabelleGWP[GWP],0)),5),\"\")","v":""}]
[null,"Steinsalz",{"$f":"IFERROR(INDEX(Tabelle1[[Materialien]:[Menge]],(MATCH(TabelleMB[[#This Row],[Materialien]],Tabelle1[Materialien],0)),2),\"\")","v":""},{"$f":"IFERROR(TabelleMB[[#This Row],[Menge]]*Daten!C140,\"\")","v":""},{"$f":"IFERROR(TabelleMB[[#This Row],[Menge]]*Daten!D140,\"\")","v":""},{"$f":"IFERROR(TabelleMB[[#This Row],[Menge]]*Daten!E140,\"\")","v":""},{"$f":"IF(TabelleMB[[#This Row],[Materialien]]=\"\",\"\",\"GJ/Jahr\")","v":"GJ/Jahr"},null,"Steinsalz",{"$f":"IFERROR(INDEX(Tabelle13[[Materialien]:[Menge]],(MATCH(TabelleNMB[[#This Row],[Materialien]],Tabelle13[Materialien],0)),2),\"\")","v":""},{"$f":"IFERROR(TabelleNMB[[#This Row],[Menge]]*Daten!H140,\"\")","v":""},{"$f":"IFERROR(TabelleNMB[[#This Row],[Menge]]*Daten!I140,\"\")","v":""},{"$f":"IFERROR(TabelleNMB[[#This Row],[Menge]]*Daten!J140,\"\")","v":""},{"$f":"IF(TabelleNMB[[#This Row],[Materialien]]=\"\",\"\",\"kg/Jahr\")","v":"kg/Jahr"},null,"Siedesalz","Materialien (Bestandteile des Produkts)",{"$f":"IFERROR(INDEX(TabelleMB[[Materialien]:[GWP]],(MATCH(TabelleGWP[[#This Row],[GWP]],TabelleGWP[GWP],0)),5),\"\")","v":""}]
[null,"Stickstoff, flüssig",{"$f":"IFERROR(INDEX(Tabelle1[[Materialien]:[Menge]],(MATCH(TabelleMB[[#This Row],[Materialien]],Tabelle1[Materialien],0)),2),\"\")","v":""},{"$f":"IFERROR(TabelleMB[[#This Row],[Menge]]*Daten!C141,\"\")","v":""},{"$f":"IFERROR(TabelleMB[[#This Row],[Menge]]*Daten!D141,\"\")","v":""},{"$f":"IFERROR(TabelleMB[[#This Row],[Menge]]*Daten!E141,\"\")","v":""},{"$f":"IF(TabelleMB[[#This Row],[Materialien]]=\"\",\"\",\"GJ/Jahr\")","v":"GJ/Jahr"},null,"Stickstoff, flüssig",{"$f":"IFERROR(INDEX(Tabelle13[[Materialien]:[Menge]],(MATCH(TabelleNMB[[#This Row],[Materialien]],Tabelle13[Materialien],0)),2),\"\")","v":""},{"$f":"IFERROR(TabelleNMB[[#This Row],[Menge]]*Daten!H141,\"\")","v":""},{"$f":"IFERROR(TabelleNMB[[#This Row],[Menge]]*Daten!I141,\"\")","v":""},{"$f":"IFERROR(TabelleNMB[[#This Row],[Menge]]*Daten!J141,\"\")","v":""},{"$f":"IF(TabelleNMB[[#This Row],[Materialien]]=\"\",\"\",\"kg/Jahr\")","v":"kg/Jahr"},null,"Silber","Materialien (Bestandteile des Produkts)",{"$f":"IFERROR(INDEX(TabelleMB[[Materialien]:[GWP]],(MATCH(TabelleGWP[[#This Row],[GWP]],TabelleGWP[GWP],0)),5),\"\")","v":""}]
[null,"Stroh (Winterweizen)",{"$f":"IFERROR(INDEX(Tabelle1[[Materialien]:[Menge]],(MATCH(TabelleMB[[#This Row],[Materialien]],Tabelle1[Materialien],0)),2),\"\")","v":""},{"$f":"IFERROR(TabelleMB[[#This Row],[Menge]]*Daten!C142,\"\")","v":""},{"$f":"IFERROR(TabelleMB[[#This Row],[Menge]]*Daten!D142,\"\")","v":""},{"$f":"IFERROR(TabelleMB[[#This Row],[Menge]]*Daten!E142,\"\")","v":""},{"$f":"IF(TabelleMB[[#This Row],[Materialien]]=\"\",\"\",\"GJ/Jahr\")","v":"GJ/Jahr"},null,"Stroh (Winterweizen)",{"$f":"IFERROR(INDEX(Tabelle13[[Materialien]:[Menge]],(MATCH(TabelleNMB[[#This Row],[Materialien]],Tabelle13[Materialien],0)),2),\"\")","v":""},{"$f":"IFERROR(TabelleNMB[[#This Row],[Menge]]*Daten!H142,\"\")","v":""},{"$f":"IFERROR(TabelleNMB[[#This Row],[Menge]]*Daten!I142,\"\")","v":""},{"$f":"IFERROR(TabelleNMB[[#This Row],[Menge]]*Daten!J142,\"\")","v":""},{"$f":"IF(TabelleNMB[[#This Row],[Materialien]]=\"\",\"\",\"kg/Jahr\")","v":"kg/Jahr"},null,"Silizium","Materialien (Bestandteile des Produkts)",{"$f":"IFERROR(INDEX(TabelleMB[[Materialien]:[GWP]],(MATCH(TabelleGWP[[#This Row],[GWP]],TabelleGWP[GWP],0)),5),\"\")","v":""}]
[null,"Styrol",{"$f":"IFERROR(INDEX(Tabelle1[[Materialien]:[Menge]],(MATCH(TabelleMB[[#This Row],[Materialien]],Tabelle1[Materialien],0)),2),\"\")","v":""},{"$f":"IFERROR(TabelleMB[[#This Row],[Menge]]*Daten!C143,\"\")","v":""},{"$f":"IFERROR(TabelleMB[[#This Row],[Menge]]*Daten!D143,\"\")","v":""},{"$f":"IFERROR(TabelleMB[[#This Row],[Menge]]*Daten!E143,\"\")","v":""},{"$f":"IF(TabelleMB[[#This Row],[Materialien]]=\"\",\"\",\"GJ/Jahr\")","v":"GJ/Jahr"},null,"Styrol",{"$f":"IFERROR(INDEX(Tabelle13[[Materialien]:[Menge]],(MATCH(TabelleNMB[[#This Row],[Materialien]],Tabelle13[Materialien],0)),2),\"\")","v":""},{"$f":"IFERROR(TabelleNMB[[#This Row],[Menge]]*Daten!H143,\"\")","v":""},{"$f":"IFERROR(TabelleNMB[[#This Row],[Menge]]*Daten!I143,\"\")","v":""},{"$f":"IFERROR(TabelleNMB[[#This Row],[Menge]]*Daten!J143,\"\")","v":""},{"$f":"IF(TabelleNMB[[#This Row],[Materialien]]=\"\",\"\",\"kg/Jahr\")","v":"kg/Jahr"},null,"Sillimanit","Materialien (Bestandteile des Produkts)",{"$f":"IFERROR(INDEX(TabelleMB[[Materialien]:[GWP]],(MATCH(TabelleGWP[[#This Row],[GWP]],TabelleGWP[GWP],0)),5),\"\")","v":""}]
[null,"Talk, Talkum",{"$f":"IFERROR(INDEX(Tabelle1[[Materialien]:[Menge]],(MATCH(TabelleMB[[#This Row],[Materialien]],Tabelle1[Materialien],0)),2),\"\")","v":""},{"$f":"IFERROR(TabelleMB[[#This Row],[Menge]]*Daten!C144,\"\")","v":""},{"$f":"IFERROR(TabelleMB[[#This Row],[Menge]]*Daten!D144,\"\")","v":""},{"$f":"IFERROR(TabelleMB[[#This Row],[Menge]]*Daten!E144,\"\")","v":""},{"$f":"IF(TabelleMB[[#This Row],[Materialien]]=\"\",\"\",\"GJ/Jahr\")","v":"GJ/Jahr"},null,"Talk, Talkum",{"$f":"IFERROR(INDEX(Tabelle13[[Materialien]:[Menge]],(MATCH(TabelleNMB[[#This Row],[Materialien]],Tabelle13[Materialien],0)),2),\"\")","v":""},{"$f":"IFERROR(TabelleNMB[[#This Row],[Menge]]*Daten!H144,\"\")","v":""},{"$f":"IFERROR(TabelleNMB[[#This Row],[Menge]]*Daten!I144,\"\")","v":""},{"$f":"IFERROR(TabelleNMB[[#This Row],[Menge]]*Daten!J144,\"\")","v":""},{"$f":"IF(TabelleNMB[[#This Row],[Materialien]]=\"\",\"\",\"kg/Jahr\")","v":"kg/Jahr"},null,"Soda","Materialien (Bestandteile des Produkts)",{"$f":"IFERROR(INDEX(TabelleMB[[Materialien]:[GWP]],(MATCH(TabelleGWP[[#This Row],[GWP]],TabelleGWP[GWP],0)),5),\"\")","v":""}]
[null,"Tantal",{"$f":"IFERROR(INDEX(Tabelle1[[Materialien]:[Menge]],(MATCH(TabelleMB[[#This Row],[Materialien]],Tabelle1[Materialien],0)),2),\"\")","v":""},{"$f":"IFERROR(TabelleMB[[#This Row],[Menge]]*Daten!C145,\"\")","v":""},{"$f":"IFERROR(TabelleMB[[#This Row],[Menge]]*Daten!D145,\"\")","v":""},{"$f":"IFERROR(TabelleMB[[#This Row],[Menge]]*Daten!E145,\"\")","v":""},{"$f":"IF(TabelleMB[[#This Row],[Materialien]]=\"\",\"\",\"GJ/Jahr\")","v":"GJ/Jahr"},null,"Tantal",{"$f":"IFERROR(INDEX(Tabelle13[[Materialien]:[Menge]],(MATCH(TabelleNMB[[#This Row],[Materialien]],Tabelle13[Materialien],0)),2),\"\")","v":""},{"$f":"IFERROR(TabelleNMB[[#This Row],[Menge]]*Daten!H145,\"\")","v":""},{"$f":"IFERROR(TabelleNMB[[#This Row],[Menge]]*Daten!I145,\"\")","v":""},{"$f":"IFERROR(TabelleNMB[[#This Row],[Menge]]*Daten!J145,\"\")","v":""},{"$f":"IF(TabelleNMB[[#This Row],[Materialien]]=\"\",\"\",\"kg/Jahr\")","v":"kg/Jahr"},null,"Spanplatte","Materialien (Bestandteile des Produkts)",{"$f":"IFERROR(INDEX(TabelleMB[[Materialien]:[GWP]],(MATCH(TabelleGWP[[#This Row],[GWP]],TabelleGWP[GWP],0)),5),\"\")","v":""}]
[null,"Thallium",{"$f":"IFERROR(INDEX(Tabelle1[[Materialien]:[Menge]],(MATCH(TabelleMB[[#This Row],[Materialien]],Tabelle1[Materialien],0)),2),\"\")","v":""},{"$f":"IFERROR(TabelleMB[[#This Row],[Menge]]*Daten!C146,\"\")","v":""},{"$f":"IFERROR(TabelleMB[[#This Row],[Menge]]*Daten!D146,\"\")","v":""},{"$f":"IFERROR(TabelleMB[[#This Row],[Menge]]*Daten!E146,\"\")","v":""},{"$f":"IF(TabelleMB[[#This Row],[Materialien]]=\"\",\"\",\"GJ/Jahr\")","v":"GJ/Jahr"},null,"Thallium",{"$f":"IFERROR(INDEX(Tabelle13[[Materialien]:[Menge]],(MATCH(TabelleNMB[[#This Row],[Materialien]],Tabelle13[Materialien],0)),2),\"\")","v":""},{"$f":"IFERROR(TabelleNMB[[#This Row],[Menge]]*Daten!H146,\"\")","v":""},{"$f":"IFERROR(TabelleNMB[[#This Row],[Menge]]*Daten!I146,\"\")","v":""},{"$f":"IFERROR(TabelleNMB[[#This Row],[Menge]]*Daten!J146,\"\")","v":""},{"$f":"IF(TabelleNMB[[#This Row],[Materialien]]=\"\",\"\",\"kg/Jahr\")","v":"kg/Jahr"},null,"Speckstein","Materialien (Bestandteile des Produkts)",{"$f":"IFERROR(INDEX(TabelleMB[[Materialien]:[GWP]],(MATCH(TabelleGWP[[#This Row],[GWP]],TabelleGWP[GWP],0)),5),\"\")","v":""}]
[null,"Titan",{"$f":"IFERROR(INDEX(Tabelle1[[Materialien]:[Menge]],(MATCH(TabelleMB[[#This Row],[Materialien]],Tabelle1[Materialien],0)),2),\"\")","v":""},{"$f":"IFERROR(TabelleMB[[#This Row],[Menge]]*Daten!C147,\"\")","v":""},{"$f":"IFERROR(TabelleMB[[#This Row],[Menge]]*Daten!D147,\"\")","v":""},{"$f":"IFERROR(TabelleMB[[#This Row],[Menge]]*Daten!E147,\"\")","v":""},{"$f":"IF(TabelleMB[[#This Row],[Materialien]]=\"\",\"\",\"GJ/Jahr\")","v":"GJ/Jahr"},null,"Titan",{"$f":"IFERROR(INDEX(Tabelle13[[Materialien]:[Menge]],(MATCH(TabelleNMB[[#This Row],[Materialien]],Tabelle13[Materialien],0)),2),\"\")","v":""},{"$f":"IFERROR(TabelleNMB[[#This Row],[Menge]]*Daten!H147,\"\")","v":""},{"$f":"IFERROR(TabelleNMB[[#This Row],[Menge]]*Daten!I147,\"\")","v":""},{"$f":"IFERROR(TabelleNMB[[#This Row],[Menge]]*Daten!J147,\"\")","v":""},{"$f":"IF(TabelleNMB[[#This Row],[Materialien]]=\"\",\"\",\"kg/Jahr\")","v":"kg/Jahr"},null,"Splitt, Körnungen aus Marmor","Materialien (Bestandteile des Produkts)",{"$f":"IFERROR(INDEX(TabelleMB[[Materialien]:[GWP]],(MATCH(TabelleGWP[[#This Row],[GWP]],TabelleGWP[GWP],0)),5),\"\")","v":""}]
[null,"Torf",{"$f":"IFERROR(INDEX(Tabelle1[[Materialien]:[Menge]],(MATCH(TabelleMB[[#This Row],[Materialien]],Tabelle1[Materialien],0)),2),\"\")","v":""},{"$f":"IFERROR(TabelleMB[[#This Row],[Menge]]*Daten!C148,\"\")","v":""},{"$f":"IFERROR(TabelleMB[[#This Row],[Menge]]*Daten!D148,\"\")","v":""},{"$f":"IFERROR(TabelleMB[[#This Row],[Menge]]*Daten!E148,\"\")","v":""},{"$f":"IF(TabelleMB[[#This Row],[Materialien]]=\"\",\"\",\"GJ/Jahr\")","v":"GJ/Jahr"},null,"Torf",{"$f":"IFERROR(INDEX(Tabelle13[[Materialien]:[Menge]],(MATCH(TabelleNMB[[#This Row],[Materialien]],Tabelle13[Materialien],0)),2),\"\")","v":""},{"$f":"IFERROR(TabelleNMB[[#This Row],[Menge]]*Daten!H148,\"\")","v":""},{"$f":"IFERROR(TabelleNMB[[#This Row],[Menge]]*Daten!I148,\"\")","v":""},{"$f":"IFERROR(TabelleNMB[[#This Row],[Menge]]*Daten!J148,\"\")","v":""},{"$f":"IF(TabelleNMB[[#This Row],[Materialien]]=\"\",\"\",\"kg/Jahr\")","v":"kg/Jahr"},null,"Stahl (Elektrostahl)","Materialien (Bestandteile des Produkts)",{"$f":"IFERROR(INDEX(TabelleMB[[Materialien]:[GWP]],(MATCH(TabelleGWP[[#This Row],[GWP]],TabelleGWP[GWP],0)),5),\"\")","v":""}]
[null,"Trass",{"$f":"IFERROR(INDEX(Tabelle1[[Materialien]:[Menge]],(MATCH(TabelleMB[[#This Row],[Materialien]],Tabelle1[Materialien],0)),2),\"\")","v":""},{"$f":"IFERROR(TabelleMB[[#This Row],[Menge]]*Daten!C149,\"\")","v":""},{"$f":"IFERROR(TabelleMB[[#This Row],[Menge]]*Daten!D149,\"\")","v":""},{"$f":"IFERROR(TabelleMB[[#This Row],[Menge]]*Daten!E149,\"\")","v":""},{"$f":"IF(TabelleMB[[#This Row],[Materialien]]=\"\",\"\",\"GJ/Jahr\")","v":"GJ/Jahr"},null,"Trass",{"$f":"IFERROR(INDEX(Tabelle13[[Materialien]:[Menge]],(MATCH(TabelleNMB[[#This Row],[Materialien]],Tabelle13[Materialien],0)),2),\"\")","v":""},{"$f":"IFERROR(TabelleNMB[[#This Row],[Menge]]*Daten!H149,\"\")","v":""},{"$f":"IFERROR(TabelleNMB[[#This Row],[Menge]]*Daten!I149,\"\")","v":""},{"$f":"IFERROR(TabelleNMB[[#This Row],[Menge]]*Daten!J149,\"\")","v":""},{"$f":"IF(TabelleNMB[[#This Row],[Materialien]]=\"\",\"\",\"kg/Jahr\")","v":"kg/Jahr"},null,"Stahl (Konvertstahl)","Materialien (Bestandteile des Produkts)",{"$f":"IFERROR(INDEX(TabelleMB[[Materialien]:[GWP]],(MATCH(TabelleGWP[[#This Row],[GWP]],TabelleGWP[GWP],0)),5),\"\")","v":""}]
[null,"Tuffstein",{"$f":"IFERROR(INDEX(Tabelle1[[Materialien]:[Menge]],(MATCH(TabelleMB[[#This Row],[Materialien]],Tabelle1[Materialien],0)),2),\"\")","v":""},{"$f":"IFERROR(TabelleMB[[#This Row],[Menge]]*Daten!C150,\"\")","v":""},{"$f":"IFERROR(TabelleMB[[#This Row],[Menge]]*Daten!D150,\"\")","v":""},{"$f":"IFERROR(TabelleMB[[#This Row],[Menge]]*Daten!E150,\"\")","v":""},{"$f":"IF(TabelleMB[[#This Row],[Materialien]]=\"\",\"\",\"GJ/Jahr\")","v":"GJ/Jahr"},null,"Tuffstein",{"$f":"IFERROR(INDEX(Tabelle13[[Materialien]:[Menge]],(MATCH(TabelleNMB[[#This Row],[Materialien]],Tabelle13[Materialien],0)),2),\"\")","v":""},{"$f":"IFERROR(TabelleNMB[[#This Row],[Menge]]*Daten!H150,\"\")","v":""},{"$f":"IFERROR(TabelleNMB[[#This Row],[Menge]]*Daten!I150,\"\")","v":""},{"$f":"IFERROR(TabelleNMB[[#This Row],[Menge]]*Daten!J150,\"\")","v":""},{"$f":"IF(TabelleNMB[[#This Row],[Materialien]]=\"\",\"\",\"kg/Jahr\")","v":"kg/Jahr"},null,"Stahlblech (ohne Prozessschritte für Stahlherstellung)","Materialien (Bestandteile des Produkts)",{"$f":"IFERROR(INDEX(TabelleMB[[Materialien]:[GWP]],(MATCH(TabelleGWP[[#This Row],[GWP]],TabelleGWP[GWP],0)),5),\"\")","v":""}]
[null,"Uran",{"$f":"IFERROR(INDEX(Tabelle1[[Materialien]:[Menge]],(MATCH(TabelleMB[[#This Row],[Materialien]],Tabelle1[Materialien],0)),2),\"\")","v":""},{"$f":"IFERROR(TabelleMB[[#This Row],[Menge]]*Daten!C151,\"\")","v":""},{"$f":"IFERROR(TabelleMB[[#This Row],[Menge]]*Daten!D151,\"\")","v":""},{"$f":"IFERROR(TabelleMB[[#This Row],[Menge]]*Daten!E151,\"\")","v":""},{"$f":"IF(TabelleMB[[#This Row],[Materialien]]=\"\",\"\",\"GJ/Jahr\")","v":"GJ/Jahr"},null,"Uran",{"$f":"IFERROR(INDEX(Tabelle13[[Materialien]:[Menge]],(MATCH(TabelleNMB[[#This Row],[Materialien]],Tabelle13[Materialien],0)),2),\"\")","v":""},{"$f":"IFERROR(TabelleNMB[[#This Row],[Menge]]*Daten!H151,\"\")","v":""},{"$f":"IFERROR(TabelleNMB[[#This Row],[Menge]]*Daten!I151,\"\")","v":""},{"$f":"IFERROR(TabelleNMB[[#This Row],[Menge]]*Daten!J151,\"\")","v":""},{"$f":"IF(TabelleNMB[[#This Row],[Materialien]]=\"\",\"\",\"kg/Jahr\")","v":"kg/Jahr"},null,"Stahlblech verzinkt","Materialien (Bestandteile des Produkts)",{"$f":"IFERROR(INDEX(TabelleMB[[Materialien]:[GWP]],(MATCH(TabelleGWP[[#This Row],[GWP]],TabelleGWP[GWP],0)),5),\"\")","v":""}]
[null,"Vermikulit",{"$f":"IFERROR(INDEX(Tabelle1[[Materialien]:[Menge]],(MATCH(TabelleMB[[#This Row],[Materialien]],Tabelle1[Materialien],0)),2),\"\")","v":""},{"$f":"IFERROR(TabelleMB[[#This Row],[Menge]]*Daten!C152,\"\")","v":""},{"$f":"IFERROR(TabelleMB[[#This Row],[Menge]]*Daten!D152,\"\")","v":""},{"$f":"IFERROR(TabelleMB[[#This Row],[Menge]]*Daten!E152,\"\")","v":""},{"$f":"IF(TabelleMB[[#This Row],[Materialien]]=\"\",\"\",\"GJ/Jahr\")","v":"GJ/Jahr"},null,"Vermikulit",{"$f":"IFERROR(INDEX(Tabelle13[[Materialien]:[Menge]],(MATCH(TabelleNMB[[#This Row],[Materialien]],Tabelle13[Materialien],0)),2),\"\")","v":""},{"$f":"IFERROR(TabelleNMB[[#This Row],[Menge]]*Daten!H152,\"\")","v":""},{"$f":"IFERROR(TabelleNMB[[#This Row],[Menge]]*Daten!I152,\"\")","v":""},{"$f":"IFERROR(TabelleNMB[[#This Row],[Menge]]*Daten!J152,\"\")","v":""},{"$f":"IF(TabelleNMB[[#This Row],[Materialien]]=\"\",\"\",\"kg/Jahr\")","v":"kg/Jahr"},null,"Steinsalz","Materialien (Bestandteile des Produkts)",{"$f":"IFERROR(INDEX(TabelleMB[[Materialien]:[GWP]],(MATCH(TabelleGWP[[#This Row],[GWP]],TabelleGWP[GWP],0)),5),\"\")","v":""}]
[null,"Wafer",{"$f":"IFERROR(INDEX(Tabelle1[[Materialien]:[Menge]],(MATCH(TabelleMB[[#This Row],[Materialien]],Tabelle1[Materialien],0)),2),\"\")","v":""},{"$f":"IFERROR(TabelleMB[[#This Row],[Menge]]*Daten!C153,\"\")","v":""},{"$f":"IFERROR(TabelleMB[[#This Row],[Menge]]*Daten!D153,\"\")","v":""},{"$f":"IFERROR(TabelleMB[[#This Row],[Menge]]*Daten!E153,\"\")","v":""},{"$f":"IF(TabelleMB[[#This Row],[Materialien]]=\"\",\"\",\"GJ/Jahr\")","v":"GJ/Jahr"},null,"Wafer",{"$f":"IFERROR(INDEX(Tabelle13[[Materialien]:[Menge]],(MATCH(TabelleNMB[[#This Row],[Materialien]],Tabelle13[Materialien],0)),2),\"\")","v":""},{"$f":"IFERROR(TabelleNMB[[#This Row],[Menge]]*Daten!H153,\"\")","v":""},{"$f":"IFERROR(TabelleNMB[[#This Row],[Menge]]*Daten!I153,\"\")","v":""},{"$f":"IFERROR(TabelleNMB[[#This Row],[Menge]]*Daten!J153,\"\")","v":""},{"$f":"IF(TabelleNMB[[#This Row],[Materialien]]=\"\",\"\",\"kg/Jahr\")","v":"kg/Jahr"},null,"Stickstoff, flüssig","Materialien (Bestandteile des Produkts)",{"$f":"IFERROR(INDEX(TabelleMB[[Materialien]:[GWP]],(MATCH(TabelleGWP[[#This Row],[GWP]],TabelleGWP[GWP],0)),5),\"\")","v":""}]
[null,"Wasserglas",{"$f":"IFERROR(INDEX(Tabelle1[[Materialien]:[Menge]],(MATCH(TabelleMB[[#This Row],[Materialien]],Tabelle1[Materialien],0)),2),\"\")","v":""},{"$f":"IFERROR(TabelleMB[[#This Row],[Menge]]*Daten!C154,\"\")","v":""},{"$f":"IFERROR(TabelleMB[[#This Row],[Menge]]*Daten!D154,\"\")","v":""},{"$f":"IFERROR(TabelleMB[[#This Row],[Menge]]*Daten!E154,\"\")","v":""},{"$f":"IF(TabelleMB[[#This Row],[Materialien]]=\"\",\"\",\"GJ/Jahr\")","v":"GJ/Jahr"},null,"Wasserglas",{"$f":"IFERROR(INDEX(Tabelle13[[Materialien]:[Menge]],(MATCH(TabelleNMB[[#This Row],[Materialien]],Tabelle13[Materialien],0)),2),\"\")","v":""},{"$f":"IFERROR(TabelleNMB[[#This Row],[Menge]]*Daten!H154,\"\")","v":""},{"$f":"IFERROR(TabelleNMB[[#This Row],[Menge]]*Daten!I154,\"\")","v":""},{"$f":"IFERROR(TabelleNMB[[#This Row],[Menge]]*Daten!J154,\"\")","v":""},{"$f":"IF(TabelleNMB[[#This Row],[Materialien]]=\"\",\"\",\"kg/Jahr\")","v":"kg/Jahr"},null,"Stroh (Winterweizen)","Materialien (Bestandteile des Produkts)",{"$f":"IFERROR(INDEX(TabelleMB[[Materialien]:[GWP]],(MATCH(TabelleGWP[[#This Row],[GWP]],TabelleGWP[GWP],0)),5),\"\")","v":""}]
[null,"Wasserstoff",{"$f":"IFERROR(INDEX(Tabelle1[[Materialien]:[Menge]],(MATCH(TabelleMB[[#This Row],[Materialien]],Tabelle1[Materialien],0)),2),\"\")","v":""},{"$f":"IFERROR(TabelleMB[[#This Row],[Menge]]*Daten!C155,\"\")","v":""},{"$f":"IFERROR(TabelleMB[[#This Row],[Menge]]*Daten!D155,\"\")","v":""},{"$f":"IFERROR(TabelleMB[[#This Row],[Menge]]*Daten!E155,\"\")","v":""},{"$f":"IF(TabelleMB[[#This Row],[Materialien]]=\"\",\"\",\"GJ/Jahr\")","v":"GJ/Jahr"},null,"Wasserstoff",{"$f":"IFERROR(INDEX(Tabelle13[[Materialien]:[Menge]],(MATCH(TabelleNMB[[#This Row],[Materialien]],Tabelle13[Materialien],0)),2),\"\")","v":""},{"$f":"IFERROR(TabelleNMB[[#This Row],[Menge]]*Daten!H155,\"\")","v":""},{"$f":"IFERROR(TabelleNMB[[#This Row],[Menge]]*Daten!I155,\"\")","v":""},{"$f":"IFERROR(TabelleNMB[[#This Row],[Menge]]*Daten!J155,\"\")","v":""},{"$f":"IF(TabelleNMB[[#This Row],[Materialien]]=\"\",\"\",\"kg/Jahr\")","v":"kg/Jahr"},null,"Styrol","Materialien (Bestandteile des Produkts)",{"$f":"IFERROR(INDEX(TabelleMB[[Materialien]:[GWP]],(MATCH(TabelleGWP[[#This Row],[GWP]],TabelleGWP[GWP],0)),5),\"\")","v":""}]
[null,"Wismut",{"$f":"IFERROR(INDEX(Tabelle1[[Materialien]:[Menge]],(MATCH(TabelleMB[[#This Row],[Materialien]],Tabelle1[Materialien],0)),2),\"\")","v":""},{"$f":"IFERROR(TabelleMB[[#This Row],[Menge]]*Daten!C156,\"\")","v":""},{"$f":"IFERROR(TabelleMB[[#This Row],[Menge]]*Daten!D156,\"\")","v":""},{"$f":"IFERROR(TabelleMB[[#This Row],[Menge]]*Daten!E156,\"\")","v":""},{"$f":"IF(TabelleMB[[#This Row],[Materialien]]=\"\",\"\",\"GJ/Jahr\")","v":"GJ/Jahr"},null,"Wismut",{"$f":"IFERROR(INDEX(Tabelle13[[Materialien]:[Menge]],(MATCH(TabelleNMB[[#This Row],[Materialien]],Tabelle13[Materialien],0)),2),\"\")","v":""},{"$f":"IFERROR(TabelleNMB[[#This Row],[Menge]]*Daten!H156,\"\")","v":""},{"$f":"IFERROR(TabelleNMB[[#This Row],[Menge]]*Daten!I156,\"\")","v":""},{"$f":"IFERROR(TabelleNMB[[#This Row],[Menge]]*Daten!J156,\"\")","v":""},{"$f":"IF(TabelleNMB[[#This Row],[Materialien]]=\"\",\"\",\"kg/Jahr\")","v":"kg/Jahr"},null,"Talk, Talkum","Materialien (Bestandteile des Produkts)",{"$f":"IFERROR(INDEX(TabelleMB[[Materialien]:[GWP]],(MATCH(TabelleGWP[[#This Row],[GWP]],TabelleGWP[GWP],0)),5),\"\")","v":""}]
[null,"Wolfram",{"$f":"IFERROR(INDEX(Tabelle1[[Materialien]:[Menge]],(MATCH(TabelleMB[[#This Row],[Materialien]],Tabelle1[Materialien],0)),2),\"\")","v":""},{"$f":"IFERROR(TabelleMB[[#This Row],[Menge]]*Daten!C157,\"\")","v":""},{"$f":"IFERROR(TabelleMB[[#This Row],[Menge]]*Daten!D157,\"\")","v":""},{"$f":"IFERROR(TabelleMB[[#This Row],[Menge]]*Daten!E157,\"\")","v":""},{"$f":"IF(TabelleMB[[#This Row],[Materialien]]=\"\",\"\",\"GJ/Jahr\")","v":"GJ/Jahr"},null,"Wolfram",{"$f":"IFERROR(INDEX(Tabelle13[[Materialien]:[Menge]],(MATCH(TabelleNMB[[#This Row],[Materialien]],Tabelle13[Materialien],0)),2),\"\")","v":""},{"$f":"IFERROR(TabelleNMB[[#This Row],[Menge]]*Daten!H157,\"\")","v":""},{"$f":"IFERROR(TabelleNMB[[#This Row],[Menge]]*Daten!I157,\"\")","v":""},{"$f":"IFERROR(TabelleNMB[[#This Row],[Menge]]*Daten!J157,\"\")","v":""},{"$f":"IF(TabelleNMB[[#This Row],[Materialien]]=\"\",\"\",\"kg/Jahr\")","v":"kg/Jahr"},null,"Tantal","Materialien (Bestandteile des Produkts)",{"$f":"IFERROR(INDEX(TabelleMB[[Materialien]:[GWP]],(MATCH(TabelleGWP[[#This Row],[GWP]],TabelleGWP[GWP],0)),5),\"\")","v":""}]
[null,"Zeitungsdruckpapier",{"$f":"IFERROR(INDEX(Tabelle1[[Materialien]:[Menge]],(MATCH(TabelleMB[[#This Row],[Materialien]],Tabelle1[Materialien],0)),2),\"\")","v":""},{"$f":"IFERROR(TabelleMB[[#This Row],[Menge]]*Daten!C158,\"\")","v":""},{"$f":"IFERROR(TabelleMB[[#This Row],[Menge]]*Daten!D158,\"\")","v":""},{"$f":"IFERROR(TabelleMB[[#This Row],[Menge]]*Daten!E158,\"\")","v":""},{"$f":"IF(TabelleMB[[#This Row],[Materialien]]=\"\",\"\",\"GJ/Jahr\")","v":"GJ/Jahr"},null,"Zeitungsdruckpapier",{"$f":"IFERROR(INDEX(Tabelle13[[Materialien]:[Menge]],(MATCH(TabelleNMB[[#This Row],[Materialien]],Tabelle13[Materialien],0)),2),\"\")","v":""},{"$f":"IFERROR(TabelleNMB[[#This Row],[Menge]]*Daten!H158,\"\")","v":""},{"$f":"IFERROR(TabelleNMB[[#This Row],[Menge]]*Daten!I158,\"\")","v":""},{"$f":"IFERROR(TabelleNMB[[#This Row],[Menge]]*Daten!J158,\"\")","v":""},{"$f":"IF(TabelleNMB[[#This Row],[Materialien]]=\"\",\"\",\"kg/Jahr\")","v":"kg/Jahr"},null,"Thallium","Materialien (Bestandteile des Produkts)",{"$f":"IFERROR(INDEX(TabelleMB[[Materialien]:[GWP]],(MATCH(TabelleGWP[[#This Row],[GWP]],TabelleGWP[GWP],0)),5),\"\")","v":""}]
[null,"Zellstoff (Sulfatzellstoff)",{"$f":"IFERROR(INDEX(Tabelle1[[Materialien]:[Menge]],(MATCH(TabelleMB[[#This Row],[Materialien]],Tabelle1[Materialien],0)),2),\"\")","v":""},{"$f":"IFERROR(TabelleMB[[#This Row],[Menge]]*Daten!C159,\"\")","v":""},{"$f":"IFERROR(TabelleMB[[#This Row],[Menge]]*Daten!D159,\"\")","v":""},{"$f":"IFERROR(TabelleMB[[#This Row],[Menge]]*Daten!E159,\"\")","v":""},{"$f":"IF(TabelleMB[[#This Row],[Materialien]]=\"\",\"\",\"GJ/Jahr\")","v":"GJ/Jahr"},null,"Zellstoff (Sulfatzellstoff)",{"$f":"IFERROR(INDEX(Tabelle13[[Materialien]:[Menge]],(MATCH(TabelleNMB[[#This Row],[Materialien]],Tabelle13[Materialien],0)),2),\"\")","v":""},{"$f":"IFERROR(TabelleNMB[[#This Row],[Menge]]*Daten!H159,\"\")","v":""},{"$f":"IFERROR(TabelleNMB[[#This Row],[Menge]]*Daten!I159,\"\")","v":""},{"$f":"IFERROR(TabelleNMB[[#This Row],[Menge]]*Daten!J159,\"\")","v":""},{"$f":"IF(TabelleNMB[[#This Row],[Materialien]]=\"\",\"\",\"kg/Jahr\")","v":"kg/Jahr"},null,"Titan","Materialien (Bestandteile des Produkts)",{"$f":"IFERROR(INDEX(TabelleMB[[Materialien]:[GWP]],(MATCH(TabelleGWP[[#This Row],[GWP]],TabelleGWP[GWP],0)),5),\"\")","v":""}]
[null,"Zellstoff (Sulfitzellstoff)",{"$f":"IFERROR(INDEX(Tabelle1[[Materialien]:[Menge]],(MATCH(TabelleMB[[#This Row],[Materialien]],Tabelle1[Materialien],0)),2),\"\")","v":""},{"$f":"IFERROR(TabelleMB[[#This Row],[Menge]]*Daten!C160,\"\")","v":""},{"$f":"IFERROR(TabelleMB[[#This Row],[Menge]]*Daten!D160,\"\")","v":""},{"$f":"IFERROR(TabelleMB[[#This Row],[Menge]]*Daten!E160,\"\")","v":""},{"$f":"IF(TabelleMB[[#This Row],[Materialien]]=\"\",\"\",\"GJ/Jahr\")","v":"GJ/Jahr"},null,"Zellstoff (Sulfitzellstoff)",{"$f":"IFERROR(INDEX(Tabelle13[[Materialien]:[Menge]],(MATCH(TabelleNMB[[#This Row],[Materialien]],Tabelle13[Materialien],0)),2),\"\")","v":""},{"$f":"IFERROR(TabelleNMB[[#This Row],[Menge]]*Daten!H160,\"\")","v":""},{"$f":"IFERROR(TabelleNMB[[#This Row],[Menge]]*Daten!I160,\"\")","v":""},{"$f":"IFERROR(TabelleNMB[[#This Row],[Menge]]*Daten!J160,\"\")","v":""},{"$f":"IF(TabelleNMB[[#This Row],[Materialien]]=\"\",\"\",\"kg/Jahr\")","v":"kg/Jahr"},null,"Torf","Materialien (Bestandteile des Produkts)",{"$f":"IFERROR(INDEX(TabelleMB[[Materialien]:[GWP]],(MATCH(TabelleGWP[[#This Row],[GWP]],TabelleGWP[GWP],0)),5),\"\")","v":""}]
[null,"Zement",{"$f":"IFERROR(INDEX(Tabelle1[[Materialien]:[Menge]],(MATCH(TabelleMB[[#This Row],[Materialien]],Tabelle1[Materialien],0)),2),\"\")","v":""},{"$f":"IFERROR(TabelleMB[[#This Row],[Menge]]*Daten!C161,\"\")","v":""},{"$f":"IFERROR(TabelleMB[[#This Row],[Menge]]*Daten!D161,\"\")","v":""},{"$f":"IFERROR(TabelleMB[[#This Row],[Menge]]*Daten!E161,\"\")","v":""},{"$f":"IF(TabelleMB[[#This Row],[Materialien]]=\"\",\"\",\"GJ/Jahr\")","v":"GJ/Jahr"},null,"Zement",{"$f":"IFERROR(INDEX(Tabelle13[[Materialien]:[Menge]],(MATCH(TabelleNMB[[#This Row],[Materialien]],Tabelle13[Materialien],0)),2),\"\")","v":""},{"$f":"IFERROR(TabelleNMB[[#This Row],[Menge]]*Daten!H161,\"\")","v":""},{"$f":"IFERROR(TabelleNMB[[#This Row],[Menge]]*Daten!I161,\"\")","v":""},{"$f":"IFERROR(TabelleNMB[[#This Row],[Menge]]*Daten!J161,\"\")","v":""},{"$f":"IF(TabelleNMB[[#This Row],[Materialien]]=\"\",\"\",\"kg/Jahr\")","v":"kg/Jahr"},null,"Trass","Materialien (Bestandteile des Produkts)",{"$f":"IFERROR(INDEX(TabelleMB[[Materialien]:[GWP]],(MATCH(TabelleGWP[[#This Row],[GWP]],TabelleGWP[GWP],0)),5),\"\")","v":""}]
[null,"Zinkerze",{"$f":"IFERROR(INDEX(Tabelle1[[Materialien]:[Menge]],(MATCH(TabelleMB[[#This Row],[Materialien]],Tabelle1[Materialien],0)),2),\"\")","v":""},{"$f":"IFERROR(TabelleMB[[#This Row],[Menge]]*Daten!C162,\"\")","v":""},{"$f":"IFERROR(TabelleMB[[#This Row],[Menge]]*Daten!D162,\"\")","v":""},{"$f":"IFERROR(TabelleMB[[#This Row],[Menge]]*Daten!E162,\"\")","v":""},{"$f":"IF(TabelleMB[[#This Row],[Materialien]]=\"\",\"\",\"GJ/Jahr\")","v":"GJ/Jahr"},null,"Zinkerze",{"$f":"IFERROR(INDEX(Tabelle13[[Materialien]:[Menge]],(MATCH(TabelleNMB[[#This Row],[Materialien]],Tabelle13[Materialien],0)),2),\"\")","v":""},{"$f":"IFERROR(TabelleNMB[[#This Row],[Menge]]*Daten!H162,\"\")","v":""},{"$f":"IFERROR(TabelleNMB[[#This Row],[Menge]]*Daten!I162,\"\")","v":""},{"$f":"IFERROR(TabelleNMB[[#This Row],[Menge]]*Daten!J162,\"\")","v":""},{"$f":"IF(TabelleNMB[[#This Row],[Materialien]]=\"\",\"\",\"kg/Jahr\")","v":"kg/Jahr"},null,"Tuffstein","Materialien (Bestandteile des Produkts)",{"$f":"IFERROR(INDEX(TabelleMB[[Materialien]:[GWP]],(MATCH(TabelleGWP[[#This Row],[GWP]],TabelleGWP[GWP],0)),5),\"\")","v":""}]
[null,"Zinn",{"$f":"IFERROR(INDEX(Tabelle1[[Materialien]:[Menge]],(MATCH(TabelleMB[[#This Row],[Materialien]],Tabelle1[Materialien],0)),2),\"\")","v":""},{"$f":"IFERROR(TabelleMB[[#This Row],[Menge]]*Daten!C163,\"\")","v":""},{"$f":"IFERROR(TabelleMB[[#This Row],[Menge]]*Daten!D163,\"\")","v":""},{"$f":"IFERROR(TabelleMB[[#This Row],[Menge]]*Daten!E163,\"\")","v":""},{"$f":"IF(TabelleMB[[#This Row],[Materialien]]=\"\",\"\",\"GJ/Jahr\")","v":"GJ/Jahr"},null,"Zinn",{"$f":"IFERROR(INDEX(Tabelle13[[Materialien]:[Menge]],(MATCH(TabelleNMB[[#This Row],[Materialien]],Tabelle13[Materialien],0)),2),\"\")","v":""},{"$f":"IFERROR(TabelleNMB[[#This Row],[Menge]]*Daten!H163,\"\")","v":""},{"$f":"IFERROR(TabelleNMB[[#This Row],[Menge]]*Daten!I163,\"\")","v":""},{"$f":"IFERROR(TabelleNMB[[#This Row],[Menge]]*Daten!J163,\"\")","v":""},{"$f":"IF(TabelleNMB[[#This Row],[Materialien]]=\"\",\"\",\"kg/Jahr\")","v":"kg/Jahr"},null,"Uran","Materialien (Bestandteile des Produkts)",{"$f":"IFERROR(INDEX(TabelleMB[[Materialien]:[GWP]],(MATCH(TabelleGWP[[#This Row],[GWP]],TabelleGWP[GWP],0)),5),\"\")","v":""}]
[null,"Ergebnis",{"$f":"SUBTOTAL(109,TabelleMB[Menge])","v":0},{"$f":"SUBTOTAL(109,TabelleMB[KEA])","v":0},{"$f":"SUBTOTAL(109,TabelleMB[KRA])","v":0},{"$f":"SUBTOTAL(109,TabelleMB[GWP])","v":0},null,null,"Ergebnis",{"$f":"SUBTOTAL(109,TabelleNMB[Menge])","v":0},{"$f":"SUBTOTAL(109,TabelleNMB[KEA])","v":0},{"$f":"SUBTOTAL(109,TabelleNMB[KRA])","v":0},{"$f":"SUBTOTAL(109,TabelleNMB[GWP])","v":0},null,null,"Vermikulit","Materialien (Bestandteile des Produkts)",{"$f":"IFERROR(INDEX(TabelleMB[[Materialien]:[GWP]],(MATCH(TabelleGWP[[#This Row],[GWP]],TabelleGWP[GWP],0)),5),\"\")","v":""}]
[null,null,null,null,null,null,null,null,null,null,null,null,null,null,null,"Wafer","Materialien (Bestandteile des Produkts)",{"$f":"IFERROR(INDEX(TabelleMB[[Materialien]:[GWP]],(MATCH(TabelleGWP[[#This Row],[GWP]],TabelleGWP[GWP],0)),5),\"\")","v":""}]
[null,null,null,null,null,null,null,null,null,null,null,null,null,null,null,"Wasserglas","Materialien (Bestandteile des Produkts)",{"$f":"IFERROR(INDEX(TabelleMB[[Materialien]:[GWP]],(MATCH(TabelleGWP[[#This Row],[GWP]],TabelleGWP[GWP],0)),5),\"\")","v":""}]
[null,null,null,null,null,null,null,null,null,null,null,null,null,null,null,"Wasserstoff","Materialien (Bestandteile des Produkts)",{"$f":"IFERROR(INDEX(TabelleMB[[Materialien]:[GWP]],(MATCH(TabelleGWP[[#This Row],[GWP]],TabelleGWP[GWP],0)),5),\"\")","v":""}]
[null,"KEA","Bezeichnung","GJ /jahr",null,null,null,null,"KRA","Bezeichnung","GJ /jahr",null,null,null,null,"Wismut","Materialien (Bestandteile des Produkts)",{"$f":"IFERROR(INDEX(TabelleMB[[Materialien]:[GWP]],(MATCH(TabelleGWP[[#This Row],[GWP]],TabelleGWP[GWP],0)),5),\"\")","v":""}]
[null,"Ackerbohne","Materialien (Bestandteile des Produkts)",{"$f":"IFERROR(INDEX(TabelleMB[[Materialien]:[KEA]],(MATCH(TabelleKEA[[#This Row],[KEA]],TabelleKEA[KEA],0)),3),\"\")","v":""},null,null,null,null,"Ackerbohne","Materialien (Bestandteile des Produkts)",{"$f":"IFERROR(INDEX(TabelleMB[[Materialien]:[KRA]],(MATCH(TabelleKRA[[#This Row],[KRA]],TabelleKRA[KRA],0)),4),\"\")","v":""},null,null,null,null,"Wolfram","Materialien (Bestandteile des Produkts)",{"$f":"IFERROR(INDEX(TabelleMB[[Materialien]:[GWP]],(MATCH(TabelleGWP[[#This Row],[GWP]],TabelleGWP[GWP],0)),5),\"\")","v":""}]
[null,"Altpapierstoff","Materialien (Bestandteile des Produkts)",{"$f":"IFERROR(INDEX(TabelleMB[[Materialien]:[KEA]],(MATCH(TabelleKEA[[#This Row],[KEA]],TabelleKEA[KEA],0)),3),\"\")","v":""},null,null,null,null,"Altpapierstoff","Materialien (Bestandteile des Produkts)",{"$f":"IFERROR(INDEX(TabelleMB[[Materialien]:[KRA]],(MATCH(TabelleKRA[[#This Row],[KRA]],TabelleKRA[KRA],0)),4),\"\")","v":""},null,null,null,null,"Zeitungsdruckpapier","Materialien (Bestandteile des Produkts)",{"$f":"IFERROR(INDEX(TabelleMB[[Materialien]:[GWP]],(MATCH(TabelleGWP[[#This Row],[GWP]],TabelleGWP[GWP],0)),5),\"\")","v":""}]
[null,"Aluminium, Gusslegierung","Materialien (Bestandteile des Produkts)",{"$f":"IFERROR(INDEX(TabelleMB[[Materialien]:[KEA]],(MATCH(TabelleKEA[[#This Row],[KEA]],TabelleKEA[KEA],0)),3),\"\")","v":""},null,null,null,null,"Aluminium, Gusslegierung","Materialien (Bestandteile des Produkts)",{"$f":"IFERROR(INDEX(TabelleMB[[Materialien]:[KRA]],(MATCH(TabelleKRA[[#This Row],[KRA]],TabelleKRA[KRA],0)),4),\"\")","v":""},null,null,null,null,"Zellstoff (Sulfatzellstoff)","Materialien (Bestandteile des Produkts)",{"$f":"IFERROR(INDEX(TabelleMB[[Materialien]:[GWP]],(MATCH(TabelleGWP[[#This Row],[GWP]],TabelleGWP[GWP],0)),5),\"\")","v":""}]
[null,"Aluminium, Knetlegierung","Materialien (Bestandteile des Produkts)",{"$f":"IFERROR(INDEX(TabelleMB[[Materialien]:[KEA]],(MATCH(TabelleKEA[[#This Row],[KEA]],TabelleKEA[KEA],0)),3),\"\")","v":""},null,null,null,null,"Aluminium, Knetlegierung","Materialien (Bestandteile des Produkts)",{"$f":"IFERROR(INDEX(TabelleMB[[Materialien]:[KRA]],(MATCH(TabelleKRA[[#This Row],[KRA]],TabelleKRA[KRA],0)),4),\"\")","v":""},null,null,null,null,"Zellstoff (Sulfitzellstoff)","Materialien (Bestandteile des Produkts)",{"$f":"IFERROR(INDEX(TabelleMB[[Materialien]:[GWP]],(MATCH(TabelleGWP[[#This Row],[GWP]],TabelleGWP[GWP],0)),5),\"\")","v":""}]
[null,"Aluminium, primär","Materialien (Bestandteile des Produkts)",{"$f":"IFERROR(INDEX(TabelleMB[[Materialien]:[KEA]],(MATCH(TabelleKEA[[#This Row],[KEA]],TabelleKEA[KEA],0)),3),\"\")","v":""},null,null,null,null,"Aluminium, primär","Materialien (Bestandteile des Produkts)",{"$f":"IFERROR(INDEX(TabelleMB[[Materialien]:[KRA]],(MATCH(TabelleKRA[[#This Row],[KRA]],TabelleKRA[KRA],0)),4),\"\")","v":""},null,null,null,null,"Zement","Materialien (Bestandteile des Produkts)",{"$f":"IFERROR(INDEX(TabelleMB[[Materialien]:[GWP]],(MATCH(TabelleGWP[[#This Row],[GWP]],TabelleGWP[GWP],0)),5),\"\")","v":""}]
[null,"Aluminium, sekundär","Materialien (Bestandteile des Produkts)",{"$f":"IFERROR(INDEX(TabelleMB[[Materialien]:[KEA]],(MATCH(TabelleKEA[[#This Row],[KEA]],TabelleKEA[KEA],0)),3),\"\")","v":""},null,null,null,null,"Aluminium, sekundär","Materialien (Bestandteile des Produkts)",{"$f":"IFERROR(INDEX(TabelleMB[[Materialien]:[KRA]],(MATCH(TabelleKRA[[#This Row],[KRA]],TabelleKRA[KRA],0)),4),\"\")","v":""},null,null,null,null,"Zinkerze","Materialien (Bestandteile des Produkts)",{"$f":"IFERROR(INDEX(TabelleMB[[Materialien]:[GWP]],(MATCH(TabelleGWP[[#This Row],[GWP]],TabelleGWP[GWP],0)),5),\"\")","v":""}]
[null,"Aluminiumblech (ohne Prozessschritte für Aluminium primär/sekundär)","Materialien (Bestandteile des Produkts)",{"$f":"IFERROR(INDEX(TabelleMB[[Materialien]:[KEA]],(MATCH(TabelleKEA[[#This Row],[KEA]],TabelleKEA[KEA],0)),3),\"\")","v":""},null,null,null,null,"Aluminiumblech (ohne Prozessschritte für Aluminium primär/sekundär)","Materialien (Bestandteile des Produkts)",{"$f":"IFERROR(INDEX(TabelleMB[[Materialien]:[KRA]],(MATCH(TabelleKRA[[#This Row],[KRA]],TabelleKRA[KRA],0)),4),\"\")","v":""},null,null,null,null,"Zinn","Materialien (Bestandteile des Produkts)",{"$f":"IFERROR(INDEX(TabelleMB[[Materialien]:[GWP]],(MATCH(TabelleGWP[[#This Row],[GWP]],TabelleGWP[GWP],0)),5),\"\")","v":""}]
[null,"Amin (Trimethylamin)","Materialien (Bestandteile des Produkts)",{"$f":"IFERROR(INDEX(TabelleMB[[Materialien]:[KEA]],(MATCH(TabelleKEA[[#This Row],[KEA]],TabelleKEA[KEA],0)),3),\"\")","v":""},null,null,null,null,"Amin (Trimethylamin)","Materialien (Bestandteile des Produkts)",{"$f":"IFERROR(INDEX(TabelleMB[[Materialien]:[KRA]],(MATCH(TabelleKRA[[#This Row],[KRA]],TabelleKRA[KRA],0)),4),\"\")","v":""},null,null,null,null,"Ackerbohne","Materialien (nicht Bestandteil des Produkts)",{"$f":"IFERROR(INDEX(TabelleNMB[[Materialien]:[GWP]],(MATCH(TabelleGWP[[#This Row],[GWP]],TabelleGWP[GWP],0)),4),\"\")","v":""}]
[null,"Ammoniak","Materialien (Bestandteile des Produkts)",{"$f":"IFERROR(INDEX(TabelleMB[[Materialien]:[KEA]],(MATCH(TabelleKEA[[#This Row],[KEA]],TabelleKEA[KEA],0)),3),\"\")","v":""},null,null,null,null,"Ammoniak","Materialien (Bestandteile des Produkts)",{"$f":"IFERROR(INDEX(TabelleMB[[Materialien]:[KRA]],(MATCH(TabelleKRA[[#This Row],[KRA]],TabelleKRA[KRA],0)),4),\"\")","v":""},null,null,null,null,"Altpapierstoff","Materialien (nicht Bestandteil des Produkts)",{"$f":"IFERROR(INDEX(TabelleNMB[[Materialien]:[GWP]],(MATCH(TabelleGWP[[#This Row],[GWP]],TabelleGWP[GWP],0)),4),\"\")","v":""}]
[null,"Andalusit, Disthen","Materialien (Bestandteile des Produkts)",{"$f":"IFERROR(INDEX(TabelleMB[[Materialien]:[KEA]],(MATCH(TabelleKEA[[#This Row],[KEA]],TabelleKEA[KEA],0)),3),\"\")","v":""},null,null,null,null,"Andalusit, Disthen","Materialien (Bestandteile des Produkts)",{"$f":"IFERROR(INDEX(TabelleMB[[Materialien]:[KRA]],(MATCH(TabelleKRA[[#This Row],[KRA]],TabelleKRA[KRA],0)),4),\"\")","v":""},null,null,null,null,"Aluminium, Gusslegierung","Materialien (nicht Bestandteil des Produkts)",{"$f":"IFERROR(INDEX(TabelleNMB[[Materialien]:[GWP]],(MATCH(TabelleGWP[[#This Row],[GWP]],TabelleGWP[GWP],0)),4),\"\")","v":""}]
[null,"Arsen","Materialien (Bestandteile des Produkts)",{"$f":"IFERROR(INDEX(TabelleMB[[Materialien]:[KEA]],(MATCH(TabelleKEA[[#This Row],[KEA]],TabelleKEA[KEA],0)),3),\"\")","v":""},null,null,null,null,"Arsen","Materialien (Bestandteile des Produkts)",{"$f":"IFERROR(INDEX(TabelleMB[[Materialien]:[KRA]],(MATCH(TabelleKRA[[#This Row],[KRA]],TabelleKRA[KRA],0)),4),\"\")","v":""},null,null,null,null,"Aluminium, Knetlegierung","Materialien (nicht Bestandteil des Produkts)",{"$f":"IFERROR(INDEX(TabelleNMB[[Materialien]:[GWP]],(MATCH(TabelleGWP[[#This Row],[GWP]],TabelleGWP[GWP],0)),4),\"\")","v":""}]
[null,"Asbet","Materialien (Bestandteile des Produkts)",{"$f":"IFERROR(INDEX(TabelleMB[[Materialien]:[KEA]],(MATCH(TabelleKEA[[#This Row],[KEA]],TabelleKEA[KEA],0)),3),\"\")","v":""},null,null,null,null,"Asbet","Materialien (Bestandteile des Produkts)",{"$f":"IFERROR(INDEX(TabelleMB[[Materialien]:[KRA]],(MATCH(TabelleKRA[[#This Row],[KRA]],TabelleKRA[KRA],0)),4),\"\")","v":""},null,null,null,null,"Aluminium, primär","Materialien (nicht Bestandteil des Produkts)",{"$f":"IFERROR(INDEX(TabelleNMB[[Materialien]:[GWP]],(MATCH(TabelleGWP[[#This Row],[GWP]],TabelleGWP[GWP],0)),4),\"\")","v":""}]
[null,"Asphalt","Materialien (Bestandteile des Produkts)",{"$f":"IFERROR(INDEX(TabelleMB[[Materialien]:[KEA]],(MATCH(TabelleKEA[[#This Row],[KEA]],TabelleKEA[KEA],0)),3),\"\")","v":""},null,null,null,null,"Asphalt","Materialien (Bestandteile des Produkts)",{"$f":"IFERROR(INDEX(TabelleMB[[Materialien]:[KRA]],(MATCH(TabelleKRA[[#This Row],[KRA]],TabelleKRA[KRA],0)),4),\"\")","v":""},null,null,null,null,"Aluminium, sekundär","Materialien (nicht Bestandteil des Produkts)",{"$f":"IFERROR(INDEX(TabelleNMB[[Materialien]:[GWP]],(MATCH(TabelleGWP[[#This Row],[GWP]],TabelleGWP[GWP],0)),4),\"\")","v":""}]
[null,"Barit (Schwerspat)","Materialien (Bestandteile des Produkts)",{"$f":"IFERROR(INDEX(TabelleMB[[Materialien]:[KEA]],(MATCH(TabelleKEA[[#This Row],[KEA]],TabelleKEA[KEA],0)),3),\"\")","v":""},null,null,null,null,"Barit (Schwerspat)","Materialien (Bestandteile des Produkts)",{"$f":"IFERROR(INDEX(TabelleMB[[Materialien]:[KRA]],(MATCH(TabelleKRA[[#This Row],[KRA]],TabelleKRA[KRA],0)),4),\"\")","v":""},null,null,null,null,"Aluminiumblech (ohne Prozessschritte für Aluminium primär/sekundär)","Materialien (nicht Bestandteil des Produkts)",{"$f":"IFERROR(INDEX(TabelleNMB[[Materialien]:[GWP]],(MATCH(TabelleGWP[[#This Row],[GWP]],TabelleGWP[GWP],0)),4),\"\")","v":""}]
[null,"Bariumkarbonat","Materialien (Bestandteile des Produkts)",{"$f":"IFERROR(INDEX(TabelleMB[[Materialien]:[KEA]],(MATCH(TabelleKEA[[#This Row],[KEA]],TabelleKEA[KEA],0)),3),\"\")","v":""},null,null,null,null,"Bariumkarbonat","Materialien (Bestandteile des Produkts)",{"$f":"IFERROR(INDEX(TabelleMB[[Materialien]:[KRA]],(MATCH(TabelleKRA[[#This Row],[KRA]],TabelleKRA[KRA],0)),4),\"\")","v":""},null,null,null,null,"Amin (Trimethylamin)","Materialien (nicht Bestandteil des Produkts)",{"$f":"IFERROR(INDEX(TabelleNMB[[Materialien]:[GWP]],(MATCH(TabelleGWP[[#This Row],[GWP]],TabelleGWP[GWP],0)),4),\"\")","v":""}]
[null,"Baumwollgewebe","Materialien (Bestandteile des Produkts)",{"$f":"IFERROR(INDEX(TabelleMB[[Materialien]:[KEA]],(MATCH(TabelleKEA[[#This Row],[KEA]],TabelleKEA[KEA],0)),3),\"\")","v":""},null,null,null,null,"Baumwollgewebe","Materialien (Bestandteile des Produkts)",{"$f":"IFERROR(INDEX(TabelleMB[[Materialien]:[KRA]],(MATCH(TabelleKRA[[#This Row],[KRA]],TabelleKRA[KRA],0)),4),\"\")","v":""},null,null,null,null,"Ammoniak","Materialien (nicht Bestandteil des Produkts)",{"$f":"IFERROR(INDEX(TabelleNMB[[Materialien]:[GWP]],(MATCH(TabelleGWP[[#This Row],[GWP]],TabelleGWP[GWP],0)),4),\"\")","v":""}]
[null,"Bauxit","Materialien (Bestandteile des Produkts)",{"$f":"IFERROR(INDEX(TabelleMB[[Materialien]:[KEA]],(MATCH(TabelleKEA[[#This Row],[KEA]],TabelleKEA[KEA],0)),3),\"\")","v":""},null,null,null,null,"Bauxit","Materialien (Bestandteile des Produkts)",{"$f":"IFERROR(INDEX(TabelleMB[[Materialien]:[KRA]],(MATCH(TabelleKRA[[#This Row],[KRA]],TabelleKRA[KRA],0)),4),\"\")","v":""},null,null,null,null,"Andalusit, Disthen","Materialien (nicht Bestandteil des Produkts)",{"$f":"IFERROR(INDEX(TabelleNMB[[Materialien]:[GWP]],(MATCH(TabelleGWP[[#This Row],[GWP]],TabelleGWP[GWP],0)),4),\"\")","v":""}]
[null,"Bentonit","Materialien (Bestandteile des Produkts)",{"$f":"IFERROR(INDEX(TabelleMB[[Materialien]:[KEA]],(MATCH(TabelleKEA[[#This Row],[KEA]],TabelleKEA[KEA],0)),3),\"\")","v":""},null,null,null,null,"Bentonit","Materialien (Bestandteile des Produkts)",{"$f":"IFERROR(INDEX(TabelleMB[[Materialien]:[KRA]],(MATCH(TabelleKRA[[#This Row],[KRA]],TabelleKRA[KRA],0)),4),\"\")","v":""},null,null,null,null,"Arsen","Materialien (nicht Bestandteil des Produkts)",{"$f":"IFERROR(INDEX(TabelleNMB[[Materialien]:[GWP]],(MATCH(TabelleGWP[[#This Row],[GWP]],TabelleGWP[GWP],0)),4),\"\")","v":""}]
[null,"Beton","Materialien (Bestandteile des Produkts)",{"$f":"IFERROR(INDEX(TabelleMB[[Materialien]:[KEA]],(MATCH(TabelleKEA[[#This Row],[KEA]],TabelleKEA[KEA],0)),3),\"\")","v":""},null,null,null,null,"Beton","Materialien (Bestandteile des Produkts)",{"$f":"IFERROR(INDEX(TabelleMB[[Materialien]:[KRA]],(MATCH(TabelleKRA[[#This Row],[KRA]],TabelleKRA[KRA],0)),4),\"\")","v":""},null,null,null,null,"Asbet","Materialien (nicht Bestandteil des Produkts)",{"$f":"IFERROR(INDEX(TabelleNMB[[Materialien]:[GWP]],(MATCH(TabelleGWP[[#This Row],[GWP]],TabelleGWP[GWP],0)),4),\"\")","v":""}]
[null,"Bimsstein","Materialien (Bestandteile des Produkts)",{"$f":"IFERROR(INDEX(TabelleMB[[Materialien]:[KEA]],(MATCH(TabelleKEA[[#This Row],[KEA]],TabelleKEA[KEA],0)),3),\"\")","v":""},null,null,null,null,"Bimsstein","Materialien (Bestandteile des Produkts)",{"$f":"IFERROR(INDEX(TabelleMB[[Materialien]:[KRA]],(MATCH(TabelleKRA[[#This Row],[KRA]],TabelleKRA[KRA],0)),4),\"\")","v":""},null,null,null,null,"Asphalt","Materialien (nicht Bestandteil des Produkts)",{"$f":"IFERROR(INDEX(TabelleNMB[[Materialien]:[GWP]],(MATCH(TabelleGWP[[#This Row],[GWP]],TabelleGWP[GWP],0)),4),\"\")","v":""}]
[null,"Bitumen","Materialien (Bestandteile des Produkts)",{"$f":"IFERROR(INDEX(TabelleMB[[Materialien]:[KEA]],(MATCH(TabelleKEA[[#This Row],[KEA]],TabelleKEA[KEA],0)),3),\"\")","v":""},null,null,null,null,"Bitumen","Materialien (Bestandteile des Produkts)",{"$f":"IFERROR(INDEX(TabelleMB[[Materialien]:[KRA]],(MATCH(TabelleKRA[[#This Row],[KRA]],TabelleKRA[KRA],0)),4),\"\")","v":""},null,null,null,null,"Barit (Schwerspat)","Materialien (nicht Bestandteil des Produkts)",{"$f":"IFERROR(INDEX(TabelleNMB[[Materialien]:[GWP]],(MATCH(TabelleGWP[[#This Row],[GWP]],TabelleGWP[GWP],0)),4),\"\")","v":""}]
[null,"Blei","Materialien (Bestandteile des Produkts)",{"$f":"IFERROR(INDEX(TabelleMB[[Materialien]:[KEA]],(MATCH(TabelleKEA[[#This Row],[KEA]],TabelleKEA[KEA],0)),3),\"\")","v":""},null,null,null,null,"Blei","Materialien (Bestandteile des Produkts)",{"$f":"IFERROR(INDEX(TabelleMB[[Materialien]:[KRA]],(MATCH(TabelleKRA[[#This Row],[KRA]],TabelleKRA[KRA],0)),4),\"\")","v":""},null,null,null,null,"Bariumkarbonat","Materialien (nicht Bestandteil des Produkts)",{"$f":"IFERROR(INDEX(TabelleNMB[[Materialien]:[GWP]],(MATCH(TabelleGWP[[#This Row],[GWP]],TabelleGWP[GWP],0)),4),\"\")","v":""}]
[null,"Borate","Materialien (Bestandteile des Produkts)",{"$f":"IFERROR(INDEX(TabelleMB[[Materialien]:[KEA]],(MATCH(TabelleKEA[[#This Row],[KEA]],TabelleKEA[KEA],0)),3),\"\")","v":""},null,null,null,null,"Borate","Materialien (Bestandteile des Produkts)",{"$f":"IFERROR(INDEX(TabelleMB[[Materialien]:[KRA]],(MATCH(TabelleKRA[[#This Row],[KRA]],TabelleKRA[KRA],0)),4),\"\")","v":""},null,null,null,null,"Baumwollgewebe","Materialien (nicht Bestandteil des Produkts)",{"$f":"IFERROR(INDEX(TabelleNMB[[Materialien]:[GWP]],(MATCH(TabelleGWP[[#This Row],[GWP]],TabelleGWP[GWP],0)),4),\"\")","v":""}]
[null,"Brennelemente","Materialien (Bestandteile des Produkts)",{"$f":"IFERROR(INDEX(TabelleMB[[Materialien]:[KEA]],(MATCH(TabelleKEA[[#This Row],[KEA]],TabelleKEA[KEA],0)),3),\"\")","v":""},null,null,null,null,"Brennelemente","Materialien (Bestandteile des Produkts)",{"$f":"IFERROR(INDEX(TabelleMB[[Materialien]:[KRA]],(MATCH(TabelleKRA[[#This Row],[KRA]],TabelleKRA[KRA],0)),4),\"\")","v":""},null,null,null,null,"Bauxit","Materialien (nicht Bestandteil des Produkts)",{"$f":"IFERROR(INDEX(TabelleNMB[[Materialien]:[GWP]],(MATCH(TabelleGWP[[#This Row],[GWP]],TabelleGWP[GWP],0)),4),\"\")","v":""}]
[null,"Chlor","Materialien (Bestandteile des Produkts)",{"$f":"IFERROR(INDEX(TabelleMB[[Materialien]:[KEA]],(MATCH(TabelleKEA[[#This Row],[KEA]],TabelleKEA[KEA],0)),3),\"\")","v":""},null,null,null,null,"Chlor","Materialien (Bestandteile des Produkts)",{"$f":"IFERROR(INDEX(TabelleMB[[Materialien]:[KRA]],(MATCH(TabelleKRA[[#This Row],[KRA]],TabelleKRA[KRA],0)),4),\"\")","v":""},null,null,null,null,"Bentonit","Materialien (nicht Bestandteil des Produkts)",{"$f":"IFERROR(INDEX(TabelleNMB[[Materialien]:[GWP]],(MATCH(TabelleGWP[[#This Row],[GWP]],TabelleGWP[GWP],0)),4),\"\")","v":""}]
[null,"Chrom","Materialien (Bestandteile des Produkts)",{"$f":"IFERROR(INDEX(TabelleMB[[Materialien]:[KEA]],(MATCH(TabelleKEA[[#This Row],[KEA]],TabelleKEA[KEA],0)),3),\"\")","v":""},null,null,null,null,"Chrom","Materialien (Bestandteile des Produkts)",{"$f":"IFERROR(INDEX(TabelleMB[[Materialien]:[KRA]],(MATCH(TabelleKRA[[#This Row],[KRA]],TabelleKRA[KRA],0)),4),\"\")","v":""},null,null,null,null,"Beton","Materialien (nicht Bestandteil des Produkts)",{"$f":"IFERROR(INDEX(TabelleNMB[[Materialien]:[GWP]],(MATCH(TabelleGWP[[#This Row],[GWP]],TabelleGWP[GWP],0)),4),\"\")","v":""}]
[null,"Chromerze","Materialien (Bestandteile des Produkts)",{"$f":"IFERROR(INDEX(TabelleMB[[Materialien]:[KEA]],(MATCH(TabelleKEA[[#This Row],[KEA]],TabelleKEA[KEA],0)),3),\"\")","v":""},null,null,null,null,"Chromerze","Materialien (Bestandteile des Produkts)",{"$f":"IFERROR(INDEX(TabelleMB[[Materialien]:[KRA]],(MATCH(TabelleKRA[[#This Row],[KRA]],TabelleKRA[KRA],0)),4),\"\")","v":""},null,null,null,null,"Bimsstein","Materialien (nicht Bestandteil des Produkts)",{"$f":"IFERROR(INDEX(TabelleNMB[[Materialien]:[GWP]],(MATCH(TabelleGWP[[#This Row],[GWP]],TabelleGWP[GWP],0)),4),\"\")","v":""}]
[null,"Computer","Materialien (Bestandteile des Produkts)",{"$f":"IFERROR(INDEX(TabelleMB[[Materialien]:[KEA]],(MATCH(TabelleKEA[[#This Row],[KEA]],TabelleKEA[KEA],0)),3),\"\")","v":""},null,null,null,null,"Computer","Materialien (Bestandteile des Produkts)",{"$f":"IFERROR(INDEX(TabelleMB[[Materialien]:[KRA]],(MATCH(TabelleKRA[[#This Row],[KRA]],TabelleKRA[KRA],0)),4),\"\")","v":""},null,null,null,null,"Bitumen","Materialien (nicht Bestandteil des Produkts)",{"$f":"IFERROR(INDEX(TabelleNMB[[Materialien]:[GWP]],(MATCH(TabelleGWP[[#This Row],[GWP]],TabelleGWP[GWP],0)),4),\"\")","v":""}]
[null,"Dolomit","Materialien (Bestandteile des Produkts)",{"$f":"IFERROR(INDEX(TabelleMB[[Materialien]:[KEA]],(MATCH(TabelleKEA[[#This Row],[KEA]],TabelleKEA[KEA],0)),3),\"\")","v":""},null,null,null,null,"Dolomit","Materialien (Bestandteile des Produkts)",{"$f":"IFERROR(INDEX(TabelleMB[[Materialien]:[KRA]],(MATCH(TabelleKRA[[#This Row],[KRA]],TabelleKRA[KRA],0)),4),\"\")","v":""},null,null,null,null,"Blei","Materialien (nicht Bestandteil des Produkts)",{"$f":"IFERROR(INDEX(TabelleNMB[[Materialien]:[GWP]],(MATCH(TabelleGWP[[#This Row],[GWP]],TabelleGWP[GWP],0)),4),\"\")","v":""}]
[null,"Druckluft (Bezug: 1000 m3)","Materialien (Bestandteile des Produkts)",{"$f":"IFERROR(INDEX(TabelleMB[[Materialien]:[KEA]],(MATCH(TabelleKEA[[#This Row],[KEA]],TabelleKEA[KEA],0)),3),\"\")","v":""},null,null,null,null,"Druckluft (Bezug: 1000 m3)","Materialien (Bestandteile des Produkts)",{"$f":"IFERROR(INDEX(TabelleMB[[Materialien]:[KRA]],(MATCH(TabelleKRA[[#This Row],[KRA]],TabelleKRA[KRA],0)),4),\"\")","v":""},null,null,null,null,"Borate","Materialien (nicht Bestandteil des Produkts)",{"$f":"IFERROR(INDEX(TabelleNMB[[Materialien]:[GWP]],(MATCH(TabelleGWP[[#This Row],[GWP]],TabelleGWP[GWP],0)),4),\"\")","v":""}]
[null,"Edelstahlblech (inkl. Herstellung von Chromstahl)","Materialien (Bestandteile des Produkts)",{"$f":"IFERROR(INDEX(TabelleMB[[Materialien]:[KEA]],(MATCH(TabelleKEA[[#This Row],[KEA]],TabelleKEA[KEA],0)),3),\"\")","v":""},null,null,null,null,"Edelstahlblech (inkl. Herstellung von Chromstahl)","Materialien (Bestandteile des Produkts)",{"$f":"IFERROR(INDEX(TabelleMB[[Materialien]:[KRA]],(MATCH(TabelleKRA[[#This Row],[KRA]],TabelleKRA[KRA],0)),4),\"\")","v":""},null,null,null,null,"Brennelemente","Materialien (nicht Bestandteil des Produkts)",{"$f":"IFERROR(INDEX(TabelleNMB[[Materialien]:[GWP]],(MATCH(TabelleGWP[[#This Row],[GWP]],TabelleGWP[GWP],0)),4),\"\")","v":""}]
[null,"Eisen","Materialien (Bestandteile des Produkts)",{"$f":"IFERROR(INDEX(TabelleMB[[Materialien]:[KEA]],(MATCH(TabelleKEA[[#This Row],[KEA]],TabelleKEA[KEA],0)),3),\"\")","v":""},null,null,null,null,"Eisen","Materialien (Bestandteile des Produkts)",{"$f":"IFERROR(INDEX(TabelleMB[[Materialien]:[KRA]],(MATCH(TabelleKRA[[#This Row],[KRA]],TabelleKRA[KRA],0)),4),\"\")","v":""},null,null,null,null,"Chlor","Materialien (nicht Bestandteil des Produkts)",{"$f":"IFERROR(INDEX(TabelleNMB[[Materialien]:[GWP]],(MATCH(TabelleGWP[[#This Row],[GWP]],TabelleGWP[GWP],0)),4),\"\")","v":""}]
[null,"Eisenerz 46%","Materialien (Bestandteile des Produkts)",{"$f":"IFERROR(INDEX(TabelleMB[[Materialien]:[KEA]],(MATCH(TabelleKEA[[#This Row],[KEA]],TabelleKEA[KEA],0)),3),\"\")","v":""},null,null,null,null,"Eisenerz 46%","Materialien (Bestandteile des Produkts)",{"$f":"IFERROR(INDEX(TabelleMB[[Materialien]:[KRA]],(MATCH(TabelleKRA[[#This Row],[KRA]],TabelleKRA[KRA],0)),4),\"\")","v":""},null,null,null,null,"Chrom","Materialien (nicht Bestandteil des Produkts)",{"$f":"IFERROR(INDEX(TabelleNMB[[Materialien]:[GWP]],(MATCH(TabelleGWP[[#This Row],[GWP]],TabelleGWP[GWP],0)),4),\"\")","v":""}]
[null,"Eisenerzkonzentrat","Materialien (Bestandteile des Produkts)",{"$f":"IFERROR(INDEX(TabelleMB[[Materialien]:[KEA]],(MATCH(TabelleKEA[[#This Row],[KEA]],TabelleKEA[KEA],0)),3),\"\")","v":""},null,null,null,null,"Eisenerzkonzentrat","Materialien (Bestandteile des Produkts)",{"$f":"IFERROR(INDEX(TabelleMB[[Materialien]:[KRA]],(MATCH(TabelleKRA[[#This Row],[KRA]],TabelleKRA[KRA],0)),4),\"\")","v":""},null,null,null,null,"Chromerze","Materialien (nicht Bestandteil des Produkts)",{"$f":"IFERROR(INDEX(TabelleNMB[[Materialien]:[GWP]],(MATCH(TabelleGWP[[#This Row],[GWP]],TabelleGWP[GWP],0)),4),\"\")","v":""}]
[null,"Epoxidharz","Materialien (Bestandteile des Produkts)",{"$f":"IFERROR(INDEX(TabelleMB[[Materialien]:[KEA]],(MATCH(TabelleKEA[[#This Row],[KEA]],TabelleKEA[KEA],0)),3),\"\")","v":""},null,null,null,null,"Epoxidharz","Materialien (Bestandteile des Produkts)",{"$f":"IFERROR(INDEX(TabelleMB[[Materialien]:[KRA]],(MATCH(TabelleKRA[[#This Row],[KRA]],TabelleKRA[KRA],0)),4),\"\")","v":""},null,null,null,null,"Computer","Materialien (nicht Bestandteil des Produkts)",{"$f":"IFERROR(INDEX(TabelleNMB[[Materialien]:[GWP]],(MATCH(TabelleGWP[[#This Row],[GWP]],TabelleGWP[GWP],0)),4),\"\")","v":""}]
[null,"Ethylen","Materialien (Bestandteile des Produkts)",{"$f":"IFERROR(INDEX(TabelleMB[[Materialien]:[KEA]],(MATCH(TabelleKEA[[#This Row],[KEA]],TabelleKEA[KEA],0)),3),\"\")","v":""},null,null,null,null,"Ethylen","Materialien (Bestandteile des Produkts)",{"$f":"IFERROR(INDEX(TabelleMB[[Materialien]:[KRA]],(MATCH(TabelleKRA[[#This Row],[KRA]],TabelleKRA[KRA],0)),4),\"\")","v":""},null,null,null,null,"Dolomit","Materialien (nicht Bestandteil des Produkts)",{"$f":"IFERROR(INDEX(TabelleNMB[[Materialien]:[GWP]],(MATCH(TabelleGWP[[#This Row],[GWP]],TabelleGWP[GWP],0)),4),\"\")","v":""}]
[null,"Flussspat","Materialien (Bestandteile des Produkts)",{"$f":"IFERROR(INDEX(TabelleMB[[Materialien]:[KEA]],(MATCH(TabelleKEA[[#This Row],[KEA]],TabelleKEA[KEA],0)),3),\"\")","v":""},null,null,null,null,"Flussspat","Materialien (Bestandteile des Produkts)",{"$f":"IFERROR(INDEX(TabelleMB[[Materialien]:[KRA]],(MATCH(TabelleKRA[[#This Row],[KRA]],TabelleKRA[KRA],0)),4),\"\")","v":""},null,null,null,null,"Druckluft (Bezug: 1000 m3)","Materialien (nicht Bestandteil des Produkts)",{"$f":"IFERROR(INDEX(TabelleNMB[[Materialien]:[GWP]],(MATCH(TabelleGWP[[#This Row],[GWP]],TabelleGWP[GWP],0)),4),\"\")","v":""}]
[null,"Futterpflanze (Silomais)","Materialien (Bestandteile des Produkts)",{"$f":"IFERROR(INDEX(TabelleMB[[Materialien]:[KEA]],(MATCH(TabelleKEA[[#This Row],[KEA]],TabelleKEA[KEA],0)),3),\"\")","v":""},null,null,null,null,"Futterpflanze (Silomais)","Materialien (Bestandteile des Produkts)",{"$f":"IFERROR(INDEX(TabelleMB[[Materialien]:[KRA]],(MATCH(TabelleKRA[[#This Row],[KRA]],TabelleKRA[KRA],0)),4),\"\")","v":""},null,null,null,null,"Edelstahlblech (inkl. Herstellung von Chromstahl)","Materialien (nicht Bestandteil des Produkts)",{"$f":"IFERROR(INDEX(TabelleNMB[[Materialien]:[GWP]],(MATCH(TabelleGWP[[#This Row],[GWP]],TabelleGWP[GWP],0)),4),\"\")","v":""}]
[null,"Gallium","Materialien (Bestandteile des Produkts)",{"$f":"IFERROR(INDEX(TabelleMB[[Materialien]:[KEA]],(MATCH(TabelleKEA[[#This Row],[KEA]],TabelleKEA[KEA],0)),3),\"\")","v":""},null,null,null,null,"Gallium","Materialien (Bestandteile des Produkts)",{"$f":"IFERROR(INDEX(TabelleMB[[Materialien]:[KRA]],(MATCH(TabelleKRA[[#This Row],[KRA]],TabelleKRA[KRA],0)),4),\"\")","v":""},null,null,null,null,"Eisen","Materialien (nicht Bestandteil des Produkts)",{"$f":"IFERROR(INDEX(TabelleNMB[[Materialien]:[GWP]],(MATCH(TabelleGWP[[#This Row],[GWP]],TabelleGWP[GWP],0)),4),\"\")","v":""}]
[null,"Gemüse (Weißkohl)","Materialien (Bestandteile des Produkts)",{"$f":"IFERROR(INDEX(TabelleMB[[Materialien]:[KEA]],(MATCH(TabelleKEA[[#This Row],[KEA]],TabelleKEA[KEA],0)),3),\"\")","v":""},null,null,null,null,"Gemüse (Weißkohl)","Materialien (Bestandteile des Produkts)",{"$f":"IFERROR(INDEX(TabelleMB[[Materialien]:[KRA]],(MATCH(TabelleKRA[[#This Row],[KRA]],TabelleKRA[KRA],0)),4),\"\")","v":""},null,null,null,null,"Eisenerz 46%","Materialien (nicht Bestandteil des Produkts)",{"$f":"IFERROR(INDEX(TabelleNMB[[Materialien]:[GWP]],(MATCH(TabelleGWP[[#This Row],[GWP]],TabelleGWP[GWP],0)),4),\"\")","v":""}]
[null,"Gesteinsmehl","Materialien (Bestandteile des Produkts)",{"$f":"IFERROR(INDEX(TabelleMB[[Materialien]:[KEA]],(MATCH(TabelleKEA[[#This Row],[KEA]],TabelleKEA[KEA],0)),3),\"\")","v":""},null,null,null,null,"Gesteinsmehl","Materialien (Bestandteile des Produkts)",{"$f":"IFERROR(INDEX(TabelleMB[[Materialien]:[KRA]],(MATCH(TabelleKRA[[#This Row],[KRA]],TabelleKRA[KRA],0)),4),\"\")","v":""},null,null,null,null,"Eisenerzkonzentrat","Materialien (nicht Bestandteil des Produkts)",{"$f":"IFERROR(INDEX(TabelleNMB[[Materialien]:[GWP]],(MATCH(TabelleGWP[[#This Row],[GWP]],TabelleGWP[GWP],0)),4),\"\")","v":""}]
[null,"Getreide (Winterweizen)","Materialien (Bestandteile des Produkts)",{"$f":"IFERROR(INDEX(TabelleMB[[Materialien]:[KEA]],(MATCH(TabelleKEA[[#This Row],[KEA]],TabelleKEA[KEA],0)),3),\"\")","v":""},null,null,null,null,"Getreide (Winterweizen)","Materialien (Bestandteile des Produkts)",{"$f":"IFERROR(INDEX(TabelleMB[[Materialien]:[KRA]],(MATCH(TabelleKRA[[#This Row],[KRA]],TabelleKRA[KRA],0)),4),\"\")","v":""},null,null,null,null,"Epoxidharz","Materialien (nicht Bestandteil des Produkts)",{"$f":"IFERROR(INDEX(TabelleNMB[[Materialien]:[GWP]],(MATCH(TabelleGWP[[#This Row],[GWP]],TabelleGWP[GWP],0)),4),\"\")","v":""}]
[null,"GFK (Glasfaserverstärkte Kunststoffe)","Materialien (Bestandteile des Produkts)",{"$f":"IFERROR(INDEX(TabelleMB[[Materialien]:[KEA]],(MATCH(TabelleKEA[[#This Row],[KEA]],TabelleKEA[KEA],0)),3),\"\")","v":""},null,null,null,null,"GFK (Glasfaserverstärkte Kunststoffe)","Materialien (Bestandteile des Produkts)",{"$f":"IFERROR(INDEX(TabelleMB[[Materialien]:[KRA]],(MATCH(TabelleKRA[[#This Row],[KRA]],TabelleKRA[KRA],0)),4),\"\")","v":""},null,null,null,null,"Ethylen","Materialien (nicht Bestandteil des Produkts)",{"$f":"IFERROR(INDEX(TabelleNMB[[Materialien]:[GWP]],(MATCH(TabelleGWP[[#This Row],[GWP]],TabelleGWP[GWP],0)),4),\"\")","v":""}]
[null,"Gips","Materialien (Bestandteile des Produkts)",{"$f":"IFERROR(INDEX(TabelleMB[[Materialien]:[KEA]],(MATCH(TabelleKEA[[#This Row],[KEA]],TabelleKEA[KEA],0)),3),\"\")","v":""},null,null,null,null,"Gips","Materialien (Bestandteile des Produkts)",{"$f":"IFERROR(INDEX(TabelleMB[[Materialien]:[KRA]],(MATCH(TabelleKRA[[#This Row],[KRA]],TabelleKRA[KRA],0)),4),\"\")","v":""},null,null,null,null,"Flussspat","Materialien (nicht Bestandteil des Produkts)",{"$f":"IFERROR(INDEX(TabelleNMB[[Materialien]:[GWP]],(MATCH(TabelleGWP[[#This Row],[GWP]],TabelleGWP[GWP],0)),4),\"\")","v":""}]
[null,"Glas (Behälterglas)","Materialien (Bestandteile des Produkts)",{"$f":"IFERROR(INDEX(TabelleMB[[Materialien]:[KEA]],(MATCH(TabelleKEA[[#This Row],[KEA]],TabelleKEA[KEA],0)),3),\"\")","v":""},null,null,null,null,"Glas (Behälterglas)","Materialien (Bestandteile des Produkts)",{"$f":"IFERROR(INDEX(TabelleMB[[Materialien]:[KRA]],(MATCH(TabelleKRA[[#This Row],[KRA]],TabelleKRA[KRA],0)),4),\"\")","v":""},null,null,null,null,"Futterpflanze (Silomais)","Materialien (nicht Bestandteil des Produkts)",{"$f":"IFERROR(INDEX(TabelleNMB[[Materialien]:[GWP]],(MATCH(TabelleGWP[[#This Row],[GWP]],TabelleGWP[GWP],0)),4),\"\")","v":""}]
[null,"Glas (Flachglas)","Materialien (Bestandteile des Produkts)",{"$f":"IFERROR(INDEX(TabelleMB[[Materialien]:[KEA]],(MATCH(TabelleKEA[[#This Row],[KEA]],TabelleKEA[KEA],0)),3),\"\")","v":""},null,null,null,null,"Glas (Flachglas)","Materialien (Bestandteile des Produkts)",{"$f":"IFERROR(INDEX(TabelleMB[[Materialien]:[KRA]],(MATCH(TabelleKRA[[#This Row],[KRA]],TabelleKRA[KRA],0)),4),\"\")","v":""},null,null,null,null,"Gallium","Materialien (nicht Bestandteil des Produkts)",{"$f":"IFERROR(INDEX(TabelleNMB[[Materialien]:[GWP]],(MATCH(TabelleGWP[[#This Row],[GWP]],TabelleGWP[GWP],0)),4),\"\")","v":""}]
[null,"Glasfasern","Materialien (Bestandteile des Produkts)",{"$f":"IFERROR(INDEX(TabelleMB[[Materialien]:[KEA]],(MATCH(TabelleKEA[[#This Row],[KEA]],TabelleKEA[KEA],0)),3),\"\")","v":""},null,null,null,null,"Glasfasern","Materialien (Bestandteile des Produkts)",{"$f":"IFERROR(INDEX(TabelleMB[[Materialien]:[KRA]],(MATCH(TabelleKRA[[#This Row],[KRA]],TabelleKRA[KRA],0)),4),\"\")","v":""},null,null,null,null,"Gemüse (Weißkohl)","Materialien (nicht Bestandteil des Produkts)",{"$f":"IFERROR(INDEX(TabelleNMB[[Materialien]:[GWP]],(MATCH(TabelleGWP[[#This Row],[GWP]],TabelleGWP[GWP],0)),4),\"\")","v":""}]
[null,"Glaswolle","Materialien (Bestandteile des Produkts)",{"$f":"IFERROR(INDEX(TabelleMB[[Materialien]:[KEA]],(MATCH(TabelleKEA[[#This Row],[KEA]],TabelleKEA[KEA],0)),3),\"\")","v":""},null,null,null,null,"Glaswolle","Materialien (Bestandteile des Produkts)",{"$f":"IFERROR(INDEX(TabelleMB[[Materialien]:[KRA]],(MATCH(TabelleKRA[[#This Row],[KRA]],TabelleKRA[KRA],0)),4),\"\")","v":""},null,null,null,null,"Gesteinsmehl","Materialien (nicht Bestandteil des Produkts)",{"$f":"IFERROR(INDEX(TabelleNMB[[Materialien]:[GWP]],(MATCH(TabelleGWP[[#This Row],[GWP]],TabelleGWP[GWP],0)),4),\"\")","v":""}]
[null,"Glimmer","Materialien (Bestandteile des Produkts)",{"$f":"IFERROR(INDEX(TabelleMB[[Materialien]:[KEA]],(MATCH(TabelleKEA[[#This Row],[KEA]],TabelleKEA[KEA],0)),3),\"\")","v":""},null,null,null,null,"Glimmer","Materialien (Bestandteile des Produkts)",{"$f":"IFERROR(INDEX(TabelleMB[[Materialien]:[KRA]],(MATCH(TabelleKRA[[#This Row],[KRA]],TabelleKRA[KRA],0)),4),\"\")","v":""},null,null,null,null,"Getreide (Winterweizen)","Materialien (nicht Bestandteil des Produkts)",{"$f":"IFERROR(INDEX(TabelleNMB[[Materialien]:[GWP]],(MATCH(TabelleGWP[[#This Row],[GWP]],TabelleGWP[GWP],0)),4),\"\")","v":""}]
[null,"Gold ","Materialien (Bestandteile des Produkts)",{"$f":"IFERROR(INDEX(TabelleMB[[Materialien]:[KEA]],(MATCH(TabelleKEA[[#This Row],[KEA]],TabelleKEA[KEA],0)),3),\"\")","v":""},null,null,null,null,"Gold ","Materialien (Bestandteile des Produkts)",{"$f":"IFERROR(INDEX(TabelleMB[[Materialien]:[KRA]],(MATCH(TabelleKRA[[#This Row],[KRA]],TabelleKRA[KRA],0)),4),\"\")","v":""},null,null,null,null,"GFK (Glasfaserverstärkte Kunststoffe)","Materialien (nicht Bestandteil des Produkts)",{"$f":"IFERROR(INDEX(TabelleNMB[[Materialien]:[GWP]],(MATCH(TabelleGWP[[#This Row],[GWP]],TabelleGWP[GWP],0)),4),\"\")","v":""}]
[null,"Graphit","Materialien (Bestandteile des Produkts)",{"$f":"IFERROR(INDEX(TabelleMB[[Materialien]:[KEA]],(MATCH(TabelleKEA[[#This Row],[KEA]],TabelleKEA[KEA],0)),3),\"\")","v":""},null,null,null,null,"Graphit","Materialien (Bestandteile des Produkts)",{"$f":"IFERROR(INDEX(TabelleMB[[Materialien]:[KRA]],(MATCH(TabelleKRA[[#This Row],[KRA]],TabelleKRA[KRA],0)),4),\"\")","v":""},null,null,null,null,"Gips","Materialien (nicht Bestandteil des Produkts)",{"$f":"IFERROR(INDEX(TabelleNMB[[Materialien]:[GWP]],(MATCH(TabelleGWP[[#This Row],[GWP]],TabelleGWP[GWP],0)),4),\"\")","v":""}]
[null,"Grünland (Grünschnitt)","Materialien (Bestandteile des Produkts)",{"$f":"IFERROR(INDEX(TabelleMB[[Materialien]:[KEA]],(MATCH(TabelleKEA[[#This Row],[KEA]],TabelleKEA[KEA],0)),3),\"\")","v":""},null,null,null,null,"Grünland (Grünschnitt)","Materialien (Bestandteile des Produkts)",{"$f":"IFERROR(INDEX(TabelleMB[[Materialien]:[KRA]],(MATCH(TabelleKRA[[#This Row],[KRA]],TabelleKRA[KRA],0)),4),\"\")","v":""},null,null,null,null,"Glas (Behälterglas)","Materialien (nicht Bestandteil des Produkts)",{"$f":"IFERROR(INDEX(TabelleNMB[[Materialien]:[GWP]],(MATCH(TabelleGWP[[#This Row],[GWP]],TabelleGWP[GWP],0)),4),\"\")","v":""}]
[null,"Hackfrüchte (Kartoffel)","Materialien (Bestandteile des Produkts)",{"$f":"IFERROR(INDEX(TabelleMB[[Materialien]:[KEA]],(MATCH(TabelleKEA[[#This Row],[KEA]],TabelleKEA[KEA],0)),3),\"\")","v":""},null,null,null,null,"Hackfrüchte (Kartoffel)","Materialien (Bestandteile des Produkts)",{"$f":"IFERROR(INDEX(TabelleMB[[Materialien]:[KRA]],(MATCH(TabelleKRA[[#This Row],[KRA]],TabelleKRA[KRA],0)),4),\"\")","v":""},null,null,null,null,"Glas (Flachglas)","Materialien (nicht Bestandteil des Produkts)",{"$f":"IFERROR(INDEX(TabelleNMB[[Materialien]:[GWP]],(MATCH(TabelleGWP[[#This Row],[GWP]],TabelleGWP[GWP],0)),4),\"\")","v":""}]
[null,"Handelsgewächse (Raps)","Materialien (Bestandteile des Produkts)",{"$f":"IFERROR(INDEX(TabelleMB[[Materialien]:[KEA]],(MATCH(TabelleKEA[[#This Row],[KEA]],TabelleKEA[KEA],0)),3),\"\")","v":""},null,null,null,null,"Handelsgewächse (Raps)","Materialien (Bestandteile des Produkts)",{"$f":"IFERROR(INDEX(TabelleMB[[Materialien]:[KRA]],(MATCH(TabelleKRA[[#This Row],[KRA]],TabelleKRA[KRA],0)),4),\"\")","v":""},null,null,null,null,"Glasfasern","Materialien (nicht Bestandteil des Produkts)",{"$f":"IFERROR(INDEX(TabelleNMB[[Materialien]:[GWP]],(MATCH(TabelleGWP[[#This Row],[GWP]],TabelleGWP[GWP],0)),4),\"\")","v":""}]
[null,"Holzstoff","Materialien (Bestandteile des Produkts)",{"$f":"IFERROR(INDEX(TabelleMB[[Materialien]:[KEA]],(MATCH(TabelleKEA[[#This Row],[KEA]],TabelleKEA[KEA],0)),3),\"\")","v":""},null,null,null,null,"Holzstoff","Materialien (Bestandteile des Produkts)",{"$f":"IFERROR(INDEX(TabelleMB[[Materialien]:[KRA]],(MATCH(TabelleKRA[[#This Row],[KRA]],TabelleKRA[KRA],0)),4),\"\")","v":""},null,null,null,null,"Glaswolle","Materialien (nicht Bestandteil des Produkts)",{"$f":"IFERROR(INDEX(TabelleNMB[[Materialien]:[GWP]],(MATCH(TabelleGWP[[#This Row],[GWP]],TabelleGWP[GWP],0)),4),\"\")","v":""}]
[null,"Ilmenitkonzentrate","Materialien (Bestandteile des Produkts)",{"$f":"IFERROR(INDEX(TabelleMB[[Materialien]:[KEA]],(MATCH(TabelleKEA[[#This Row],[KEA]],TabelleKEA[KEA],0)),3),\"\")","v":""},null,null,null,null,"Ilmenitkonzentrate","Materialien (Bestandteile des Produkts)",{"$f":"IFERROR(INDEX(TabelleMB[[Materialien]:[KRA]],(MATCH(TabelleKRA[[#This Row],[KRA]],TabelleKRA[KRA],0)),4),\"\")","v":""},null,null,null,null,"Glimmer","Materialien (nicht Bestandteil des Produkts)",{"$f":"IFERROR(INDEX(TabelleNMB[[Materialien]:[GWP]],(MATCH(TabelleGWP[[#This Row],[GWP]],TabelleGWP[GWP],0)),4),\"\")","v":""}]
[null,"Indium","Materialien (Bestandteile des Produkts)",{"$f":"IFERROR(INDEX(TabelleMB[[Materialien]:[KEA]],(MATCH(TabelleKEA[[#This Row],[KEA]],TabelleKEA[KEA],0)),3),\"\")","v":""},null,null,null,null,"Indium","Materialien (Bestandteile des Produkts)",{"$f":"IFERROR(INDEX(TabelleMB[[Materialien]:[KRA]],(MATCH(TabelleKRA[[#This Row],[KRA]],TabelleKRA[KRA],0)),4),\"\")","v":""},null,null,null,null,"Gold ","Materialien (nicht Bestandteil des Produkts)",{"$f":"IFERROR(INDEX(TabelleNMB[[Materialien]:[GWP]],(MATCH(TabelleGWP[[#This Row],[GWP]],TabelleGWP[GWP],0)),4),\"\")","v":""}]
[null,"Industriediamanten","Materialien (Bestandteile des Produkts)",{"$f":"IFERROR(INDEX(TabelleMB[[Materialien]:[KEA]],(MATCH(TabelleKEA[[#This Row],[KEA]],TabelleKEA[KEA],0)),3),\"\")","v":""},null,null,null,null,"Industriediamanten","Materialien (Bestandteile des Produkts)",{"$f":"IFERROR(INDEX(TabelleMB[[Materialien]:[KRA]],(MATCH(TabelleKRA[[#This Row],[KRA]],TabelleKRA[KRA],0)),4),\"\")","v":""},null,null,null,null,"Graphit","Materialien (nicht Bestandteil des Produkts)",{"$f":"IFERROR(INDEX(TabelleNMB[[Materialien]:[GWP]],(MATCH(TabelleGWP[[#This Row],[GWP]],TabelleGWP[GWP],0)),4),\"\")","v":""}]
[null,"Iridium","Materialien (Bestandteile des Produkts)",{"$f":"IFERROR(INDEX(TabelleMB[[Materialien]:[KEA]],(MATCH(TabelleKEA[[#This Row],[KEA]],TabelleKEA[KEA],0)),3),\"\")","v":""},null,null,null,null,"Iridium","Materialien (Bestandteile des Produkts)",{"$f":"IFERROR(INDEX(TabelleMB[[Materialien]:[KRA]],(MATCH(TabelleKRA[[#This Row],[KRA]],TabelleKRA[KRA],0)),4),\"\")","v":""},null,null,null,null,"Grünland (Grünschnitt)","Materialien (nicht Bestandteil des Produkts)",{"$f":"IFERROR(INDEX(TabelleNMB[[Materialien]:[GWP]],(MATCH(TabelleGWP[[#This Row],[GWP]],TabelleGWP[GWP],0)),4),\"\")","v":""}]
[null,"Kalisalz","Materialien (Bestandteile des Produkts)",{"$f":"IFERROR(INDEX(TabelleMB[[Materialien]:[KEA]],(MATCH(TabelleKEA[[#This Row],[KEA]],TabelleKEA[KEA],0)),3),\"\")","v":""},null,null,null,null,"Kalisalz","Materialien (Bestandteile des Produkts)",{"$f":"IFERROR(INDEX(TabelleMB[[Materialien]:[KRA]],(MATCH(TabelleKRA[[#This Row],[KRA]],TabelleKRA[KRA],0)),4),\"\")","v":""},null,null,null,null,"Hackfrüchte (Kartoffel)","Materialien (nicht Bestandteil des Produkts)",{"$f":"IFERROR(INDEX(TabelleNMB[[Materialien]:[GWP]],(MATCH(TabelleGWP[[#This Row],[GWP]],TabelleGWP[GWP],0)),4),\"\")","v":""}]
[null,"Kalk","Materialien (Bestandteile des Produkts)",{"$f":"IFERROR(INDEX(TabelleMB[[Materialien]:[KEA]],(MATCH(TabelleKEA[[#This Row],[KEA]],TabelleKEA[KEA],0)),3),\"\")","v":""},null,null,null,null,"Kalk","Materialien (Bestandteile des Produkts)",{"$f":"IFERROR(INDEX(TabelleMB[[Materialien]:[KRA]],(MATCH(TabelleKRA[[#This Row],[KRA]],TabelleKRA[KRA],0)),4),\"\")","v":""},null,null,null,null,"Handelsgewächse (Raps)","Materialien (nicht Bestandteil des Produkts)",{"$f":"IFERROR(INDEX(TabelleNMB[[Materialien]:[GWP]],(MATCH(TabelleGWP[[#This Row],[GWP]],TabelleGWP[GWP],0)),4),\"\")","v":""}]
[null,"Kalkmergel","Materialien (Bestandteile des Produkts)",{"$f":"IFERROR(INDEX(TabelleMB[[Materialien]:[KEA]],(MATCH(TabelleKEA[[#This Row],[KEA]],TabelleKEA[KEA],0)),3),\"\")","v":""},null,null,null,null,"Kalkmergel","Materialien (Bestandteile des Produkts)",{"$f":"IFERROR(INDEX(TabelleMB[[Materialien]:[KRA]],(MATCH(TabelleKRA[[#This Row],[KRA]],TabelleKRA[KRA],0)),4),\"\")","v":""},null,null,null,null,"Holzstoff","Materialien (nicht Bestandteil des Produkts)",{"$f":"IFERROR(INDEX(TabelleNMB[[Materialien]:[GWP]],(MATCH(TabelleGWP[[#This Row],[GWP]],TabelleGWP[GWP],0)),4),\"\")","v":""}]
[null,"Kalkstein","Materialien (Bestandteile des Produkts)",{"$f":"IFERROR(INDEX(TabelleMB[[Materialien]:[KEA]],(MATCH(TabelleKEA[[#This Row],[KEA]],TabelleKEA[KEA],0)),3),\"\")","v":""},null,null,null,null,"Kalkstein","Materialien (Bestandteile des Produkts)",{"$f":"IFERROR(INDEX(TabelleMB[[Materialien]:[KRA]],(MATCH(TabelleKRA[[#This Row],[KRA]],TabelleKRA[KRA],0)),4),\"\")","v":""},null,null,null,null,"Ilmenitkonzentrate","Materialien (nicht Bestandteil des Produkts)",{"$f":"IFERROR(INDEX(TabelleNMB[[Materialien]:[GWP]],(MATCH(TabelleGWP[[#This Row],[GWP]],TabelleGWP[GWP],0)),4),\"\")","v":""}]
[null,"Kaolin","Materialien (Bestandteile des Produkts)",{"$f":"IFERROR(INDEX(TabelleMB[[Materialien]:[KEA]],(MATCH(TabelleKEA[[#This Row],[KEA]],TabelleKEA[KEA],0)),3),\"\")","v":""},null,null,null,null,"Kaolin","Materialien (Bestandteile des Produkts)",{"$f":"IFERROR(INDEX(TabelleMB[[Materialien]:[KRA]],(MATCH(TabelleKRA[[#This Row],[KRA]],TabelleKRA[KRA],0)),4),\"\")","v":""},null,null,null,null,"Indium","Materialien (nicht Bestandteil des Produkts)",{"$f":"IFERROR(INDEX(TabelleNMB[[Materialien]:[GWP]],(MATCH(TabelleGWP[[#This Row],[GWP]],TabelleGWP[GWP],0)),4),\"\")","v":""}]
[null,"Kies (Baukies)","Materialien (Bestandteile des Produkts)",{"$f":"IFERROR(INDEX(TabelleMB[[Materialien]:[KEA]],(MATCH(TabelleKEA[[#This Row],[KEA]],TabelleKEA[KEA],0)),3),\"\")","v":""},null,null,null,null,"Kies (Baukies)","Materialien (Bestandteile des Produkts)",{"$f":"IFERROR(INDEX(TabelleMB[[Materialien]:[KRA]],(MATCH(TabelleKRA[[#This Row],[KRA]],TabelleKRA[KRA],0)),4),\"\")","v":""},null,null,null,null,"Industriediamanten","Materialien (nicht Bestandteil des Produkts)",{"$f":"IFERROR(INDEX(TabelleNMB[[Materialien]:[GWP]],(MATCH(TabelleGWP[[#This Row],[GWP]],TabelleGWP[GWP],0)),4),\"\")","v":""}]
[null,"Kiselgur","Materialien (Bestandteile des Produkts)",{"$f":"IFERROR(INDEX(TabelleMB[[Materialien]:[KEA]],(MATCH(TabelleKEA[[#This Row],[KEA]],TabelleKEA[KEA],0)),3),\"\")","v":""},null,null,null,null,"Kiselgur","Materialien (Bestandteile des Produkts)",{"$f":"IFERROR(INDEX(TabelleMB[[Materialien]:[KRA]],(MATCH(TabelleKRA[[#This Row],[KRA]],TabelleKRA[KRA],0)),4),\"\")","v":""},null,null,null,null,"Iridium","Materialien (nicht Bestandteil des Produkts)",{"$f":"IFERROR(INDEX(TabelleNMB[[Materialien]:[GWP]],(MATCH(TabelleGWP[[#This Row],[GWP]],TabelleGWP[GWP],0)),4),\"\")","v":""}]
[null,"Kobalt","Materialien (Bestandteile des Produkts)",{"$f":"IFERROR(INDEX(TabelleMB[[Materialien]:[KEA]],(MATCH(TabelleKEA[[#This Row],[KEA]],TabelleKEA[KEA],0)),3),\"\")","v":""},null,null,null,null,"Kobalt","Materialien (Bestandteile des Produkts)",{"$f":"IFERROR(INDEX(TabelleMB[[Materialien]:[KRA]],(MATCH(TabelleKRA[[#This Row],[KRA]],TabelleKRA[KRA],0)),4),\"\")","v":""},null,null,null,null,"Kalisalz","Materialien (nicht Bestandteil des Produkts)",{"$f":"IFERROR(INDEX(TabelleNMB[[Materialien]:[GWP]],(MATCH(TabelleGWP[[#This Row],[GWP]],TabelleGWP[GWP],0)),4),\"\")","v":""}]
[null,"Kobalterze","Materialien (Bestandteile des Produkts)",{"$f":"IFERROR(INDEX(TabelleMB[[Materialien]:[KEA]],(MATCH(TabelleKEA[[#This Row],[KEA]],TabelleKEA[KEA],0)),3),\"\")","v":""},null,null,null,null,"Kobalterze","Materialien (Bestandteile des Produkts)",{"$f":"IFERROR(INDEX(TabelleMB[[Materialien]:[KRA]],(MATCH(TabelleKRA[[#This Row],[KRA]],TabelleKRA[KRA],0)),4),\"\")","v":""},null,null,null,null,"Kalk","Materialien (nicht Bestandteil des Produkts)",{"$f":"IFERROR(INDEX(TabelleNMB[[Materialien]:[GWP]],(MATCH(TabelleGWP[[#This Row],[GWP]],TabelleGWP[GWP],0)),4),\"\")","v":""}]
[null,"Kreide","Materialien (Bestandteile des Produkts)",{"$f":"IFERROR(INDEX(TabelleMB[[Materialien]:[KEA]],(MATCH(TabelleKEA[[#This Row],[KEA]],TabelleKEA[KEA],0)),3),\"\")","v":""},null,null,null,null,"Kreide","Materialien (Bestandteile des Produkts)",{"$f":"IFERROR(INDEX(TabelleMB[[Materialien]:[KRA]],(MATCH(TabelleKRA[[#This Row],[KRA]],TabelleKRA[KRA],0)),4),\"\")","v":""},null,null,null,null,"Kalkmergel","Materialien (nicht Bestandteil des Produkts)",{"$f":"IFERROR(INDEX(TabelleNMB[[Materialien]:[GWP]],(MATCH(TabelleGWP[[#This Row],[GWP]],TabelleGWP[GWP],0)),4),\"\")","v":""}]
[null,"Kryolith","Materialien (Bestandteile des Produkts)",{"$f":"IFERROR(INDEX(TabelleMB[[Materialien]:[KEA]],(MATCH(TabelleKEA[[#This Row],[KEA]],TabelleKEA[KEA],0)),3),\"\")","v":""},null,null,null,null,"Kryolith","Materialien (Bestandteile des Produkts)",{"$f":"IFERROR(INDEX(TabelleMB[[Materialien]:[KRA]],(MATCH(TabelleKRA[[#This Row],[KRA]],TabelleKRA[KRA],0)),4),\"\")","v":""},null,null,null,null,"Kalkstein","Materialien (nicht Bestandteil des Produkts)",{"$f":"IFERROR(INDEX(TabelleNMB[[Materialien]:[GWP]],(MATCH(TabelleGWP[[#This Row],[GWP]],TabelleGWP[GWP],0)),4),\"\")","v":""}]
[null,"Kupfer, primär","Materialien (Bestandteile des Produkts)",{"$f":"IFERROR(INDEX(TabelleMB[[Materialien]:[KEA]],(MATCH(TabelleKEA[[#This Row],[KEA]],TabelleKEA[KEA],0)),3),\"\")","v":""},null,null,null,null,"Kupfer, primär","Materialien (Bestandteile des Produkts)",{"$f":"IFERROR(INDEX(TabelleMB[[Materialien]:[KRA]],(MATCH(TabelleKRA[[#This Row],[KRA]],TabelleKRA[KRA],0)),4),\"\")","v":""},null,null,null,null,"Kaolin","Materialien (nicht Bestandteil des Produkts)",{"$f":"IFERROR(INDEX(TabelleNMB[[Materialien]:[GWP]],(MATCH(TabelleGWP[[#This Row],[GWP]],TabelleGWP[GWP],0)),4),\"\")","v":""}]
[null,"Kupfer, sekundär","Materialien (Bestandteile des Produkts)",{"$f":"IFERROR(INDEX(TabelleMB[[Materialien]:[KEA]],(MATCH(TabelleKEA[[#This Row],[KEA]],TabelleKEA[KEA],0)),3),\"\")","v":""},null,null,null,null,"Kupfer, sekundär","Materialien (Bestandteile des Produkts)",{"$f":"IFERROR(INDEX(TabelleMB[[Materialien]:[KRA]],(MATCH(TabelleKRA[[#This Row],[KRA]],TabelleKRA[KRA],0)),4),\"\")","v":""},null,null,null,null,"Kies (Baukies)","Materialien (nicht Bestandteil des Produkts)",{"$f":"IFERROR(INDEX(TabelleNMB[[Materialien]:[GWP]],(MATCH(TabelleGWP[[#This Row],[GWP]],TabelleGWP[GWP],0)),4),\"\")","v":""}]
[null,"Kupferblech (ohne Prozessschritte für Kupfer primär/sekundär)","Materialien (Bestandteile des Produkts)",{"$f":"IFERROR(INDEX(TabelleMB[[Materialien]:[KEA]],(MATCH(TabelleKEA[[#This Row],[KEA]],TabelleKEA[KEA],0)),3),\"\")","v":""},null,null,null,null,"Kupferblech (ohne Prozessschritte für Kupfer primär/sekundär)","Materialien (Bestandteile des Produkts)",{"$f":"IFERROR(INDEX(TabelleMB[[Materialien]:[KRA]],(MATCH(TabelleKRA[[#This Row],[KRA]],TabelleKRA[KRA],0)),4),\"\")","v":""},null,null,null,null,"Kiselgur","Materialien (nicht Bestandteil des Produkts)",{"$f":"IFERROR(INDEX(TabelleNMB[[Materialien]:[GWP]],(MATCH(TabelleGWP[[#This Row],[GWP]],TabelleGWP[GWP],0)),4),\"\")","v":""}]
[null,"Kupferkonzentrate, global","Materialien (Bestandteile des Produkts)",{"$f":"IFERROR(INDEX(TabelleMB[[Materialien]:[KEA]],(MATCH(TabelleKEA[[#This Row],[KEA]],TabelleKEA[KEA],0)),3),\"\")","v":""},null,null,null,null,"Kupferkonzentrate, global","Materialien (Bestandteile des Produkts)",{"$f":"IFERROR(INDEX(TabelleMB[[Materialien]:[KRA]],(MATCH(TabelleKRA[[#This Row],[KRA]],TabelleKRA[KRA],0)),4),\"\")","v":""},null,null,null,null,"Kobalt","Materialien (nicht Bestandteil des Produkts)",{"$f":"IFERROR(INDEX(TabelleNMB[[Materialien]:[GWP]],(MATCH(TabelleGWP[[#This Row],[GWP]],TabelleGWP[GWP],0)),4),\"\")","v":""}]
[null,"Laptop","Materialien (Bestandteile des Produkts)",{"$f":"IFERROR(INDEX(TabelleMB[[Materialien]:[KEA]],(MATCH(TabelleKEA[[#This Row],[KEA]],TabelleKEA[KEA],0)),3),\"\")","v":""},null,null,null,null,"Laptop","Materialien (Bestandteile des Produkts)",{"$f":"IFERROR(INDEX(TabelleMB[[Materialien]:[KRA]],(MATCH(TabelleKRA[[#This Row],[KRA]],TabelleKRA[KRA],0)),4),\"\")","v":""},null,null,null,null,"Kobalterze","Materialien (nicht Bestandteil des Produkts)",{"$f":"IFERROR(INDEX(TabelleNMB[[Materialien]:[GWP]],(MATCH(TabelleGWP[[#This Row],[GWP]],TabelleGWP[GWP],0)),4),\"\")","v":""}]
[null,"Laubholz","Materialien (Bestandteile des Produkts)",{"$f":"IFERROR(INDEX(TabelleMB[[Materialien]:[KEA]],(MATCH(TabelleKEA[[#This Row],[KEA]],TabelleKEA[KEA],0)),3),\"\")","v":""},null,null,null,null,"Laubholz","Materialien (Bestandteile des Produkts)",{"$f":"IFERROR(INDEX(TabelleMB[[Materialien]:[KRA]],(MATCH(TabelleKRA[[#This Row],[KRA]],TabelleKRA[KRA],0)),4),\"\")","v":""},null,null,null,null,"Kreide","Materialien (nicht Bestandteil des Produkts)",{"$f":"IFERROR(INDEX(TabelleNMB[[Materialien]:[GWP]],(MATCH(TabelleGWP[[#This Row],[GWP]],TabelleGWP[GWP],0)),4),\"\")","v":""}]
[null,"LDPE","Materialien (Bestandteile des Produkts)",{"$f":"IFERROR(INDEX(TabelleMB[[Materialien]:[KEA]],(MATCH(TabelleKEA[[#This Row],[KEA]],TabelleKEA[KEA],0)),3),\"\")","v":""},null,null,null,null,"LDPE","Materialien (Bestandteile des Produkts)",{"$f":"IFERROR(INDEX(TabelleMB[[Materialien]:[KRA]],(MATCH(TabelleKRA[[#This Row],[KRA]],TabelleKRA[KRA],0)),4),\"\")","v":""},null,null,null,null,"Kryolith","Materialien (nicht Bestandteil des Produkts)",{"$f":"IFERROR(INDEX(TabelleNMB[[Materialien]:[GWP]],(MATCH(TabelleGWP[[#This Row],[GWP]],TabelleGWP[GWP],0)),4),\"\")","v":""}]
[null,"Lehm","Materialien (Bestandteile des Produkts)",{"$f":"IFERROR(INDEX(TabelleMB[[Materialien]:[KEA]],(MATCH(TabelleKEA[[#This Row],[KEA]],TabelleKEA[KEA],0)),3),\"\")","v":""},null,null,null,null,"Lehm","Materialien (Bestandteile des Produkts)",{"$f":"IFERROR(INDEX(TabelleMB[[Materialien]:[KRA]],(MATCH(TabelleKRA[[#This Row],[KRA]],TabelleKRA[KRA],0)),4),\"\")","v":""},null,null,null,null,"Kupfer, primär","Materialien (nicht Bestandteil des Produkts)",{"$f":"IFERROR(INDEX(TabelleNMB[[Materialien]:[GWP]],(MATCH(TabelleGWP[[#This Row],[GWP]],TabelleGWP[GWP],0)),4),\"\")","v":""}]
[null,"Lithium","Materialien (Bestandteile des Produkts)",{"$f":"IFERROR(INDEX(TabelleMB[[Materialien]:[KEA]],(MATCH(TabelleKEA[[#This Row],[KEA]],TabelleKEA[KEA],0)),3),\"\")","v":""},null,null,null,null,"Lithium","Materialien (Bestandteile des Produkts)",{"$f":"IFERROR(INDEX(TabelleMB[[Materialien]:[KRA]],(MATCH(TabelleKRA[[#This Row],[KRA]],TabelleKRA[KRA],0)),4),\"\")","v":""},null,null,null,null,"Kupfer, sekundär","Materialien (nicht Bestandteil des Produkts)",{"$f":"IFERROR(INDEX(TabelleNMB[[Materialien]:[GWP]],(MATCH(TabelleGWP[[#This Row],[GWP]],TabelleGWP[GWP],0)),4),\"\")","v":""}]
[null,"Magnesium","Materialien (Bestandteile des Produkts)",{"$f":"IFERROR(INDEX(TabelleMB[[Materialien]:[KEA]],(MATCH(TabelleKEA[[#This Row],[KEA]],TabelleKEA[KEA],0)),3),\"\")","v":""},null,null,null,null,"Magnesium","Materialien (Bestandteile des Produkts)",{"$f":"IFERROR(INDEX(TabelleMB[[Materialien]:[KRA]],(MATCH(TabelleKRA[[#This Row],[KRA]],TabelleKRA[KRA],0)),4),\"\")","v":""},null,null,null,null,"Kupferblech (ohne Prozessschritte für Kupfer primär/sekundär)","Materialien (nicht Bestandteil des Produkts)",{"$f":"IFERROR(INDEX(TabelleNMB[[Materialien]:[GWP]],(MATCH(TabelleGWP[[#This Row],[GWP]],TabelleGWP[GWP],0)),4),\"\")","v":""}]
[null,"Magnesiumkarbonat","Materialien (Bestandteile des Produkts)",{"$f":"IFERROR(INDEX(TabelleMB[[Materialien]:[KEA]],(MATCH(TabelleKEA[[#This Row],[KEA]],TabelleKEA[KEA],0)),3),\"\")","v":""},null,null,null,null,"Magnesiumkarbonat","Materialien (Bestandteile des Produkts)",{"$f":"IFERROR(INDEX(TabelleMB[[Materialien]:[KRA]],(MATCH(TabelleKRA[[#This Row],[KRA]],TabelleKRA[KRA],0)),4),\"\")","v":""},null,null,null,null,"Kupferkonzentrate, global","Materialien (nicht Bestandteil des Produkts)",{"$f":"IFERROR(INDEX(TabelleNMB[[Materialien]:[GWP]],(MATCH(TabelleGWP[[#This Row],[GWP]],TabelleGWP[GWP],0)),4),\"\")","v":""}]
[null,"Magnesiumsulfat","Materialien (Bestandteile des Produkts)",{"$f":"IFERROR(INDEX(TabelleMB[[Materialien]:[KEA]],(MATCH(TabelleKEA[[#This Row],[KEA]],TabelleKEA[KEA],0)),3),\"\")","v":""},null,null,null,null,"Magnesiumsulfat","Materialien (Bestandteile des Produkts)",{"$f":"IFERROR(INDEX(TabelleMB[[Materialien]:[KRA]],(MATCH(TabelleKRA[[#This Row],[KRA]],TabelleKRA[KRA],0)),4),\"\")","v":""},null,null,null,null,"Laptop","Materialien (nicht Bestandteil des Produkts)",{"$f":"IFERROR(INDEX(TabelleNMB[[Materialien]:[GWP]],(MATCH(TabelleGWP[[#This Row],[GWP]],TabelleGWP[GWP],0)),4),\"\")","v":""}]
[null,"Mangan","Materialien (Bestandteile des Produkts)",{"$f":"IFERROR(INDEX(TabelleMB[[Materialien]:[KEA]],(MATCH(TabelleKEA[[#This Row],[KEA]],TabelleKEA[KEA],0)),3),\"\")","v":""},null,null,null,null,"Mangan","Materialien (Bestandteile des Produkts)",{"$f":"IFERROR(INDEX(TabelleMB[[Materialien]:[KRA]],(MATCH(TabelleKRA[[#This Row],[KRA]],TabelleKRA[KRA],0)),4),\"\")","v":""},null,null,null,null,"Laubholz","Materialien (nicht Bestandteil des Produkts)",{"$f":"IFERROR(INDEX(TabelleNMB[[Materialien]:[GWP]],(MATCH(TabelleGWP[[#This Row],[GWP]],TabelleGWP[GWP],0)),4),\"\")","v":""}]
[null,"Manganerz","Materialien (Bestandteile des Produkts)",{"$f":"IFERROR(INDEX(TabelleMB[[Materialien]:[KEA]],(MATCH(TabelleKEA[[#This Row],[KEA]],TabelleKEA[KEA],0)),3),\"\")","v":""},null,null,null,null,"Manganerz","Materialien (Bestandteile des Produkts)",{"$f":"IFERROR(INDEX(TabelleMB[[Materialien]:[KRA]],(MATCH(TabelleKRA[[#This Row],[KRA]],TabelleKRA[KRA],0)),4),\"\")","v":""},null,null,null,null,"LDPE","Materialien (nicht Bestandteil des Produkts)",{"$f":"IFERROR(INDEX(TabelleNMB[[Materialien]:[GWP]],(MATCH(TabelleGWP[[#This Row],[GWP]],TabelleGWP[GWP],0)),4),\"\")","v":""}]
[null,"Messing","Materialien (Bestandteile des Produkts)",{"$f":"IFERROR(INDEX(TabelleMB[[Materialien]:[KEA]],(MATCH(TabelleKEA[[#This Row],[KEA]],TabelleKEA[KEA],0)),3),\"\")","v":""},null,null,null,null,"Messing","Materialien (Bestandteile des Produkts)",{"$f":"IFERROR(INDEX(TabelleMB[[Materialien]:[KRA]],(MATCH(TabelleKRA[[#This Row],[KRA]],TabelleKRA[KRA],0)),4),\"\")","v":""},null,null,null,null,"Lehm","Materialien (nicht Bestandteil des Produkts)",{"$f":"IFERROR(INDEX(TabelleNMB[[Materialien]:[GWP]],(MATCH(TabelleGWP[[#This Row],[GWP]],TabelleGWP[GWP],0)),4),\"\")","v":""}]
[null,"Molybdän","Materialien (Bestandteile des Produkts)",{"$f":"IFERROR(INDEX(TabelleMB[[Materialien]:[KEA]],(MATCH(TabelleKEA[[#This Row],[KEA]],TabelleKEA[KEA],0)),3),\"\")","v":""},null,null,null,null,"Molybdän","Materialien (Bestandteile des Produkts)",{"$f":"IFERROR(INDEX(TabelleMB[[Materialien]:[KRA]],(MATCH(TabelleKRA[[#This Row],[KRA]],TabelleKRA[KRA],0)),4),\"\")","v":""},null,null,null,null,"Lithium","Materialien (nicht Bestandteil des Produkts)",{"$f":"IFERROR(INDEX(TabelleNMB[[Materialien]:[GWP]],(MATCH(TabelleGWP[[#This Row],[GWP]],TabelleGWP[GWP],0)),4),\"\")","v":""}]
[null,"Molybdänerz","Materialien (Bestandteile des Produkts)",{"$f":"IFERROR(INDEX(TabelleMB[[Materialien]:[KEA]],(MATCH(TabelleKEA[[#This Row],[KEA]],TabelleKEA[KEA],0)),3),\"\")","v":""},null,null,null,null,"Molybdänerz","Materialien (Bestandteile des Produkts)",{"$f":"IFERROR(INDEX(TabelleMB[[Materialien]:[KRA]],(MATCH(TabelleKRA[[#This Row],[KRA]],TabelleKRA[KRA],0)),4),\"\")","v":""},null,null,null,null,"Magnesium","Materialien (nicht Bestandteil des Produkts)",{"$f":"IFERROR(INDEX(TabelleNMB[[Materialien]:[GWP]],(MATCH(TabelleGWP[[#This Row],[GWP]],TabelleGWP[GWP],0)),4),\"\")","v":""}]
[null,"Nadelholz","Materialien (Bestandteile des Produkts)",{"$f":"IFERROR(INDEX(TabelleMB[[Materialien]:[KEA]],(MATCH(TabelleKEA[[#This Row],[KEA]],TabelleKEA[KEA],0)),3),\"\")","v":""},null,null,null,null,"Nadelholz","Materialien (Bestandteile des Produkts)",{"$f":"IFERROR(INDEX(TabelleMB[[Materialien]:[KRA]],(MATCH(TabelleKRA[[#This Row],[KRA]],TabelleKRA[KRA],0)),4),\"\")","v":""},null,null,null,null,"Magnesiumkarbonat","Materialien (nicht Bestandteil des Produkts)",{"$f":"IFERROR(INDEX(TabelleNMB[[Materialien]:[GWP]],(MATCH(TabelleGWP[[#This Row],[GWP]],TabelleGWP[GWP],0)),4),\"\")","v":""}]
[null,"Naphtha","Materialien (Bestandteile des Produkts)",{"$f":"IFERROR(INDEX(TabelleMB[[Materialien]:[KEA]],(MATCH(TabelleKEA[[#This Row],[KEA]],TabelleKEA[KEA],0)),3),\"\")","v":""},null,null,null,null,"Naphtha","Materialien (Bestandteile des Produkts)",{"$f":"IFERROR(INDEX(TabelleMB[[Materialien]:[KRA]],(MATCH(TabelleKRA[[#This Row],[KRA]],TabelleKRA[KRA],0)),4),\"\")","v":""},null,null,null,null,"Magnesiumsulfat","Materialien (nicht Bestandteil des Produkts)",{"$f":"IFERROR(INDEX(TabelleNMB[[Materialien]:[GWP]],(MATCH(TabelleGWP[[#This Row],[GWP]],TabelleGWP[GWP],0)),4),\"\")","v":""}]
[null,"Natronlauge","Materialien (Bestandteile des Produkts)",{"$f":"IFERROR(INDEX(TabelleMB[[Materialien]:[KEA]],(MATCH(TabelleKEA[[#This Row],[KEA]],TabelleKEA[KEA],0)),3),\"\")","v":""},null,null,null,null,"Natronlauge","Materialien (Bestandteile des Produkts)",{"$f":"IFERROR(INDEX(TabelleMB[[Materialien]:[KRA]],(MATCH(TabelleKRA[[#This Row],[KRA]],TabelleKRA[KRA],0)),4),\"\")","v":""},null,null,null,null,"Mangan","Materialien (nicht Bestandteil des Produkts)",{"$f":"IFERROR(INDEX(TabelleNMB[[Materialien]:[GWP]],(MATCH(TabelleGWP[[#This Row],[GWP]],TabelleGWP[GWP],0)),4),\"\")","v":""}]
[null,"Naturstein, ungebrochen","Materialien (Bestandteile des Produkts)",{"$f":"IFERROR(INDEX(TabelleMB[[Materialien]:[KEA]],(MATCH(TabelleKEA[[#This Row],[KEA]],TabelleKEA[KEA],0)),3),\"\")","v":""},null,null,null,null,"Naturstein, ungebrochen","Materialien (Bestandteile des Produkts)",{"$f":"IFERROR(INDEX(TabelleMB[[Materialien]:[KRA]],(MATCH(TabelleKRA[[#This Row],[KRA]],TabelleKRA[KRA],0)),4),\"\")","v":""},null,null,null,null,"Manganerz","Materialien (nicht Bestandteil des Produkts)",{"$f":"IFERROR(INDEX(TabelleNMB[[Materialien]:[GWP]],(MATCH(TabelleGWP[[#This Row],[GWP]],TabelleGWP[GWP],0)),4),\"\")","v":""}]
[null,"Nickel","Materialien (Bestandteile des Produkts)",{"$f":"IFERROR(INDEX(TabelleMB[[Materialien]:[KEA]],(MATCH(TabelleKEA[[#This Row],[KEA]],TabelleKEA[KEA],0)),3),\"\")","v":""},null,null,null,null,"Nickel","Materialien (Bestandteile des Produkts)",{"$f":"IFERROR(INDEX(TabelleMB[[Materialien]:[KRA]],(MATCH(TabelleKRA[[#This Row],[KRA]],TabelleKRA[KRA],0)),4),\"\")","v":""},null,null,null,null,"Messing","Materialien (nicht Bestandteil des Produkts)",{"$f":"IFERROR(INDEX(TabelleNMB[[Materialien]:[GWP]],(MATCH(TabelleGWP[[#This Row],[GWP]],TabelleGWP[GWP],0)),4),\"\")","v":""}]
[null,"Niob- und Tantalkonzentrate","Materialien (Bestandteile des Produkts)",{"$f":"IFERROR(INDEX(TabelleMB[[Materialien]:[KEA]],(MATCH(TabelleKEA[[#This Row],[KEA]],TabelleKEA[KEA],0)),3),\"\")","v":""},null,null,null,null,"Niob- und Tantalkonzentrate","Materialien (Bestandteile des Produkts)",{"$f":"IFERROR(INDEX(TabelleMB[[Materialien]:[KRA]],(MATCH(TabelleKRA[[#This Row],[KRA]],TabelleKRA[KRA],0)),4),\"\")","v":""},null,null,null,null,"Molybdän","Materialien (nicht Bestandteil des Produkts)",{"$f":"IFERROR(INDEX(TabelleNMB[[Materialien]:[GWP]],(MATCH(TabelleGWP[[#This Row],[GWP]],TabelleGWP[GWP],0)),4),\"\")","v":""}]
[null,"Obst (Apfel)","Materialien (Bestandteile des Produkts)",{"$f":"IFERROR(INDEX(TabelleMB[[Materialien]:[KEA]],(MATCH(TabelleKEA[[#This Row],[KEA]],TabelleKEA[KEA],0)),3),\"\")","v":""},null,null,null,null,"Obst (Apfel)","Materialien (Bestandteile des Produkts)",{"$f":"IFERROR(INDEX(TabelleMB[[Materialien]:[KRA]],(MATCH(TabelleKRA[[#This Row],[KRA]],TabelleKRA[KRA],0)),4),\"\")","v":""},null,null,null,null,"Molybdänerz","Materialien (nicht Bestandteil des Produkts)",{"$f":"IFERROR(INDEX(TabelleNMB[[Materialien]:[GWP]],(MATCH(TabelleGWP[[#This Row],[GWP]],TabelleGWP[GWP],0)),4),\"\")","v":""}]
[null,"Osmium","Materialien (Bestandteile des Produkts)",{"$f":"IFERROR(INDEX(TabelleMB[[Materialien]:[KEA]],(MATCH(TabelleKEA[[#This Row],[KEA]],TabelleKEA[KEA],0)),3),\"\")","v":""},null,null,null,null,"Osmium","Materialien (Bestandteile des Produkts)",{"$f":"IFERROR(INDEX(TabelleMB[[Materialien]:[KRA]],(MATCH(TabelleKRA[[#This Row],[KRA]],TabelleKRA[KRA],0)),4),\"\")","v":""},null,null,null,null,"Nadelholz","Materialien (nicht Bestandteil des Produkts)",{"$f":"IFERROR(INDEX(TabelleNMB[[Materialien]:[GWP]],(MATCH(TabelleGWP[[#This Row],[GWP]],TabelleGWP[GWP],0)),4),\"\")","v":""}]
[null,"Palladium, Russland","Materialien (Bestandteile des Produkts)",{"$f":"IFERROR(INDEX(TabelleMB[[Materialien]:[KEA]],(MATCH(TabelleKEA[[#This Row],[KEA]],TabelleKEA[KEA],0)),3),\"\")","v":""},null,null,null,null,"Palladium, Russland","Materialien (Bestandteile des Produkts)",{"$f":"IFERROR(INDEX(TabelleMB[[Materialien]:[KRA]],(MATCH(TabelleKRA[[#This Row],[KRA]],TabelleKRA[KRA],0)),4),\"\")","v":""},null,null,null,null,"Naphtha","Materialien (nicht Bestandteil des Produkts)",{"$f":"IFERROR(INDEX(TabelleNMB[[Materialien]:[GWP]],(MATCH(TabelleGWP[[#This Row],[GWP]],TabelleGWP[GWP],0)),4),\"\")","v":""}]
[null,"Palladium, Südafrika","Materialien (Bestandteile des Produkts)",{"$f":"IFERROR(INDEX(TabelleMB[[Materialien]:[KEA]],(MATCH(TabelleKEA[[#This Row],[KEA]],TabelleKEA[KEA],0)),3),\"\")","v":""},null,null,null,null,"Palladium, Südafrika","Materialien (Bestandteile des Produkts)",{"$f":"IFERROR(INDEX(TabelleMB[[Materialien]:[KRA]],(MATCH(TabelleKRA[[#This Row],[KRA]],TabelleKRA[KRA],0)),4),\"\")","v":""},null,null,null,null,"Natronlauge","Materialien (nicht Bestandteil des Produkts)",{"$f":"IFERROR(INDEX(TabelleNMB[[Materialien]:[GWP]],(MATCH(TabelleGWP[[#This Row],[GWP]],TabelleGWP[GWP],0)),4),\"\")","v":""}]
[null,"Pegmatitsand","Materialien (Bestandteile des Produkts)",{"$f":"IFERROR(INDEX(TabelleMB[[Materialien]:[KEA]],(MATCH(TabelleKEA[[#This Row],[KEA]],TabelleKEA[KEA],0)),3),\"\")","v":""},null,null,null,null,"Pegmatitsand","Materialien (Bestandteile des Produkts)",{"$f":"IFERROR(INDEX(TabelleMB[[Materialien]:[KRA]],(MATCH(TabelleKRA[[#This Row],[KRA]],TabelleKRA[KRA],0)),4),\"\")","v":""},null,null,null,null,"Naturstein, ungebrochen","Materialien (nicht Bestandteil des Produkts)",{"$f":"IFERROR(INDEX(TabelleNMB[[Materialien]:[GWP]],(MATCH(TabelleGWP[[#This Row],[GWP]],TabelleGWP[GWP],0)),4),\"\")","v":""}]
[null,"Perlit","Materialien (Bestandteile des Produkts)",{"$f":"IFERROR(INDEX(TabelleMB[[Materialien]:[KEA]],(MATCH(TabelleKEA[[#This Row],[KEA]],TabelleKEA[KEA],0)),3),\"\")","v":""},null,null,null,null,"Perlit","Materialien (Bestandteile des Produkts)",{"$f":"IFERROR(INDEX(TabelleMB[[Materialien]:[KRA]],(MATCH(TabelleKRA[[#This Row],[KRA]],TabelleKRA[KRA],0)),4),\"\")","v":""},null,null,null,null,"Nickel","Materialien (nicht Bestandteil des Produkts)",{"$f":"IFERROR(INDEX(TabelleNMB[[Materialien]:[GWP]],(MATCH(TabelleGWP[[#This Row],[GWP]],TabelleGWP[GWP],0)),4),\"\")","v":""}]
[null,"PET","Materialien (Bestandteile des Produkts)",{"$f":"IFERROR(INDEX(TabelleMB[[Materialien]:[KEA]],(MATCH(TabelleKEA[[#This Row],[KEA]],TabelleKEA[KEA],0)),3),\"\")","v":""},null,null,null,null,"PET","Materialien (Bestandteile des Produkts)",{"$f":"IFERROR(INDEX(TabelleMB[[Materialien]:[KRA]],(MATCH(TabelleKRA[[#This Row],[KRA]],TabelleKRA[KRA],0)),4),\"\")","v":""},null,null,null,null,"Niob- und Tantalkonzentrate","Materialien (nicht Bestandteil des Produkts)",{"$f":"IFERROR(INDEX(TabelleNMB[[Materialien]:[GWP]],(MATCH(TabelleGWP[[#This Row],[GWP]],TabelleGWP[GWP],0)),4),\"\")","v":""}]
[null,"Phosphat, Marokko","Materialien (Bestandteile des Produkts)",{"$f":"IFERROR(INDEX(TabelleMB[[Materialien]:[KEA]],(MATCH(TabelleKEA[[#This Row],[KEA]],TabelleKEA[KEA],0)),3),\"\")","v":""},null,null,null,null,"Phosphat, Marokko","Materialien (Bestandteile des Produkts)",{"$f":"IFERROR(INDEX(TabelleMB[[Materialien]:[KRA]],(MATCH(TabelleKRA[[#This Row],[KRA]],TabelleKRA[KRA],0)),4),\"\")","v":""},null,null,null,null,"Obst (Apfel)","Materialien (nicht Bestandteil des Produkts)",{"$f":"IFERROR(INDEX(TabelleNMB[[Materialien]:[GWP]],(MATCH(TabelleGWP[[#This Row],[GWP]],TabelleGWP[GWP],0)),4),\"\")","v":""}]
[null,"Phosphat, USA","Materialien (Bestandteile des Produkts)",{"$f":"IFERROR(INDEX(TabelleMB[[Materialien]:[KEA]],(MATCH(TabelleKEA[[#This Row],[KEA]],TabelleKEA[KEA],0)),3),\"\")","v":""},null,null,null,null,"Phosphat, USA","Materialien (Bestandteile des Produkts)",{"$f":"IFERROR(INDEX(TabelleMB[[Materialien]:[KRA]],(MATCH(TabelleKRA[[#This Row],[KRA]],TabelleKRA[KRA],0)),4),\"\")","v":""},null,null,null,null,"Osmium","Materialien (nicht Bestandteil des Produkts)",{"$f":"IFERROR(INDEX(TabelleNMB[[Materialien]:[GWP]],(MATCH(TabelleGWP[[#This Row],[GWP]],TabelleGWP[GWP],0)),4),\"\")","v":""}]
[null,"Phosphor, weiß","Materialien (Bestandteile des Produkts)",{"$f":"IFERROR(INDEX(TabelleMB[[Materialien]:[KEA]],(MATCH(TabelleKEA[[#This Row],[KEA]],TabelleKEA[KEA],0)),3),\"\")","v":""},null,null,null,null,"Phosphor, weiß","Materialien (Bestandteile des Produkts)",{"$f":"IFERROR(INDEX(TabelleMB[[Materialien]:[KRA]],(MATCH(TabelleKRA[[#This Row],[KRA]],TabelleKRA[KRA],0)),4),\"\")","v":""},null,null,null,null,"Palladium, Russland","Materialien (nicht Bestandteil des Produkts)",{"$f":"IFERROR(INDEX(TabelleNMB[[Materialien]:[GWP]],(MATCH(TabelleGWP[[#This Row],[GWP]],TabelleGWP[GWP],0)),4),\"\")","v":""}]
[null,"PKW","Materialien (Bestandteile des Produkts)",{"$f":"IFERROR(INDEX(TabelleMB[[Materialien]:[KEA]],(MATCH(TabelleKEA[[#This Row],[KEA]],TabelleKEA[KEA],0)),3),\"\")","v":""},null,null,null,null,"PKW","Materialien (Bestandteile des Produkts)",{"$f":"IFERROR(INDEX(TabelleMB[[Materialien]:[KRA]],(MATCH(TabelleKRA[[#This Row],[KRA]],TabelleKRA[KRA],0)),4),\"\")","v":""},null,null,null,null,"Palladium, Südafrika","Materialien (nicht Bestandteil des Produkts)",{"$f":"IFERROR(INDEX(TabelleNMB[[Materialien]:[GWP]],(MATCH(TabelleGWP[[#This Row],[GWP]],TabelleGWP[GWP],0)),4),\"\")","v":""}]
[null,"Platin, Russland","Materialien (Bestandteile des Produkts)",{"$f":"IFERROR(INDEX(TabelleMB[[Materialien]:[KEA]],(MATCH(TabelleKEA[[#This Row],[KEA]],TabelleKEA[KEA],0)),3),\"\")","v":""},null,null,null,null,"Platin, Russland","Materialien (Bestandteile des Produkts)",{"$f":"IFERROR(INDEX(TabelleMB[[Materialien]:[KRA]],(MATCH(TabelleKRA[[#This Row],[KRA]],TabelleKRA[KRA],0)),4),\"\")","v":""},null,null,null,null,"Pegmatitsand","Materialien (nicht Bestandteil des Produkts)",{"$f":"IFERROR(INDEX(TabelleNMB[[Materialien]:[GWP]],(MATCH(TabelleGWP[[#This Row],[GWP]],TabelleGWP[GWP],0)),4),\"\")","v":""}]
[null,"Platin, Südafrika","Materialien (Bestandteile des Produkts)",{"$f":"IFERROR(INDEX(TabelleMB[[Materialien]:[KEA]],(MATCH(TabelleKEA[[#This Row],[KEA]],TabelleKEA[KEA],0)),3),\"\")","v":""},null,null,null,null,"Platin, Südafrika","Materialien (Bestandteile des Produkts)",{"$f":"IFERROR(INDEX(TabelleMB[[Materialien]:[KRA]],(MATCH(TabelleKRA[[#This Row],[KRA]],TabelleKRA[KRA],0)),4),\"\")","v":""},null,null,null,null,"Perlit","Materialien (nicht Bestandteil des Produkts)",{"$f":"IFERROR(INDEX(TabelleNMB[[Materialien]:[GWP]],(MATCH(TabelleGWP[[#This Row],[GWP]],TabelleGWP[GWP],0)),4),\"\")","v":""}]
[null,"PVC","Materialien (Bestandteile des Produkts)",{"$f":"IFERROR(INDEX(TabelleMB[[Materialien]:[KEA]],(MATCH(TabelleKEA[[#This Row],[KEA]],TabelleKEA[KEA],0)),3),\"\")","v":""},null,null,null,null,"PVC","Materialien (Bestandteile des Produkts)",{"$f":"IFERROR(INDEX(TabelleMB[[Materialien]:[KRA]],(MATCH(TabelleKRA[[#This Row],[KRA]],TabelleKRA[KRA],0)),4),\"\")","v":""},null,null,null,null,"PET","Materialien (nicht Bestandteil des Produkts)",{"$f":"IFERROR(INDEX(TabelleNMB[[Materialien]:[GWP]],(MATCH(TabelleGWP[[#This Row],[GWP]],TabelleGWP[GWP],0)),4),\"\")","v":""}]
[null,"Quarz, Quarzite","Materialien (Bestandteile des Produkts)",{"$f":"IFERROR(INDEX(TabelleMB[[Materialien]:[KEA]],(MATCH(TabelleKEA[[#This Row],[KEA]],TabelleKEA[KEA],0)),3),\"\")","v":""},null,null,null,null,"Quarz, Quarzite","Materialien (Bestandteile des Produkts)",{"$f":"IFERROR(INDEX(TabelleMB[[Materialien]:[KRA]],(MATCH(TabelleKRA[[#This Row],[KRA]],TabelleKRA[KRA],0)),4),\"\")","v":""},null,null,null,null,"Phosphat, Marokko","Materialien (nicht Bestandteil des Produkts)",{"$f":"IFERROR(INDEX(TabelleNMB[[Materialien]:[GWP]],(MATCH(TabelleGWP[[#This Row],[GWP]],TabelleGWP[GWP],0)),4),\"\")","v":""}]
[null,"Quarzsand","Materialien (Bestandteile des Produkts)",{"$f":"IFERROR(INDEX(TabelleMB[[Materialien]:[KEA]],(MATCH(TabelleKEA[[#This Row],[KEA]],TabelleKEA[KEA],0)),3),\"\")","v":""},null,null,null,null,"Quarzsand","Materialien (Bestandteile des Produkts)",{"$f":"IFERROR(INDEX(TabelleMB[[Materialien]:[KRA]],(MATCH(TabelleKRA[[#This Row],[KRA]],TabelleKRA[KRA],0)),4),\"\")","v":""},null,null,null,null,"Phosphat, USA","Materialien (nicht Bestandteil des Produkts)",{"$f":"IFERROR(INDEX(TabelleNMB[[Materialien]:[GWP]],(MATCH(TabelleGWP[[#This Row],[GWP]],TabelleGWP[GWP],0)),4),\"\")","v":""}]
[null,"Quecksilber","Materialien (Bestandteile des Produkts)",{"$f":"IFERROR(INDEX(TabelleMB[[Materialien]:[KEA]],(MATCH(TabelleKEA[[#This Row],[KEA]],TabelleKEA[KEA],0)),3),\"\")","v":""},null,null,null,null,"Quecksilber","Materialien (Bestandteile des Produkts)",{"$f":"IFERROR(INDEX(TabelleMB[[Materialien]:[KRA]],(MATCH(TabelleKRA[[#This Row],[KRA]],TabelleKRA[KRA],0)),4),\"\")","v":""},null,null,null,null,"Phosphor, weiß","Materialien (nicht Bestandteil des Produkts)",{"$f":"IFERROR(INDEX(TabelleNMB[[Materialien]:[GWP]],(MATCH(TabelleGWP[[#This Row],[GWP]],TabelleGWP[GWP],0)),4),\"\")","v":""}]
[null,"Rhodium, Russland","Materialien (Bestandteile des Produkts)",{"$f":"IFERROR(INDEX(TabelleMB[[Materialien]:[KEA]],(MATCH(TabelleKEA[[#This Row],[KEA]],TabelleKEA[KEA],0)),3),\"\")","v":""},null,null,null,null,"Rhodium, Russland","Materialien (Bestandteile des Produkts)",{"$f":"IFERROR(INDEX(TabelleMB[[Materialien]:[KRA]],(MATCH(TabelleKRA[[#This Row],[KRA]],TabelleKRA[KRA],0)),4),\"\")","v":""},null,null,null,null,"PKW","Materialien (nicht Bestandteil des Produkts)",{"$f":"IFERROR(INDEX(TabelleNMB[[Materialien]:[GWP]],(MATCH(TabelleGWP[[#This Row],[GWP]],TabelleGWP[GWP],0)),4),\"\")","v":""}]
[null,"Rhodium, Südafrika","Materialien (Bestandteile des Produkts)",{"$f":"IFERROR(INDEX(TabelleMB[[Materialien]:[KEA]],(MATCH(TabelleKEA[[#This Row],[KEA]],TabelleKEA[KEA],0)),3),\"\")","v":""},null,null,null,null,"Rhodium, Südafrika","Materialien (Bestandteile des Produkts)",{"$f":"IFERROR(INDEX(TabelleMB[[Materialien]:[KRA]],(MATCH(TabelleKRA[[#This Row],[KRA]],TabelleKRA[KRA],0)),4),\"\")","v":""},null,null,null,null,"Platin, Russland","Materialien (nicht Bestandteil des Produkts)",{"$f":"IFERROR(INDEX(TabelleNMB[[Materialien]:[GWP]],(MATCH(TabelleGWP[[#This Row],[GWP]],TabelleGWP[GWP],0)),4),\"\")","v":""}]
[null,"Ruthenium","Materialien (Bestandteile des Produkts)",{"$f":"IFERROR(INDEX(TabelleMB[[Materialien]:[KEA]],(MATCH(TabelleKEA[[#This Row],[KEA]],TabelleKEA[KEA],0)),3),\"\")","v":""},null,null,null,null,"Ruthenium","Materialien (Bestandteile des Produkts)",{"$f":"IFERROR(INDEX(TabelleMB[[Materialien]:[KRA]],(MATCH(TabelleKRA[[#This Row],[KRA]],TabelleKRA[KRA],0)),4),\"\")","v":""},null,null,null,null,"Platin, Südafrika","Materialien (nicht Bestandteil des Produkts)",{"$f":"IFERROR(INDEX(TabelleNMB[[Materialien]:[GWP]],(MATCH(TabelleGWP[[#This Row],[GWP]],TabelleGWP[GWP],0)),4),\"\")","v":""}]
[null,"Ruß","Materialien (Bestandteile des Produkts)",{"$f":"IFERROR(INDEX(TabelleMB[[Materialien]:[KEA]],(MATCH(TabelleKEA[[#This Row],[KEA]],TabelleKEA[KEA],0)),3),\"\")","v":""},null,null,null,null,"Ruß","Materialien (Bestandteile des Produkts)",{"$f":"IFERROR(INDEX(TabelleMB[[Materialien]:[KRA]],(MATCH(TabelleKRA[[#This Row],[KRA]],TabelleKRA[KRA],0)),4),\"\")","v":""},null,null,null,null,"PVC","Materialien (nicht Bestandteil des Produkts)",{"$f":"IFERROR(INDEX(TabelleNMB[[Materialien]:[GWP]],(MATCH(TabelleGWP[[#This Row],[GWP]],TabelleGWP[GWP],0)),4),\"\")","v":""}]
[null,"Rübenblatt","Materialien (Bestandteile des Produkts)",{"$f":"IFERROR(INDEX(TabelleMB[[Materialien]:[KEA]],(MATCH(TabelleKEA[[#This Row],[KEA]],TabelleKEA[KEA],0)),3),\"\")","v":""},null,null,null,null,"Rübenblatt","Materialien (Bestandteile des Produkts)",{"$f":"IFERROR(INDEX(TabelleMB[[Materialien]:[KRA]],(MATCH(TabelleKRA[[#This Row],[KRA]],TabelleKRA[KRA],0)),4),\"\")","v":""},null,null,null,null,"Quarz, Quarzite","Materialien (nicht Bestandteil des Produkts)",{"$f":"IFERROR(INDEX(TabelleNMB[[Materialien]:[GWP]],(MATCH(TabelleGWP[[#This Row],[GWP]],TabelleGWP[GWP],0)),4),\"\")","v":""}]
[null,"Sand (Bausand)","Materialien (Bestandteile des Produkts)",{"$f":"IFERROR(INDEX(TabelleMB[[Materialien]:[KEA]],(MATCH(TabelleKEA[[#This Row],[KEA]],TabelleKEA[KEA],0)),3),\"\")","v":""},null,null,null,null,"Sand (Bausand)","Materialien (Bestandteile des Produkts)",{"$f":"IFERROR(INDEX(TabelleMB[[Materialien]:[KRA]],(MATCH(TabelleKRA[[#This Row],[KRA]],TabelleKRA[KRA],0)),4),\"\")","v":""},null,null,null,null,"Quarzsand","Materialien (nicht Bestandteil des Produkts)",{"$f":"IFERROR(INDEX(TabelleNMB[[Materialien]:[GWP]],(MATCH(TabelleGWP[[#This Row],[GWP]],TabelleGWP[GWP],0)),4),\"\")","v":""}]
[null,"Sauerstoff, flüssig","Materialien (Bestandteile des Produkts)",{"$f":"IFERROR(INDEX(TabelleMB[[Materialien]:[KEA]],(MATCH(TabelleKEA[[#This Row],[KEA]],TabelleKEA[KEA],0)),3),\"\")","v":""},null,null,null,null,"Sauerstoff, flüssig","Materialien (Bestandteile des Produkts)",{"$f":"IFERROR(INDEX(TabelleMB[[Materialien]:[KRA]],(MATCH(TabelleKRA[[#This Row],[KRA]],TabelleKRA[KRA],0)),4),\"\")","v":""},null,null,null,null,"Quecksilber","Materialien (nicht Bestandteil des Produkts)",{"$f":"IFERROR(INDEX(TabelleNMB[[Materialien]:[GWP]],(MATCH(TabelleGWP[[#This Row],[GWP]],TabelleGWP[GWP],0)),4),\"\")","v":""}]
[null,"Schamottstein","Materialien (Bestandteile des Produkts)",{"$f":"IFERROR(INDEX(TabelleMB[[Materialien]:[KEA]],(MATCH(TabelleKEA[[#This Row],[KEA]],TabelleKEA[KEA],0)),3),\"\")","v":""},null,null,null,null,"Schamottstein","Materialien (Bestandteile des Produkts)",{"$f":"IFERROR(INDEX(TabelleMB[[Materialien]:[KRA]],(MATCH(TabelleKRA[[#This Row],[KRA]],TabelleKRA[KRA],0)),4),\"\")","v":""},null,null,null,null,"Rhodium, Russland","Materialien (nicht Bestandteil des Produkts)",{"$f":"IFERROR(INDEX(TabelleNMB[[Materialien]:[GWP]],(MATCH(TabelleGWP[[#This Row],[GWP]],TabelleGWP[GWP],0)),4),\"\")","v":""}]
[null,"Schiefer","Materialien (Bestandteile des Produkts)",{"$f":"IFERROR(INDEX(TabelleMB[[Materialien]:[KEA]],(MATCH(TabelleKEA[[#This Row],[KEA]],TabelleKEA[KEA],0)),3),\"\")","v":""},null,null,null,null,"Schiefer","Materialien (Bestandteile des Produkts)",{"$f":"IFERROR(INDEX(TabelleMB[[Materialien]:[KRA]],(MATCH(TabelleKRA[[#This Row],[KRA]],TabelleKRA[KRA],0)),4),\"\")","v":""},null,null,null,null,"Rhodium, Südafrika","Materialien (nicht Bestandteil des Produkts)",{"$f":"IFERROR(INDEX(TabelleNMB[[Materialien]:[GWP]],(MATCH(TabelleGWP[[#This Row],[GWP]],TabelleGWP[GWP],0)),4),\"\")","v":""}]
[null,"Schmieröl","Materialien (Bestandteile des Produkts)",{"$f":"IFERROR(INDEX(TabelleMB[[Materialien]:[KEA]],(MATCH(TabelleKEA[[#This Row],[KEA]],TabelleKEA[KEA],0)),3),\"\")","v":""},null,null,null,null,"Schmieröl","Materialien (Bestandteile des Produkts)",{"$f":"IFERROR(INDEX(TabelleMB[[Materialien]:[KRA]],(MATCH(TabelleKRA[[#This Row],[KRA]],TabelleKRA[KRA],0)),4),\"\")","v":""},null,null,null,null,"Ruthenium","Materialien (nicht Bestandteil des Produkts)",{"$f":"IFERROR(INDEX(TabelleNMB[[Materialien]:[GWP]],(MATCH(TabelleGWP[[#This Row],[GWP]],TabelleGWP[GWP],0)),4),\"\")","v":""}]
[null,"Schmirgel, Korund, Granat (Schleifmittel)","Materialien (Bestandteile des Produkts)",{"$f":"IFERROR(INDEX(TabelleMB[[Materialien]:[KEA]],(MATCH(TabelleKEA[[#This Row],[KEA]],TabelleKEA[KEA],0)),3),\"\")","v":""},null,null,null,null,"Schmirgel, Korund, Granat (Schleifmittel)","Materialien (Bestandteile des Produkts)",{"$f":"IFERROR(INDEX(TabelleMB[[Materialien]:[KRA]],(MATCH(TabelleKRA[[#This Row],[KRA]],TabelleKRA[KRA],0)),4),\"\")","v":""},null,null,null,null,"Ruß","Materialien (nicht Bestandteil des Produkts)",{"$f":"IFERROR(INDEX(TabelleNMB[[Materialien]:[GWP]],(MATCH(TabelleGWP[[#This Row],[GWP]],TabelleGWP[GWP],0)),4),\"\")","v":""}]
[null,"Schwefel","Materialien (Bestandteile des Produkts)",{"$f":"IFERROR(INDEX(TabelleMB[[Materialien]:[KEA]],(MATCH(TabelleKEA[[#This Row],[KEA]],TabelleKEA[KEA],0)),3),\"\")","v":""},null,null,null,null,"Schwefel","Materialien (Bestandteile des Produkts)",{"$f":"IFERROR(INDEX(TabelleMB[[Materialien]:[KRA]],(MATCH(TabelleKRA[[#This Row],[KRA]],TabelleKRA[KRA],0)),4),\"\")","v":""},null,null,null,null,"Rübenblatt","Materialien (nicht Bestandteil des Produkts)",{"$f":"IFERROR(INDEX(TabelleNMB[[Materialien]:[GWP]],(MATCH(TabelleGWP[[#This Row],[GWP]],TabelleGWP[GWP],0)),4),\"\")","v":""}]
[null,"Selen","Materialien (Bestandteile des Produkts)",{"$f":"IFERROR(INDEX(TabelleMB[[Materialien]:[KEA]],(MATCH(TabelleKEA[[#This Row],[KEA]],TabelleKEA[KEA],0)),3),\"\")","v":""},null,null,null,null,"Selen","Materialien (Bestandteile des Produkts)",{"$f":"IFERROR(INDEX(TabelleMB[[Materialien]:[KRA]],(MATCH(TabelleKRA[[#This Row],[KRA]],TabelleKRA[KRA],0)),4),\"\")","v":""},null,null,null,null,"Sand (Bausand)","Materialien (nicht Bestandteil des Produkts)",{"$f":"IFERROR(INDEX(TabelleNMB[[Materialien]:[GWP]],(MATCH(TabelleGWP[[#This Row],[GWP]],TabelleGWP[GWP],0)),4),\"\")","v":""}]
[null,"Siedesalz","Materialien (Bestandteile des Produkts)",{"$f":"IFERROR(INDEX(TabelleMB[[Materialien]:[KEA]],(MATCH(TabelleKEA[[#This Row],[KEA]],TabelleKEA[KEA],0)),3),\"\")","v":""},null,null,null,null,"Siedesalz","Materialien (Bestandteile des Produkts)",{"$f":"IFERROR(INDEX(TabelleMB[[Materialien]:[KRA]],(MATCH(TabelleKRA[[#This Row],[KRA]],TabelleKRA[KRA],0)),4),\"\")","v":""},null,null,null,null,"Sauerstoff, flüssig","Materialien (nicht Bestandteil des Produkts)",{"$f":"IFERROR(INDEX(TabelleNMB[[Materialien]:[GWP]],(MATCH(TabelleGWP[[#This Row],[GWP]],TabelleGWP[GWP],0)),4),\"\")","v":""}]
[null,"Silber","Materialien (Bestandteile des Produkts)",{"$f":"IFERROR(INDEX(TabelleMB[[Materialien]:[KEA]],(MATCH(TabelleKEA[[#This Row],[KEA]],TabelleKEA[KEA],0)),3),\"\")","v":""},null,null,null,null,"Silber","Materialien (Bestandteile des Produkts)",{"$f":"IFERROR(INDEX(TabelleMB[[Materialien]:[KRA]],(MATCH(TabelleKRA[[#This Row],[KRA]],TabelleKRA[KRA],0)),4),\"\")","v":""},null,null,null,null,"Schamottstein","Materialien (nicht Bestandteil des Produkts)",{"$f":"IFERROR(INDEX(TabelleNMB[[Materialien]:[GWP]],(MATCH(TabelleGWP[[#This Row],[GWP]],TabelleGWP[GWP],0)),4),\"\")","v":""}]
[null,"Silizium","Materialien (Bestandteile des Produkts)",{"$f":"IFERROR(INDEX(TabelleMB[[Materialien]:[KEA]],(MATCH(TabelleKEA[[#This Row],[KEA]],TabelleKEA[KEA],0)),3),\"\")","v":""},null,null,null,null,"Silizium","Materialien (Bestandteile des Produkts)",{"$f":"IFERROR(INDEX(TabelleMB[[Materialien]:[KRA]],(MATCH(TabelleKRA[[#This Row],[KRA]],TabelleKRA[KRA],0)),4),\"\")","v":""},null,null,null,null,"Schiefer","Materialien (nicht Bestandteil des Produkts)",{"$f":"IFERROR(INDEX(TabelleNMB[[Materialien]:[GWP]],(MATCH(TabelleGWP[[#This Row],[GWP]],TabelleGWP[GWP],0)),4),\"\")","v":""}]
[null,"Sillimanit","Materialien (Bestandteile des Produkts)",{"$f":"IFERROR(INDEX(TabelleMB[[Materialien]:[KEA]],(MATCH(TabelleKEA[[#This Row],[KEA]],TabelleKEA[KEA],0)),3),\"\")","v":""},null,null,null,null,"Sillimanit","Materialien (Bestandteile des Produkts)",{"$f":"IFERROR(INDEX(TabelleMB[[Materialien]:[KRA]],(MATCH(TabelleKRA[[#This Row],[KRA]],TabelleKRA[KRA],0)),4),\"\")","v":""},null,null,null,null,"Schmieröl","Materialien (nicht Bestandteil des Produkts)",{"$f":"IFERROR(INDEX(TabelleNMB[[Materialien]:[GWP]],(MATCH(TabelleGWP[[#This Row],[GWP]],TabelleGWP[GWP],0)),4),\"\")","v":""}]
[null,"Soda","Materialien (Bestandteile des Produkts)",{"$f":"IFERROR(INDEX(TabelleMB[[Materialien]:[KEA]],(MATCH(TabelleKEA[[#This Row],[KEA]],TabelleKEA[KEA],0)),3),\"\")","v":""},null,null,null,null,"Soda","Materialien (Bestandteile des Produkts)",{"$f":"IFERROR(INDEX(TabelleMB[[Materialien]:[KRA]],(MATCH(TabelleKRA[[#This Row],[KRA]],TabelleKRA[KRA],0)),4),\"\")","v":""},null,null,null,null,"Schmirgel, Korund, Granat (Schleifmittel)","Materialien (nicht Bestandteil des Produkts)",{"$f":"IFERROR(INDEX(TabelleNMB[[Materialien]:[GWP]],(MATCH(TabelleGWP[[#This Row],[GWP]],TabelleGWP[GWP],0)),4),\"\")","v":""}]
[null,"Spanplatte","Materialien (Bestandteile des Produkts)",{"$f":"IFERROR(INDEX(TabelleMB[[Materialien]:[KEA]],(MATCH(TabelleKEA[[#This Row],[KEA]],TabelleKEA[KEA],0)),3),\"\")","v":""},null,null,null,null,"Spanplatte","Materialien (Bestandteile des Produkts)",{"$f":"IFERROR(INDEX(TabelleMB[[Materialien]:[KRA]],(MATCH(TabelleKRA[[#This Row],[KRA]],TabelleKRA[KRA],0)),4),\"\")","v":""},null,null,null,null,"Schwefel","Materialien (nicht Bestandteil des Produkts)",{"$f":"IFERROR(INDEX(TabelleNMB[[Materialien]:[GWP]],(MATCH(TabelleGWP[[#This Row],[GWP]],TabelleGWP[GWP],0)),4),\"\")","v":""}]
[null,"Speckstein","Materialien (Bestandteile des Produkts)",{"$f":"IFERROR(INDEX(TabelleMB[[Materialien]:[KEA]],(MATCH(TabelleKEA[[#This Row],[KEA]],TabelleKEA[KEA],0)),3),\"\")","v":""},null,null,null,null,"Speckstein","Materialien (Bestandteile des Produkts)",{"$f":"IFERROR(INDEX(TabelleMB[[Materialien]:[KRA]],(MATCH(TabelleKRA[[#This Row],[KRA]],TabelleKRA[KRA],0)),4),\"\")","v":""},null,null,null,null,"Selen","Materialien (nicht Bestandteil des Produkts)",{"$f":"IFERROR(INDEX(TabelleNMB[[Materialien]:[GWP]],(MATCH(TabelleGWP[[#This Row],[GWP]],TabelleGWP[GWP],0)),4),\"\")","v":""}]
[null,"Splitt, Körnungen aus Marmor","Materialien (Bestandteile des Produkts)",{"$f":"IFERROR(INDEX(TabelleMB[[Materialien]:[KEA]],(MATCH(TabelleKEA[[#This Row],[KEA]],TabelleKEA[KEA],0)),3),\"\")","v":""},null,null,null,null,"Splitt, Körnungen aus Marmor","Materialien (Bestandteile des Produkts)",{"$f":"IFERROR(INDEX(TabelleMB[[Materialien]:[KRA]],(MATCH(TabelleKRA[[#This Row],[KRA]],TabelleKRA[KRA],0)),4),\"\")","v":""},null,null,null,null,"Siedesalz","Materialien (nicht Bestandteil des Produkts)",{"$f":"IFERROR(INDEX(TabelleNMB[[Materialien]:[GWP]],(MATCH(TabelleGWP[[#This Row],[GWP]],TabelleGWP[GWP],0)),4),\"\")","v":""}]
[null,"Stahl (Elektrostahl)","Materialien (Bestandteile des Produkts)",{"$f":"IFERROR(INDEX(TabelleMB[[Materialien]:[KEA]],(MATCH(TabelleKEA[[#This Row],[KEA]],TabelleKEA[KEA],0)),3),\"\")","v":""},null,null,null,null,"Stahl (Elektrostahl)","Materialien (Bestandteile des Produkts)",{"$f":"IFERROR(INDEX(TabelleMB[[Materialien]:[KRA]],(MATCH(TabelleKRA[[#This Row],[KRA]],TabelleKRA[KRA],0)),4),\"\")","v":""},null,null,null,null,"Silber","Materialien (nicht Bestandteil des Produkts)",{"$f":"IFERROR(INDEX(TabelleNMB[[Materialien]:[GWP]],(MATCH(TabelleGWP[[#This Row],[GWP]],TabelleGWP[GWP],0)),4),\"\")","v":""}]
[null,"Stahl (Konvertstahl)","Materialien (Bestandteile des Produkts)",{"$f":"IFERROR(INDEX(TabelleMB[[Materialien]:[KEA]],(MATCH(TabelleKEA[[#This Row],[KEA]],TabelleKEA[KEA],0)),3),\"\")","v":""},null,null,null,null,"Stahl (Konvertstahl)","Materialien (Bestandteile des Produkts)",{"$f":"IFERROR(INDEX(TabelleMB[[Materialien]:[KRA]],(MATCH(TabelleKRA[[#This Row],[KRA]],TabelleKRA[KRA],0)),4),\"\")","v":""},null,null,null,null,"Silizium","Materialien (nicht Bestandteil des Produkts)",{"$f":"IFERROR(INDEX(TabelleNMB[[Materialien]:[GWP]],(MATCH(TabelleGWP[[#This Row],[GWP]],TabelleGWP[GWP],0)),4),\"\")","v":""}]
[null,"Stahlblech (ohne Prozessschritte für Stahlherstellung)","Materialien (Bestandteile des Produkts)",{"$f":"IFERROR(INDEX(TabelleMB[[Materialien]:[KEA]],(MATCH(TabelleKEA[[#This Row],[KEA]],TabelleKEA[KEA],0)),3),\"\")","v":""},null,null,null,null,"Stahlblech (ohne Prozessschritte für Stahlherstellung)","Materialien (Bestandteile des Produkts)",{"$f":"IFERROR(INDEX(TabelleMB[[Materialien]:[KRA]],(MATCH(TabelleKRA[[#This Row],[KRA]],TabelleKRA[KRA],0)),4),\"\")","v":""},null,null,null,null,"Sillimanit","Materialien (nicht Bestandteil des Produkts)",{"$f":"IFERROR(INDEX(TabelleNMB[[Materialien]:[GWP]],(MATCH(TabelleGWP[[#This Row],[GWP]],TabelleGWP[GWP],0)),4),\"\")","v":""}]
[null,"Stahlblech verzinkt","Materialien (Bestandteile des Produkts)",{"$f":"IFERROR(INDEX(TabelleMB[[Materialien]:[KEA]],(MATCH(TabelleKEA[[#This Row],[KEA]],TabelleKEA[KEA],0)),3),\"\")","v":""},null,null,null,null,"Stahlblech verzinkt","Materialien (Bestandteile des Produkts)",{"$f":"IFERROR(INDEX(TabelleMB[[Materialien]:[KRA]],(MATCH(TabelleKRA[[#This Row],[KRA]],TabelleKRA[KRA],0)),4),\"\")","v":""},null,null,null,null,"Soda","Materialien (nicht Bestandteil des Produkts)",{"$f":"IFERROR(INDEX(TabelleNMB[[Materialien]:[GWP]],(MATCH(TabelleGWP[[#This Row],[GWP]],TabelleGWP[GWP],0)),4),\"\")","v":""}]
[null,"Steinsalz","Materialien (Bestandteile des Produkts)",{"$f":"IFERROR(INDEX(TabelleMB[[Materialien]:[KEA]],(MATCH(TabelleKEA[[#This Row],[KEA]],TabelleKEA[KEA],0)),3),\"\")","v":""},null,null,null,null,"Steinsalz","Materialien (Bestandteile des Produkts)",{"$f":"IFERROR(INDEX(TabelleMB[[Materialien]:[KRA]],(MATCH(TabelleKRA[[#This Row],[KRA]],TabelleKRA[KRA],0)),4),\"\")","v":""},null,null,null,null,"Spanplatte","Materialien (nicht Bestandteil des Produkts)",{"$f":"IFERROR(INDEX(TabelleNMB[[Materialien]:[GWP]],(MATCH(TabelleGWP[[#This Row],[GWP]],TabelleGWP[GWP],0)),4),\"\")","v":""}]
[null,"Stickstoff, flüssig","Materialien (Bestandteile des Produkts)",{"$f":"IFERROR(INDEX(TabelleMB[[Materialien]:[KEA]],(MATCH(TabelleKEA[[#This Row],[KEA]],TabelleKEA[KEA],0)),3),\"\")","v":""},null,null,null,null,"Stickstoff, flüssig","Materialien (Bestandteile des Produkts)",{"$f":"IFERROR(INDEX(TabelleMB[[Materialien]:[KRA]],(MATCH(TabelleKRA[[#This Row],[KRA]],TabelleKRA[KRA],0)),4),\"\")","v":""},null,null,null,null,"Speckstein","Materialien (nicht Bestandteil des Produkts)",{"$f":"IFERROR(INDEX(TabelleNMB[[Materialien]:[GWP]],(MATCH(TabelleGWP[[#This Row],[GWP]],TabelleGWP[GWP],0)),4),\"\")","v":""}]
[null,"Stroh (Winterweizen)","Materialien (Bestandteile des Produkts)",{"$f":"IFERROR(INDEX(TabelleMB[[Materialien]:[KEA]],(MATCH(TabelleKEA[[#This Row],[KEA]],TabelleKEA[KEA],0)),3),\"\")","v":""},null,null,null,null,"Stroh (Winterweizen)","Materialien (Bestandteile des Produkts)",{"$f":"IFERROR(INDEX(TabelleMB[[Materialien]:[KRA]],(MATCH(TabelleKRA[[#This Row],[KRA]],TabelleKRA[KRA],0)),4),\"\")","v":""},null,null,null,null,"Splitt, Körnungen aus Marmor","Materialien (nicht Bestandteil des Produkts)",{"$f":"IFERROR(INDEX(TabelleNMB[[Materialien]:[GWP]],(MATCH(TabelleGWP[[#This Row],[GWP]],TabelleGWP[GWP],0)),4),\"\")","v":""}]
[null,"Styrol","Materialien (Bestandteile des Produkts)",{"$f":"IFERROR(INDEX(TabelleMB[[Materialien]:[KEA]],(MATCH(TabelleKEA[[#This Row],[KEA]],TabelleKEA[KEA],0)),3),\"\")","v":""},null,null,null,null,"Styrol","Materialien (Bestandteile des Produkts)",{"$f":"IFERROR(INDEX(TabelleMB[[Materialien]:[KRA]],(MATCH(TabelleKRA[[#This Row],[KRA]],TabelleKRA[KRA],0)),4),\"\")","v":""},null,null,null,null,"Stahl (Elektrostahl)","Materialien (nicht Bestandteil des Produkts)",{"$f":"IFERROR(INDEX(TabelleNMB[[Materialien]:[GWP]],(MATCH(TabelleGWP[[#This Row],[GWP]],TabelleGWP[GWP],0)),4),\"\")","v":""}]
[null,"Talk, Talkum","Materialien (Bestandteile des Produkts)",{"$f":"IFERROR(INDEX(TabelleMB[[Materialien]:[KEA]],(MATCH(TabelleKEA[[#This Row],[KEA]],TabelleKEA[KEA],0)),3),\"\")","v":""},null,null,null,null,"Talk, Talkum","Materialien (Bestandteile des Produkts)",{"$f":"IFERROR(INDEX(TabelleMB[[Materialien]:[KRA]],(MATCH(TabelleKRA[[#This Row],[KRA]],TabelleKRA[KRA],0)),4),\"\")","v":""},null,null,null,null,"Stahl (Konvertstahl)","Materialien (nicht Bestandteil des Produkts)",{"$f":"IFERROR(INDEX(TabelleNMB[[Materialien]:[GWP]],(MATCH(TabelleGWP[[#This Row],[GWP]],TabelleGWP[GWP],0)),4),\"\")","v":""}]
[null,"Tantal","Materialien (Bestandteile des Produkts)",{"$f":"IFERROR(INDEX(TabelleMB[[Materialien]:[KEA]],(MATCH(TabelleKEA[[#This Row],[KEA]],TabelleKEA[KEA],0)),3),\"\")","v":""},null,null,null,null,"Tantal","Materialien (Bestandteile des Produkts)",{"$f":"IFERROR(INDEX(TabelleMB[[Materialien]:[KRA]],(MATCH(TabelleKRA[[#This Row],[KRA]],TabelleKRA[KRA],0)),4),\"\")","v":""},null,null,null,null,"Stahlblech (ohne Prozessschritte für Stahlherstellung)","Materialien (nicht Bestandteil des Produkts)",{"$f":"IFERROR(INDEX(TabelleNMB[[Materialien]:[GWP]],(MATCH(TabelleGWP[[#This Row],[GWP]],TabelleGWP[GWP],0)),4),\"\")","v":""}]
[null,"Thallium","Materialien (Bestandteile des Produkts)",{"$f":"IFERROR(INDEX(TabelleMB[[Materialien]:[KEA]],(MATCH(TabelleKEA[[#This Row],[KEA]],TabelleKEA[KEA],0)),3),\"\")","v":""},null,null,null,null,"Thallium","Materialien (Bestandteile des Produkts)",{"$f":"IFERROR(INDEX(TabelleMB[[Materialien]:[KRA]],(MATCH(TabelleKRA[[#This Row],[KRA]],TabelleKRA[KRA],0)),4),\"\")","v":""},null,null,null,null,"Stahlblech verzinkt","Materialien (nicht Bestandteil des Produkts)",{"$f":"IFERROR(INDEX(TabelleNMB[[Materialien]:[GWP]],(MATCH(TabelleGWP[[#This Row],[GWP]],TabelleGWP[GWP],0)),4),\"\")","v":""}]
[null,"Titan","Materialien (Bestandteile des Produkts)",{"$f":"IFERROR(INDEX(TabelleMB[[Materialien]:[KEA]],(MATCH(TabelleKEA[[#This Row],[KEA]],TabelleKEA[KEA],0)),3),\"\")","v":""},null,null,null,null,"Titan","Materialien (Bestandteile des Produkts)",{"$f":"IFERROR(INDEX(TabelleMB[[Materialien]:[KRA]],(MATCH(TabelleKRA[[#This Row],[KRA]],TabelleKRA[KRA],0)),4),\"\")","v":""},null,null,null,null,"Steinsalz","Materialien (nicht Bestandteil des Produkts)",{"$f":"IFERROR(INDEX(TabelleNMB[[Materialien]:[GWP]],(MATCH(TabelleGWP[[#This Row],[GWP]],TabelleGWP[GWP],0)),4),\"\")","v":""}]
[null,"Torf","Materialien (Bestandteile des Produkts)",{"$f":"IFERROR(INDEX(TabelleMB[[Materialien]:[KEA]],(MATCH(TabelleKEA[[#This Row],[KEA]],TabelleKEA[KEA],0)),3),\"\")","v":""},null,null,null,null,"Torf","Materialien (Bestandteile des Produkts)",{"$f":"IFERROR(INDEX(TabelleMB[[Materialien]:[KRA]],(MATCH(TabelleKRA[[#This Row],[KRA]],TabelleKRA[KRA],0)),4),\"\")","v":""},null,null,null,null,"Stickstoff, flüssig","Materialien (nicht Bestandteil des Produkts)",{"$f":"IFERROR(INDEX(TabelleNMB[[Materialien]:[GWP]],(MATCH(TabelleGWP[[#This Row],[GWP]],TabelleGWP[GWP],0)),4),\"\")","v":""}]
[null,"Trass","Materialien (Bestandteile des Produkts)",{"$f":"IFERROR(INDEX(TabelleMB[[Materialien]:[KEA]],(MATCH(TabelleKEA[[#This Row],[KEA]],TabelleKEA[KEA],0)),3),\"\")","v":""},null,null,null,null,"Trass","Materialien (Bestandteile des Produkts)",{"$f":"IFERROR(INDEX(TabelleMB[[Materialien]:[KRA]],(MATCH(TabelleKRA[[#This Row],[KRA]],TabelleKRA[KRA],0)),4),\"\")","v":""},null,null,null,null,"Stroh (Winterweizen)","Materialien (nicht Bestandteil des Produkts)",{"$f":"IFERROR(INDEX(TabelleNMB[[Materialien]:[GWP]],(MATCH(TabelleGWP[[#This Row],[GWP]],TabelleGWP[GWP],0)),4),\"\")","v":""}]
[null,"Tuffstein","Materialien (Bestandteile des Produkts)",{"$f":"IFERROR(INDEX(TabelleMB[[Materialien]:[KEA]],(MATCH(TabelleKEA[[#This Row],[KEA]],TabelleKEA[KEA],0)),3),\"\")","v":""},null,null,null,null,"Tuffstein","Materialien (Bestandteile des Produkts)",{"$f":"IFERROR(INDEX(TabelleMB[[Materialien]:[KRA]],(MATCH(TabelleKRA[[#This Row],[KRA]],TabelleKRA[KRA],0)),4),\"\")","v":""},null,null,null,null,"Styrol","Materialien (nicht Bestandteil des Produkts)",{"$f":"IFERROR(INDEX(TabelleNMB[[Materialien]:[GWP]],(MATCH(TabelleGWP[[#This Row],[GWP]],TabelleGWP[GWP],0)),4),\"\")","v":""}]
[null,"Uran","Materialien (Bestandteile des Produkts)",{"$f":"IFERROR(INDEX(TabelleMB[[Materialien]:[KEA]],(MATCH(TabelleKEA[[#This Row],[KEA]],TabelleKEA[KEA],0)),3),\"\")","v":""},null,null,null,null,"Uran","Materialien (Bestandteile des Produkts)",{"$f":"IFERROR(INDEX(TabelleMB[[Materialien]:[KRA]],(MATCH(TabelleKRA[[#This Row],[KRA]],TabelleKRA[KRA],0)),4),\"\")","v":""},null,null,null,null,"Talk, Talkum","Materialien (nicht Bestandteil des Produkts)",{"$f":"IFERROR(INDEX(TabelleNMB[[Materialien]:[GWP]],(MATCH(TabelleGWP[[#This Row],[GWP]],TabelleGWP[GWP],0)),4),\"\")","v":""}]
[null,"Vermikulit","Materialien (Bestandteile des Produkts)",{"$f":"IFERROR(INDEX(TabelleMB[[Materialien]:[KEA]],(MATCH(TabelleKEA[[#This Row],[KEA]],TabelleKEA[KEA],0)),3),\"\")","v":""},null,null,null,null,"Vermikulit","Materialien (Bestandteile des Produkts)",{"$f":"IFERROR(INDEX(TabelleMB[[Materialien]:[KRA]],(MATCH(TabelleKRA[[#This Row],[KRA]],TabelleKRA[KRA],0)),4),\"\")","v":""},null,null,null,null,"Tantal","Materialien (nicht Bestandteil des Produkts)",{"$f":"IFERROR(INDEX(TabelleNMB[[Materialien]:[GWP]],(MATCH(TabelleGWP[[#This Row],[GWP]],TabelleGWP[GWP],0)),4),\"\")","v":""}]
[null,"Wafer","Materialien (Bestandteile des Produkts)",{"$f":"IFERROR(INDEX(TabelleMB[[Materialien]:[KEA]],(MATCH(TabelleKEA[[#This Row],[KEA]],TabelleKEA[KEA],0)),3),\"\")","v":""},null,null,null,null,"Wafer","Materialien (Bestandteile des Produkts)",{"$f":"IFERROR(INDEX(TabelleMB[[Materialien]:[KRA]],(MATCH(TabelleKRA[[#This Row],[KRA]],TabelleKRA[KRA],0)),4),\"\")","v":""},null,null,null,null,"Thallium","Materialien (nicht Bestandteil des Produkts)",{"$f":"IFERROR(INDEX(TabelleNMB[[Materialien]:[GWP]],(MATCH(TabelleGWP[[#This Row],[GWP]],TabelleGWP[GWP],0)),4),\"\")","v":""}]
[null,"Wasserglas","Materialien (Bestandteile des Produkts)",{"$f":"IFERROR(INDEX(TabelleMB[[Materialien]:[KEA]],(MATCH(TabelleKEA[[#This Row],[KEA]],TabelleKEA[KEA],0)),3),\"\")","v":""},null,null,null,null,"Wasserglas","Materialien (Bestandteile des Produkts)",{"$f":"IFERROR(INDEX(TabelleMB[[Materialien]:[KRA]],(MATCH(TabelleKRA[[#This Row],[KRA]],TabelleKRA[KRA],0)),4),\"\")","v":""},null,null,null,null,"Titan","Materialien (nicht Bestandteil des Produkts)",{"$f":"IFERROR(INDEX(TabelleNMB[[Materialien]:[GWP]],(MATCH(TabelleGWP[[#This Row],[GWP]],TabelleGWP[GWP],0)),4),\"\")","v":""}]
[null,"Wasserstoff","Materialien (Bestandteile des Produkts)",{"$f":"IFERROR(INDEX(TabelleMB[[Materialien]:[KEA]],(MATCH(TabelleKEA[[#This Row],[KEA]],TabelleKEA[KEA],0)),3),\"\")","v":""},null,null,null,null,"Wasserstoff","Materialien (Bestandteile des Produkts)",{"$f":"IFERROR(INDEX(TabelleMB[[Materialien]:[KRA]],(MATCH(TabelleKRA[[#This Row],[KRA]],TabelleKRA[KRA],0)),4),\"\")","v":""},null,null,null,null,"Torf","Materialien (nicht Bestandteil des Produkts)",{"$f":"IFERROR(INDEX(TabelleNMB[[Materialien]:[GWP]],(MATCH(TabelleGWP[[#This Row],[GWP]],TabelleGWP[GWP],0)),4),\"\")","v":""}]
[null,"Wismut","Materialien (Bestandteile des Produkts)",{"$f":"IFERROR(INDEX(TabelleMB[[Materialien]:[KEA]],(MATCH(TabelleKEA[[#This Row],[KEA]],TabelleKEA[KEA],0)),3),\"\")","v":""},null,null,null,null,"Wismut","Materialien (Bestandteile des Produkts)",{"$f":"IFERROR(INDEX(TabelleMB[[Materialien]:[KRA]],(MATCH(TabelleKRA[[#This Row],[KRA]],TabelleKRA[KRA],0)),4),\"\")","v":""},null,null,null,null,"Trass","Materialien (nicht Bestandteil des Produkts)",{"$f":"IFERROR(INDEX(TabelleNMB[[Materialien]:[GWP]],(MATCH(TabelleGWP[[#This Row],[GWP]],TabelleGWP[GWP],0)),4),\"\")","v":""}]
[null,"Wolfram","Materialien (Bestandteile des Produkts)",{"$f":"IFERROR(INDEX(TabelleMB[[Materialien]:[KEA]],(MATCH(TabelleKEA[[#This Row],[KEA]],TabelleKEA[KEA],0)),3),\"\")","v":""},null,null,null,null,"Wolfram","Materialien (Bestandteile des Produkts)",{"$f":"IFERROR(INDEX(TabelleMB[[Materialien]:[KRA]],(MATCH(TabelleKRA[[#This Row],[KRA]],TabelleKRA[KRA],0)),4),\"\")","v":""},null,null,null,null,"Tuffstein","Materialien (nicht Bestandteil des Produkts)",{"$f":"IFERROR(INDEX(TabelleNMB[[Materialien]:[GWP]],(MATCH(TabelleGWP[[#This Row],[GWP]],TabelleGWP[GWP],0)),4),\"\")","v":""}]
[null,"Zeitungsdruckpapier","Materialien (Bestandteile des Produkts)",{"$f":"IFERROR(INDEX(TabelleMB[[Materialien]:[KEA]],(MATCH(TabelleKEA[[#This Row],[KEA]],TabelleKEA[KEA],0)),3),\"\")","v":""},null,null,null,null,"Zeitungsdruckpapier","Materialien (Bestandteile des Produkts)",{"$f":"IFERROR(INDEX(TabelleMB[[Materialien]:[KRA]],(MATCH(TabelleKRA[[#This Row],[KRA]],TabelleKRA[KRA],0)),4),\"\")","v":""},null,null,null,null,"Uran","Materialien (nicht Bestandteil des Produkts)",{"$f":"IFERROR(INDEX(TabelleNMB[[Materialien]:[GWP]],(MATCH(TabelleGWP[[#This Row],[GWP]],TabelleGWP[GWP],0)),4),\"\")","v":""}]
[null,"Zellstoff (Sulfatzellstoff)","Materialien (Bestandteile des Produkts)",{"$f":"IFERROR(INDEX(TabelleMB[[Materialien]:[KEA]],(MATCH(TabelleKEA[[#This Row],[KEA]],TabelleKEA[KEA],0)),3),\"\")","v":""},null,null,null,null,"Zellstoff (Sulfatzellstoff)","Materialien (Bestandteile des Produkts)",{"$f":"IFERROR(INDEX(TabelleMB[[Materialien]:[KRA]],(MATCH(TabelleKRA[[#This Row],[KRA]],TabelleKRA[KRA],0)),4),\"\")","v":""},null,null,null,null,"Vermikulit","Materialien (nicht Bestandteil des Produkts)",{"$f":"IFERROR(INDEX(TabelleNMB[[Materialien]:[GWP]],(MATCH(TabelleGWP[[#This Row],[GWP]],TabelleGWP[GWP],0)),4),\"\")","v":""}]
[null,"Zellstoff (Sulfitzellstoff)","Materialien (Bestandteile des Produkts)",{"$f":"IFERROR(INDEX(TabelleMB[[Materialien]:[KEA]],(MATCH(TabelleKEA[[#This Row],[KEA]],TabelleKEA[KEA],0)),3),\"\")","v":""},null,null,null,null,"Zellstoff (Sulfitzellstoff)","Materialien (Bestandteile des Produkts)",{"$f":"IFERROR(INDEX(TabelleMB[[Materialien]:[KRA]],(MATCH(TabelleKRA[[#This Row],[KRA]],TabelleKRA[KRA],0)),4),\"\")","v":""},null,null,null,null,"Wafer","Materialien (nicht Bestandteil des Produkts)",{"$f":"IFERROR(INDEX(TabelleNMB[[Materialien]:[GWP]],(MATCH(TabelleGWP[[#This Row],[GWP]],TabelleGWP[GWP],0)),4),\"\")","v":""}]
[null,"Zement","Materialien (Bestandteile des Produkts)",{"$f":"IFERROR(INDEX(TabelleMB[[Materialien]:[KEA]],(MATCH(TabelleKEA[[#This Row],[KEA]],TabelleKEA[KEA],0)),3),\"\")","v":""},null,null,null,null,"Zement","Materialien (Bestandteile des Produkts)",{"$f":"IFERROR(INDEX(TabelleMB[[Materialien]:[KRA]],(MATCH(TabelleKRA[[#This Row],[KRA]],TabelleKRA[KRA],0)),4),\"\")","v":""},null,null,null,null,"Wasserglas","Materialien (nicht Bestandteil des Produkts)",{"$f":"IFERROR(INDEX(TabelleNMB[[Materialien]:[GWP]],(MATCH(TabelleGWP[[#This Row],[GWP]],TabelleGWP[GWP],0)),4),\"\")","v":""}]
[null,"Zinkerze","Materialien (Bestandteile des Produkts)",{"$f":"IFERROR(INDEX(TabelleMB[[Materialien]:[KEA]],(MATCH(TabelleKEA[[#This Row],[KEA]],TabelleKEA[KEA],0)),3),\"\")","v":""},null,null,null,null,"Zinkerze","Materialien (Bestandteile des Produkts)",{"$f":"IFERROR(INDEX(TabelleMB[[Materialien]:[KRA]],(MATCH(TabelleKRA[[#This Row],[KRA]],TabelleKRA[KRA],0)),4),\"\")","v":""},null,null,null,null,"Wasserstoff","Materialien (nicht Bestandteil des Produkts)",{"$f":"IFERROR(INDEX(TabelleNMB[[Materialien]:[GWP]],(MATCH(TabelleGWP[[#This Row],[GWP]],TabelleGWP[GWP],0)),4),\"\")","v":""}]
[null,"Zinn","Materialien (Bestandteile des Produkts)",{"$f":"IFERROR(INDEX(TabelleMB[[Materialien]:[KEA]],(MATCH(TabelleKEA[[#This Row],[KEA]],TabelleKEA[KEA],0)),3),\"\")","v":""},null,null,null,null,"Zinn","Materialien (Bestandteile des Produkts)",{"$f":"IFERROR(INDEX(TabelleMB[[Materialien]:[KRA]],(MATCH(TabelleKRA[[#This Row],[KRA]],TabelleKRA[KRA],0)),4),\"\")","v":""},null,null,null,null,"Wismut","Materialien (nicht Bestandteil des Produkts)",{"$f":"IFERROR(INDEX(TabelleNMB[[Materialien]:[GWP]],(MATCH(TabelleGWP[[#This Row],[GWP]],TabelleGWP[GWP],0)),4),\"\")","v":""}]
[null,"Ackerbohne","Materialien (nicht Bestandteil des Produkts)",{"$f":"IFERROR(INDEX(TabelleNMB[[Materialien]:[KEA]],(MATCH(TabelleKEA[[#This Row],[KEA]],TabelleKEA[KEA],0)),3),\"\")","v":""},null,null,null,null,"Ackerbohne","Materialien (nicht Bestandteil des Produkts)",{"$f":"IFERROR(INDEX(TabelleNMB[[Materialien]:[KRA]],(MATCH(TabelleKRA[[#This Row],[KRA]],TabelleKRA[KRA],0)),4),\"\")","v":""},null,null,null,null,"Wolfram","Materialien (nicht Bestandteil des Produkts)",{"$f":"IFERROR(INDEX(TabelleNMB[[Materialien]:[GWP]],(MATCH(TabelleGWP[[#This Row],[GWP]],TabelleGWP[GWP],0)),4),\"\")","v":""}]
[null,"Altpapierstoff","Materialien (nicht Bestandteil des Produkts)",{"$f":"IFERROR(INDEX(TabelleNMB[[Materialien]:[KEA]],(MATCH(TabelleKEA[[#This Row],[KEA]],TabelleKEA[KEA],0)),3),\"\")","v":""},null,null,null,null,"Altpapierstoff","Materialien (nicht Bestandteil des Produkts)",{"$f":"IFERROR(INDEX(TabelleNMB[[Materialien]:[KRA]],(MATCH(TabelleKRA[[#This Row],[KRA]],TabelleKRA[KRA],0)),4),\"\")","v":""},null,null,null,null,"Zeitungsdruckpapier","Materialien (nicht Bestandteil des Produkts)",{"$f":"IFERROR(INDEX(TabelleNMB[[Materialien]:[GWP]],(MATCH(TabelleGWP[[#This Row],[GWP]],TabelleGWP[GWP],0)),4),\"\")","v":""}]
[null,"Aluminium, Gusslegierung","Materialien (nicht Bestandteil des Produkts)",{"$f":"IFERROR(INDEX(TabelleNMB[[Materialien]:[KEA]],(MATCH(TabelleKEA[[#This Row],[KEA]],TabelleKEA[KEA],0)),3),\"\")","v":""},null,null,null,null,"Aluminium, Gusslegierung","Materialien (nicht Bestandteil des Produkts)",{"$f":"IFERROR(INDEX(TabelleNMB[[Materialien]:[KRA]],(MATCH(TabelleKRA[[#This Row],[KRA]],TabelleKRA[KRA],0)),4),\"\")","v":""},null,null,null,null,"Zellstoff (Sulfatzellstoff)","Materialien (nicht Bestandteil des Produkts)",{"$f":"IFERROR(INDEX(TabelleNMB[[Materialien]:[GWP]],(MATCH(TabelleGWP[[#This Row],[GWP]],TabelleGWP[GWP],0)),4),\"\")","v":""}]
[null,"Aluminium, Knetlegierung","Materialien (nicht Bestandteil des Produkts)",{"$f":"IFERROR(INDEX(TabelleNMB[[Materialien]:[KEA]],(MATCH(TabelleKEA[[#This Row],[KEA]],TabelleKEA[KEA],0)),3),\"\")","v":""},null,null,null,null,"Aluminium, Knetlegierung","Materialien (nicht Bestandteil des Produkts)",{"$f":"IFERROR(INDEX(TabelleNMB[[Materialien]:[KRA]],(MATCH(TabelleKRA[[#This Row],[KRA]],TabelleKRA[KRA],0)),4),\"\")","v":""},null,null,null,null,"Zellstoff (Sulfitzellstoff)","Materialien (nicht Bestandteil des Produkts)",{"$f":"IFERROR(INDEX(TabelleNMB[[Materialien]:[GWP]],(MATCH(TabelleGWP[[#This Row],[GWP]],TabelleGWP[GWP],0)),4),\"\")","v":""}]
[null,"Aluminium, primär","Materialien (nicht Bestandteil des Produkts)",{"$f":"IFERROR(INDEX(TabelleNMB[[Materialien]:[KEA]],(MATCH(TabelleKEA[[#This Row],[KEA]],TabelleKEA[KEA],0)),3),\"\")","v":""},null,null,null,null,"Aluminium, primär","Materialien (nicht Bestandteil des Produkts)",{"$f":"IFERROR(INDEX(TabelleNMB[[Materialien]:[KRA]],(MATCH(TabelleKRA[[#This Row],[KRA]],TabelleKRA[KRA],0)),4),\"\")","v":""},null,null,null,null,"Zement","Materialien (nicht Bestandteil des Produkts)",{"$f":"IFERROR(INDEX(TabelleNMB[[Materialien]:[GWP]],(MATCH(TabelleGWP[[#This Row],[GWP]],TabelleGWP[GWP],0)),4),\"\")","v":""}]
[null,"Aluminium, sekundär","Materialien (nicht Bestandteil des Produkts)",{"$f":"IFERROR(INDEX(TabelleNMB[[Materialien]:[KEA]],(MATCH(TabelleKEA[[#This Row],[KEA]],TabelleKEA[KEA],0)),3),\"\")","v":""},null,null,null,null,"Aluminium, sekundär","Materialien (nicht Bestandteil des Produkts)",{"$f":"IFERROR(INDEX(TabelleNMB[[Materialien]:[KRA]],(MATCH(TabelleKRA[[#This Row],[KRA]],TabelleKRA[KRA],0)),4),\"\")","v":""},null,null,null,null,"Zinkerze","Materialien (nicht Bestandteil des Produkts)",{"$f":"IFERROR(INDEX(TabelleNMB[[Materialien]:[GWP]],(MATCH(TabelleGWP[[#This Row],[GWP]],TabelleGWP[GWP],0)),4),\"\")","v":""}]
[null,"Aluminiumblech (ohne Prozessschritte für Aluminium primär/sekundär)","Materialien (nicht Bestandteil des Produkts)",{"$f":"IFERROR(INDEX(TabelleNMB[[Materialien]:[KEA]],(MATCH(TabelleKEA[[#This Row],[KEA]],TabelleKEA[KEA],0)),3),\"\")","v":""},null,null,null,null,"Aluminiumblech (ohne Prozessschritte für Aluminium primär/sekundär)","Materialien (nicht Bestandteil des Produkts)",{"$f":"IFERROR(INDEX(TabelleNMB[[Materialien]:[KRA]],(MATCH(TabelleKRA[[#This Row],[KRA]],TabelleKRA[KRA],0)),4),\"\")","v":""},null,null,null,null,"Zinn","Materialien (nicht Bestandteil des Produkts)",{"$f":"IFERROR(INDEX(TabelleNMB[[Materialien]:[GWP]],(MATCH(TabelleGWP[[#This Row],[GWP]],TabelleGWP[GWP],0)),4),\"\")","v":""}]
[null,"Amin (Trimethylamin)","Materialien (nicht Bestandteil des Produkts)",{"$f":"IFERROR(INDEX(TabelleNMB[[Materialien]:[KEA]],(MATCH(TabelleKEA[[#This Row],[KEA]],TabelleKEA[KEA],0)),3),\"\")","v":""},null,null,null,null,"Amin (Trimethylamin)","Materialien (nicht Bestandteil des Produkts)",{"$f":"IFERROR(INDEX(TabelleNMB[[Materialien]:[KRA]],(MATCH(TabelleKRA[[#This Row],[KRA]],TabelleKRA[KRA],0)),4),\"\")","v":""},null,null,null,null,"Braunkohle","Energieträger",{"$f":"IFERROR(INDEX(TabelleE[[Energieträger]:[GWP]],(MATCH(TabelleGWP[GWP],TabelleE[Energieträger],0)),5),\"\")","v":""}]
[null,"Ammoniak","Materialien (nicht Bestandteil des Produkts)",{"$f":"IFERROR(INDEX(TabelleNMB[[Materialien]:[KEA]],(MATCH(TabelleKEA[[#This Row],[KEA]],TabelleKEA[KEA],0)),3),\"\")","v":""},null,null,null,null,"Ammoniak","Materialien (nicht Bestandteil des Produkts)",{"$f":"IFERROR(INDEX(TabelleNMB[[Materialien]:[KRA]],(MATCH(TabelleKRA[[#This Row],[KRA]],TabelleKRA[KRA],0)),4),\"\")","v":""},null,null,null,null,"Erdgas (Bezug: 1kg)","Energieträger",{"$f":"IFERROR(INDEX(TabelleE[[Energieträger]:[GWP]],(MATCH(TabelleGWP[GWP],TabelleE[Energieträger],0)),5),\"\")","v":""}]
[null,"Andalusit, Disthen","Materialien (nicht Bestandteil des Produkts)",{"$f":"IFERROR(INDEX(TabelleNMB[[Materialien]:[KEA]],(MATCH(TabelleKEA[[#This Row],[KEA]],TabelleKEA[KEA],0)),3),\"\")","v":""},null,null,null,null,"Andalusit, Disthen","Materialien (nicht Bestandteil des Produkts)",{"$f":"IFERROR(INDEX(TabelleNMB[[Materialien]:[KRA]],(MATCH(TabelleKRA[[#This Row],[KRA]],TabelleKRA[KRA],0)),4),\"\")","v":""},null,null,null,null,"Erdöl (Bezug: 1kg)","Energieträger",{"$f":"IFERROR(INDEX(TabelleE[[Energieträger]:[GWP]],(MATCH(TabelleGWP[GWP],TabelleE[Energieträger],0)),5),\"\")","v":""}]
[null,"Arsen","Materialien (nicht Bestandteil des Produkts)",{"$f":"IFERROR(INDEX(TabelleNMB[[Materialien]:[KEA]],(MATCH(TabelleKEA[[#This Row],[KEA]],TabelleKEA[KEA],0)),3),\"\")","v":""},null,null,null,null,"Arsen","Materialien (nicht Bestandteil des Produkts)",{"$f":"IFERROR(INDEX(TabelleNMB[[Materialien]:[KRA]],(MATCH(TabelleKRA[[#This Row],[KRA]],TabelleKRA[KRA],0)),4),\"\")","v":""},null,null,null,null,"Steinkohle (Bezug: 1kg)","Energieträger",{"$f":"IFERROR(INDEX(TabelleE[[Energieträger]:[GWP]],(MATCH(TabelleGWP[GWP],TabelleE[Energieträger],0)),5),\"\")","v":""}]
[null,"Asbet","Materialien (nicht Bestandteil des Produkts)",{"$f":"IFERROR(INDEX(TabelleNMB[[Materialien]:[KEA]],(MATCH(TabelleKEA[[#This Row],[KEA]],TabelleKEA[KEA],0)),3),\"\")","v":""},null,null,null,null,"Asbet","Materialien (nicht Bestandteil des Produkts)",{"$f":"IFERROR(INDEX(TabelleNMB[[Materialien]:[KRA]],(MATCH(TabelleKRA[[#This Row],[KRA]],TabelleKRA[KRA],0)),4),\"\")","v":""},null,null,null,null,"Steinkohlenkoks (Bezug: 1kg)","Energieträger",{"$f":"IFERROR(INDEX(TabelleE[[Energieträger]:[GWP]],(MATCH(TabelleGWP[GWP],TabelleE[Energieträger],0)),5),\"\")","v":""}]
[null,"Asphalt","Materialien (nicht Bestandteil des Produkts)",{"$f":"IFERROR(INDEX(TabelleNMB[[Materialien]:[KEA]],(MATCH(TabelleKEA[[#This Row],[KEA]],TabelleKEA[KEA],0)),3),\"\")","v":""},null,null,null,null,"Asphalt","Materialien (nicht Bestandteil des Produkts)",{"$f":"IFERROR(INDEX(TabelleNMB[[Materialien]:[KRA]],(MATCH(TabelleKRA[[#This Row],[KRA]],TabelleKRA[KRA],0)),4),\"\")","v":""},null,null,null,null,"Stromelektr. (Bezug: 1kWh)","Energieträger",{"$f":"IFERROR(INDEX(TabelleE[[Energieträger]:[GWP]],(MATCH(TabelleGWP[GWP],TabelleE[Energieträger],0)),5),\"\")","v":""}]
[null,"Barit (Schwerspat)","Materialien (nicht Bestandteil des Produkts)",{"$f":"IFERROR(INDEX(TabelleNMB[[Materialien]:[KEA]],(MATCH(TabelleKEA[[#This Row],[KEA]],TabelleKEA[KEA],0)),3),\"\")","v":""},null,null,null,null,"Barit (Schwerspat)","Materialien (nicht Bestandteil des Produkts)",{"$f":"IFERROR(INDEX(TabelleNMB[[Materialien]:[KRA]],(MATCH(TabelleKRA[[#This Row],[KRA]],TabelleKRA[KRA],0)),4),\"\")","v":""}]
[null,"Bariumkarbonat","Materialien (nicht Bestandteil des Produkts)",{"$f":"IFERROR(INDEX(TabelleNMB[[Materialien]:[KEA]],(MATCH(TabelleKEA[[#This Row],[KEA]],TabelleKEA[KEA],0)),3),\"\")","v":""},null,null,null,null,"Bariumkarbonat","Materialien (nicht Bestandteil des Produkts)",{"$f":"IFERROR(INDEX(TabelleNMB[[Materialien]:[KRA]],(MATCH(TabelleKRA[[#This Row],[KRA]],TabelleKRA[KRA],0)),4),\"\")","v":""}]
[null,"Baumwollgewebe","Materialien (nicht Bestandteil des Produkts)",{"$f":"IFERROR(INDEX(TabelleNMB[[Materialien]:[KEA]],(MATCH(TabelleKEA[[#This Row],[KEA]],TabelleKEA[KEA],0)),3),\"\")","v":""},null,null,null,null,"Baumwollgewebe","Materialien (nicht Bestandteil des Produkts)",{"$f":"IFERROR(INDEX(TabelleNMB[[Materialien]:[KRA]],(MATCH(TabelleKRA[[#This Row],[KRA]],TabelleKRA[KRA],0)),4),\"\")","v":""}]
[null,"Bauxit","Materialien (nicht Bestandteil des Produkts)",{"$f":"IFERROR(INDEX(TabelleNMB[[Materialien]:[KEA]],(MATCH(TabelleKEA[[#This Row],[KEA]],TabelleKEA[KEA],0)),3),\"\")","v":""},null,null,null,null,"Bauxit","Materialien (nicht Bestandteil des Produkts)",{"$f":"IFERROR(INDEX(TabelleNMB[[Materialien]:[KRA]],(MATCH(TabelleKRA[[#This Row],[KRA]],TabelleKRA[KRA],0)),4),\"\")","v":""}]
[null,"Bentonit","Materialien (nicht Bestandteil des Produkts)",{"$f":"IFERROR(INDEX(TabelleNMB[[Materialien]:[KEA]],(MATCH(TabelleKEA[[#This Row],[KEA]],TabelleKEA[KEA],0)),3),\"\")","v":""},null,null,null,null,"Bentonit","Materialien (nicht Bestandteil des Produkts)",{"$f":"IFERROR(INDEX(TabelleNMB[[Materialien]:[KRA]],(MATCH(TabelleKRA[[#This Row],[KRA]],TabelleKRA[KRA],0)),4),\"\")","v":""}]
[null,"Beton","Materialien (nicht Bestandteil des Produkts)",{"$f":"IFERROR(INDEX(TabelleNMB[[Materialien]:[KEA]],(MATCH(TabelleKEA[[#This Row],[KEA]],TabelleKEA[KEA],0)),3),\"\")","v":""},null,null,null,null,"Beton","Materialien (nicht Bestandteil des Produkts)",{"$f":"IFERROR(INDEX(TabelleNMB[[Materialien]:[KRA]],(MATCH(TabelleKRA[[#This Row],[KRA]],TabelleKRA[KRA],0)),4),\"\")","v":""}]
[null,"Bimsstein","Materialien (nicht Bestandteil des Produkts)",{"$f":"IFERROR(INDEX(TabelleNMB[[Materialien]:[KEA]],(MATCH(TabelleKEA[[#This Row],[KEA]],TabelleKEA[KEA],0)),3),\"\")","v":""},null,null,null,null,"Bimsstein","Materialien (nicht Bestandteil des Produkts)",{"$f":"IFERROR(INDEX(TabelleNMB[[Materialien]:[KRA]],(MATCH(TabelleKRA[[#This Row],[KRA]],TabelleKRA[KRA],0)),4),\"\")","v":""}]
[null,"Bitumen","Materialien (nicht Bestandteil des Produkts)",{"$f":"IFERROR(INDEX(TabelleNMB[[Materialien]:[KEA]],(MATCH(TabelleKEA[[#This Row],[KEA]],TabelleKEA[KEA],0)),3),\"\")","v":""},null,null,null,null,"Bitumen","Materialien (nicht Bestandteil des Produkts)",{"$f":"IFERROR(INDEX(TabelleNMB[[Materialien]:[KRA]],(MATCH(TabelleKRA[[#This Row],[KRA]],TabelleKRA[KRA],0)),4),\"\")","v":""}]
[null,"Blei","Materialien (nicht Bestandteil des Produkts)",{"$f":"IFERROR(INDEX(TabelleNMB[[Materialien]:[KEA]],(MATCH(TabelleKEA[[#This Row],[KEA]],TabelleKEA[KEA],0)),3),\"\")","v":""},null,null,null,null,"Blei","Materialien (nicht Bestandteil des Produkts)",{"$f":"IFERROR(INDEX(TabelleNMB[[Materialien]:[KRA]],(MATCH(TabelleKRA[[#This Row],[KRA]],TabelleKRA[KRA],0)),4),\"\")","v":""}]
[null,"Borate","Materialien (nicht Bestandteil des Produkts)",{"$f":"IFERROR(INDEX(TabelleNMB[[Materialien]:[KEA]],(MATCH(TabelleKEA[[#This Row],[KEA]],TabelleKEA[KEA],0)),3),\"\")","v":""},null,null,null,null,"Borate","Materialien (nicht Bestandteil des Produkts)",{"$f":"IFERROR(INDEX(TabelleNMB[[Materialien]:[KRA]],(MATCH(TabelleKRA[[#This Row],[KRA]],TabelleKRA[KRA],0)),4),\"\")","v":""}]
[null,"Brennelemente","Materialien (nicht Bestandteil des Produkts)",{"$f":"IFERROR(INDEX(TabelleNMB[[Materialien]:[KEA]],(MATCH(TabelleKEA[[#This Row],[KEA]],TabelleKEA[KEA],0)),3),\"\")","v":""},null,null,null,null,"Brennelemente","Materialien (nicht Bestandteil des Produkts)",{"$f":"IFERROR(INDEX(TabelleNMB[[Materialien]:[KRA]],(MATCH(TabelleKRA[[#This Row],[KRA]],TabelleKRA[KRA],0)),4),\"\")","v":""}]
[null,"Chlor","Materialien (nicht Bestandteil des Produkts)",{"$f":"IFERROR(INDEX(TabelleNMB[[Materialien]:[KEA]],(MATCH(TabelleKEA[[#This Row],[KEA]],TabelleKEA[KEA],0)),3),\"\")","v":""},null,null,null,null,"Chlor","Materialien (nicht Bestandteil des Produkts)",{"$f":"IFERROR(INDEX(TabelleNMB[[Materialien]:[KRA]],(MATCH(TabelleKRA[[#This Row],[KRA]],TabelleKRA[KRA],0)),4),\"\")","v":""}]
[null,"Chrom","Materialien (nicht Bestandteil des Produkts)",{"$f":"IFERROR(INDEX(TabelleNMB[[Materialien]:[KEA]],(MATCH(TabelleKEA[[#This Row],[KEA]],TabelleKEA[KEA],0)),3),\"\")","v":""},null,null,null,null,"Chrom","Materialien (nicht Bestandteil des Produkts)",{"$f":"IFERROR(INDEX(TabelleNMB[[Materialien]:[KRA]],(MATCH(TabelleKRA[[#This Row],[KRA]],TabelleKRA[KRA],0)),4),\"\")","v":""}]
[null,"Chromerze","Materialien (nicht Bestandteil des Produkts)",{"$f":"IFERROR(INDEX(TabelleNMB[[Materialien]:[KEA]],(MATCH(TabelleKEA[[#This Row],[KEA]],TabelleKEA[KEA],0)),3),\"\")","v":""},null,null,null,null,"Chromerze","Materialien (nicht Bestandteil des Produkts)",{"$f":"IFERROR(INDEX(TabelleNMB[[Materialien]:[KRA]],(MATCH(TabelleKRA[[#This Row],[KRA]],TabelleKRA[KRA],0)),4),\"\")","v":""}]
[null,"Computer","Materialien (nicht Bestandteil des Produkts)",{"$f":"IFERROR(INDEX(TabelleNMB[[Materialien]:[KEA]],(MATCH(TabelleKEA[[#This Row],[KEA]],TabelleKEA[KEA],0)),3),\"\")","v":""},null,null,null,null,"Computer","Materialien (nicht Bestandteil des Produkts)",{"$f":"IFERROR(INDEX(TabelleNMB[[Materialien]:[KRA]],(MATCH(TabelleKRA[[#This Row],[KRA]],TabelleKRA[KRA],0)),4),\"\")","v":""}]
[null,"Dolomit","Materialien (nicht Bestandteil des Produkts)",{"$f":"IFERROR(INDEX(TabelleNMB[[Materialien]:[KEA]],(MATCH(TabelleKEA[[#This Row],[KEA]],TabelleKEA[KEA],0)),3),\"\")","v":""},null,null,null,null,"Dolomit","Materialien (nicht Bestandteil des Produkts)",{"$f":"IFERROR(INDEX(TabelleNMB[[Materialien]:[KRA]],(MATCH(TabelleKRA[[#This Row],[KRA]],TabelleKRA[KRA],0)),4),\"\")","v":""}]
[null,"Druckluft (Bezug: 1000 m3)","Materialien (nicht Bestandteil des Produkts)",{"$f":"IFERROR(INDEX(TabelleNMB[[Materialien]:[KEA]],(MATCH(TabelleKEA[[#This Row],[KEA]],TabelleKEA[KEA],0)),3),\"\")","v":""},null,null,null,null,"Druckluft (Bezug: 1000 m3)","Materialien (nicht Bestandteil des Produkts)",{"$f":"IFERROR(INDEX(TabelleNMB[[Materialien]:[KRA]],(MATCH(TabelleKRA[[#This Row],[KRA]],TabelleKRA[KRA],0)),4),\"\")","v":""}]
[null,"Edelstahlblech (inkl. Herstellung von Chromstahl)","Materialien (nicht Bestandteil des Produkts)",{"$f":"IFERROR(INDEX(TabelleNMB[[Materialien]:[KEA]],(MATCH(TabelleKEA[[#This Row],[KEA]],TabelleKEA[KEA],0)),3),\"\")","v":""},null,null,null,null,"Edelstahlblech (inkl. Herstellung von Chromstahl)","Materialien (nicht Bestandteil des Produkts)",{"$f":"IFERROR(INDEX(TabelleNMB[[Materialien]:[KRA]],(MATCH(TabelleKRA[[#This Row],[KRA]],TabelleKRA[KRA],0)),4),\"\")","v":""}]
[null,"Eisen","Materialien (nicht Bestandteil des Produkts)",{"$f":"IFERROR(INDEX(TabelleNMB[[Materialien]:[KEA]],(MATCH(TabelleKEA[[#This Row],[KEA]],TabelleKEA[KEA],0)),3),\"\")","v":""},null,null,null,null,"Eisen","Materialien (nicht Bestandteil des Produkts)",{"$f":"IFERROR(INDEX(TabelleNMB[[Materialien]:[KRA]],(MATCH(TabelleKRA[[#This Row],[KRA]],TabelleKRA[KRA],0)),4),\"\")","v":""}]
[null,"Eisenerz 46%","Materialien (nicht Bestandteil des Produkts)",{"$f":"IFERROR(INDEX(TabelleNMB[[Materialien]:[KEA]],(MATCH(TabelleKEA[[#This Row],[KEA]],TabelleKEA[KEA],0)),3),\"\")","v":""},null,null,null,null,"Eisenerz 46%","Materialien (nicht Bestandteil des Produkts)",{"$f":"IFERROR(INDEX(TabelleNMB[[Materialien]:[KRA]],(MATCH(TabelleKRA[[#This Row],[KRA]],TabelleKRA[KRA],0)),4),\"\")","v":""}]
[null,"Eisenerzkonzentrat","Materialien (nicht Bestandteil des Produkts)",{"$f":"IFERROR(INDEX(TabelleNMB[[Materialien]:[KEA]],(MATCH(TabelleKEA[[#This Row],[KEA]],TabelleKEA[KEA],0)),3),\"\")","v":""},null,null,null,null,"Eisenerzkonzentrat","Materialien (nicht Bestandteil des Produkts)",{"$f":"IFERROR(INDEX(TabelleNMB[[Materialien]:[KRA]],(MATCH(TabelleKRA[[#This Row],[KRA]],TabelleKRA[KRA],0)),4),\"\")","v":""}]
[null,"Epoxidharz","Materialien (nicht Bestandteil des Produkts)",{"$f":"IFERROR(INDEX(TabelleNMB[[Materialien]:[KEA]],(MATCH(TabelleKEA[[#This Row],[KEA]],TabelleKEA[KEA],0)),3),\"\")","v":""},null,null,null,null,"Epoxidharz","Materialien (nicht Bestandteil des Produkts)",{"$f":"IFERROR(INDEX(TabelleNMB[[Materialien]:[KRA]],(MATCH(TabelleKRA[[#This Row],[KRA]],TabelleKRA[KRA],0)),4),\"\")","v":""}]
[null,"Ethylen","Materialien (nicht Bestandteil des Produkts)",{"$f":"IFERROR(INDEX(TabelleNMB[[Materialien]:[KEA]],(MATCH(TabelleKEA[[#This Row],[KEA]],TabelleKEA[KEA],0)),3),\"\")","v":""},null,null,null,null,"Ethylen","Materialien (nicht Bestandteil des Produkts)",{"$f":"IFERROR(INDEX(TabelleNMB[[Materialien]:[KRA]],(MATCH(TabelleKRA[[#This Row],[KRA]],TabelleKRA[KRA],0)),4),\"\")","v":""}]
[null,"Flussspat","Materialien (nicht Bestandteil des Produkts)",{"$f":"IFERROR(INDEX(TabelleNMB[[Materialien]:[KEA]],(MATCH(TabelleKEA[[#This Row],[KEA]],TabelleKEA[KEA],0)),3),\"\")","v":""},null,null,null,null,"Flussspat","Materialien (nicht Bestandteil des Produkts)",{"$f":"IFERROR(INDEX(TabelleNMB[[Materialien]:[KRA]],(MATCH(TabelleKRA[[#This Row],[KRA]],TabelleKRA[KRA],0)),4),\"\")","v":""}]
[null,"Futterpflanze (Silomais)","Materialien (nicht Bestandteil des Produkts)",{"$f":"IFERROR(INDEX(TabelleNMB[[Materialien]:[KEA]],(MATCH(TabelleKEA[[#This Row],[KEA]],TabelleKEA[KEA],0)),3),\"\")","v":""},null,null,null,null,"Futterpflanze (Silomais)","Materialien (nicht Bestandteil des Produkts)",{"$f":"IFERROR(INDEX(TabelleNMB[[Materialien]:[KRA]],(MATCH(TabelleKRA[[#This Row],[KRA]],TabelleKRA[KRA],0)),4),\"\")","v":""}]
[null,"Gallium","Materialien (nicht Bestandteil des Produkts)",{"$f":"IFERROR(INDEX(TabelleNMB[[Materialien]:[KEA]],(MATCH(TabelleKEA[[#This Row],[KEA]],TabelleKEA[KEA],0)),3),\"\")","v":""},null,null,null,null,"Gallium","Materialien (nicht Bestandteil des Produkts)",{"$f":"IFERROR(INDEX(TabelleNMB[[Materialien]:[KRA]],(MATCH(TabelleKRA[[#This Row],[KRA]],TabelleKRA[KRA],0)),4),\"\")","v":""}]
[null,"Gemüse (Weißkohl)","Materialien (nicht Bestandteil des Produkts)",{"$f":"IFERROR(INDEX(TabelleNMB[[Materialien]:[KEA]],(MATCH(TabelleKEA[[#This Row],[KEA]],TabelleKEA[KEA],0)),3),\"\")","v":""},null,null,null,null,"Gemüse (Weißkohl)","Materialien (nicht Bestandteil des Produkts)",{"$f":"IFERROR(INDEX(TabelleNMB[[Materialien]:[KRA]],(MATCH(TabelleKRA[[#This Row],[KRA]],TabelleKRA[KRA],0)),4),\"\")","v":""}]
[null,"Gesteinsmehl","Materialien (nicht Bestandteil des Produkts)",{"$f":"IFERROR(INDEX(TabelleNMB[[Materialien]:[KEA]],(MATCH(TabelleKEA[[#This Row],[KEA]],TabelleKEA[KEA],0)),3),\"\")","v":""},null,null,null,null,"Gesteinsmehl","Materialien (nicht Bestandteil des Produkts)",{"$f":"IFERROR(INDEX(TabelleNMB[[Materialien]:[KRA]],(MATCH(TabelleKRA[[#This Row],[KRA]],TabelleKRA[KRA],0)),4),\"\")","v":""}]
[null,"Getreide (Winterweizen)","Materialien (nicht Bestandteil des Produkts)",{"$f":"IFERROR(INDEX(TabelleNMB[[Materialien]:[KEA]],(MATCH(TabelleKEA[[#This Row],[KEA]],TabelleKEA[KEA],0)),3),\"\")","v":""},null,null,null,null,"Getreide (Winterweizen)","Materialien (nicht Bestandteil des Produkts)",{"$f":"IFERROR(INDEX(TabelleNMB[[Materialien]:[KRA]],(MATCH(TabelleKRA[[#This Row],[KRA]],TabelleKRA[KRA],0)),4),\"\")","v":""}]
[null,"GFK (Glasfaserverstärkte Kunststoffe)","Materialien (nicht Bestandteil des Produkts)",{"$f":"IFERROR(INDEX(TabelleNMB[[Materialien]:[KEA]],(MATCH(TabelleKEA[[#This Row],[KEA]],TabelleKEA[KEA],0)),3),\"\")","v":""},null,null,null,null,"GFK (Glasfaserverstärkte Kunststoffe)","Materialien (nicht Bestandteil des Produkts)",{"$f":"IFERROR(INDEX(TabelleNMB[[Materialien]:[KRA]],(MATCH(TabelleKRA[[#This Row],[KRA]],TabelleKRA[KRA],0)),4),\"\")","v":""}]
[null,"Gips","Materialien (nicht Bestandteil des Produkts)",{"$f":"IFERROR(INDEX(TabelleNMB[[Materialien]:[KEA]],(MATCH(TabelleKEA[[#This Row],[KEA]],TabelleKEA[KEA],0)),3),\"\")","v":""},null,null,null,null,"Gips","Materialien (nicht Bestandteil des Produkts)",{"$f":"IFERROR(INDEX(TabelleNMB[[Materialien]:[KRA]],(MATCH(TabelleKRA[[#This Row],[KRA]],TabelleKRA[KRA],0)),4),\"\")","v":""}]
[null,"Glas (Behälterglas)","Materialien (nicht Bestandteil des Produkts)",{"$f":"IFERROR(INDEX(TabelleNMB[[Materialien]:[KEA]],(MATCH(TabelleKEA[[#This Row],[KEA]],TabelleKEA[KEA],0)),3),\"\")","v":""},null,null,null,null,"Glas (Behälterglas)","Materialien (nicht Bestandteil des Produkts)",{"$f":"IFERROR(INDEX(TabelleNMB[[Materialien]:[KRA]],(MATCH(TabelleKRA[[#This Row],[KRA]],TabelleKRA[KRA],0)),4),\"\")","v":""}]
[null,"Glas (Flachglas)","Materialien (nicht Bestandteil des Produkts)",{"$f":"IFERROR(INDEX(TabelleNMB[[Materialien]:[KEA]],(MATCH(TabelleKEA[[#This Row],[KEA]],TabelleKEA[KEA],0)),3),\"\")","v":""},null,null,null,null,"Glas (Flachglas)","Materialien (nicht Bestandteil des Produkts)",{"$f":"IFERROR(INDEX(TabelleNMB[[Materialien]:[KRA]],(MATCH(TabelleKRA[[#This Row],[KRA]],TabelleKRA[KRA],0)),4),\"\")","v":""}]
[null,"Glasfasern","Materialien (nicht Bestandteil des Produkts)",{"$f":"IFERROR(INDEX(TabelleNMB[[Materialien]:[KEA]],(MATCH(TabelleKEA[[#This Row],[KEA]],TabelleKEA[KEA],0)),3),\"\")","v":""},null,null,null,null,"Glasfasern","Materialien (nicht Bestandteil des Produkts)",{"$f":"IFERROR(INDEX(TabelleNMB[[Materialien]:[KRA]],(MATCH(TabelleKRA[[#This Row],[KRA]],TabelleKRA[KRA],0)),4),\"\")","v":""}]
[null,"Glaswolle","Materialien (nicht Bestandteil des Produkts)",{"$f":"IFERROR(INDEX(TabelleNMB[[Materialien]:[KEA]],(MATCH(TabelleKEA[[#This Row],[KEA]],TabelleKEA[KEA],0)),3),\"\")","v":""},null,null,null,null,"Glaswolle","Materialien (nicht Bestandteil des Produkts)",{"$f":"IFERROR(INDEX(TabelleNMB[[Materialien]:[KRA]],(MATCH(TabelleKRA[[#This Row],[KRA]],TabelleKRA[KRA],0)),4),\"\")","v":""}]
[null,"Glimmer","Materialien (nicht Bestandteil des Produkts)",{"$f":"IFERROR(INDEX(TabelleNMB[[Materialien]:[KEA]],(MATCH(TabelleKEA[[#This Row],[KEA]],TabelleKEA[KEA],0)),3),\"\")","v":""},null,null,null,null,"Glimmer","Materialien (nicht Bestandteil des Produkts)",{"$f":"IFERROR(INDEX(TabelleNMB[[Materialien]:[KRA]],(MATCH(TabelleKRA[[#This Row],[KRA]],TabelleKRA[KRA],0)),4),\"\")","v":""}]
[null,"Gold ","Materialien (nicht Bestandteil des Produkts)",{"$f":"IFERROR(INDEX(TabelleNMB[[Materialien]:[KEA]],(MATCH(TabelleKEA[[#This Row],[KEA]],TabelleKEA[KEA],0)),3),\"\")","v":""},null,null,null,null,"Gold ","Materialien (nicht Bestandteil des Produkts)",{"$f":"IFERROR(INDEX(TabelleNMB[[Materialien]:[KRA]],(MATCH(TabelleKRA[[#This Row],[KRA]],TabelleKRA[KRA],0)),4),\"\")","v":""}]
[null,"Graphit","Materialien (nicht Bestandteil des Produkts)",{"$f":"IFERROR(INDEX(TabelleNMB[[Materialien]:[KEA]],(MATCH(TabelleKEA[[#This Row],[KEA]],TabelleKEA[KEA],0)),3),\"\")","v":""},null,null,null,null,"Graphit","Materialien (nicht Bestandteil des Produkts)",{"$f":"IFERROR(INDEX(TabelleNMB[[Materialien]:[KRA]],(MATCH(TabelleKRA[[#This Row],[KRA]],TabelleKRA[KRA],0)),4),\"\")","v":""}]
[null,"Grünland (Grünschnitt)","Materialien (nicht Bestandteil des Produkts)",{"$f":"IFERROR(INDEX(TabelleNMB[[Materialien]:[KEA]],(MATCH(TabelleKEA[[#This Row],[KEA]],TabelleKEA[KEA],0)),3),\"\")","v":""},null,null,null,null,"Grünland (Grünschnitt)","Materialien (nicht Bestandteil des Produkts)",{"$f":"IFERROR(INDEX(TabelleNMB[[Materialien]:[KRA]],(MATCH(TabelleKRA[[#This Row],[KRA]],TabelleKRA[KRA],0)),4),\"\")","v":""}]
[null,"Hackfrüchte (Kartoffel)","Materialien (nicht Bestandteil des Produkts)",{"$f":"IFERROR(INDEX(TabelleNMB[[Materialien]:[KEA]],(MATCH(TabelleKEA[[#This Row],[KEA]],TabelleKEA[KEA],0)),3),\"\")","v":""},null,null,null,null,"Hackfrüchte (Kartoffel)","Materialien (nicht Bestandteil des Produkts)",{"$f":"IFERROR(INDEX(TabelleNMB[[Materialien]:[KRA]],(MATCH(TabelleKRA[[#This Row],[KRA]],TabelleKRA[KRA],0)),4),\"\")","v":""}]
[null,"Handelsgewächse (Raps)","Materialien (nicht Bestandteil des Produkts)",{"$f":"IFERROR(INDEX(TabelleNMB[[Materialien]:[KEA]],(MATCH(TabelleKEA[[#This Row],[KEA]],TabelleKEA[KEA],0)),3),\"\")","v":""},null,null,null,null,"Handelsgewächse (Raps)","Materialien (nicht Bestandteil des Produkts)",{"$f":"IFERROR(INDEX(TabelleNMB[[Materialien]:[KRA]],(MATCH(TabelleKRA[[#This Row],[KRA]],TabelleKRA[KRA],0)),4),\"\")","v":""}]
[null,"Holzstoff","Materialien (nicht Bestandteil des Produkts)",{"$f":"IFERROR(INDEX(TabelleNMB[[Materialien]:[KEA]],(MATCH(TabelleKEA[[#This Row],[KEA]],TabelleKEA[KEA],0)),3),\"\")","v":""},null,null,null,null,"Holzstoff","Materialien (nicht Bestandteil des Produkts)",{"$f":"IFERROR(INDEX(TabelleNMB[[Materialien]:[KRA]],(MATCH(TabelleKRA[[#This Row],[KRA]],TabelleKRA[KRA],0)),4),\"\")","v":""}]
[null,"Ilmenitkonzentrate","Materialien (nicht Bestandteil des Produkts)",{"$f":"IFERROR(INDEX(TabelleNMB[[Materialien]:[KEA]],(MATCH(TabelleKEA[[#This Row],[KEA]],TabelleKEA[KEA],0)),3),\"\")","v":""},null,null,null,null,"Ilmenitkonzentrate","Materialien (nicht Bestandteil des Produkts)",{"$f":"IFERROR(INDEX(TabelleNMB[[Materialien]:[KRA]],(MATCH(TabelleKRA[[#This Row],[KRA]],TabelleKRA[KRA],0)),4),\"\")","v":""}]
[null,"Indium","Materialien (nicht Bestandteil des Produkts)",{"$f":"IFERROR(INDEX(TabelleNMB[[Materialien]:[KEA]],(MATCH(TabelleKEA[[#This Row],[KEA]],TabelleKEA[KEA],0)),3),\"\")","v":""},null,null,null,null,"Indium","Materialien (nicht Bestandteil des Produkts)",{"$f":"IFERROR(INDEX(TabelleNMB[[Materialien]:[KRA]],(MATCH(TabelleKRA[[#This Row],[KRA]],TabelleKRA[KRA],0)),4),\"\")","v":""}]
[null,"Industriediamanten","Materialien (nicht Bestandteil des Produkts)",{"$f":"IFERROR(INDEX(TabelleNMB[[Materialien]:[KEA]],(MATCH(TabelleKEA[[#This Row],[KEA]],TabelleKEA[KEA],0)),3),\"\")","v":""},null,null,null,null,"Industriediamanten","Materialien (nicht Bestandteil des Produkts)",{"$f":"IFERROR(INDEX(TabelleNMB[[Materialien]:[KRA]],(MATCH(TabelleKRA[[#This Row],[KRA]],TabelleKRA[KRA],0)),4),\"\")","v":""}]
[null,"Iridium","Materialien (nicht Bestandteil des Produkts)",{"$f":"IFERROR(INDEX(TabelleNMB[[Materialien]:[KEA]],(MATCH(TabelleKEA[[#This Row],[KEA]],TabelleKEA[KEA],0)),3),\"\")","v":""},null,null,null,null,"Iridium","Materialien (nicht Bestandteil des Produkts)",{"$f":"IFERROR(INDEX(TabelleNMB[[Materialien]:[KRA]],(MATCH(TabelleKRA[[#This Row],[KRA]],TabelleKRA[KRA],0)),4),\"\")","v":""}]
[null,"Kalisalz","Materialien (nicht Bestandteil des Produkts)",{"$f":"IFERROR(INDEX(TabelleNMB[[Materialien]:[KEA]],(MATCH(TabelleKEA[[#This Row],[KEA]],TabelleKEA[KEA],0)),3),\"\")","v":""},null,null,null,null,"Kalisalz","Materialien (nicht Bestandteil des Produkts)",{"$f":"IFERROR(INDEX(TabelleNMB[[Materialien]:[KRA]],(MATCH(TabelleKRA[[#This Row],[KRA]],TabelleKRA[KRA],0)),4),\"\")","v":""}]
[null,"Kalk","Materialien (nicht Bestandteil des Produkts)",{"$f":"IFERROR(INDEX(TabelleNMB[[Materialien]:[KEA]],(MATCH(TabelleKEA[[#This Row],[KEA]],TabelleKEA[KEA],0)),3),\"\")","v":""},null,null,null,null,"Kalk","Materialien (nicht Bestandteil des Produkts)",{"$f":"IFERROR(INDEX(TabelleNMB[[Materialien]:[KRA]],(MATCH(TabelleKRA[[#This Row],[KRA]],TabelleKRA[KRA],0)),4),\"\")","v":""}]
[null,"Kalkmergel","Materialien (nicht Bestandteil des Produkts)",{"$f":"IFERROR(INDEX(TabelleNMB[[Materialien]:[KEA]],(MATCH(TabelleKEA[[#This Row],[KEA]],TabelleKEA[KEA],0)),3),\"\")","v":""},null,null,null,null,"Kalkmergel","Materialien (nicht Bestandteil des Produkts)",{"$f":"IFERROR(INDEX(TabelleNMB[[Materialien]:[KRA]],(MATCH(TabelleKRA[[#This Row],[KRA]],TabelleKRA[KRA],0)),4),\"\")","v":""}]
[null,"Kalkstein","Materialien (nicht Bestandteil des Produkts)",{"$f":"IFERROR(INDEX(TabelleNMB[[Materialien]:[KEA]],(MATCH(TabelleKEA[[#This Row],[KEA]],TabelleKEA[KEA],0)),3),\"\")","v":""},null,null,null,null,"Kalkstein","Materialien (nicht Bestandteil des Produkts)",{"$f":"IFERROR(INDEX(TabelleNMB[[Materialien]:[KRA]],(MATCH(TabelleKRA[[#This Row],[KRA]],TabelleKRA[KRA],0)),4),\"\")","v":""}]
[null,"Kaolin","Materialien (nicht Bestandteil des Produkts)",{"$f":"IFERROR(INDEX(TabelleNMB[[Materialien]:[KEA]],(MATCH(TabelleKEA[[#This Row],[KEA]],TabelleKEA[KEA],0)),3),\"\")","v":""},null,null,null,null,"Kaolin","Materialien (nicht Bestandteil des Produkts)",{"$f":"IFERROR(INDEX(TabelleNMB[[Materialien]:[KRA]],(MATCH(TabelleKRA[[#This Row],[KRA]],TabelleKRA[KRA],0)),4),\"\")","v":""}]
[null,"Kies (Baukies)","Materialien (nicht Bestandteil des Produkts)",{"$f":"IFERROR(INDEX(TabelleNMB[[Materialien]:[KEA]],(MATCH(TabelleKEA[[#This Row],[KEA]],TabelleKEA[KEA],0)),3),\"\")","v":""},null,null,null,null,"Kies (Baukies)","Materialien (nicht Bestandteil des Produkts)",{"$f":"IFERROR(INDEX(TabelleNMB[[Materialien]:[KRA]],(MATCH(TabelleKRA[[#This Row],[KRA]],TabelleKRA[KRA],0)),4),\"\")","v":""}]
[null,"Kiselgur","Materialien (nicht Bestandteil des Produkts)",{"$f":"IFERROR(INDEX(TabelleNMB[[Materialien]:[KEA]],(MATCH(TabelleKEA[[#This Row],[KEA]],TabelleKEA[KEA],0)),3),\"\")","v":""},null,null,null,null,"Kiselgur","Materialien (nicht Bestandteil des Produkts)",{"$f":"IFERROR(INDEX(TabelleNMB[[Materialien]:[KRA]],(MATCH(TabelleKRA[[#This Row],[KRA]],TabelleKRA[KRA],0)),4),\"\")","v":""}]
[null,"Kobalt","Materialien (nicht Bestandteil des Produkts)",{"$f":"IFERROR(INDEX(TabelleNMB[[Materialien]:[KEA]],(MATCH(TabelleKEA[[#This Row],[KEA]],TabelleKEA[KEA],0)),3),\"\")","v":""},null,null,null,null,"Kobalt","Materialien (nicht Bestandteil des Produkts)",{"$f":"IFERROR(INDEX(TabelleNMB[[Materialien]:[KRA]],(MATCH(TabelleKRA[[#This Row],[KRA]],TabelleKRA[KRA],0)),4),\"\")","v":""}]
[null,"Kobalterze","Materialien (nicht Bestandteil des Produkts)",{"$f":"IFERROR(INDEX(TabelleNMB[[Materialien]:[KEA]],(MATCH(TabelleKEA[[#This Row],[KEA]],TabelleKEA[KEA],0)),3),\"\")","v":""},null,null,null,null,"Kobalterze","Materialien (nicht Bestandteil des Produkts)",{"$f":"IFERROR(INDEX(TabelleNMB[[Materialien]:[KRA]],(MATCH(TabelleKRA[[#This Row],[KRA]],TabelleKRA[KRA],0)),4),\"\")","v":""}]
[null,"Kreide","Materialien (nicht Bestandteil des Produkts)",{"$f":"IFERROR(INDEX(TabelleNMB[[Materialien]:[KEA]],(MATCH(TabelleKEA[[#This Row],[KEA]],TabelleKEA[KEA],0)),3),\"\")","v":""},null,null,null,null,"Kreide","Materialien (nicht Bestandteil des Produkts)",{"$f":"IFERROR(INDEX(TabelleNMB[[Materialien]:[KRA]],(MATCH(TabelleKRA[[#This Row],[KRA]],TabelleKRA[KRA],0)),4),\"\")","v":""}]
[null,"Kryolith","Materialien (nicht Bestandteil des Produkts)",{"$f":"IFERROR(INDEX(TabelleNMB[[Materialien]:[KEA]],(MATCH(TabelleKEA[[#This Row],[KEA]],TabelleKEA[KEA],0)),3),\"\")","v":""},null,null,null,null,"Kryolith","Materialien (nicht Bestandteil des Produkts)",{"$f":"IFERROR(INDEX(TabelleNMB[[Materialien]:[KRA]],(MATCH(TabelleKRA[[#This Row],[KRA]],TabelleKRA[KRA],0)),4),\"\")","v":""}]
[null,"Kupfer, primär","Materialien (nicht Bestandteil des Produkts)",{"$f":"IFERROR(INDEX(TabelleNMB[[Materialien]:[KEA]],(MATCH(TabelleKEA[[#This Row],[KEA]],TabelleKEA[KEA],0)),3),\"\")","v":""},null,null,null,null,"Kupfer, primär","Materialien (nicht Bestandteil des Produkts)",{"$f":"IFERROR(INDEX(TabelleNMB[[Materialien]:[KRA]],(MATCH(TabelleKRA[[#This Row],[KRA]],TabelleKRA[KRA],0)),4),\"\")","v":""}]
[null,"Kupfer, sekundär","Materialien (nicht Bestandteil des Produkts)",{"$f":"IFERROR(INDEX(TabelleNMB[[Materialien]:[KEA]],(MATCH(TabelleKEA[[#This Row],[KEA]],TabelleKEA[KEA],0)),3),\"\")","v":""},null,null,null,null,"Kupfer, sekundär","Materialien (nicht Bestandteil des Produkts)",{"$f":"IFERROR(INDEX(TabelleNMB[[Materialien]:[KRA]],(MATCH(TabelleKRA[[#This Row],[KRA]],TabelleKRA[KRA],0)),4),\"\")","v":""}]
[null,"Kupferblech (ohne Prozessschritte für Kupfer primär/sekundär)","Materialien (nicht Bestandteil des Produkts)",{"$f":"IFERROR(INDEX(TabelleNMB[[Materialien]:[KEA]],(MATCH(TabelleKEA[[#This Row],[KEA]],TabelleKEA[KEA],0)),3),\"\")","v":""},null,null,null,null,"Kupferblech (ohne Prozessschritte für Kupfer primär/sekundär)","Materialien (nicht Bestandteil des Produkts)",{"$f":"IFERROR(INDEX(TabelleNMB[[Materialien]:[KRA]],(MATCH(TabelleKRA[[#This Row],[KRA]],TabelleKRA[KRA],0)),4),\"\")","v":""}]
[null,"Kupferkonzentrate, global","Materialien (nicht Bestandteil des Produkts)",{"$f":"IFERROR(INDEX(TabelleNMB[[Materialien]:[KEA]],(MATCH(TabelleKEA[[#This Row],[KEA]],TabelleKEA[KEA],0)),3),\"\")","v":""},null,null,null,null,"Kupferkonzentrate, global","Materialien (nicht Bestandteil des Produkts)",{"$f":"IFERROR(INDEX(TabelleNMB[[Materialien]:[KRA]],(MATCH(TabelleKRA[[#This Row],[KRA]],TabelleKRA[KRA],0)),4),\"\")","v":""}]
[null,"Laptop","Materialien (nicht Bestandteil des Produkts)",{"$f":"IFERROR(INDEX(TabelleNMB[[Materialien]:[KEA]],(MATCH(TabelleKEA[[#This Row],[KEA]],TabelleKEA[KEA],0)),3),\"\")","v":""},null,null,null,null,"Laptop","Materialien (nicht Bestandteil des Produkts)",{"$f":"IFERROR(INDEX(TabelleNMB[[Materialien]:[KRA]],(MATCH(TabelleKRA[[#This Row],[KRA]],TabelleKRA[KRA],0)),4),\"\")","v":""}]
[null,"Laubholz","Materialien (nicht Bestandteil des Produkts)",{"$f":"IFERROR(INDEX(TabelleNMB[[Materialien]:[KEA]],(MATCH(TabelleKEA[[#This Row],[KEA]],TabelleKEA[KEA],0)),3),\"\")","v":""},null,null,null,null,"Laubholz","Materialien (nicht Bestandteil des Produkts)",{"$f":"IFERROR(INDEX(TabelleNMB[[Materialien]:[KRA]],(MATCH(TabelleKRA[[#This Row],[KRA]],TabelleKRA[KRA],0)),4),\"\")","v":""}]
[null,"LDPE","Materialien (nicht Bestandteil des Produkts)",{"$f":"IFERROR(INDEX(TabelleNMB[[Materialien]:[KEA]],(MATCH(TabelleKEA[[#This Row],[KEA]],TabelleKEA[KEA],0)),3),\"\")","v":""},null,null,null,null,"LDPE","Materialien (nicht Bestandteil des Produkts)",{"$f":"IFERROR(INDEX(TabelleNMB[[Materialien]:[KRA]],(MATCH(TabelleKRA[[#This Row],[KRA]],TabelleKRA[KRA],0)),4),\"\")","v":""}]
[null,"Lehm","Materialien (nicht Bestandteil des Produkts)",{"$f":"IFERROR(INDEX(TabelleNMB[[Materialien]:[KEA]],(MATCH(TabelleKEA[[#This Row],[KEA]],TabelleKEA[KEA],0)),3),\"\")","v":""},null,null,null,null,"Lehm","Materialien (nicht Bestandteil des Produkts)",{"$f":"IFERROR(INDEX(TabelleNMB[[Materialien]:[KRA]],(MATCH(TabelleKRA[[#This Row],[KRA]],TabelleKRA[KRA],0)),4),\"\")","v":""}]
[null,"Lithium","Materialien (nicht Bestandteil des Produkts)",{"$f":"IFERROR(INDEX(TabelleNMB[[Materialien]:[KEA]],(MATCH(TabelleKEA[[#This Row],[KEA]],TabelleKEA[KEA],0)),3),\"\")","v":""},null,null,null,null,"Lithium","Materialien (nicht Bestandteil des Produkts)",{"$f":"IFERROR(INDEX(TabelleNMB[[Materialien]:[KRA]],(MATCH(TabelleKRA[[#This Row],[KRA]],TabelleKRA[KRA],0)),4),\"\")","v":""}]
[null,"Magnesium","Materialien (nicht Bestandteil des Produkts)",{"$f":"IFERROR(INDEX(TabelleNMB[[Materialien]:[KEA]],(MATCH(TabelleKEA[[#This Row],[KEA]],TabelleKEA[KEA],0)),3),\"\")","v":""},null,null,null,null,"Magnesium","Materialien (nicht Bestandteil des Produkts)",{"$f":"IFERROR(INDEX(TabelleNMB[[Materialien]:[KRA]],(MATCH(TabelleKRA[[#This Row],[KRA]],TabelleKRA[KRA],0)),4),\"\")","v":""}]
[null,"Magnesiumkarbonat","Materialien (nicht Bestandteil des Produkts)",{"$f":"IFERROR(INDEX(TabelleNMB[[Materialien]:[KEA]],(MATCH(TabelleKEA[[#This Row],[KEA]],TabelleKEA[KEA],0)),3),\"\")","v":""},null,null,null,null,"Magnesiumkarbonat","Materialien (nicht Bestandteil des Produkts)",{"$f":"IFERROR(INDEX(TabelleNMB[[Materialien]:[KRA]],(MATCH(TabelleKRA[[#This Row],[KRA]],TabelleKRA[KRA],0)),4),\"\")","v":""}]
[null,"Magnesiumsulfat","Materialien (nicht Bestandteil des Produkts)",{"$f":"IFERROR(INDEX(TabelleNMB[[Materialien]:[KEA]],(MATCH(TabelleKEA[[#This Row],[KEA]],TabelleKEA[KEA],0)),3),\"\")","v":""},null,null,null,null,"Magnesiumsulfat","Materialien (nicht Bestandteil des Produkts)",{"$f":"IFERROR(INDEX(TabelleNMB[[Materialien]:[KRA]],(MATCH(TabelleKRA[[#This Row],[KRA]],TabelleKRA[KRA],0)),4),\"\")","v":""}]
[null,"Mangan","Materialien (nicht Bestandteil des Produkts)",{"$f":"IFERROR(INDEX(TabelleNMB[[Materialien]:[KEA]],(MATCH(TabelleKEA[[#This Row],[KEA]],TabelleKEA[KEA],0)),3),\"\")","v":""},null,null,null,null,"Mangan","Materialien (nicht Bestandteil des Produkts)",{"$f":"IFERROR(INDEX(TabelleNMB[[Materialien]:[KRA]],(MATCH(TabelleKRA[[#This Row],[KRA]],TabelleKRA[KRA],0)),4),\"\")","v":""}]
[null,"Manganerz","Materialien (nicht Bestandteil des Produkts)",{"$f":"IFERROR(INDEX(TabelleNMB[[Materialien]:[KEA]],(MATCH(TabelleKEA[[#This Row],[KEA]],TabelleKEA[KEA],0)),3),\"\")","v":""},null,null,null,null,"Manganerz","Materialien (nicht Bestandteil des Produkts)",{"$f":"IFERROR(INDEX(TabelleNMB[[Materialien]:[KRA]],(MATCH(TabelleKRA[[#This Row],[KRA]],TabelleKRA[KRA],0)),4),\"\")","v":""}]
[null,"Messing","Materialien (nicht Bestandteil des Produkts)",{"$f":"IFERROR(INDEX(TabelleNMB[[Materialien]:[KEA]],(MATCH(TabelleKEA[[#This Row],[KEA]],TabelleKEA[KEA],0)),3),\"\")","v":""},null,null,null,null,"Messing","Materialien (nicht Bestandteil des Produkts)",{"$f":"IFERROR(INDEX(TabelleNMB[[Materialien]:[KRA]],(MATCH(TabelleKRA[[#This Row],[KRA]],TabelleKRA[KRA],0)),4),\"\")","v":""}]
[null,"Molybdän","Materialien (nicht Bestandteil des Produkts)",{"$f":"IFERROR(INDEX(TabelleNMB[[Materialien]:[KEA]],(MATCH(TabelleKEA[[#This Row],[KEA]],TabelleKEA[KEA],0)),3),\"\")","v":""},null,null,null,null,"Molybdän","Materialien (nicht Bestandteil des Produkts)",{"$f":"IFERROR(INDEX(TabelleNMB[[Materialien]:[KRA]],(MATCH(TabelleKRA[[#This Row],[KRA]],TabelleKRA[KRA],0)),4),\"\")","v":""}]
[null,"Molybdänerz","Materialien (nicht Bestandteil des Produkts)",{"$f":"IFERROR(INDEX(TabelleNMB[[Materialien]:[KEA]],(MATCH(TabelleKEA[[#This Row],[KEA]],TabelleKEA[KEA],0)),3),\"\")","v":""},null,null,null,null,"Molybdänerz","Materialien (nicht Bestandteil des Produkts)",{"$f":"IFERROR(INDEX(TabelleNMB[[Materialien]:[KRA]],(MATCH(TabelleKRA[[#This Row],[KRA]],TabelleKRA[KRA],0)),4),\"\")","v":""}]
[null,"Nadelholz","Materialien (nicht Bestandteil des Produkts)",{"$f":"IFERROR(INDEX(TabelleNMB[[Materialien]:[KEA]],(MATCH(TabelleKEA[[#This Row],[KEA]],TabelleKEA[KEA],0)),3),\"\")","v":""},null,null,null,null,"Nadelholz","Materialien (nicht Bestandteil des Produkts)",{"$f":"IFERROR(INDEX(TabelleNMB[[Materialien]:[KRA]],(MATCH(TabelleKRA[[#This Row],[KRA]],TabelleKRA[KRA],0)),4),\"\")","v":""}]
[null,"Naphtha","Materialien (nicht Bestandteil des Produkts)",{"$f":"IFERROR(INDEX(TabelleNMB[[Materialien]:[KEA]],(MATCH(TabelleKEA[[#This Row],[KEA]],TabelleKEA[KEA],0)),3),\"\")","v":""},null,null,null,null,"Naphtha","Materialien (nicht Bestandteil des Produkts)",{"$f":"IFERROR(INDEX(TabelleNMB[[Materialien]:[KRA]],(MATCH(TabelleKRA[[#This Row],[KRA]],TabelleKRA[KRA],0)),4),\"\")","v":""}]
[null,"Natronlauge","Materialien (nicht Bestandteil des Produkts)",{"$f":"IFERROR(INDEX(TabelleNMB[[Materialien]:[KEA]],(MATCH(TabelleKEA[[#This Row],[KEA]],TabelleKEA[KEA],0)),3),\"\")","v":""},null,null,null,null,"Natronlauge","Materialien (nicht Bestandteil des Produkts)",{"$f":"IFERROR(INDEX(TabelleNMB[[Materialien]:[KRA]],(MATCH(TabelleKRA[[#This Row],[KRA]],TabelleKRA[KRA],0)),4),\"\")","v":""}]
[null,"Naturstein, ungebrochen","Materialien (nicht Bestandteil des Produkts)",{"$f":"IFERROR(INDEX(TabelleNMB[[Materialien]:[KEA]],(MATCH(TabelleKEA[[#This Row],[KEA]],TabelleKEA[KEA],0)),3),\"\")","v":""},null,null,null,null,"Naturstein, ungebrochen","Materialien (nicht Bestandteil des Produkts)",{"$f":"IFERROR(INDEX(TabelleNMB[[Materialien]:[KRA]],(MATCH(TabelleKRA[[#This Row],[KRA]],TabelleKRA[KRA],0)),4),\"\")","v":""}]
[null,"Nickel","Materialien (nicht Bestandteil des Produkts)",{"$f":"IFERROR(INDEX(TabelleNMB[[Materialien]:[KEA]],(MATCH(TabelleKEA[[#This Row],[KEA]],TabelleKEA[KEA],0)),3),\"\")","v":""},null,null,null,null,"Nickel","Materialien (nicht Bestandteil des Produkts)",{"$f":"IFERROR(INDEX(TabelleNMB[[Materialien]:[KRA]],(MATCH(TabelleKRA[[#This Row],[KRA]],TabelleKRA[KRA],0)),4),\"\")","v":""}]
[null,"Niob- und Tantalkonzentrate","Materialien (nicht Bestandteil des Produkts)",{"$f":"IFERROR(INDEX(TabelleNMB[[Materialien]:[KEA]],(MATCH(TabelleKEA[[#This Row],[KEA]],TabelleKEA[KEA],0)),3),\"\")","v":""},null,null,null,null,"Niob- und Tantalkonzentrate","Materialien (nicht Bestandteil des Produkts)",{"$f":"IFERROR(INDEX(TabelleNMB[[Materialien]:[KRA]],(MATCH(TabelleKRA[[#This Row],[KRA]],TabelleKRA[KRA],0)),4),\"\")","v":""}]
[null,"Obst (Apfel)","Materialien (nicht Bestandteil des Produkts)",{"$f":"IFERROR(INDEX(TabelleNMB[[Materialien]:[KEA]],(MATCH(TabelleKEA[[#This Row],[KEA]],TabelleKEA[KEA],0)),3),\"\")","v":""},null,null,null,null,"Obst (Apfel)","Materialien (nicht Bestandteil des Produkts)",{"$f":"IFERROR(INDEX(TabelleNMB[[Materialien]:[KRA]],(MATCH(TabelleKRA[[#This Row],[KRA]],TabelleKRA[KRA],0)),4),\"\")","v":""}]
[null,"Osmium","Materialien (nicht Bestandteil des Produkts)",{"$f":"IFERROR(INDEX(TabelleNMB[[Materialien]:[KEA]],(MATCH(TabelleKEA[[#This Row],[KEA]],TabelleKEA[KEA],0)),3),\"\")","v":""},null,null,null,null,"Osmium","Materialien (nicht Bestandteil des Produkts)",{"$f":"IFERROR(INDEX(TabelleNMB[[Materialien]:[KRA]],(MATCH(TabelleKRA[[#This Row],[KRA]],TabelleKRA[KRA],0)),4),\"\")","v":""}]
[null,"Palladium, Russland","Materialien (nicht Bestandteil des Produkts)",{"$f":"IFERROR(INDEX(TabelleNMB[[Materialien]:[KEA]],(MATCH(TabelleKEA[[#This Row],[KEA]],TabelleKEA[KEA],0)),3),\"\")","v":""},null,null,null,null,"Palladium, Russland","Materialien (nicht Bestandteil des Produkts)",{"$f":"IFERROR(INDEX(TabelleNMB[[Materialien]:[KRA]],(MATCH(TabelleKRA[[#This Row],[KRA]],TabelleKRA[KRA],0)),4),\"\")","v":""}]
[null,"Palladium, Südafrika","Materialien (nicht Bestandteil des Produkts)",{"$f":"IFERROR(INDEX(TabelleNMB[[Materialien]:[KEA]],(MATCH(TabelleKEA[[#This Row],[KEA]],TabelleKEA[KEA],0)),3),\"\")","v":""},null,null,null,null,"Palladium, Südafrika","Materialien (nicht Bestandteil des Produkts)",{"$f":"IFERROR(INDEX(TabelleNMB[[Materialien]:[KRA]],(MATCH(TabelleKRA[[#This Row],[KRA]],TabelleKRA[KRA],0)),4),\"\")","v":""}]
[null,"Pegmatitsand","Materialien (nicht Bestandteil des Produkts)",{"$f":"IFERROR(INDEX(TabelleNMB[[Materialien]:[KEA]],(MATCH(TabelleKEA[[#This Row],[KEA]],TabelleKEA[KEA],0)),3),\"\")","v":""},null,null,null,null,"Pegmatitsand","Materialien (nicht Bestandteil des Produkts)",{"$f":"IFERROR(INDEX(TabelleNMB[[Materialien]:[KRA]],(MATCH(TabelleKRA[[#This Row],[KRA]],TabelleKRA[KRA],0)),4),\"\")","v":""}]
[null,"Perlit","Materialien (nicht Bestandteil des Produkts)",{"$f":"IFERROR(INDEX(TabelleNMB[[Materialien]:[KEA]],(MATCH(TabelleKEA[[#This Row],[KEA]],TabelleKEA[KEA],0)),3),\"\")","v":""},null,null,null,null,"Perlit","Materialien (nicht Bestandteil des Produkts)",{"$f":"IFERROR(INDEX(TabelleNMB[[Materialien]:[KRA]],(MATCH(TabelleKRA[[#This Row],[KRA]],TabelleKRA[KRA],0)),4),\"\")","v":""}]
[null,"PET","Materialien (nicht Bestandteil des Produkts)",{"$f":"IFERROR(INDEX(TabelleNMB[[Materialien]:[KEA]],(MATCH(TabelleKEA[[#This Row],[KEA]],TabelleKEA[KEA],0)),3),\"\")","v":""},null,null,null,null,"PET","Materialien (nicht Bestandteil des Produkts)",{"$f":"IFERROR(INDEX(TabelleNMB[[Materialien]:[KRA]],(MATCH(TabelleKRA[[#This Row],[KRA]],TabelleKRA[KRA],0)),4),\"\")","v":""}]
[null,"Phosphat, Marokko","Materialien (nicht Bestandteil des Produkts)",{"$f":"IFERROR(INDEX(TabelleNMB[[Materialien]:[KEA]],(MATCH(TabelleKEA[[#This Row],[KEA]],TabelleKEA[KEA],0)),3),\"\")","v":""},null,null,null,null,"Phosphat, Marokko","Materialien (nicht Bestandteil des Produkts)",{"$f":"IFERROR(INDEX(TabelleNMB[[Materialien]:[KRA]],(MATCH(TabelleKRA[[#This Row],[KRA]],TabelleKRA[KRA],0)),4),\"\")","v":""}]
[null,"Phosphat, USA","Materialien (nicht Bestandteil des Produkts)",{"$f":"IFERROR(INDEX(TabelleNMB[[Materialien]:[KEA]],(MATCH(TabelleKEA[[#This Row],[KEA]],TabelleKEA[KEA],0)),3),\"\")","v":""},null,null,null,null,"Phosphat, USA","Materialien (nicht Bestandteil des Produkts)",{"$f":"IFERROR(INDEX(TabelleNMB[[Materialien]:[KRA]],(MATCH(TabelleKRA[[#This Row],[KRA]],TabelleKRA[KRA],0)),4),\"\")","v":""}]
[null,"Phosphor, weiß","Materialien (nicht Bestandteil des Produkts)",{"$f":"IFERROR(INDEX(TabelleNMB[[Materialien]:[KEA]],(MATCH(TabelleKEA[[#This Row],[KEA]],TabelleKEA[KEA],0)),3),\"\")","v":""},null,null,null,null,"Phosphor, weiß","Materialien (nicht Bestandteil des Produkts)",{"$f":"IFERROR(INDEX(TabelleNMB[[Materialien]:[KRA]],(MATCH(TabelleKRA[[#This Row],[KRA]],TabelleKRA[KRA],0)),4),\"\")","v":""}]
[null,"PKW","Materialien (nicht Bestandteil des Produkts)",{"$f":"IFERROR(INDEX(TabelleNMB[[Materialien]:[KEA]],(MATCH(TabelleKEA[[#This Row],[KEA]],TabelleKEA[KEA],0)),3),\"\")","v":""},null,null,null,null,"PKW","Materialien (nicht Bestandteil des Produkts)",{"$f":"IFERROR(INDEX(TabelleNMB[[Materialien]:[KRA]],(MATCH(TabelleKRA[[#This Row],[KRA]],TabelleKRA[KRA],0)),4),\"\")","v":""}]
[null,"Platin, Russland","Materialien (nicht Bestandteil des Produkts)",{"$f":"IFERROR(INDEX(TabelleNMB[[Materialien]:[KEA]],(MATCH(TabelleKEA[[#This Row],[KEA]],TabelleKEA[KEA],0)),3),\"\")","v":""},null,null,null,null,"Platin, Russland","Materialien (nicht Bestandteil des Produkts)",{"$f":"IFERROR(INDEX(TabelleNMB[[Materialien]:[KRA]],(MATCH(TabelleKRA[[#This Row],[KRA]],TabelleKRA[KRA],0)),4),\"\")","v":""}]
[null,"Platin, Südafrika","Materialien (nicht Bestandteil des Produkts)",{"$f":"IFERROR(INDEX(TabelleNMB[[Materialien]:[KEA]],(MATCH(TabelleKEA[[#This Row],[KEA]],TabelleKEA[KEA],0)),3),\"\")","v":""},null,null,null,null,"Platin, Südafrika","Materialien (nicht Bestandteil des Produkts)",{"$f":"IFERROR(INDEX(TabelleNMB[[Materialien]:[KRA]],(MATCH(TabelleKRA[[#This Row],[KRA]],TabelleKRA[KRA],0)),4),\"\")","v":""}]
[null,"PVC","Materialien (nicht Bestandteil des Produkts)",{"$f":"IFERROR(INDEX(TabelleNMB[[Materialien]:[KEA]],(MATCH(TabelleKEA[[#This Row],[KEA]],TabelleKEA[KEA],0)),3),\"\")","v":""},null,null,null,null,"PVC","Materialien (nicht Bestandteil des Produkts)",{"$f":"IFERROR(INDEX(TabelleNMB[[Materialien]:[KRA]],(MATCH(TabelleKRA[[#This Row],[KRA]],TabelleKRA[KRA],0)),4),\"\")","v":""}]
[null,"Quarz, Quarzite","Materialien (nicht Bestandteil des Produkts)",{"$f":"IFERROR(INDEX(TabelleNMB[[Materialien]:[KEA]],(MATCH(TabelleKEA[[#This Row],[KEA]],TabelleKEA[KEA],0)),3),\"\")","v":""},null,null,null,null,"Quarz, Quarzite","Materialien (nicht Bestandteil des Produkts)",{"$f":"IFERROR(INDEX(TabelleNMB[[Materialien]:[KRA]],(MATCH(TabelleKRA[[#This Row],[KRA]],TabelleKRA[KRA],0)),4),\"\")","v":""}]
[null,"Quarzsand","Materialien (nicht Bestandteil des Produkts)",{"$f":"IFERROR(INDEX(TabelleNMB[[Materialien]:[KEA]],(MATCH(TabelleKEA[[#This Row],[KEA]],TabelleKEA[KEA],0)),3),\"\")","v":""},null,null,null,null,"Quarzsand","Materialien (nicht Bestandteil des Produkts)",{"$f":"IFERROR(INDEX(TabelleNMB[[Materialien]:[KRA]],(MATCH(TabelleKRA[[#This Row],[KRA]],TabelleKRA[KRA],0)),4),\"\")","v":""}]
[null,"Quecksilber","Materialien (nicht Bestandteil des Produkts)",{"$f":"IFERROR(INDEX(TabelleNMB[[Materialien]:[KEA]],(MATCH(TabelleKEA[[#This Row],[KEA]],TabelleKEA[KEA],0)),3),\"\")","v":""},null,null,null,null,"Quecksilber","Materialien (nicht Bestandteil des Produkts)",{"$f":"IFERROR(INDEX(TabelleNMB[[Materialien]:[KRA]],(MATCH(TabelleKRA[[#This Row],[KRA]],TabelleKRA[KRA],0)),4),\"\")","v":""}]
[null,"Rhodium, Russland","Materialien (nicht Bestandteil des Produkts)",{"$f":"IFERROR(INDEX(TabelleNMB[[Materialien]:[KEA]],(MATCH(TabelleKEA[[#This Row],[KEA]],TabelleKEA[KEA],0)),3),\"\")","v":""},null,null,null,null,"Rhodium, Russland","Materialien (nicht Bestandteil des Produkts)",{"$f":"IFERROR(INDEX(TabelleNMB[[Materialien]:[KRA]],(MATCH(TabelleKRA[[#This Row],[KRA]],TabelleKRA[KRA],0)),4),\"\")","v":""}]
[null,"Rhodium, Südafrika","Materialien (nicht Bestandteil des Produkts)",{"$f":"IFERROR(INDEX(TabelleNMB[[Materialien]:[KEA]],(MATCH(TabelleKEA[[#This Row],[KEA]],TabelleKEA[KEA],0)),3),\"\")","v":""},null,null,null,null,"Rhodium, Südafrika","Materialien (nicht Bestandteil des Produkts)",{"$f":"IFERROR(INDEX(TabelleNMB[[Materialien]:[KRA]],(MATCH(TabelleKRA[[#This Row],[KRA]],TabelleKRA[KRA],0)),4),\"\")","v":""}]
[null,"Ruthenium","Materialien (nicht Bestandteil des Produkts)",{"$f":"IFERROR(INDEX(TabelleNMB[[Materialien]:[KEA]],(MATCH(TabelleKEA[[#This Row],[KEA]],TabelleKEA[KEA],0)),3),\"\")","v":""},null,null,null,null,"Ruthenium","Materialien (nicht Bestandteil des Produkts)",{"$f":"IFERROR(INDEX(TabelleNMB[[Materialien]:[KRA]],(MATCH(TabelleKRA[[#This Row],[KRA]],TabelleKRA[KRA],0)),4),\"\")","v":""}]
[null,"Ruß","Materialien (nicht Bestandteil des Produkts)",{"$f":"IFERROR(INDEX(TabelleNMB[[Materialien]:[KEA]],(MATCH(TabelleKEA[[#This Row],[KEA]],TabelleKEA[KEA],0)),3),\"\")","v":""},null,null,null,null,"Ruß","Materialien (nicht Bestandteil des Produkts)",{"$f":"IFERROR(INDEX(TabelleNMB[[Materialien]:[KRA]],(MATCH(TabelleKRA[[#This Row],[KRA]],TabelleKRA[KRA],0)),4),\"\")","v":""}]
[null,"Rübenblatt","Materialien (nicht Bestandteil des Produkts)",{"$f":"IFERROR(INDEX(TabelleNMB[[Materialien]:[KEA]],(MATCH(TabelleKEA[[#This Row],[KEA]],TabelleKEA[KEA],0)),3),\"\")","v":""},null,null,null,null,"Rübenblatt","Materialien (nicht Bestandteil des Produkts)",{"$f":"IFERROR(INDEX(TabelleNMB[[Materialien]:[KRA]],(MATCH(TabelleKRA[[#This Row],[KRA]],TabelleKRA[KRA],0)),4),\"\")","v":""}]
[null,"Sand (Bausand)","Materialien (nicht Bestandteil des Produkts)",{"$f":"IFERROR(INDEX(TabelleNMB[[Materialien]:[KEA]],(MATCH(TabelleKEA[[#This Row],[KEA]],TabelleKEA[KEA],0)),3),\"\")","v":""},null,null,null,null,"Sand (Bausand)","Materialien (nicht Bestandteil des Produkts)",{"$f":"IFERROR(INDEX(TabelleNMB[[Materialien]:[KRA]],(MATCH(TabelleKRA[[#This Row],[KRA]],TabelleKRA[KRA],0)),4),\"\")","v":""}]
[null,"Sauerstoff, flüssig","Materialien (nicht Bestandteil des Produkts)",{"$f":"IFERROR(INDEX(TabelleNMB[[Materialien]:[KEA]],(MATCH(TabelleKEA[[#This Row],[KEA]],TabelleKEA[KEA],0)),3),\"\")","v":""},null,null,null,null,"Sauerstoff, flüssig","Materialien (nicht Bestandteil des Produkts)",{"$f":"IFERROR(INDEX(TabelleNMB[[Materialien]:[KRA]],(MATCH(TabelleKRA[[#This Row],[KRA]],TabelleKRA[KRA],0)),4),\"\")","v":""}]
[null,"Schamottstein","Materialien (nicht Bestandteil des Produkts)",{"$f":"IFERROR(INDEX(TabelleNMB[[Materialien]:[KEA]],(MATCH(TabelleKEA[[#This Row],[KEA]],TabelleKEA[KEA],0)),3),\"\")","v":""},null,null,null,null,"Schamottstein","Materialien (nicht Bestandteil des Produkts)",{"$f":"IFERROR(INDEX(TabelleNMB[[Materialien]:[KRA]],(MATCH(TabelleKRA[[#This Row],[KRA]],TabelleKRA[KRA],0)),4),\"\")","v":""}]
[null,"Schiefer","Materialien (nicht Bestandteil des Produkts)",{"$f":"IFERROR(INDEX(TabelleNMB[[Materialien]:[KEA]],(MATCH(TabelleKEA[[#This Row],[KEA]],TabelleKEA[KEA],0)),3),\"\")","v":""},null,null,null,null,"Schiefer","Materialien (nicht Bestandteil des Produkts)",{"$f":"IFERROR(INDEX(TabelleNMB[[Materialien]:[KRA]],(MATCH(TabelleKRA[[#This Row],[KRA]],TabelleKRA[KRA],0)),4),\"\")","v":""}]
[null,"Schmieröl","Materialien (nicht Bestandteil des Produkts)",{"$f":"IFERROR(INDEX(TabelleNMB[[Materialien]:[KEA]],(MATCH(TabelleKEA[[#This Row],[KEA]],TabelleKEA[KEA],0)),3),\"\")","v":""},null,null,null,null,"Schmieröl","Materialien (nicht Bestandteil des Produkts)",{"$f":"IFERROR(INDEX(TabelleNMB[[Materialien]:[KRA]],(MATCH(TabelleKRA[[#This Row],[KRA]],TabelleKRA[KRA],0)),4),\"\")","v":""}]
[null,"Schmirgel, Korund, Granat (Schleifmittel)","Materialien (nicht Bestandteil des Produkts)",{"$f":"IFERROR(INDEX(TabelleNMB[[Materialien]:[KEA]],(MATCH(TabelleKEA[[#This Row],[KEA]],TabelleKEA[KEA],0)),3),\"\")","v":""},null,null,null,null,"Schmirgel, Korund, Granat (Schleifmittel)","Materialien (nicht Bestandteil des Produkts)",{"$f":"IFERROR(INDEX(TabelleNMB[[Materialien]:[KRA]],(MATCH(TabelleKRA[[#This Row],[KRA]],TabelleKRA[KRA],0)),4),\"\")","v":""}]
[null,"Schwefel","Materialien (nicht Bestandteil des Produkts)",{"$f":"IFERROR(INDEX(TabelleNMB[[Materialien]:[KEA]],(MATCH(TabelleKEA[[#This Row],[KEA]],TabelleKEA[KEA],0)),3),\"\")","v":""},null,null,null,null,"Schwefel","Materialien (nicht Bestandteil des Produkts)",{"$f":"IFERROR(INDEX(TabelleNMB[[Materialien]:[KRA]],(MATCH(TabelleKRA[[#This Row],[KRA]],TabelleKRA[KRA],0)),4),\"\")","v":""}]
[null,"Selen","Materialien (nicht Bestandteil des Produkts)",{"$f":"IFERROR(INDEX(TabelleNMB[[Materialien]:[KEA]],(MATCH(TabelleKEA[[#This Row],[KEA]],TabelleKEA[KEA],0)),3),\"\")","v":""},null,null,null,null,"Selen","Materialien (nicht Bestandteil des Produkts)",{"$f":"IFERROR(INDEX(TabelleNMB[[Materialien]:[KRA]],(MATCH(TabelleKRA[[#This Row],[KRA]],TabelleKRA[KRA],0)),4),\"\")","v":""}]
[null,"Siedesalz","Materialien (nicht Bestandteil des Produkts)",{"$f":"IFERROR(INDEX(TabelleNMB[[Materialien]:[KEA]],(MATCH(TabelleKEA[[#This Row],[KEA]],TabelleKEA[KEA],0)),3),\"\")","v":""},null,null,null,null,"Siedesalz","Materialien (nicht Bestandteil des Produkts)",{"$f":"IFERROR(INDEX(TabelleNMB[[Materialien]:[KRA]],(MATCH(TabelleKRA[[#This Row],[KRA]],TabelleKRA[KRA],0)),4),\"\")","v":""}]
[null,"Silber","Materialien (nicht Bestandteil des Produkts)",{"$f":"IFERROR(INDEX(TabelleNMB[[Materialien]:[KEA]],(MATCH(TabelleKEA[[#This Row],[KEA]],TabelleKEA[KEA],0)),3),\"\")","v":""},null,null,null,null,"Silber","Materialien (nicht Bestandteil des Produkts)",{"$f":"IFERROR(INDEX(TabelleNMB[[Materialien]:[KRA]],(MATCH(TabelleKRA[[#This Row],[KRA]],TabelleKRA[KRA],0)),4),\"\")","v":""}]
[null,"Silizium","Materialien (nicht Bestandteil des Produkts)",{"$f":"IFERROR(INDEX(TabelleNMB[[Materialien]:[KEA]],(MATCH(TabelleKEA[[#This Row],[KEA]],TabelleKEA[KEA],0)),3),\"\")","v":""},null,null,null,null,"Silizium","Materialien (nicht Bestandteil des Produkts)",{"$f":"IFERROR(INDEX(TabelleNMB[[Materialien]:[KRA]],(MATCH(TabelleKRA[[#This Row],[KRA]],TabelleKRA[KRA],0)),4),\"\")","v":""}]
[null,"Sillimanit","Materialien (nicht Bestandteil des Produkts)",{"$f":"IFERROR(INDEX(TabelleNMB[[Materialien]:[KEA]],(MATCH(TabelleKEA[[#This Row],[KEA]],TabelleKEA[KEA],0)),3),\"\")","v":""},null,null,null,null,"Sillimanit","Materialien (nicht Bestandteil des Produkts)",{"$f":"IFERROR(INDEX(TabelleNMB[[Materialien]:[KRA]],(MATCH(TabelleKRA[[#This Row],[KRA]],TabelleKRA[KRA],0)),4),\"\")","v":""}]
[null,"Soda","Materialien (nicht Bestandteil des Produkts)",{"$f":"IFERROR(INDEX(TabelleNMB[[Materialien]:[KEA]],(MATCH(TabelleKEA[[#This Row],[KEA]],TabelleKEA[KEA],0)),3),\"\")","v":""},null,null,null,null,"Soda","Materialien (nicht Bestandteil des Produkts)",{"$f":"IFERROR(INDEX(TabelleNMB[[Materialien]:[KRA]],(MATCH(TabelleKRA[[#This Row],[KRA]],TabelleKRA[KRA],0)),4),\"\")","v":""}]
[null,"Spanplatte","Materialien (nicht Bestandteil des Produkts)",{"$f":"IFERROR(INDEX(TabelleNMB[[Materialien]:[KEA]],(MATCH(TabelleKEA[[#This Row],[KEA]],TabelleKEA[KEA],0)),3),\"\")","v":""},null,null,null,null,"Spanplatte","Materialien (nicht Bestandteil des Produkts)",{"$f":"IFERROR(INDEX(TabelleNMB[[Materialien]:[KRA]],(MATCH(TabelleKRA[[#This Row],[KRA]],TabelleKRA[KRA],0)),4),\"\")","v":""}]
[null,"Speckstein","Materialien (nicht Bestandteil des Produkts)",{"$f":"IFERROR(INDEX(TabelleNMB[[Materialien]:[KEA]],(MATCH(TabelleKEA[[#This Row],[KEA]],TabelleKEA[KEA],0)),3),\"\")","v":""},null,null,null,null,"Speckstein","Materialien (nicht Bestandteil des Produkts)",{"$f":"IFERROR(INDEX(TabelleNMB[[Materialien]:[KRA]],(MATCH(TabelleKRA[[#This Row],[KRA]],TabelleKRA[KRA],0)),4),\"\")","v":""}]
[null,"Splitt, Körnungen aus Marmor","Materialien (nicht Bestandteil des Produkts)",{"$f":"IFERROR(INDEX(TabelleNMB[[Materialien]:[KEA]],(MATCH(TabelleKEA[[#This Row],[KEA]],TabelleKEA[KEA],0)),3),\"\")","v":""},null,null,null,null,"Splitt, Körnungen aus Marmor","Materialien (nicht Bestandteil des Produkts)",{"$f":"IFERROR(INDEX(TabelleNMB[[Materialien]:[KRA]],(MATCH(TabelleKRA[[#This Row],[KRA]],TabelleKRA[KRA],0)),4),\"\")","v":""}]
[null,"Stahl (Elektrostahl)","Materialien (nicht Bestandteil des Produkts)",{"$f":"IFERROR(INDEX(TabelleNMB[[Materialien]:[KEA]],(MATCH(TabelleKEA[[#This Row],[KEA]],TabelleKEA[KEA],0)),3),\"\")","v":""},null,null,null,null,"Stahl (Elektrostahl)","Materialien (nicht Bestandteil des Produkts)",{"$f":"IFERROR(INDEX(TabelleNMB[[Materialien]:[KRA]],(MATCH(TabelleKRA[[#This Row],[KRA]],TabelleKRA[KRA],0)),4),\"\")","v":""}]
[null,"Stahl (Konvertstahl)","Materialien (nicht Bestandteil des Produkts)",{"$f":"IFERROR(INDEX(TabelleNMB[[Materialien]:[KEA]],(MATCH(TabelleKEA[[#This Row],[KEA]],TabelleKEA[KEA],0)),3),\"\")","v":""},null,null,null,null,"Stahl (Konvertstahl)","Materialien (nicht Bestandteil des Produkts)",{"$f":"IFERROR(INDEX(TabelleNMB[[Materialien]:[KRA]],(MATCH(TabelleKRA[[#This Row],[KRA]],TabelleKRA[KRA],0)),4),\"\")","v":""}]
[null,"Stahlblech (ohne Prozessschritte für Stahlherstellung)","Materialien (nicht Bestandteil des Produkts)",{"$f":"IFERROR(INDEX(TabelleNMB[[Materialien]:[KEA]],(MATCH(TabelleKEA[[#This Row],[KEA]],TabelleKEA[KEA],0)),3),\"\")","v":""},null,null,null,null,"Stahlblech (ohne Prozessschritte für Stahlherstellung)","Materialien (nicht Bestandteil des Produkts)",{"$f":"IFERROR(INDEX(TabelleNMB[[Materialien]:[KRA]],(MATCH(TabelleKRA[[#This Row],[KRA]],TabelleKRA[KRA],0)),4),\"\")","v":""}]
[null,"Stahlblech verzinkt","Materialien (nicht Bestandteil des Produkts)",{"$f":"IFERROR(INDEX(TabelleNMB[[Materialien]:[KEA]],(MATCH(TabelleKEA[[#This Row],[KEA]],TabelleKEA[KEA],0)),3),\"\")","v":""},null,null,null,null,"Stahlblech verzinkt","Materialien (nicht Bestandteil des Produkts)",{"$f":"IFERROR(INDEX(TabelleNMB[[Materialien]:[KRA]],(MATCH(TabelleKRA[[#This Row],[KRA]],TabelleKRA[KRA],0)),4),\"\")","v":""}]
[null,"Steinsalz","Materialien (nicht Bestandteil des Produkts)",{"$f":"IFERROR(INDEX(TabelleNMB[[Materialien]:[KEA]],(MATCH(TabelleKEA[[#This Row],[KEA]],TabelleKEA[KEA],0)),3),\"\")","v":""},null,null,null,null,"Steinsalz","Materialien (nicht Bestandteil des Produkts)",{"$f":"IFERROR(INDEX(TabelleNMB[[Materialien]:[KRA]],(MATCH(TabelleKRA[[#This Row],[KRA]],TabelleKRA[KRA],0)),4),\"\")","v":""}]
[null,"Stickstoff, flüssig","Materialien (nicht Bestandteil des Produkts)",{"$f":"IFERROR(INDEX(TabelleNMB[[Materialien]:[KEA]],(MATCH(TabelleKEA[[#This Row],[KEA]],TabelleKEA[KEA],0)),3),\"\")","v":""},null,null,null,null,"Stickstoff, flüssig","Materialien (nicht Bestandteil des Produkts)",{"$f":"IFERROR(INDEX(TabelleNMB[[Materialien]:[KRA]],(MATCH(TabelleKRA[[#This Row],[KRA]],TabelleKRA[KRA],0)),4),\"\")","v":""}]
[null,"Stroh (Winterweizen)","Materialien (nicht Bestandteil des Produkts)",{"$f":"IFERROR(INDEX(TabelleNMB[[Materialien]:[KEA]],(MATCH(TabelleKEA[[#This Row],[KEA]],TabelleKEA[KEA],0)),3),\"\")","v":""},null,null,null,null,"Stroh (Winterweizen)","Materialien (nicht Bestandteil des Produkts)",{"$f":"IFERROR(INDEX(TabelleNMB[[Materialien]:[KRA]],(MATCH(TabelleKRA[[#This Row],[KRA]],TabelleKRA[KRA],0)),4),\"\")","v":""}]
[null,"Styrol","Materialien (nicht Bestandteil des Produkts)",{"$f":"IFERROR(INDEX(TabelleNMB[[Materialien]:[KEA]],(MATCH(TabelleKEA[[#This Row],[KEA]],TabelleKEA[KEA],0)),3),\"\")","v":""},null,null,null,null,"Styrol","Materialien (nicht Bestandteil des Produkts)",{"$f":"IFERROR(INDEX(TabelleNMB[[Materialien]:[KRA]],(MATCH(TabelleKRA[[#This Row],[KRA]],TabelleKRA[KRA],0)),4),\"\")","v":""}]
[null,"Talk, Talkum","Materialien (nicht Bestandteil des Produkts)",{"$f":"IFERROR(INDEX(TabelleNMB[[Materialien]:[KEA]],(MATCH(TabelleKEA[[#This Row],[KEA]],TabelleKEA[KEA],0)),3),\"\")","v":""},null,null,null,null,"Talk, Talkum","Materialien (nicht Bestandteil des Produkts)",{"$f":"IFERROR(INDEX(TabelleNMB[[Materialien]:[KRA]],(MATCH(TabelleKRA[[#This Row],[KRA]],TabelleKRA[KRA],0)),4),\"\")","v":""}]
[null,"Tantal","Materialien (nicht Bestandteil des Produkts)",{"$f":"IFERROR(INDEX(TabelleNMB[[Materialien]:[KEA]],(MATCH(TabelleKEA[[#This Row],[KEA]],TabelleKEA[KEA],0)),3),\"\")","v":""},null,null,null,null,"Tantal","Materialien (nicht Bestandteil des Produkts)",{"$f":"IFERROR(INDEX(TabelleNMB[[Materialien]:[KRA]],(MATCH(TabelleKRA[[#This Row],[KRA]],TabelleKRA[KRA],0)),4),\"\")","v":""}]
[null,"Thallium","Materialien (nicht Bestandteil des Produkts)",{"$f":"IFERROR(INDEX(TabelleNMB[[Materialien]:[KEA]],(MATCH(TabelleKEA[[#This Row],[KEA]],TabelleKEA[KEA],0)),3),\"\")","v":""},null,null,null,null,"Thallium","Materialien (nicht Bestandteil des Produkts)",{"$f":"IFERROR(INDEX(TabelleNMB[[Materialien]:[KRA]],(MATCH(TabelleKRA[[#This Row],[KRA]],TabelleKRA[KRA],0)),4),\"\")","v":""}]
[null,"Titan","Materialien (nicht Bestandteil des Produkts)",{"$f":"IFERROR(INDEX(TabelleNMB[[Materialien]:[KEA]],(MATCH(TabelleKEA[[#This Row],[KEA]],TabelleKEA[KEA],0)),3),\"\")","v":""},null,null,null,null,"Titan","Materialien (nicht Bestandteil des Produkts)",{"$f":"IFERROR(INDEX(TabelleNMB[[Materialien]:[KRA]],(MATCH(TabelleKRA[[#This Row],[KRA]],TabelleKRA[KRA],0)),4),\"\")","v":""}]
[null,"Torf","Materialien (nicht Bestandteil des Produkts)",{"$f":"IFERROR(INDEX(TabelleNMB[[Materialien]:[KEA]],(MATCH(TabelleKEA[[#This Row],[KEA]],TabelleKEA[KEA],0)),3),\"\")","v":""},null,null,null,null,"Torf","Materialien (nicht Bestandteil des Produkts)",{"$f":"IFERROR(INDEX(TabelleNMB[[Materialien]:[KRA]],(MATCH(TabelleKRA[[#This Row],[KRA]],TabelleKRA[KRA],0)),4),\"\")","v":""}]
[null,"Trass","Materialien (nicht Bestandteil des Produkts)",{"$f":"IFERROR(INDEX(TabelleNMB[[Materialien]:[KEA]],(MATCH(TabelleKEA[[#This Row],[KEA]],TabelleKEA[KEA],0)),3),\"\")","v":""},null,null,null,null,"Trass","Materialien (nicht Bestandteil des Produkts)",{"$f":"IFERROR(INDEX(TabelleNMB[[Materialien]:[KRA]],(MATCH(TabelleKRA[[#This Row],[KRA]],TabelleKRA[KRA],0)),4),\"\")","v":""}]
[null,"Tuffstein","Materialien (nicht Bestandteil des Produkts)",{"$f":"IFERROR(INDEX(TabelleNMB[[Materialien]:[KEA]],(MATCH(TabelleKEA[[#This Row],[KEA]],TabelleKEA[KEA],0)),3),\"\")","v":""},null,null,null,null,"Tuffstein","Materialien (nicht Bestandteil des Produkts)",{"$f":"IFERROR(INDEX(TabelleNMB[[Materialien]:[KRA]],(MATCH(TabelleKRA[[#This Row],[KRA]],TabelleKRA[KRA],0)),4),\"\")","v":""}]
[null,"Uran","Materialien (nicht Bestandteil des Produkts)",{"$f":"IFERROR(INDEX(TabelleNMB[[Materialien]:[KEA]],(MATCH(TabelleKEA[[#This Row],[KEA]],TabelleKEA[KEA],0)),3),\"\")","v":""},null,null,null,null,"Uran","Materialien (nicht Bestandteil des Produkts)",{"$f":"IFERROR(INDEX(TabelleNMB[[Materialien]:[KRA]],(MATCH(TabelleKRA[[#This Row],[KRA]],TabelleKRA[KRA],0)),4),\"\")","v":""}]
[null,"Vermikulit","Materialien (nicht Bestandteil des Produkts)",{"$f":"IFERROR(INDEX(TabelleNMB[[Materialien]:[KEA]],(MATCH(TabelleKEA[[#This Row],[KEA]],TabelleKEA[KEA],0)),3),\"\")","v":""},null,null,null,null,"Vermikulit","Materialien (nicht Bestandteil des Produkts)",{"$f":"IFERROR(INDEX(TabelleNMB[[Materialien]:[KRA]],(MATCH(TabelleKRA[[#This Row],[KRA]],TabelleKRA[KRA],0)),4),\"\")","v":""}]
[null,"Wafer","Materialien (nicht Bestandteil des Produkts)",{"$f":"IFERROR(INDEX(TabelleNMB[[Materialien]:[KEA]],(MATCH(TabelleKEA[[#This Row],[KEA]],TabelleKEA[KEA],0)),3),\"\")","v":""},null,null,null,null,"Wafer","Materialien (nicht Bestandteil des Produkts)",{"$f":"IFERROR(INDEX(TabelleNMB[[Materialien]:[KRA]],(MATCH(TabelleKRA[[#This Row],[KRA]],TabelleKRA[KRA],0)),4),\"\")","v":""}]
[null,"Wasserglas","Materialien (nicht Bestandteil des Produkts)",{"$f":"IFERROR(INDEX(TabelleNMB[[Materialien]:[KEA]],(MATCH(TabelleKEA[[#This Row],[KEA]],TabelleKEA[KEA],0)),3),\"\")","v":""},null,null,null,null,"Wasserglas","Materialien (nicht Bestandteil des Produkts)",{"$f":"IFERROR(INDEX(TabelleNMB[[Materialien]:[KRA]],(MATCH(TabelleKRA[[#This Row],[KRA]],TabelleKRA[KRA],0)),4),\"\")","v":""}]
[null,"Wasserstoff","Materialien (nicht Bestandteil des Produkts)",{"$f":"IFERROR(INDEX(TabelleNMB[[Materialien]:[KEA]],(MATCH(TabelleKEA[[#This Row],[KEA]],TabelleKEA[KEA],0)),3),\"\")","v":""},null,null,null,null,"Wasserstoff","Materialien (nicht Bestandteil des Produkts)",{"$f":"IFERROR(INDEX(TabelleNMB[[Materialien]:[KRA]],(MATCH(TabelleKRA[[#This Row],[KRA]],TabelleKRA[KRA],0)),4),\"\")","v":""}]
[null,"Wismut","Materialien (nicht Bestandteil des Produkts)",{"$f":"IFERROR(INDEX(TabelleNMB[[Materialien]:[KEA]],(MATCH(TabelleKEA[[#This Row],[KEA]],TabelleKEA[KEA],0)),3),\"\")","v":""},null,null,null,null,"Wismut","Materialien (nicht Bestandteil des Produkts)",{"$f":"IFERROR(INDEX(TabelleNMB[[Materialien]:[KRA]],(MATCH(TabelleKRA[[#This Row],[KRA]],TabelleKRA[KRA],0)),4),\"\")","v":""}]
[null,"Wolfram","Materialien (nicht Bestandteil des Produkts)",{"$f":"IFERROR(INDEX(TabelleNMB[[Materialien]:[KEA]],(MATCH(TabelleKEA[[#This Row],[KEA]],TabelleKEA[KEA],0)),3),\"\")","v":""},null,null,null,null,"Wolfram","Materialien (nicht Bestandteil des Produkts)",{"$f":"IFERROR(INDEX(TabelleNMB[[Materialien]:[KRA]],(MATCH(TabelleKRA[[#This Row],[KRA]],TabelleKRA[KRA],0)),4),\"\")","v":""}]
[null,"Zeitungsdruckpapier","Materialien (nicht Bestandteil des Produkts)",{"$f":"IFERROR(INDEX(TabelleNMB[[Materialien]:[KEA]],(MATCH(TabelleKEA[[#This Row],[KEA]],TabelleKEA[KEA],0)),3),\"\")","v":""},null,null,null,null,"Zeitungsdruckpapier","Materialien (nicht Bestandteil des Produkts)",{"$f":"IFERROR(INDEX(TabelleNMB[[Materialien]:[KRA]],(MATCH(TabelleKRA[[#This Row],[KRA]],TabelleKRA[KRA],0)),4),\"\")","v":""}]
[null,"Zellstoff (Sulfatzellstoff)","Materialien (nicht Bestandteil des Produkts)",{"$f":"IFERROR(INDEX(TabelleNMB[[Materialien]:[KEA]],(MATCH(TabelleKEA[[#This Row],[KEA]],TabelleKEA[KEA],0)),3),\"\")","v":""},null,null,null,null,"Zellstoff (Sulfatzellstoff)","Materialien (nicht Bestandteil des Produkts)",{"$f":"IFERROR(INDEX(TabelleNMB[[Materialien]:[KRA]],(MATCH(TabelleKRA[[#This Row],[KRA]],TabelleKRA[KRA],0)),4),\"\")","v":""}]
[null,"Zellstoff (Sulfitzellstoff)","Materialien (nicht Bestandteil des Produkts)",{"$f":"IFERROR(INDEX(TabelleNMB[[Materialien]:[KEA]],(MATCH(TabelleKEA[[#This Row],[KEA]],TabelleKEA[KEA],0)),3),\"\")","v":""},null,null,null,null,"Zellstoff (Sulfitzellstoff)","Materialien (nicht Bestandteil des Produkts)",{"$f":"IFERROR(INDEX(TabelleNMB[[Materialien]:[KRA]],(MATCH(TabelleKRA[[#This Row],[KRA]],TabelleKRA[KRA],0)),4),\"\")","v":""}]
[null,"Zement","Materialien (nicht Bestandteil des Produkts)",{"$f":"IFERROR(INDEX(TabelleNMB[[Materialien]:[KEA]],(MATCH(TabelleKEA[[#This Row],[KEA]],TabelleKEA[KEA],0)),3),\"\")","v":""},null,null,null,null,"Zement","Materialien (nicht Bestandteil des Produkts)",{"$f":"IFERROR(INDEX(TabelleNMB[[Materialien]:[KRA]],(MATCH(TabelleKRA[[#This Row],[KRA]],TabelleKRA[KRA],0)),4),\"\")","v":""}]
[null,"Zinkerze","Materialien (nicht Bestandteil des Produkts)",{"$f":"IFERROR(INDEX(TabelleNMB[[Materialien]:[KEA]],(MATCH(TabelleKEA[[#This Row],[KEA]],TabelleKEA[KEA],0)),3),\"\")","v":""},null,null,null,null,"Zinkerze","Materialien (nicht Bestandteil des Produkts)",{"$f":"IFERROR(INDEX(TabelleNMB[[Materialien]:[KRA]],(MATCH(TabelleKRA[[#This Row],[KRA]],TabelleKRA[KRA],0)),4),\"\")","v":""}]
[null,"Zinn","Materialien (nicht Bestandteil des Produkts)",{"$f":"IFERROR(INDEX(TabelleNMB[[Materialien]:[KEA]],(MATCH(TabelleKEA[[#This Row],[KEA]],TabelleKEA[KEA],0)),3),\"\")","v":""},null,null,null,null,"Zinn","Materialien (nicht Bestandteil des Produkts)",{"$f":"IFERROR(INDEX(TabelleNMB[[Materialien]:[KRA]],(MATCH(TabelleKRA[[#This Row],[KRA]],TabelleKRA[KRA],0)),4),\"\")","v":""}]
[null,"Braunkohle","Energieträger",{"$f":"IFERROR(INDEX(TabelleE[[Energieträger]:[KEA]],(MATCH(TabelleKEA[KEA],TabelleE[Energieträger],0)),3),\"\")","v":""},null,null,null,null,"Braunkohle","Energieträger",{"$f":"IFERROR(INDEX(TabelleE[[Energieträger]:[KRA]],(MATCH(TabelleKRA[KRA],TabelleE[Energieträger],0)),4),\"\")","v":""}]
[null,"Erdgas (Bezug: 1kg)","Energieträger",{"$f":"IFERROR(INDEX(TabelleE[[Energieträger]:[KEA]],(MATCH(TabelleKEA[KEA],TabelleE[Energieträger],0)),3),\"\")","v":""},null,null,null,null,"Erdgas (Bezug: 1kg)","Energieträger",{"$f":"IFERROR(INDEX(TabelleE[[Energieträger]:[KRA]],(MATCH(TabelleKRA[KRA],TabelleE[Energieträger],0)),4),\"\")","v":""}]
[null,"Erdöl (Bezug: 1kg)","Energieträger",{"$f":"IFERROR(INDEX(TabelleE[[Energieträger]:[KEA]],(MATCH(TabelleKEA[KEA],TabelleE[Energieträger],0)),3),\"\")","v":""},null,null,null,null,"Erdöl (Bezug: 1kg)","Energieträger",{"$f":"IFERROR(INDEX(TabelleE[[Energieträger]:[KRA]],(MATCH(TabelleKRA[KRA],TabelleE[Energieträger],0)),4),\"\")","v":""}]
[null,"Steinkohle (Bezug: 1kg)","Energieträger",{"$f":"IFERROR(INDEX(TabelleE[[Energieträger]:[KEA]],(MATCH(TabelleKEA[KEA],TabelleE[Energieträger],0)),3),\"\")","v":""},null,null,null,null,"Steinkohle (Bezug: 1kg)","Energieträger",{"$f":"IFERROR(INDEX(TabelleE[[Energieträger]:[KRA]],(MATCH(TabelleKRA[KRA],TabelleE[Energieträger],0)),4),\"\")","v":""}]
[null,"Steinkohlenkoks (Bezug: 1kg)","Energieträger",{"$f":"IFERROR(INDEX(TabelleE[[Energieträger]:[KEA]],(MATCH(TabelleKEA[KEA],TabelleE[Energieträger],0)),3),\"\")","v":""},null,null,null,null,"Steinkohlenkoks (Bezug: 1kg)","Energieträger",{"$f":"IFERROR(INDEX(TabelleE[[Energieträger]:[KRA]],(MATCH(TabelleKRA[KRA],TabelleE[Energieträger],0)),4),\"\")","v":""}]
[null,"Stromelektr. (Bezug: 1kWh)","Energieträger",{"$f":"IFERROR(INDEX(TabelleE[[Energieträger]:[KEA]],(MATCH(TabelleKEA[KEA],TabelleE[Energieträger],0)),3),\"\")","v":""},null,null,null,null,"Stromelektr. (Bezug: 1kWh)","Energieträger",{"$f":"IFERROR(INDEX(TabelleE[[Energieträger]:[KRA]],(MATCH(TabelleKRA[KRA],TabelleE[Energieträger],0)),4),\"\")","v":""}]

{"sheet":"Daten","index":2,"n_rows":163,"n_cols":15,"rows_kept":163,"cut":false,"hidden":true,"merged":[]}
[]
[null,"Materialien (Bestandteile des Produkts)",null,null,null,null,"Materialien (nicht Bestandteil des Produkts)",null,null,null,null,"Energieträger"]
[null,"Materialien","KEA","KRA","GWP",null,"Materialien","KEA","KRA","GWP",null,"Energieträger","KEA","KRA","GWP"]
[null,null,"GJ/Jahr","t/Jahr","tCO2-Äq/Jahr",null,null,"GJ/Jahr","t/Jahr","tCO2-Äq/Jahr",null,null,"GJ/Jahr","t/Jahr","tCO2-Äq/Jahr"]
[null,"Ackerbohne",2.15E-3,1.25E-3,1.3999999999999999E-4,null,"Ackerbohne",2.15E-3,1.25E-3,1.3999999999999999E-4,null,"Braunkohle",8.9499999999999996E-3,1.01E-3,9.8999999999999999E-4]
[null,"Altpapierstoff",3.7468000000000001E-2,4.37E-4,5.4600000000000004E-4,null,"Altpapierstoff",3.7468000000000001E-2,4.37E-4,5.4600000000000004E-4,null,"Erdgas (Bezug: 1kg)",5.2179999999999997E-2,1.3699999999999999E-3,3.2100000000000002E-3]
[null,"Aluminium, Gusslegierung",{"$f":"81.563/1000","v":8.1562999999999997E-2},{"$f":"5.066/1000","v":5.0660000000000002E-3},{"$f":"5.398/1000","v":5.398E-3},null,"Aluminium, Gusslegierung",{"$f":"81.563/1000","v":8.1562999999999997E-2},{"$f":"5.066/1000","v":5.0660000000000002E-3},{"$f":"5.398/1000","v":5.398E-3},null,"Erdöl (Bezug: 1kg)",4.5789999999999997E-2,1.07E-3,3.29E-3]
[null,"Aluminium, Knetlegierung",{"$f":"127.547/1000","v":0.12754699999999999},{"$f":"7.719/1000","v":7.7190000000000002E-3},{"$f":"8.48/1000","v":8.4799999999999997E-3},null,"Aluminium, Knetlegierung",{"$f":"127.547/1000","v":0.12754699999999999},{"$f":"7.719/1000","v":7.7190000000000002E-3},{"$f":"8.48/1000","v":8.4799999999999997E-3},null,"Steinkohle (Bezug: 1kg)",2.8479999999999998E-2,1.5200000000000001E-3,2.9199999999999999E-3]
[null,"Aluminium, primär",{"$f":"140.7/1000","v":0.14069999999999999},{"$f":"10.432/1000","v":1.0432E-2},{"$f":"11.904/1000","v":1.1904E-2},null,"Aluminium, primär",{"$f":"140.7/1000","v":0.14069999999999999},{"$f":"10.432/1000","v":1.0432E-2},{"$f":"11.904/1000","v":1.1904E-2},null,"Steinkohlenkoks (Bezug: 1kg)",3.7409999999999999E-2,1.98E-3,3.5400000000000002E-3]
[null,"Aluminium, sekundär",{"$f":"16.122/1000","v":1.6122000000000001E-2},{"$f":"1.267/1000","v":1.2669999999999999E-3},{"$f":"1.036/1000","v":1.036E-3},null,"Aluminium, sekundär",{"$f":"16.122/1000","v":1.6122000000000001E-2},{"$f":"1.267/1000","v":1.2669999999999999E-3},{"$f":"1.036/1000","v":1.036E-3},null,"Stromelektr. (Bezug: 1kWh)",1.055E-2,3.6999999999999999E-4,5.1999999999999995E-4]
[null,"Aluminiumblech (ohne Prozessschritte für Aluminium primär/sekundär)",{"$f":"9.844/1000","v":9.8439999999999986E-3},{"$f":"0.371/1000","v":3.7100000000000002E-4},{"$f":"0.595/1000","v":5.9499999999999993E-4},null,"Aluminiumblech (ohne Prozessschritte für Aluminium primär/sekundär)",{"$f":"9.844/1000","v":9.8439999999999986E-3},{"$f":"0.371/1000","v":3.7100000000000002E-4},{"$f":"0.595/1000","v":5.9499999999999993E-4}]
[null,"Amin (Trimethylamin)",{"$f":"74.946/1000","v":7.4945999999999999E-2},{"$f":"2.031/1000","v":2.0310000000000003E-3},{"$f":"2.361/1000","v":2.3610000000000003E-3},null,"Amin (Trimethylamin)",{"$f":"74.946/1000","v":7.4945999999999999E-2},{"$f":"2.031/1000","v":2.0310000000000003E-3},{"$f":"2.361/1000","v":2.3610000000000003E-3}]
[null,"Ammoniak",{"$f":"36.942/1000","v":3.6942000000000003E-2},{"$f":"0.974/1000","v":9.7399999999999993E-4},{"$f":"2.017/1000","v":2.0169999999999997E-3},null,"Ammoniak",{"$f":"36.942/1000","v":3.6942000000000003E-2},{"$f":"0.974/1000","v":9.7399999999999993E-4},{"$f":"2.017/1000","v":2.0169999999999997E-3}]
[null,"Andalusit, Disthen",{"$f":"0.432/1000","v":4.3199999999999998E-4},{"$f":"3.419/1000","v":3.4190000000000002E-3},{"$f":"0.029/1000","v":2.9E-5},null,"Andalusit, Disthen",{"$f":"0.432/1000","v":4.3199999999999998E-4},{"$f":"3.419/1000","v":3.4190000000000002E-3},{"$f":"0.029/1000","v":2.9E-5}]
[null,"Arsen",{"$f":"16.51/1000","v":1.651E-2},{"$f":"24.936/1000","v":2.4936E-2},{"$f":"1.093/1000","v":1.093E-3},null,"Arsen",{"$f":"16.51/1000","v":1.651E-2},{"$f":"24.936/1000","v":2.4936E-2},{"$f":"1.093/1000","v":1.093E-3}]
[null,"Asbet",{"$f":"0.437/1000","v":4.37E-4},{"$f":"1.123/1000","v":1.1230000000000001E-3},{"$f":"0.027/1000","v":2.6999999999999999E-5},null,"Asbet",{"$f":"0.437/1000","v":4.37E-4},{"$f":"1.123/1000","v":1.1230000000000001E-3},{"$f":"0.027/1000","v":2.6999999999999999E-5}]
[null,"Asphalt",{"$f":"6.281/1000","v":6.2810000000000001E-3},{"$f":"1.094/1000","v":1.0940000000000001E-3},{"$f":"0.197/1000","v":1.9700000000000002E-4},null,"Asphalt",{"$f":"6.281/1000","v":6.2810000000000001E-3},{"$f":"1.094/1000","v":1.0940000000000001E-3},{"$f":"0.197/1000","v":1.9700000000000002E-4}]
[null,"Barit (Schwerspat)",{"$f":"3.136/1000","v":3.1360000000000003E-3},{"$f":"9.105/1000","v":9.1050000000000002E-3},{"$f":"0.182/1000","v":1.8200000000000001E-4},null,"Barit (Schwerspat)",{"$f":"3.136/1000","v":3.1360000000000003E-3},{"$f":"9.105/1000","v":9.1050000000000002E-3},{"$f":"0.182/1000","v":1.8200000000000001E-4}]
[null,"Bariumkarbonat",{"$f":"14.996/1000","v":1.4996000000000001E-2},{"$f":"12.522/1000","v":1.2522E-2},{"$f":"1.11/1000","v":1.1100000000000001E-3},null,"Bariumkarbonat",{"$f":"14.996/1000","v":1.4996000000000001E-2},{"$f":"12.522/1000","v":1.2522E-2},{"$f":"1.11/1000","v":1.1100000000000001E-3}]
[null,"Baumwollgewebe",{"$f":"273.44/1000","v":0.27344000000000002},{"$f":"14.082/1000","v":1.4082000000000001E-2},{"$f":"26/1000","v":2.5999999999999999E-2},null,"Baumwollgewebe",{"$f":"273.44/1000","v":0.27344000000000002},{"$f":"14.082/1000","v":1.4082000000000001E-2},{"$f":"26/1000","v":2.5999999999999999E-2}]
[null,"Bauxit",{"$f":"0.109/1000","v":1.0899999999999999E-4},{"$f":"1.341/1000","v":1.341E-3},{"$f":"0.007/1000","v":6.9999999999999999E-6},null,"Bauxit",{"$f":"0.109/1000","v":1.0899999999999999E-4},{"$f":"1.341/1000","v":1.341E-3},{"$f":"0.007/1000","v":6.9999999999999999E-6}]
[null,"Bentonit",{"$f":"0.354/1000","v":3.5399999999999999E-4},{"$f":"1.008/1000","v":1.008E-3},{"$f":"0.025/1000","v":2.5000000000000001E-5},null,"Bentonit",{"$f":"0.354/1000","v":3.5399999999999999E-4},{"$f":"1.008/1000","v":1.008E-3},{"$f":"0.025/1000","v":2.5000000000000001E-5}]
[null,"Beton",{"$f":"0.525/1000","v":5.2500000000000008E-4},{"$f":"1.028/1000","v":1.0280000000000001E-3},{"$f":"0.107/1000","v":1.07E-4},null,"Beton",{"$f":"0.525/1000","v":5.2500000000000008E-4},{"$f":"1.028/1000","v":1.0280000000000001E-3},{"$f":"0.107/1000","v":1.07E-4}]
[null,"Bimsstein",{"$f":"0.014/1000","v":1.4E-5},{"$f":"2.17/1000","v":2.1700000000000001E-3},{"$f":"0.001/1000","v":9.9999999999999995E-7},null,"Bimsstein",{"$f":"0.014/1000","v":1.4E-5},{"$f":"2.17/1000","v":2.1700000000000001E-3},{"$f":"0.001/1000","v":9.9999999999999995E-7}]
[null,"Bitumen",{"$f":"47.71/1000","v":4.7710000000000002E-2},{"$f":"1.119/1000","v":1.119E-3},{"$f":"0.361/1000","v":3.6099999999999999E-4},null,"Bitumen",{"$f":"47.71/1000","v":4.7710000000000002E-2},{"$f":"1.119/1000","v":1.119E-3},{"$f":"0.361/1000","v":3.6099999999999999E-4}]
[null,"Blei",{"$f":"20.54/1000","v":2.0539999999999999E-2},{"$f":"9.846/1000","v":9.8460000000000006E-3},{"$f":"2.054/1000","v":2.0539999999999998E-3},null,"Blei",{"$f":"20.54/1000","v":2.0539999999999999E-2},{"$f":"9.846/1000","v":9.8460000000000006E-3},{"$f":"2.054/1000","v":2.0539999999999998E-3}]
[null,"Borate",{"$f":"26.035/1000","v":2.6034999999999999E-2},{"$f":"2.885/1000","v":2.885E-3},{"$f":"1.614/1000","v":1.6140000000000002E-3},null,"Borate",{"$f":"26.035/1000","v":2.6034999999999999E-2},{"$f":"2.885/1000","v":2.885E-3},{"$f":"1.614/1000","v":1.6140000000000002E-3}]
[null,"Brennelemente",{"$f":"4452130.845/1000","v":4452.1308449999997},{"$f":"3212.975/1000","v":3.2129749999999997},{"$f":"2509.359/1000","v":2.5093589999999999},null,"Brennelemente",{"$f":"4452130.845/1000","v":4452.1308449999997},{"$f":"3212.975/1000","v":3.2129749999999997},{"$f":"2509.359/1000","v":2.5093589999999999}]
[null,"Chlor",{"$f":"16.696/1000","v":1.6696000000000003E-2},{"$f":"1.453/1000","v":1.4530000000000001E-3},{"$f":"0.987/1000","v":9.8700000000000003E-4},null,"Chlor",{"$f":"16.696/1000","v":1.6696000000000003E-2},{"$f":"1.453/1000","v":1.4530000000000001E-3},{"$f":"0.987/1000","v":9.8700000000000003E-4}]
[null,"Chrom",{"$f":"484.371/1000","v":0.484371},{"$f":"21.975/1000","v":2.1975000000000001E-2},{"$f":"26.261/1000","v":2.6261E-2},null,"Chrom",{"$f":"484.371/1000","v":0.484371},{"$f":"21.975/1000","v":2.1975000000000001E-2},{"$f":"26.261/1000","v":2.6261E-2}]
[null,"Chromerze",{"$f":"0.392/1000","v":3.9200000000000004E-4},{"$f":"1.51/1000","v":1.5100000000000001E-3},{"$f":"0.021/1000","v":2.1000000000000002E-5},null,"Chromerze",{"$f":"0.392/1000","v":3.9200000000000004E-4},{"$f":"1.51/1000","v":1.5100000000000001E-3},{"$f":"0.021/1000","v":2.1000000000000002E-5}]
[null,"Computer",{"$f":"365.13/1000","v":0.36513000000000001},{"$f":"108.889/1000","v":0.108889},{"$f":"22.253/1000","v":2.2252999999999998E-2},null,"Computer",{"$f":"365.13/1000","v":0.36513000000000001},{"$f":"108.889/1000","v":0.108889},{"$f":"22.253/1000","v":2.2252999999999998E-2}]
[null,"Dolomit",{"$f":"0.436/1000","v":4.3599999999999997E-4},{"$f":"1.013/1000","v":1.0129999999999998E-3},{"$f":"0.027/1000","v":2.6999999999999999E-5},null,"Dolomit",{"$f":"0.436/1000","v":4.3599999999999997E-4},{"$f":"1.013/1000","v":1.0129999999999998E-3},{"$f":"0.027/1000","v":2.6999999999999999E-5}]
[null,"Druckluft (Bezug: 1000 m3)",{"$f":"0.001/1000","v":9.9999999999999995E-7},{"$f":"0/1000","v":0},{"$f":"0/1000","v":0},null,"Druckluft (Bezug: 1000 m3)",{"$f":"0.001/1000","v":9.9999999999999995E-7},{"$f":"0/1000","v":0},{"$f":"0/1000","v":0}]
[null,"Edelstahlblech (inkl. Herstellung von Chromstahl)",{"$f":"75.427/1000","v":7.5427000000000008E-2},{"$f":"35.536/1000","v":3.5535999999999998E-2},{"$f":"4.529/1000","v":4.529E-3},null,"Edelstahlblech (inkl. Herstellung von Chromstahl)",{"$f":"75.427/1000","v":7.5427000000000008E-2},{"$f":"35.536/1000","v":3.5535999999999998E-2},{"$f":"4.529/1000","v":4.529E-3}]
[null,"Eisen",{"$f":"21.141/1000","v":2.1140999999999997E-2},{"$f":"4.127/1000","v":4.1269999999999996E-3},{"$f":"1.5/1000","v":1.5E-3},null,"Eisen",{"$f":"21.141/1000","v":2.1140999999999997E-2},{"$f":"4.127/1000","v":4.1269999999999996E-3},{"$f":"1.5/1000","v":1.5E-3}]
[null,"Eisenerz 46%",{"$f":"0.063/1000","v":6.3E-5},{"$f":"1.006/1000","v":1.0059999999999999E-3},{"$f":"0.004/1000","v":3.9999999999999998E-6},null,"Eisenerz 46%",{"$f":"0.063/1000","v":6.3E-5},{"$f":"1.006/1000","v":1.0059999999999999E-3},{"$f":"0.004/1000","v":3.9999999999999998E-6}]
[null,"Eisenerzkonzentrat",{"$f":"0.276/1000","v":2.7600000000000004E-4},{"$f":"1.674/1000","v":1.6739999999999999E-3},{"$f":"0.017/1000","v":1.7E-5},null,"Eisenerzkonzentrat",{"$f":"0.276/1000","v":2.7600000000000004E-4},{"$f":"1.674/1000","v":1.6739999999999999E-3},{"$f":"0.017/1000","v":1.7E-5}]
[null,"Epoxidharz",{"$f":"124.478/1000","v":0.12447799999999999},{"$f":"5.855/1000","v":5.8550000000000008E-3},{"$f":"6.811/1000","v":6.8110000000000002E-3},null,"Epoxidharz",{"$f":"124.478/1000","v":0.12447799999999999},{"$f":"5.855/1000","v":5.8550000000000008E-3},{"$f":"6.811/1000","v":6.8110000000000002E-3}]
[null,"Ethylen",{"$f":"62.25/1000","v":6.225E-2},{"$f":"1.491/1000","v":1.4910000000000001E-3},{"$f":"1.42/1000","v":1.4199999999999998E-3},null,"Ethylen",{"$f":"62.25/1000","v":6.225E-2},{"$f":"1.491/1000","v":1.4910000000000001E-3},{"$f":"1.42/1000","v":1.4199999999999998E-3}]
[null,"Flussspat",{"$f":"1.356/1000","v":1.356E-3},{"$f":"1.179/1000","v":1.1790000000000001E-3},{"$f":"0.089/1000","v":8.8999999999999995E-5},null,"Flussspat",{"$f":"1.356/1000","v":1.356E-3},{"$f":"1.179/1000","v":1.1790000000000001E-3},{"$f":"0.089/1000","v":8.8999999999999995E-5}]
[null,"Futterpflanze (Silomais)",{"$f":"3.425/1000","v":3.4249999999999997E-3},{"$f":"1.067/1000","v":1.067E-3},{"$f":"0.139/1000","v":1.3900000000000002E-4},null,"Futterpflanze (Silomais)",{"$f":"3.425/1000","v":3.4249999999999997E-3},{"$f":"1.067/1000","v":1.067E-3},{"$f":"0.139/1000","v":1.3900000000000002E-4}]
[null,"Gallium",{"$f":"2706.71/1000","v":2.7067100000000002},{"$f":"1667.633/1000","v":1.6676330000000001},{"$f":"186.084/1000","v":0.186084},null,"Gallium",{"$f":"2706.71/1000","v":2.7067100000000002},{"$f":"1667.633/1000","v":1.6676330000000001},{"$f":"186.084/1000","v":0.186084}]
[null,"Gemüse (Weißkohl)",{"$f":"0.146/1000","v":1.46E-4},{"$f":"1.023/1000","v":1.0229999999999998E-3},{"$f":"0.03/1000","v":2.9999999999999997E-5},null,"Gemüse (Weißkohl)",{"$f":"0.146/1000","v":1.46E-4},{"$f":"1.023/1000","v":1.0229999999999998E-3},{"$f":"0.03/1000","v":2.9999999999999997E-5}]
[null,"Gesteinsmehl",{"$f":"0.431/1000","v":4.3100000000000001E-4},{"$f":"1.028/1000","v":1.0280000000000001E-3},{"$f":"0.029/1000","v":2.9E-5},null,"Gesteinsmehl",{"$f":"0.431/1000","v":4.3100000000000001E-4},{"$f":"1.028/1000","v":1.0280000000000001E-3},{"$f":"0.029/1000","v":2.9E-5}]
[null,"Getreide (Winterweizen)",{"$f":"16.43/1000","v":1.643E-2},{"$f":"1.28/1000","v":1.2800000000000001E-3},{"$f":"0.333/1000","v":3.3300000000000002E-4},null,"Getreide (Winterweizen)",{"$f":"16.43/1000","v":1.643E-2},{"$f":"1.28/1000","v":1.2800000000000001E-3},{"$f":"0.333/1000","v":3.3300000000000002E-4}]
[null,"GFK (Glasfaserverstärkte Kunststoffe)",{"$f":"135.895/1000","v":0.13589500000000002},{"$f":"4.439/1000","v":4.4390000000000002E-3},{"$f":"8.816/1000","v":8.8160000000000009E-3},null,"GFK (Glasfaserverstärkte Kunststoffe)",{"$f":"135.895/1000","v":0.13589500000000002},{"$f":"4.439/1000","v":4.4390000000000002E-3},{"$f":"8.816/1000","v":8.8160000000000009E-3}]
[null,"Gips",{"$f":"0.029/1000","v":2.9E-5},{"$f":"1.011/1000","v":1.011E-3},{"$f":"0.002/1000","v":1.9999999999999999E-6},null,"Gips",{"$f":"0.029/1000","v":2.9E-5},{"$f":"1.011/1000","v":1.011E-3},{"$f":"0.002/1000","v":1.9999999999999999E-6}]
[null,"Glas (Behälterglas)",{"$f":"7.968/1000","v":7.9679999999999994E-3},{"$f":"1.299/1000","v":1.299E-3},{"$f":"0.563/1000","v":5.6299999999999992E-4},null,"Glas (Behälterglas)",{"$f":"7.968/1000","v":7.9679999999999994E-3},{"$f":"1.299/1000","v":1.299E-3},{"$f":"0.563/1000","v":5.6299999999999992E-4}]
[null,"Glas (Flachglas)",{"$f":"12.65/1000","v":1.265E-2},{"$f":"1.639/1000","v":1.639E-3},{"$f":"0.6/1000","v":5.9999999999999995E-4},null,"Glas (Flachglas)",{"$f":"12.65/1000","v":1.265E-2},{"$f":"1.639/1000","v":1.639E-3},{"$f":"0.6/1000","v":5.9999999999999995E-4}]
[null,"Glasfasern",{"$f":"38.915/1000","v":3.8914999999999998E-2},{"$f":"2.894/1000","v":2.8940000000000003E-3},{"$f":"2.583/1000","v":2.5830000000000002E-3},null,"Glasfasern",{"$f":"38.915/1000","v":3.8914999999999998E-2},{"$f":"2.894/1000","v":2.8940000000000003E-3},{"$f":"2.583/1000","v":2.5830000000000002E-3}]
[null,"Glaswolle",{"$f":"34.15/1000","v":3.415E-2},{"$f":"1.035/1000","v":1.0349999999999999E-3},{"$f":"1.141/1000","v":1.1410000000000001E-3},null,"Glaswolle",{"$f":"34.15/1000","v":3.415E-2},{"$f":"1.035/1000","v":1.0349999999999999E-3},{"$f":"1.141/1000","v":1.1410000000000001E-3}]
[null,"Glimmer",{"$f":"0.431/1000","v":4.3100000000000001E-4},{"$f":"1.028/1000","v":1.0280000000000001E-3},{"$f":"0.029/1000","v":2.9E-5},null,"Glimmer",{"$f":"0.431/1000","v":4.3100000000000001E-4},{"$f":"1.028/1000","v":1.0280000000000001E-3},{"$f":"0.029/1000","v":2.9E-5}]
[null,"Gold ",{"$f":"261210.2/1000","v":261.21019999999999},{"$f":"740475.698/1000","v":740.47569799999997},{"$f":"17903.079/1000","v":17.903079000000002},null,"Gold ",{"$f":"261210.2/1000","v":261.21019999999999},{"$f":"740475.698/1000","v":740.47569799999997},{"$f":"17903.079/1000","v":17.903079000000002}]
[null,"Graphit",{"$f":"0.437/1000","v":4.37E-4},{"$f":"1.066/1000","v":1.0660000000000001E-3},{"$f":"0.027/1000","v":2.6999999999999999E-5},null,"Graphit",{"$f":"0.437/1000","v":4.37E-4},{"$f":"1.066/1000","v":1.0660000000000001E-3},{"$f":"0.027/1000","v":2.6999999999999999E-5}]
[null,"Grünland (Grünschnitt)",{"$f":"1.771/1000","v":1.771E-3},{"$f":"1.034/1000","v":1.034E-3},{"$f":"0.064/1000","v":6.3999999999999997E-5},null,"Grünland (Grünschnitt)",{"$f":"1.771/1000","v":1.771E-3},{"$f":"1.034/1000","v":1.034E-3},{"$f":"0.064/1000","v":6.3999999999999997E-5}]
[null,"Hackfrüchte (Kartoffel)",{"$f":"1.353/1000","v":1.353E-3},{"$f":"1.114/1000","v":1.1140000000000002E-3},{"$f":"0.047/1000","v":4.6999999999999997E-5},null,"Hackfrüchte (Kartoffel)",{"$f":"1.353/1000","v":1.353E-3},{"$f":"1.114/1000","v":1.1140000000000002E-3},{"$f":"0.047/1000","v":4.6999999999999997E-5}]
[null,"Handelsgewächse (Raps)",{"$f":"26.397/1000","v":2.6396999999999997E-2},{"$f":"1.304/1000","v":1.304E-3},{"$f":"0.531/1000","v":5.31E-4},null,"Handelsgewächse (Raps)",{"$f":"26.397/1000","v":2.6396999999999997E-2},{"$f":"1.304/1000","v":1.304E-3},{"$f":"0.531/1000","v":5.31E-4}]
[null,"Holzstoff",{"$f":"51.151/1000","v":5.1151000000000002E-2},{"$f":"1.736/1000","v":1.7359999999999999E-3},{"$f":"0.697/1000","v":6.9699999999999992E-4},null,"Holzstoff",{"$f":"51.151/1000","v":5.1151000000000002E-2},{"$f":"1.736/1000","v":1.7359999999999999E-3},{"$f":"0.697/1000","v":6.9699999999999992E-4}]
[null,"Ilmenitkonzentrate",{"$f":"3.058/1000","v":3.058E-3},{"$f":"6.113/1000","v":6.1130000000000004E-3},{"$f":"0.218/1000","v":2.1799999999999999E-4},null,"Ilmenitkonzentrate",{"$f":"3.058/1000","v":3.058E-3},{"$f":"6.113/1000","v":6.1130000000000004E-3},{"$f":"0.218/1000","v":2.1799999999999999E-4}]
[null,"Indium",{"$f":"1981.627/1000","v":1.981627},{"$f":"25754.067/1000","v":25.754066999999999},{"$f":"149.197/1000","v":0.149197},null,"Indium",{"$f":"1981.627/1000","v":1.981627},{"$f":"25754.067/1000","v":25.754066999999999},{"$f":"149.197/1000","v":0.149197}]
[null,"Industriediamanten",{"$f":"106021.189/1000","v":106.02118899999999},{"$f":"3451316.811/1000","v":3451.3168110000001},{"$f":"7603.884/1000","v":7.6038839999999999},null,"Industriediamanten",{"$f":"106021.189/1000","v":106.02118899999999},{"$f":"3451316.811/1000","v":3451.3168110000001},{"$f":"7603.884/1000","v":7.6038839999999999}]
[null,"Iridium",{"$f":"195163.946/1000","v":195.16394600000001},{"$f":"118920.296/1000","v":118.92029600000001},{"$f":"11997.056/1000","v":11.997056000000001},null,"Iridium",{"$f":"195163.946/1000","v":195.16394600000001},{"$f":"118920.296/1000","v":118.92029600000001},{"$f":"11997.056/1000","v":11.997056000000001}]
[null,"Kalisalz",{"$f":"5.345/1000","v":5.3449999999999999E-3},{"$f":"7.736/1000","v":7.7359999999999998E-3},{"$f":"0.377/1000","v":3.77E-4},null,"Kalisalz",{"$f":"5.345/1000","v":5.3449999999999999E-3},{"$f":"7.736/1000","v":7.7359999999999998E-3},{"$f":"0.377/1000","v":3.77E-4}]
[null,"Kalk",{"$f":"4.088/1000","v":4.0880000000000005E-3},{"$f":"1.417/1000","v":1.4170000000000001E-3},{"$f":"0.749/1000","v":7.4899999999999999E-4},null,"Kalk",{"$f":"4.088/1000","v":4.0880000000000005E-3},{"$f":"1.417/1000","v":1.4170000000000001E-3},{"$f":"0.749/1000","v":7.4899999999999999E-4}]
[null,"Kalkmergel",{"$f":"0.033/1000","v":3.3000000000000003E-5},{"$f":"1.001/1000","v":1.0009999999999999E-3},{"$f":"0.002/1000","v":1.9999999999999999E-6},null,"Kalkmergel",{"$f":"0.033/1000","v":3.3000000000000003E-5},{"$f":"1.001/1000","v":1.0009999999999999E-3},{"$f":"0.002/1000","v":1.9999999999999999E-6}]
[null,"Kalkstein",{"$f":"0.024/1000","v":2.4000000000000001E-5},{"$f":"1.001/1000","v":1.0009999999999999E-3},{"$f":"0.002/1000","v":1.9999999999999999E-6},null,"Kalkstein",{"$f":"0.024/1000","v":2.4000000000000001E-5},{"$f":"1.001/1000","v":1.0009999999999999E-3},{"$f":"0.002/1000","v":1.9999999999999999E-6}]
[null,"Kaolin",{"$f":"3.282/1000","v":3.2820000000000002E-3},{"$f":"4.736/1000","v":4.7359999999999998E-3},{"$f":"0.21/1000","v":2.0999999999999998E-4},null,"Kaolin",{"$f":"3.282/1000","v":3.2820000000000002E-3},{"$f":"4.736/1000","v":4.7359999999999998E-3},{"$f":"0.21/1000","v":2.0999999999999998E-4}]
[null,"Kies (Baukies)",{"$f":"0.043/1000","v":4.2999999999999995E-5},{"$f":"1.041/1000","v":1.0409999999999998E-3},{"$f":"0.002/1000","v":1.9999999999999999E-6},null,"Kies (Baukies)",{"$f":"0.043/1000","v":4.2999999999999995E-5},{"$f":"1.041/1000","v":1.0409999999999998E-3},{"$f":"0.002/1000","v":1.9999999999999999E-6}]
[null,"Kiselgur",{"$f":"6.214/1000","v":6.2140000000000008E-3},{"$f":"2.287/1000","v":2.287E-3},{"$f":"0.44/1000","v":4.4000000000000002E-4},null,"Kiselgur",{"$f":"6.214/1000","v":6.2140000000000008E-3},{"$f":"2.287/1000","v":2.287E-3},{"$f":"0.44/1000","v":4.4000000000000002E-4}]
[null,"Kobalt",{"$f":"103.009/1000","v":0.103009},{"$f":"56.905/1000","v":5.6905000000000004E-2},{"$f":"7.721/1000","v":7.7210000000000004E-3},null,"Kobalt",{"$f":"103.009/1000","v":0.103009},{"$f":"56.905/1000","v":5.6905000000000004E-2},{"$f":"7.721/1000","v":7.7210000000000004E-3}]
[null,"Kobalterze",{"$f":"0.312/1000","v":3.1199999999999999E-4},{"$f":"1.411/1000","v":1.4109999999999999E-3},{"$f":"0.016/1000","v":1.5999999999999999E-5},null,"Kobalterze",{"$f":"0.312/1000","v":3.1199999999999999E-4},{"$f":"1.411/1000","v":1.4109999999999999E-3},{"$f":"0.016/1000","v":1.5999999999999999E-5}]
[null,"Kreide",{"$f":"0.032/1000","v":3.1999999999999999E-5},{"$f":"1.064/1000","v":1.0640000000000001E-3},{"$f":"0.002/1000","v":1.9999999999999999E-6},null,"Kreide",{"$f":"0.032/1000","v":3.1999999999999999E-5},{"$f":"1.064/1000","v":1.0640000000000001E-3},{"$f":"0.002/1000","v":1.9999999999999999E-6}]
[null,"Kryolith",{"$f":"42.272/1000","v":4.2271999999999997E-2},{"$f":"3.93/1000","v":3.9300000000000003E-3},{"$f":"2.616/1000","v":2.6160000000000003E-3},null,"Kryolith",{"$f":"42.272/1000","v":4.2271999999999997E-2},{"$f":"3.93/1000","v":3.9300000000000003E-3},{"$f":"2.616/1000","v":2.6160000000000003E-3}]
[null,"Kupfer, primär",{"$f":"50.438/1000","v":5.0438000000000004E-2},{"$f":"128.107/1000","v":0.128107},{"$f":"2.874/1000","v":2.8740000000000003E-3},null,"Kupfer, primär",{"$f":"50.438/1000","v":5.0438000000000004E-2},{"$f":"128.107/1000","v":0.128107},{"$f":"2.874/1000","v":2.8740000000000003E-3}]
[null,"Kupfer, sekundär",{"$f":"23.107/1000","v":2.3106999999999999E-2},{"$f":"7.339/1000","v":7.339E-3},{"$f":"1.699/1000","v":1.699E-3},null,"Kupfer, sekundär",{"$f":"23.107/1000","v":2.3106999999999999E-2},{"$f":"7.339/1000","v":7.339E-3},{"$f":"1.699/1000","v":1.699E-3}]
[null,"Kupferblech (ohne Prozessschritte für Kupfer primär/sekundär)",{"$f":"20.048/1000","v":2.0048E-2},{"$f":"2.277/1000","v":2.2769999999999999E-3},{"$f":"1.18/1000","v":1.1799999999999998E-3},null,"Kupferblech (ohne Prozessschritte für Kupfer primär/sekundär)",{"$f":"20.048/1000","v":2.0048E-2},{"$f":"2.277/1000","v":2.2769999999999999E-3},{"$f":"1.18/1000","v":1.1799999999999998E-3}]
[null,"Kupferkonzentrate, global",{"$f":"8.34/1000","v":8.3400000000000002E-3},{"$f":"36.019/1000","v":3.6018999999999995E-2},{"$f":"0.447/1000","v":4.4700000000000002E-4},null,"Kupferkonzentrate, global",{"$f":"8.34/1000","v":8.3400000000000002E-3},{"$f":"36.019/1000","v":3.6018999999999995E-2},{"$f":"0.447/1000","v":4.4700000000000002E-4}]
[null,"Laptop",{"$f":"820.211/1000","v":0.82021100000000002},{"$f":"272.464/1000","v":0.27246399999999998},{"$f":"189.944/1000","v":0.189944},null,"Laptop",{"$f":"820.211/1000","v":0.82021100000000002},{"$f":"272.464/1000","v":0.27246399999999998},{"$f":"189.944/1000","v":0.189944}]
[null,"Laubholz",{"$f":"9.088/1000","v":9.0879999999999989E-3},{"$f":"1.028/1000","v":1.0280000000000001E-3},{"$f":"0.006/1000","v":6.0000000000000002E-6},null,"Laubholz",{"$f":"9.088/1000","v":9.0879999999999989E-3},{"$f":"1.028/1000","v":1.0280000000000001E-3},{"$f":"0.006/1000","v":6.0000000000000002E-6}]
[null,"LDPE",{"$f":"73.996/1000","v":7.3995999999999992E-2},{"$f":"1.686/1000","v":1.686E-3},{"$f":"2.133/1000","v":2.1329999999999999E-3},null,"LDPE",{"$f":"73.996/1000","v":7.3995999999999992E-2},{"$f":"1.686/1000","v":1.686E-3},{"$f":"2.133/1000","v":2.1329999999999999E-3}]
[null,"Lehm",{"$f":"0.038/1000","v":3.8000000000000002E-5},{"$f":"1.001/1000","v":1.0009999999999999E-3},{"$f":"0.003/1000","v":3.0000000000000001E-6},null,"Lehm",{"$f":"0.038/1000","v":3.8000000000000002E-5},{"$f":"1.001/1000","v":1.0009999999999999E-3},{"$f":"0.003/1000","v":3.0000000000000001E-6}]
[null,"Lithium",{"$f":"307.267/1000","v":0.30726700000000001},{"$f":"13.281/1000","v":1.3281000000000001E-2},{"$f":"18.344/1000","v":1.8344000000000003E-2},null,"Lithium",{"$f":"307.267/1000","v":0.30726700000000001},{"$f":"13.281/1000","v":1.3281000000000001E-2},{"$f":"18.344/1000","v":1.8344000000000003E-2}]
[null,"Magnesium",{"$f":"145.852/1000","v":0.14585200000000001},{"$f":"7.073/1000","v":7.0730000000000003E-3},{"$f":"73.117/1000","v":7.3117000000000001E-2},null,"Magnesium",{"$f":"145.852/1000","v":0.14585200000000001},{"$f":"7.073/1000","v":7.0730000000000003E-3},{"$f":"73.117/1000","v":7.3117000000000001E-2}]
[null,"Magnesiumkarbonat",{"$f":"0.032/1000","v":3.1999999999999999E-5},{"$f":"2.106/1000","v":2.1059999999999998E-3},{"$f":"0.002/1000","v":1.9999999999999999E-6},null,"Magnesiumkarbonat",{"$f":"0.032/1000","v":3.1999999999999999E-5},{"$f":"2.106/1000","v":2.1059999999999998E-3},{"$f":"0.002/1000","v":1.9999999999999999E-6}]
[null,"Magnesiumsulfat",{"$f":"5.074/1000","v":5.0739999999999995E-3},{"$f":"4.609/1000","v":4.6090000000000002E-3},{"$f":"0.295/1000","v":2.9499999999999996E-4},null,"Magnesiumsulfat",{"$f":"5.074/1000","v":5.0739999999999995E-3},{"$f":"4.609/1000","v":4.6090000000000002E-3},{"$f":"0.295/1000","v":2.9499999999999996E-4}]
[null,"Mangan",{"$f":"48.016/1000","v":4.8015999999999996E-2},{"$f":"8.229/1000","v":8.2289999999999985E-3},{"$f":"2.525/1000","v":2.5249999999999999E-3},null,"Mangan",{"$f":"48.016/1000","v":4.8015999999999996E-2},{"$f":"8.229/1000","v":8.2289999999999985E-3},{"$f":"2.525/1000","v":2.5249999999999999E-3}]
[null,"Manganerz",{"$f":"0.192/1000","v":1.92E-4},{"$f":"1.739/1000","v":1.7390000000000001E-3},{"$f":"0.012/1000","v":1.2E-5},null,"Manganerz",{"$f":"0.192/1000","v":1.92E-4},{"$f":"1.739/1000","v":1.7390000000000001E-3},{"$f":"0.012/1000","v":1.2E-5}]
[null,"Messing",{"$f":"37.301/1000","v":3.7301000000000001E-2},{"$f":"33.628/1000","v":3.3627999999999998E-2},{"$f":"2.297/1000","v":2.297E-3},null,"Messing",{"$f":"37.301/1000","v":3.7301000000000001E-2},{"$f":"33.628/1000","v":3.3627999999999998E-2},{"$f":"2.297/1000","v":2.297E-3}]
[null,"Molybdän",{"$f":"148.889/1000","v":0.14888900000000002},{"$f":"989.172/1000","v":0.98917200000000005},{"$f":"8.634/1000","v":8.634000000000001E-3},null,"Molybdän",{"$f":"148.889/1000","v":0.14888900000000002},{"$f":"989.172/1000","v":0.98917200000000005},{"$f":"8.634/1000","v":8.634000000000001E-3}]
[null,"Molybdänerz",{"$f":"44.129/1000","v":4.4128999999999995E-2},{"$f":"579.023/1000","v":0.57902300000000007},{"$f":"2.367/1000","v":2.3670000000000002E-3},null,"Molybdänerz",{"$f":"44.129/1000","v":4.4128999999999995E-2},{"$f":"579.023/1000","v":0.57902300000000007},{"$f":"2.367/1000","v":2.3670000000000002E-3}]
[null,"Nadelholz",{"$f":"9.636/1000","v":9.6359999999999987E-3},{"$f":"1.023/1000","v":1.0229999999999998E-3},{"$f":"0.003/1000","v":3.0000000000000001E-6},null,"Nadelholz",{"$f":"9.636/1000","v":9.6359999999999987E-3},{"$f":"1.023/1000","v":1.0229999999999998E-3},{"$f":"0.003/1000","v":3.0000000000000001E-6}]
[null,"Naphtha",{"$f":"48.908/1000","v":4.8908E-2},{"$f":"1.155/1000","v":1.155E-3},{"$f":"0.372/1000","v":3.7199999999999999E-4},null,"Naphtha",{"$f":"48.908/1000","v":4.8908E-2},{"$f":"1.155/1000","v":1.155E-3},{"$f":"0.372/1000","v":3.7199999999999999E-4}]
[null,"Natronlauge",{"$f":"19.473/1000","v":1.9472999999999997E-2},{"$f":"1.569/1000","v":1.5689999999999999E-3},{"$f":"0.986/1000","v":9.859999999999999E-4},null,"Natronlauge",{"$f":"19.473/1000","v":1.9472999999999997E-2},{"$f":"1.569/1000","v":1.5689999999999999E-3},{"$f":"0.986/1000","v":9.859999999999999E-4}]
[null,"Naturstein, ungebrochen",{"$f":"5.057/1000","v":5.0570000000000007E-3},{"$f":"1.437/1000","v":1.4370000000000001E-3},{"$f":"0.17/1000","v":1.7000000000000001E-4},null,"Naturstein, ungebrochen",{"$f":"5.057/1000","v":5.0570000000000007E-3},{"$f":"1.437/1000","v":1.4370000000000001E-3},{"$f":"0.17/1000","v":1.7000000000000001E-4}]
[null,"Nickel",{"$f":"157.771/1000","v":0.15777099999999999},{"$f":"133.146/1000","v":0.13314599999999999},{"$f":"10.279/1000","v":1.0279E-2},null,"Nickel",{"$f":"157.771/1000","v":0.15777099999999999},{"$f":"133.146/1000","v":0.13314599999999999},{"$f":"10.279/1000","v":1.0279E-2}]
[null,"Niob- und Tantalkonzentrate",{"$f":"3.579/1000","v":3.5790000000000001E-3},{"$f":"13.578/1000","v":1.3578E-2},{"$f":"0.18/1000","v":1.7999999999999998E-4},null,"Niob- und Tantalkonzentrate",{"$f":"3.579/1000","v":3.5790000000000001E-3},{"$f":"13.578/1000","v":1.3578E-2},{"$f":"0.18/1000","v":1.7999999999999998E-4}]
[null,"Obst (Apfel)",{"$f":"0.378/1000","v":3.7800000000000003E-4},{"$f":"1.07/1000","v":1.07E-3},{"$f":"0.879/1000","v":8.7900000000000001E-4},null,"Obst (Apfel)",{"$f":"0.378/1000","v":3.7800000000000003E-4},{"$f":"1.07/1000","v":1.07E-3},{"$f":"0.879/1000","v":8.7900000000000001E-4}]
[null,"Osmium",{"$f":"239956.305/1000","v":239.95630499999999},{"$f":"146252.44/1000","v":146.25244000000001},{"$f":"14750.066/1000","v":14.750066},null,"Osmium",{"$f":"239956.305/1000","v":239.95630499999999},{"$f":"146252.44/1000","v":146.25244000000001},{"$f":"14750.066/1000","v":14.750066}]
[null,"Palladium, Russland",{"$f":"143552.174/1000","v":143.55217400000001},{"$f":"22452.25/1000","v":22.452249999999999},{"$f":"9335.642/1000","v":9.335642},null,"Palladium, Russland",{"$f":"143552.174/1000","v":143.55217400000001},{"$f":"22452.25/1000","v":22.452249999999999},{"$f":"9335.642/1000","v":9.335642}]
[null,"Palladium, Südafrika",{"$f":"169360.622/1000","v":169.36062200000001},{"$f":"51448.343/1000","v":51.448343000000001},{"$f":"10277.712/1000","v":10.277711999999999},null,"Palladium, Südafrika",{"$f":"169360.622/1000","v":169.36062200000001},{"$f":"51448.343/1000","v":51.448343000000001},{"$f":"10277.712/1000","v":10.277711999999999}]
[null,"Pegmatitsand",{"$f":"0.287/1000","v":2.8699999999999998E-4},{"$f":"1.088/1000","v":1.088E-3},{"$f":"0.02/1000","v":2.0000000000000002E-5},null,"Pegmatitsand",{"$f":"0.287/1000","v":2.8699999999999998E-4},{"$f":"1.088/1000","v":1.088E-3},{"$f":"0.02/1000","v":2.0000000000000002E-5}]
[null,"Perlit",{"$f":"14.169/1000","v":1.4169000000000001E-2},{"$f":"1.469/1000","v":1.469E-3},{"$f":"0.975/1000","v":9.7499999999999996E-4},null,"Perlit",{"$f":"14.169/1000","v":1.4169000000000001E-2},{"$f":"1.469/1000","v":1.469E-3},{"$f":"0.975/1000","v":9.7499999999999996E-4}]
[null,"PET",{"$f":"71.685/1000","v":7.1684999999999999E-2},{"$f":"1.887/1000","v":1.887E-3},{"$f":"2.73/1000","v":2.7299999999999998E-3},null,"PET",{"$f":"71.685/1000","v":7.1684999999999999E-2},{"$f":"1.887/1000","v":1.887E-3},{"$f":"2.73/1000","v":2.7299999999999998E-3}]
[null,"Phosphat, Marokko",{"$f":"3.316/1000","v":3.3159999999999999E-3},{"$f":"8.229/1000","v":8.2289999999999985E-3},{"$f":"0.22/1000","v":2.2000000000000001E-4},null,"Phosphat, Marokko",{"$f":"3.316/1000","v":3.3159999999999999E-3},{"$f":"8.229/1000","v":8.2289999999999985E-3},{"$f":"0.22/1000","v":2.2000000000000001E-4}]
[null,"Phosphat, USA",{"$f":"3.962/1000","v":3.9620000000000002E-3},{"$f":"28.416/1000","v":2.8416E-2},{"$f":"0.201/1000","v":2.0100000000000001E-4},null,"Phosphat, USA",{"$f":"3.962/1000","v":3.9620000000000002E-3},{"$f":"28.416/1000","v":2.8416E-2},{"$f":"0.201/1000","v":2.0100000000000001E-4}]
[null,"Phosphor, weiß",{"$f":"187.048/1000","v":0.18704799999999999},{"$f":"165.275/1000","v":0.16527500000000001},{"$f":"9.433/1000","v":9.4330000000000004E-3},null,"Phosphor, weiß",{"$f":"187.048/1000","v":0.18704799999999999},{"$f":"165.275/1000","v":0.16527500000000001},{"$f":"9.433/1000","v":9.4330000000000004E-3}]
[null,"PKW",{"$f":"78.79/1000","v":7.8790000000000013E-2},{"$f":"6.915/1000","v":6.9150000000000001E-3},{"$f":"4.329/1000","v":4.3289999999999995E-3},null,"PKW",{"$f":"78.79/1000","v":7.8790000000000013E-2},{"$f":"6.915/1000","v":6.9150000000000001E-3},{"$f":"4.329/1000","v":4.3289999999999995E-3}]
[null,"Platin, Russland",{"$f":"213608.641/1000","v":213.60864100000001},{"$f":"67528.761/1000","v":67.528761000000003},{"$f":"13891.603/1000","v":13.891603},null,"Platin, Russland",{"$f":"213608.641/1000","v":213.60864100000001},{"$f":"67528.761/1000","v":67.528761000000003},{"$f":"13891.603/1000","v":13.891603}]
[null,"Platin, Südafrika",{"$f":"251888.137/1000","v":251.888137},{"$f":"190067.161/1000","v":190.067161},{"$f":"15285.913/1000","v":15.285913000000001},null,"Platin, Südafrika",{"$f":"251888.137/1000","v":251.888137},{"$f":"190067.161/1000","v":190.067161},{"$f":"15285.913/1000","v":15.285913000000001}]
[null,"PVC",{"$f":"55.653/1000","v":5.5653000000000001E-2},{"$f":"1.843/1000","v":1.843E-3},{"$f":"1.905/1000","v":1.905E-3},null,"PVC",{"$f":"55.653/1000","v":5.5653000000000001E-2},{"$f":"1.843/1000","v":1.843E-3},{"$f":"1.905/1000","v":1.905E-3}]
[null,"Quarz, Quarzite",{"$f":"7.701/1000","v":7.7009999999999995E-3},{"$f":"1.352/1000","v":1.3520000000000001E-3},{"$f":"0.241/1000","v":2.41E-4},null,"Quarz, Quarzite",{"$f":"7.701/1000","v":7.7009999999999995E-3},{"$f":"1.352/1000","v":1.3520000000000001E-3},{"$f":"0.241/1000","v":2.41E-4}]
[null,"Quarzsand",{"$f":"0.287/1000","v":2.8699999999999998E-4},{"$f":"1.088/1000","v":1.088E-3},{"$f":"0.02/1000","v":2.0000000000000002E-5},null,"Quarzsand",{"$f":"0.287/1000","v":2.8699999999999998E-4},{"$f":"1.088/1000","v":1.088E-3},{"$f":"0.02/1000","v":2.0000000000000002E-5}]
[null,"Quecksilber",{"$f":"1608.977/1000","v":1.6089770000000001},{"$f":"39.779/1000","v":3.9779000000000002E-2},{"$f":"115.363/1000","v":0.11536299999999999},null,"Quecksilber",{"$f":"1608.977/1000","v":1.6089770000000001},{"$f":"39.779/1000","v":3.9779000000000002E-2},{"$f":"115.363/1000","v":0.11536299999999999}]
[null,"Rhodium, Russland",{"$f":"467871.97/1000","v":467.87196999999998},{"$f":"168177.024/1000","v":168.17702400000002},{"$f":"30427.831/1000","v":30.427830999999998},null,"Rhodium, Russland",{"$f":"467871.97/1000","v":467.87196999999998},{"$f":"168177.024/1000","v":168.17702400000002},{"$f":"30427.831/1000","v":30.427830999999998}]
[null,"Rhodium, Südafrika",{"$f":"551718.651/1000","v":551.71865099999991},{"$f":"485236.194/1000","v":485.23619400000001},{"$f":"3381.304/1000","v":3.3813040000000001},null,"Rhodium, Südafrika",{"$f":"551718.651/1000","v":551.71865099999991},{"$f":"485236.194/1000","v":485.23619400000001},{"$f":"3381.304/1000","v":3.3813040000000001}]
[null,"Ruthenium",{"$f":"34335.196/1000","v":34.335196000000003},{"$f":"20783.141/1000","v":20.783141000000001},{"$f":"2112.265/1000","v":2.1122649999999998},null,"Ruthenium",{"$f":"34335.196/1000","v":34.335196000000003},{"$f":"20783.141/1000","v":20.783141000000001},{"$f":"2112.265/1000","v":2.1122649999999998}]
[null,"Ruß",{"$f":"82.38/1000","v":8.2379999999999995E-2},{"$f":"1.912/1000","v":1.9119999999999999E-3},{"$f":"2.304/1000","v":2.3039999999999996E-3},null,"Ruß",{"$f":"82.38/1000","v":8.2379999999999995E-2},{"$f":"1.912/1000","v":1.9119999999999999E-3},{"$f":"2.304/1000","v":2.3039999999999996E-3}]
[null,"Rübenblatt",{"$f":"1.866/1000","v":1.866E-3},{"$f":"1.072/1000","v":1.072E-3},{"$f":"0.056/1000","v":5.5999999999999999E-5},null,"Rübenblatt",{"$f":"1.866/1000","v":1.866E-3},{"$f":"1.072/1000","v":1.072E-3},{"$f":"0.056/1000","v":5.5999999999999999E-5}]
[null,"Sand (Bausand)",{"$f":"0.036/1000","v":3.5999999999999994E-5},{"$f":"1.041/1000","v":1.0409999999999998E-3},{"$f":"0.002/1000","v":1.9999999999999999E-6},null,"Sand (Bausand)",{"$f":"0.036/1000","v":3.5999999999999994E-5},{"$f":"1.041/1000","v":1.0409999999999998E-3},{"$f":"0.002/1000","v":1.9999999999999999E-6}]
[null,"Sauerstoff, flüssig",{"$f":"7.065/1000","v":7.0650000000000001E-3},{"$f":"0.237/1000","v":2.3699999999999999E-4},{"$f":"0.408/1000","v":4.08E-4},null,"Sauerstoff, flüssig",{"$f":"7.065/1000","v":7.0650000000000001E-3},{"$f":"0.237/1000","v":2.3699999999999999E-4},{"$f":"0.408/1000","v":4.08E-4}]
[null,"Schamottstein",{"$f":"17.598/1000","v":1.7597999999999999E-2},{"$f":"1.729/1000","v":1.7290000000000001E-3},{"$f":"1.146/1000","v":1.1459999999999999E-3},null,"Schamottstein",{"$f":"17.598/1000","v":1.7597999999999999E-2},{"$f":"1.729/1000","v":1.7290000000000001E-3},{"$f":"1.146/1000","v":1.1459999999999999E-3}]
[null,"Schiefer",{"$f":"0.205/1000","v":2.05E-4},{"$f":"6.673/1000","v":6.6730000000000001E-3},{"$f":"0.015/1000","v":1.4999999999999999E-5},null,"Schiefer",{"$f":"0.205/1000","v":2.05E-4},{"$f":"6.673/1000","v":6.6730000000000001E-3},{"$f":"0.015/1000","v":1.4999999999999999E-5}]
[null,"Schmieröl",{"$f":"71.761/1000","v":7.1760999999999991E-2},{"$f":"1.722/1000","v":1.722E-3},{"$f":"0.894/1000","v":8.9400000000000005E-4},null,"Schmieröl",{"$f":"71.761/1000","v":7.1760999999999991E-2},{"$f":"1.722/1000","v":1.722E-3},{"$f":"0.894/1000","v":8.9400000000000005E-4}]
[null,"Schmirgel, Korund, Granat (Schleifmittel)",{"$f":"0.433/1000","v":4.3300000000000001E-4},{"$f":"1.081/1000","v":1.0809999999999999E-3},{"$f":"0.029/1000","v":2.9E-5},null,"Schmirgel, Korund, Granat (Schleifmittel)",{"$f":"0.433/1000","v":4.3300000000000001E-4},{"$f":"1.081/1000","v":1.0809999999999999E-3},{"$f":"0.029/1000","v":2.9E-5}]
[null,"Schwefel",{"$f":"4.577/1000","v":4.5770000000000003E-3},{"$f":"0.112/1000","v":1.12E-4},{"$f":"0.308/1000","v":3.0800000000000001E-4},null,"Schwefel",{"$f":"4.577/1000","v":4.5770000000000003E-3},{"$f":"0.112/1000","v":1.12E-4},{"$f":"0.308/1000","v":3.0800000000000001E-4}]
[null,"Selen",{"$f":"35.242/1000","v":3.5241999999999996E-2},{"$f":"3.823/1000","v":3.823E-3},{"$f":"2.339/1000","v":2.3389999999999999E-3},null,"Selen",{"$f":"35.242/1000","v":3.5241999999999996E-2},{"$f":"3.823/1000","v":3.823E-3},{"$f":"2.339/1000","v":2.3389999999999999E-3}]
[null,"Siedesalz",{"$f":"1.024/1000","v":1.024E-3},{"$f":"1.031/1000","v":1.031E-3},{"$f":"0.063/1000","v":6.3E-5},null,"Siedesalz",{"$f":"1.024/1000","v":1.024E-3},{"$f":"1.031/1000","v":1.031E-3},{"$f":"0.063/1000","v":6.3E-5}]
[null,"Silber",{"$f":"1668.287/1000","v":1.6682870000000001},{"$f":"6836.019/1000","v":6.8360190000000003},{"$f":"123.699/1000","v":0.123699},null,"Silber",{"$f":"1668.287/1000","v":1.6682870000000001},{"$f":"6836.019/1000","v":6.8360190000000003},{"$f":"123.699/1000","v":0.123699}]
[null,"Silizium",{"$f":"1416.614/1000","v":1.416614},{"$f":"39.485/1000","v":3.9484999999999999E-2},{"$f":"85.601/1000","v":8.5600999999999997E-2},null,"Silizium",{"$f":"1416.614/1000","v":1.416614},{"$f":"39.485/1000","v":3.9484999999999999E-2},{"$f":"85.601/1000","v":8.5600999999999997E-2}]
[null,"Sillimanit",{"$f":"0.432/1000","v":4.3199999999999998E-4},{"$f":"4.099/1000","v":4.0990000000000002E-3},{"$f":"0.029/1000","v":2.9E-5},null,"Sillimanit",{"$f":"0.432/1000","v":4.3199999999999998E-4},{"$f":"4.099/1000","v":4.0990000000000002E-3},{"$f":"0.029/1000","v":2.9E-5}]
[null,"Soda",{"$f":"4.466/1000","v":4.4660000000000004E-3},{"$f":"1.115/1000","v":1.1149999999999999E-3},{"$f":"0.397/1000","v":3.97E-4},null,"Soda",{"$f":"4.466/1000","v":4.4660000000000004E-3},{"$f":"1.115/1000","v":1.1149999999999999E-3},{"$f":"0.397/1000","v":3.97E-4}]
[null,"Spanplatte",{"$f":"20.884/1000","v":2.0884E-2},{"$f":"1.807/1000","v":1.807E-3},{"$f":"0.461/1000","v":4.6100000000000004E-4},null,"Spanplatte",{"$f":"20.884/1000","v":2.0884E-2},{"$f":"1.807/1000","v":1.807E-3},{"$f":"0.461/1000","v":4.6100000000000004E-4}]
[null,"Speckstein",{"$f":"0.031/1000","v":3.1000000000000001E-5},{"$f":"1.264/1000","v":1.2639999999999999E-3},{"$f":"0.002/1000","v":1.9999999999999999E-6},null,"Speckstein",{"$f":"0.031/1000","v":3.1000000000000001E-5},{"$f":"1.264/1000","v":1.2639999999999999E-3},{"$f":"0.002/1000","v":1.9999999999999999E-6}]
[null,"Splitt, Körnungen aus Marmor",{"$f":"0.032/1000","v":3.1999999999999999E-5},{"$f":"1.064/1000","v":1.0640000000000001E-3},{"$f":"0.002/1000","v":1.9999999999999999E-6},null,"Splitt, Körnungen aus Marmor",{"$f":"0.032/1000","v":3.1999999999999999E-5},{"$f":"1.064/1000","v":1.0640000000000001E-3},{"$f":"0.002/1000","v":1.9999999999999999E-6}]
[null,"Stahl (Elektrostahl)",{"$f":"7.221/1000","v":7.221E-3},{"$f":"0.376/1000","v":3.7599999999999998E-4},{"$f":"0.399/1000","v":3.9899999999999999E-4},null,"Stahl (Elektrostahl)",{"$f":"7.221/1000","v":7.221E-3},{"$f":"0.376/1000","v":3.7599999999999998E-4},{"$f":"0.399/1000","v":3.9899999999999999E-4}]
[null,"Stahl (Konvertstahl)",{"$f":"21.385/1000","v":2.1385000000000001E-2},{"$f":"4.486/1000","v":4.4859999999999995E-3},{"$f":"1.594/1000","v":1.5940000000000001E-3},null,"Stahl (Konvertstahl)",{"$f":"21.385/1000","v":2.1385000000000001E-2},{"$f":"4.486/1000","v":4.4859999999999995E-3},{"$f":"1.594/1000","v":1.5940000000000001E-3}]
[null,"Stahlblech (ohne Prozessschritte für Stahlherstellung)",{"$f":"5.547/1000","v":5.5469999999999998E-3},{"$f":"0.51/1000","v":5.1000000000000004E-4},{"$f":"0.352/1000","v":3.5199999999999999E-4},null,"Stahlblech (ohne Prozessschritte für Stahlherstellung)",{"$f":"5.547/1000","v":5.5469999999999998E-3},{"$f":"0.51/1000","v":5.1000000000000004E-4},{"$f":"0.352/1000","v":3.5199999999999999E-4}]
[null,"Stahlblech verzinkt",{"$f":"36.247/1000","v":3.6247000000000001E-2},{"$f":"6.021/1000","v":6.0210000000000003E-3},{"$f":"2.494/1000","v":2.4940000000000001E-3},null,"Stahlblech verzinkt",{"$f":"36.247/1000","v":3.6247000000000001E-2},{"$f":"6.021/1000","v":6.0210000000000003E-3},{"$f":"2.494/1000","v":2.4940000000000001E-3}]
[null,"Steinsalz",{"$f":"1.965/1000","v":1.9650000000000002E-3},{"$f":"1.099/1000","v":1.0989999999999999E-3},{"$f":"0.128/1000","v":1.2799999999999999E-4},null,"Steinsalz",{"$f":"1.965/1000","v":1.9650000000000002E-3},{"$f":"1.099/1000","v":1.0989999999999999E-3},{"$f":"0.128/1000","v":1.2799999999999999E-4}]
[null,"Stickstoff, flüssig",{"$f":"7.488/1000","v":7.4880000000000007E-3},{"$f":"0.252/1000","v":2.52E-4},{"$f":"0.432/1000","v":4.3199999999999998E-4},null,"Stickstoff, flüssig",{"$f":"7.488/1000","v":7.4880000000000007E-3},{"$f":"0.252/1000","v":2.52E-4},{"$f":"0.432/1000","v":4.3199999999999998E-4}]
[null,"Stroh (Winterweizen)",{"$f":"15.072/1000","v":1.5071999999999999E-2},{"$f":"1.157/1000","v":1.157E-3},{"$f":"0.323/1000","v":3.2299999999999999E-4},null,"Stroh (Winterweizen)",{"$f":"15.072/1000","v":1.5071999999999999E-2},{"$f":"1.157/1000","v":1.157E-3},{"$f":"0.323/1000","v":3.2299999999999999E-4}]
[null,"Styrol",{"$f":"79.44/1000","v":7.9439999999999997E-2},{"$f":"2.223/1000","v":2.2229999999999997E-3},{"$f":"3.29/1000","v":3.29E-3},null,"Styrol",{"$f":"79.44/1000","v":7.9439999999999997E-2},{"$f":"2.223/1000","v":2.2229999999999997E-3},{"$f":"3.29/1000","v":3.29E-3}]
[null,"Talk, Talkum",{"$f":"0.434/1000","v":4.3399999999999998E-4},{"$f":"1.407/1000","v":1.407E-3},{"$f":"0.029/1000","v":2.9E-5},null,"Talk, Talkum",{"$f":"0.434/1000","v":4.3399999999999998E-4},{"$f":"1.407/1000","v":1.407E-3},{"$f":"0.029/1000","v":2.9E-5}]
[null,"Tantal",{"$f":"3355.827/1000","v":3.3558270000000001},{"$f":"9180.875/1000","v":9.1808750000000003},{"$f":"232.834/1000","v":0.23283400000000001},null,"Tantal",{"$f":"3355.827/1000","v":3.3558270000000001},{"$f":"9180.875/1000","v":9.1808750000000003},{"$f":"232.834/1000","v":0.23283400000000001}]
[null,"Thallium",{"$f":"5161.835/1000","v":5.161835},{"$f":"1154.469/1000","v":1.154469},{"$f":"331.814/1000","v":0.331814},null,"Thallium",{"$f":"5161.835/1000","v":5.161835},{"$f":"1154.469/1000","v":1.154469},{"$f":"331.814/1000","v":0.331814}]
[null,"Titan",{"$f":"417.783/1000","v":0.41778300000000002},{"$f":"39.719/1000","v":3.9719000000000004E-2},{"$f":"27.373/1000","v":2.7373000000000001E-2},null,"Titan",{"$f":"417.783/1000","v":0.41778300000000002},{"$f":"39.719/1000","v":3.9719000000000004E-2},{"$f":"27.373/1000","v":2.7373000000000001E-2}]
[null,"Torf",{"$f":"8.952/1000","v":8.9519999999999999E-3},{"$f":"1.006/1000","v":1.0059999999999999E-3},{"$f":"0.018/1000","v":1.7999999999999997E-5},null,"Torf",{"$f":"8.952/1000","v":8.9519999999999999E-3},{"$f":"1.006/1000","v":1.0059999999999999E-3},{"$f":"0.018/1000","v":1.7999999999999997E-5}]
[null,"Trass",{"$f":"0.432/1000","v":4.3199999999999998E-4},{"$f":"1.048/1000","v":1.0480000000000001E-3},{"$f":"0.029/1000","v":2.9E-5},null,"Trass",{"$f":"0.432/1000","v":4.3199999999999998E-4},{"$f":"1.048/1000","v":1.0480000000000001E-3},{"$f":"0.029/1000","v":2.9E-5}]
[null,"Tuffstein",{"$f":"4.066/1000","v":4.0660000000000002E-3},{"$f":"1.101/1000","v":1.101E-3},{"$f":"0.135/1000","v":1.35E-4},null,"Tuffstein",{"$f":"4.066/1000","v":4.0660000000000002E-3},{"$f":"1.101/1000","v":1.101E-3},{"$f":"0.135/1000","v":1.35E-4}]
[null,"Uran",{"$f":"588248.789/1000","v":588.24878899999999},{"$f":"273.073/1000","v":0.27307299999999995},{"$f":"18.172/1000","v":1.8172000000000001E-2},null,"Uran",{"$f":"588248.789/1000","v":588.24878899999999},{"$f":"273.073/1000","v":0.27307299999999995},{"$f":"18.172/1000","v":1.8172000000000001E-2}]
[null,"Vermikulit",{"$f":"5.377/1000","v":5.3769999999999998E-3},{"$f":"4.123/1000","v":4.1229999999999999E-3},{"$f":"0.384/1000","v":3.8400000000000001E-4},null,"Vermikulit",{"$f":"5.377/1000","v":5.3769999999999998E-3},{"$f":"4.123/1000","v":4.1229999999999999E-3},{"$f":"0.384/1000","v":3.8400000000000001E-4}]
[null,"Wafer",{"$f":"3199.686/1000","v":3.1996860000000003},{"$f":"123.742/1000","v":0.123742},{"$f":"158.476/1000","v":0.15847600000000001},null,"Wafer",{"$f":"3199.686/1000","v":3.1996860000000003},{"$f":"123.742/1000","v":0.123742},{"$f":"158.476/1000","v":0.15847600000000001}]
[null,"Wasserglas",{"$f":"8.295/1000","v":8.2950000000000003E-3},{"$f":"1.444/1000","v":1.444E-3},{"$f":"0.765/1000","v":7.6500000000000005E-4},null,"Wasserglas",{"$f":"8.295/1000","v":8.2950000000000003E-3},{"$f":"1.444/1000","v":1.444E-3},{"$f":"0.765/1000","v":7.6500000000000005E-4}]
[null,"Wasserstoff",{"$f":"64.486/1000","v":6.4486000000000002E-2},{"$f":"1.64/1000","v":1.64E-3},{"$f":"1.702/1000","v":1.702E-3},null,"Wasserstoff",{"$f":"64.486/1000","v":6.4486000000000002E-2},{"$f":"1.64/1000","v":1.64E-3},{"$f":"1.702/1000","v":1.702E-3}]
[null,"Wismut",{"$f":"343.856/1000","v":0.34385599999999999},{"$f":"92.985/1000","v":9.2984999999999998E-2},{"$f":"22.104/1000","v":2.2103999999999999E-2},null,"Wismut",{"$f":"343.856/1000","v":0.34385599999999999},{"$f":"92.985/1000","v":9.2984999999999998E-2},{"$f":"22.104/1000","v":2.2103999999999999E-2}]
[null,"Wolfram",{"$f":"52.412/1000","v":5.2412E-2},{"$f":"343.459/1000","v":0.34345900000000001},{"$f":"2.87/1000","v":2.8700000000000002E-3},null,"Wolfram",{"$f":"52.412/1000","v":5.2412E-2},{"$f":"343.459/1000","v":0.34345900000000001},{"$f":"2.87/1000","v":2.8700000000000002E-3}]
[null,"Zeitungsdruckpapier",{"$f":"32.421/1000","v":3.2420999999999998E-2},{"$f":"2.796/1000","v":2.7959999999999999E-3},{"$f":"1.267/1000","v":1.2669999999999999E-3},null,"Zeitungsdruckpapier",{"$f":"32.421/1000","v":3.2420999999999998E-2},{"$f":"2.796/1000","v":2.7959999999999999E-3},{"$f":"1.267/1000","v":1.2669999999999999E-3}]
[null,"Zellstoff (Sulfatzellstoff)",{"$f":"29.575/1000","v":2.9575000000000001E-2},{"$f":"4.147/1000","v":4.1470000000000005E-3},{"$f":"0.735/1000","v":7.3499999999999998E-4},null,"Zellstoff (Sulfatzellstoff)",{"$f":"29.575/1000","v":2.9575000000000001E-2},{"$f":"4.147/1000","v":4.1470000000000005E-3},{"$f":"0.735/1000","v":7.3499999999999998E-4}]
[null,"Zellstoff (Sulfitzellstoff)",{"$f":"31.684/1000","v":3.1684000000000004E-2},{"$f":"4.895/1000","v":4.8949999999999992E-3},{"$f":"0.464/1000","v":4.64E-4},null,"Zellstoff (Sulfitzellstoff)",{"$f":"31.684/1000","v":3.1684000000000004E-2},{"$f":"4.895/1000","v":4.8949999999999992E-3},{"$f":"0.464/1000","v":4.64E-4}]
[null,"Zement",{"$f":"3.116/1000","v":3.1160000000000003E-3},{"$f":"1.468/1000","v":1.4679999999999999E-3},{"$f":"0.752/1000","v":7.5199999999999996E-4},null,"Zement",{"$f":"3.116/1000","v":3.1160000000000003E-3},{"$f":"1.468/1000","v":1.4679999999999999E-3},{"$f":"0.752/1000","v":7.5199999999999996E-4}]
[null,"Zinkerze",{"$f":"4.504/1000","v":4.5039999999999993E-3},{"$f":"7.486/1000","v":7.4859999999999996E-3},{"$f":"0.426/1000","v":4.26E-4},null,"Zinkerze",{"$f":"4.504/1000","v":4.5039999999999993E-3},{"$f":"7.486/1000","v":7.4859999999999996E-3},{"$f":"0.426/1000","v":4.26E-4}]
[null,"Zinn",{"$f":"263.923/1000","v":0.26392300000000002},{"$f":"1178.84/1000","v":1.1788399999999999},{"$f":"16.769/1000","v":1.6768999999999999E-2},null,"Zinn",{"$f":"263.923/1000","v":0.26392300000000002},{"$f":"1178.84/1000","v":1.1788399999999999},{"$f":"16.769/1000","v":1.6768999999999999E-2}]